Workbook

Sheet Summary of Funding (hidden)
A1: Date Issued: 11th October 2024 | H1: Last Amended: 11th October 2024
A2: COVENTRY CITY COUNCIL
A3: 2024-25 Funding Allocations for Special Schools & Alternative Provision | P3: 8
A4: Summary of Funding
A6: =_xlfn.XLOOKUP($P$3,Data!A4:A12,Data!B4:B12) -> Woodfield Special School
A9: =IF(P42=0,"","***ERROR - CALCULATED ADJUSTMENT DOES NOT EQUAL ACTUAL ***") -> 
A10: Coventry Budget Share Elements
A12: Place Led Funding - see 'Place Led Funding' tab | F12: ='Place Led Funding'!M26 -> 1550000 | P12: =_xlfn.XLOOKUP(P3,Data!A101:A110,Data!C101:C110)-F12 -> 0
A14: INDICATIVE Coventry Top-up Funding - see 'Top-up Funding' tabs | F14: ='Summer 2024 Top-up'!K29+'Autumn 2024 Top-up'!K29+'Spring 2025 Top-up'!K29 -> 2908454.903 | P14: =_xlfn.XLOOKUP(P3,Data!A101:A110,Data!D101:D110)-F14 -> 0
A16: Teachers Pay & Pension Grants | F16: =_xlfn.XLOOKUP('Summary of Funding'!$P$3,Data!$A$4:$A$12,Data!AQ4:AQ12) -> 102300 | P16: =_xlfn.XLOOKUP(P3,Data!A4:A12,Data!AQ4:AQ12)-'Summary of Funding'!F16 -> 0
A18: Split Site Funding | F18: =_xlfn.XLOOKUP('Summary of Funding'!$P$3,Data!$A$4:$A$12,Data!AS4:AS12) -> 90000
A20: RPA Adjustment | F20: =_xlfn.XLOOKUP('Summary of Funding'!$P$3,Data!$A$4:$A$12,Data!AT4:AT12) -> -3875
H23: =F12+F14+F16+F18+F20 -> 4646879.903 | P23: =P14+P12 -> 0
A25: Other LA Budget Share Elements
A27: INDICATIVE Other LA Top-up Funding - see 'Top-up Funding' tabs | F27: ='Summer 2024 Top-up'!K51+'Autumn 2024 Top-up'!K51+'Spring 2025 Top-up'!K51 -> 67584.91191 | P27: =_xlfn.XLOOKUP(P3,Data!A87:A95,Data!AS87:AS95)-F27 -> 0
H29: =F27 -> 67584.91191 | P29: =P27 -> 0
A31: INDICATIVE Total Budget Share 2024/25 | H31: =H23+H29 -> 4714464.814 | P31: =P29+P23 -> 0
A33: Other Funding Elements
A35: Teachers Pay Additional Grant | F35: =VLOOKUP(P3,Data!A4:AR12,44,FALSE) -> 67976.7
A37: INDICATIVE Pupil Premium Grant 2024/25 | F37: =_xlfn.XLOOKUP('Summary of Funding'!$P$3,Data!$A$4:$A$12,Data!AP4:AP12) -> 151280 | P37: =_xlfn.XLOOKUP(P3,Data!A4:A12,Data!AP4:AP12)-F37 -> 0
H39: =F35+F37 -> 219256.7
A41: INDICATIVE Total Revenue Resources | H41: =H31+H39 -> 4933721.514 | P41: =P39+P31 -> 0
A44: Notes
A46: This funding summary is intended to give you an overview of the indicative resources allocated to the school for the 2024/25 financial year.
A47: The actual budget that you will receive is based on the real-time movement of pupils and so will not be finalised until March 2025.
A49: Your level of top-up funding shown for the autumn 2024 and spring 2025 terms is indicative only. These top-up figures are
A50: based on the level of provision your school delivered in the same terms in the 2023-24 financial years. Where the number of places at your
A51: school has changed we have scaled the indicative level of provision up or down as appropriate to reflect the changing position at the school
A52: - but we have not allowed this to increase above your number of comissioned places.
A53: Top-up funding for summer 2024 is based on actual number of pupils.
A55: Pupil Premium Funding has been updated to reflect 24/25 eligibility data from DfE. This may still be subject to slight change.
A57: In 2023/24 additonal high needs funding was received separately to top up funding. In 2024/25 this has now been incorporated into the
A58: high needs top up rates.

Sheet Place Led Funding (hidden)
A1: ='Summary of Funding'!A1 -> Date Issued: 11th October 2024 | M1: ='Summary of Funding'!H1 -> Last Amended: 11th October 2024
A2: ='Summary of Funding'!A2 -> COVENTRY CITY COUNCIL
A3: ='Summary of Funding'!A3 -> 2024-25 Funding Allocations for Special Schools & Alternative Provision | P3: 8
A4: Place Led Funding
A6: =_xlfn.XLOOKUP(P3,Data!A4:A12,Data!B4:B12) -> Woodfield Special School | P6: Checks
A10: Factors | C10: Factor Measurement | G10: Number of Units | I10: Funding Per Unit | K10: Pro Rata | M10: Funding Allocated
I11: £ | M11: £
A13: Pre-16 Funding | C13: No. Places comissioned (Apr 2024 - Jul 2024) | G13: =_xlfn.XLOOKUP($P$3,Data!A4:A12,Data!F4:F12) -> 155 | I13: 10000 | K13: =4/12 -> 0.3333333333 | M13: =G13*I13*K13 -> 516666.6667
C14: No. Places comissioned (Aug 2024) | G14: =_xlfn.XLOOKUP($P$3,Data!A4:A12,Data!G4:G12) -> 155 | I14: 10000 | K14: 0.08333333333 | M14: =G14*I14*K14 -> 129166.6667
C15: No. Places comissioned (Sep 2024 - Mar 2025) | G15: =_xlfn.XLOOKUP($P$3,Data!A4:A12,Data!H4:H12) -> 155 | I15: 10000 | K15: 0.5833333333 | M15: =G15*I15*K15 -> 904166.6667
M17: =SUM(M13:M15) -> 1550000 | P17: =_xlfn.XLOOKUP(P3,Data!A4:A12,Data!O4:O12)+_xlfn.XLOOKUP(P3,Data!A4:A12,Data!P4:P12)+_xlfn.XLOOKUP(P3,Data!A4:A12,Data!Q4:Q12)-M17 -> 0
A19: Post-16 Funding | C19: No. Places comissioned (Apr 2024 - Jul 2024) | G19: =_xlfn.XLOOKUP($P$3,Data!A4:A12,Data!I4:I12) -> 0 | I19: 10000 | K19: =4/12 -> 0.3333333333 | M19: =G19*I19*K19 -> 0
C20: No. Places comissioned (Aug 2024) | G20: =_xlfn.XLOOKUP($P$3,Data!A4:A12,Data!I4:I12) -> 0 | I20: 10000 | K20: 0.08333333333 | M20: =G20*I20*K20 -> 0
C21: No. Places comissioned (Sep 2024 - Mar 2025) | G21: =_xlfn.XLOOKUP($P$3,Data!A4:A12,Data!J4:J12) -> 0 | I21: 10000 | K21: 0.5833333333 | M21: =G21*I21*K21 -> 0
M23: =SUM(M19:M21) -> 0 | P23: =_xlfn.XLOOKUP(P3,Data!A4:A12,Data!R4:R12)+_xlfn.XLOOKUP(P3,Data!A4:A12,Data!S4:S12)+_xlfn.XLOOKUP(P3,Data!A4:A12,Data!T4:T12)-'Place Led Funding'!M23 -> 0
A26: Total Indicative Place Led Funding | M26: =M17+M23 -> 1550000 | P26: =P23+P17 -> 0

Sheet HN Framework Values (hidden)
A1: ='Summary of Funding'!A1 -> Date Issued: 11th October 2024 | K1: ='Summary of Funding'!H1 -> Last Amended: 11th October 2024
A2: ='Summary of Funding'!A2 -> COVENTRY CITY COUNCIL
A3: ='Summary of Funding'!A3 -> 2024-25 Funding Allocations for Special Schools & Alternative Provision | P3: 8
A4: High Needs Banded Framework Top-up Rates
A6: =_xlfn.XLOOKUP(P3,Data!A4:A12,Data!B4:B12) -> Woodfield Special School | P6: Checks
A11: High Needs Banded Framework
A12: Table 1 | D12: Cat 1 | E12: Cat 2 | F12: Cat 3 | G12: Cat 4 | H12: Cat 5 | I12: Cat 6
D13: Communication and Interaction | E13: Cognition and Learning | F13: SEMH | G13: Sensory &/or Physical | H13: Exceptional | I13: Personalised
C14: Level A | D14: Universal | I14: Early Support - only as agreed with Head of SS
C15: Level B | D15: Targeted
C16: Level C | D16: S&L Disorder | E16: Specific LD
C17: Level D | D17: Social Comm - Moderate | E17: MLD | F17: SEMH - Moderate | G17: HI/VI
C18: Level E | D18: Social Comm - High | E18: SLD | F18: SEMH - High | G18: PD - High | H18: OOC - only as agreed with Head of SS | I18: CC - only as agreed with Head of SS
C19: Level F | D19: Social Comm - Severe | E19: PMLD | F19: SEMH - Severe | G19: MSI
C21: Cov ELC | D21: ELC Band
A23: HN Framework Top-up Rates
A24: Table 2 | D24: Cat 1 | E24: Cat 2 | F24: Cat 3 | G24: Cat 4 | H24: Cat 5 | I24: Cat 6
D25: Communication and Interaction | E25: Cognition and Learning | F25: SEMH | G25: Sensory &/or Physical | H25: Exceptional | I25: Personalised
C26: Level A | D26: 0 | E26: 0 | F26: 0 | G26: 0 | I26: As agreed with Head of SS
C27: Level B | D27: 0 | E27: 0 | F27: 0 | G27: 0
C28: Level C | D28: =D40 -> 2761.360792 | E28: =E40 -> 3313.63768
C29: Level D | D29: =D41 -> 3313.63768 | E29: 5522.721585 | F29: =F41 -> 8284.094199 | G29: 8284.094199
C30: Level E | D30: 11045.45499 | E30: 10217.05148 | F30: =F42 -> 13806.81578 | G30: 13806.81578 | H30: As agreed with Head of SS | I30: As agreed with Head of SS
C31: Level F | D31: =D43 -> 17948.86879 | E31: =E43 -> 16568.17658 | F31: =F43 -> 17948.86879 | G31: 16568.17658
C33: Cov ELC | D33: =Data!V12 -> 13434.51733
A35: MFG PROTECTED Top-up Rates
A36: Table 3 | D36: Cat 1 | E36: Cat 2 | F36: Cat 3 | G36: Cat 4 | H36: Cat 5 | I36: Cat 6
A37: Protection | D37: Communication and Interaction | E37: Cognition and Learning | F37: SEMH | G37: Sensory &/or Physical | H37: Exceptional | I37: Personalised
A38: Level: | B38: =((D43/D31)-1) -> 0 | C38: Level A | D38: 0 | E38: 0 | F38: 0 | G38: 0 | H38: 0 | I38: 0
C39: Level B | D39: 0 | E39: 0 | F39: 0 | G39: 0 | H39: 0 | I39: 0
C40: Level C | D40: =_xlfn.XLOOKUP($P$3,Data!$A$4:$A$12,Data!W4:W12) -> 2761.360792 | E40: =_xlfn.XLOOKUP($P$3,Data!$A$4:$A$12,Data!X4:X12) -> 3313.63768 | F40: 0 | G40: 0 | H40: 0 | I40: 0
C41: Level D | D41: =_xlfn.XLOOKUP($P$3,Data!$A$4:$A$12,Data!Y4:Y12) -> 3313.63768 | E41: =_xlfn.XLOOKUP($P$3,Data!$A$4:$A$12,Data!Z4:Z12) -> 5522.721585 | F41: =_xlfn.XLOOKUP($P$3,Data!$A$4:$A$12,Data!AA4:AA12) -> 8284.094199 | G41: =_xlfn.XLOOKUP($P$3,Data!$A$4:$A$12,Data!AB4:AB12) -> 8284.094199 | H41: 0 | I41: 0
C42: Level E | D42: =_xlfn.XLOOKUP($P$3,Data!$A$4:$A$12,Data!AC4:AC12) -> 11045.45499 | E42: =_xlfn.XLOOKUP($P$3,Data!$A$4:$A$12,Data!AD4:AD12) -> 10217.05148 | F42: =_xlfn.XLOOKUP($P$3,Data!$A$4:$A$12,Data!AE4:AE12) -> 13806.81578 | G42: =_xlfn.XLOOKUP($P$3,Data!$A$4:$A$12,Data!AF4:AF12) -> 13806.81578 | H42: =_xlfn.XLOOKUP($P$3,Data!$A$4:$A$12,Data!AG4:AG12) -> 24631.3373 | I42: =_xlfn.XLOOKUP($P$3,Data!$A$4:$A$12,Data!AH4:AH12) -> 0
C43: Level F | D43: =_xlfn.XLOOKUP($P$3,Data!$A$4:$A$12,Data!AI4:AI12) -> 17948.86879 | E43: =_xlfn.XLOOKUP($P$3,Data!$A$4:$A$12,Data!AJ4:AJ12) -> 16568.17658 | F43: =_xlfn.XLOOKUP($P$3,Data!$A$4:$A$12,Data!AK4:AK12) -> 17948.86879 | G43: =_xlfn.XLOOKUP($P$3,Data!$A$4:$A$12,Data!AL4:AL12) -> 16568.17658 | H43: =_xlfn.XLOOKUP($P$3,Data!$A$4:$A$12,Data!AM4:AM12) -> 49262.67461 | I43: =_xlfn.XLOOKUP($P$3,Data!$A$4:$A$12,Data!AN4:AN12) -> 0
A46: Notes
A48: Table 2 shows the High Needs Top-up Rates that apply to special schools for each element of the High Needs Funding Matrix. All top up
A49: rates have seen an inflationary increase of 1.4% plus the additional grant has now been incorporated into these rates.
A53: =IF(N4="MFG","standard High Needs Top-up rates. Your protected top-up rates are shown in table 3 and apply to your school for the 2021/22 financial year.","") -> 

Sheet Summer 2024 Top-up (hidden)
A1: ='Summary of Funding'!A1 -> Date Issued: 11th October 2024 | M1: ='Summary of Funding'!H1 -> Last Amended: 11th October 2024
A2: ='Summary of Funding'!A2 -> COVENTRY CITY COUNCIL
A3: ='Summary of Funding'!A3 -> 2024-25 Funding Allocations for Special Schools & Alternative Provision | P3: ='Summary of Funding'!P3 -> 8
A4: Summer 2024 Top-up Funding
A6: =_xlfn.XLOOKUP(P3,Data!A4:A12,Data!B4:B12) -> Woodfield Special School | P6: Checks
A10: Total days in term: | B10: =Data!A20 -> 69
A11: Summer 2024 Funded days - Coventry
A12: Actual | D12: Cat 1 | E12: Cat 2 | F12: Cat 3 | G12: Cat 4 | H12: Cat 5 | I12: Cat 6
C13: Level A | D13: 0 | E13: 0 | F13: 0 | G13: 0 | H13: 0 | I13: 0
C14: Level B | D14: 0 | E14: 0 | F14: 0 | G14: 0 | H14: 0 | I14: 0
C15: Level C | D15: =_xlfn.XLOOKUP($P$3,Data!$A$21:$A$29,Data!E21:E29) -> 0 | E15: =_xlfn.XLOOKUP($P$3,Data!$A$21:$A$29,Data!F21:F29) -> 0 | F15: 0 | G15: 0 | H15: 0 | I15: 0
C16: Level D | D16: =_xlfn.XLOOKUP($P$3,Data!$A$21:$A$29,Data!G21:G29) -> 0 | E16: =_xlfn.XLOOKUP($P$3,Data!$A$21:$A$29,Data!H21:H29) -> 0 | F16: =_xlfn.XLOOKUP($P$3,Data!$A$21:$A$29,Data!I21:I29) -> 0 | G16: =_xlfn.XLOOKUP($P$3,Data!$A$21:$A$29,Data!J21:J29) -> 0 | H16: 0 | I16: 0
C17: Level E | D17: =_xlfn.XLOOKUP($P$3,Data!$A$21:$A$29,Data!K21:K29) -> 0 | E17: =_xlfn.XLOOKUP($P$3,Data!$A$21:$A$29,Data!L21:L29) -> 0 | F17: =_xlfn.XLOOKUP($P$3,Data!$A$21:$A$29,Data!M21:M29) -> 0 | G17: =_xlfn.XLOOKUP($P$3,Data!$A$21:$A$29,Data!N21:N29) -> 0 | H17: =_xlfn.XLOOKUP($P$3,Data!$A$21:$A$29,Data!O21:O29) -> 500 | I17: =_xlfn.XLOOKUP($P$3,Data!$A$21:$A$29,Data!P21:P29) -> 0 | K17: Total FTE
C18: Level F | D18: =_xlfn.XLOOKUP($P$3,Data!$A$21:$A$29,Data!Q21:Q29) -> 10003 | E18: =_xlfn.XLOOKUP($P$3,Data!$A$21:$A$29,Data!R21:R29) -> 0 | F18: =_xlfn.XLOOKUP($P$3,Data!$A$21:$A$29,Data!S21:S29) -> 69 | G18: =_xlfn.XLOOKUP($P$3,Data!$A$21:$A$29,Data!T21:T29) -> 0 | H18: =_xlfn.XLOOKUP($P$3,Data!$A$21:$A$29,Data!U21:U29) -> 138 | I18: =_xlfn.XLOOKUP($P$3,Data!$A$21:$A$29,Data!V21:V29) -> 0 | K18: =SUM(D13:I20)/B10 -> 155.2173913
C20: PRU | D20: =_xlfn.XLOOKUP($P$3,Data!$A$21:$A$29,Data!D21:D29) -> 0
A22: Summer 2024 Top-up Funding - Coventry
A23: Actual | D23: Cat 1 | E23: Cat 2 | F23: Cat 3 | G23: Cat 4 | H23: Cat 5 | I23: Cat 6
C24: Level A | D24: =D13*('HN Framework Values'!D38/Data!$A$16) -> 0 | E24: =E13*('HN Framework Values'!E38/Data!$A$16) -> 0 | F24: =F13*('HN Framework Values'!F38/Data!$A$16) -> 0 | G24: =G13*('HN Framework Values'!G38/Data!$A$16) -> 0 | H24: 0 | I24: 0
C25: Level B | D25: =D14*('HN Framework Values'!D39/Data!$A$16) -> 0 | E25: =E14*('HN Framework Values'!E39/Data!$A$16) -> 0 | F25: =F14*('HN Framework Values'!F39/Data!$A$16) -> 0 | G25: =G14*('HN Framework Values'!G39/Data!$A$16) -> 0 | H25: 0 | I25: 0
C26: Level C | D26: =D15*('HN Framework Values'!D40/Data!$A$16) -> 0 | E26: =E15*('HN Framework Values'!E40/Data!$A$16) -> 0 | F26: =F15*('HN Framework Values'!F40/Data!$A$16) -> 0 | G26: =G15*('HN Framework Values'!G40/Data!$A$16) -> 0 | H26: 0 | I26: 0 | K26: Total Coventry Top-up
C27: Level D | D27: =D16*('HN Framework Values'!D41/Data!$A$16) -> 0 | E27: =E16*('HN Framework Values'!E41/Data!$A$16) -> 0 | F27: =F16*('HN Framework Values'!F41/Data!$A$16) -> 0 | G27: =G16*('HN Framework Values'!G41/Data!$A$16) -> 0 | H27: 0 | I27: 0
C28: Level E | D28: =D17*('HN Framework Values'!D42/Data!$A$16) -> 0 | E28: =E17*('HN Framework Values'!E42/Data!$A$16) -> 0 | F28: =F17*('HN Framework Values'!F42/Data!$A$16) -> 0 | G28: =G17*('HN Framework Values'!G42/Data!$A$16) -> 0 | H28: =H17*('HN Framework Values'!H42/Data!$A$16) -> 61578.34326 | I28: =I17*('HN Framework Values'!I42/Data!$A$16) -> 0
C29: Level F | D29: =D18*('HN Framework Values'!D43/Data!$A$16) -> 897712.6727 | E29: =E18*('HN Framework Values'!E43/Data!$A$16) -> 0 | F29: =F18*('HN Framework Values'!F43/Data!$A$16) -> 6192.359734 | G29: =G18*('HN Framework Values'!G43/Data!$A$16) -> 0 | H29: =H18*('HN Framework Values'!H43/Data!$A$16) -> 33991.24548 | I29: =I18*('HN Framework Values'!I43/Data!$A$16) -> 0 | K29: =SUM(D24:I31) -> 999474.6212
C31: PRU | D31: =D20*'HN Framework Values'!D33/Data!A16 -> 0
A33: Summer 2024 Funded days - Other LAs
A34: Actual | D34: Cat 1 | E34: Cat 2 | F34: Cat 3 | G34: Cat 4 | H34: Cat 5 | I34: Cat 6
C35: Level A | D35: 0 | E35: 0 | F35: 0 | G35: 0 | H35: 0 | I35: 0
C36: Level B | D36: 0 | E36: 0 | F36: 0 | G36: 0 | H36: 0 | I36: 0
C37: Level C | D37: =_xlfn.XLOOKUP($P$3,Data!$A$21:$A$29,Data!Z21:Z29) -> 0 | E37: =_xlfn.XLOOKUP($P$3,Data!$A$21:$A$29,Data!AA21:AA29) -> 0 | F37: 0 | G37: 0 | H37: 0 | I37: 0
C38: Level D | D38: =_xlfn.XLOOKUP($P$3,Data!$A$21:$A$29,Data!AB21:AB29) -> 0 | E38: =_xlfn.XLOOKUP($P$3,Data!$A$21:$A$29,Data!AC21:AC29) -> 0 | F38: =_xlfn.XLOOKUP($P$3,Data!$A$21:$A$29,Data!AD21:AD29) -> 0 | G38: =_xlfn.XLOOKUP($P$3,Data!$A$21:$A$29,Data!AE21:AE29) -> 0 | H38: 0 | I38: 0
C39: Level E | D39: =_xlfn.XLOOKUP($P$3,Data!$A$21:$A$29,Data!AF21:AF29) -> 0 | E39: =_xlfn.XLOOKUP($P$3,Data!$A$21:$A$29,Data!AG21:AG29) -> 0 | F39: =_xlfn.XLOOKUP($P$3,Data!$A$21:$A$29,Data!AH21:AH29) -> 0 | G39: =_xlfn.XLOOKUP($P$3,Data!$A$21:$A$29,Data!AI21:AI29) -> 0 | H39: =_xlfn.XLOOKUP($P$3,Data!$A$21:$A$29,Data!AJ21:AJ29) -> 0 | I39: =_xlfn.XLOOKUP($P$3,Data!$A$21:$A$29,Data!AK21:AK29) -> 0 | K39: Total FTE
C40: Level F | D40: =_xlfn.XLOOKUP($P$3,Data!$A$21:$A$29,Data!AL21:AL29) -> 138 | E40: =_xlfn.XLOOKUP($P$3,Data!$A$21:$A$29,Data!AM21:AM29) -> 0 | F40: =_xlfn.XLOOKUP($P$3,Data!$A$21:$A$29,Data!AN21:AN29) -> 0 | G40: =_xlfn.XLOOKUP($P$3,Data!$A$21:$A$29,Data!AO21:AO29) -> 0 | H40: =_xlfn.XLOOKUP($P$3,Data!$A$21:$A$29,Data!AP21:AP29) -> 0 | I40: =_xlfn.XLOOKUP($P$3,Data!$A$21:$A$29,Data!AQ21:AQ29) -> 0 | K40: =SUM(D35:I42)/B10 -> 2
C42: PRU | D42: =_xlfn.XLOOKUP($P$3,Data!$A$21:$A$29,Data!Y21:Y29) -> 0
A44: Summer 2024 Top-up Funding - Other LAs
A45: Actual | D45: Cat 1 | E45: Cat 2 | F45: Cat 3 | G45: Cat 4 | H45: Cat 5 | I45: Cat 6
C46: Level A | D46: =D35*('HN Framework Values'!D38/Data!$A$16) -> 0 | E46: =E35*('HN Framework Values'!E38/Data!$A$16) -> 0 | F46: =F35*('HN Framework Values'!F38/Data!$A$16) -> 0 | G46: =G35*('HN Framework Values'!G38/Data!$A$16) -> 0 | H46: =H35*('HN Framework Values'!H38/Data!$A$16) -> 0 | I46: =I35*('HN Framework Values'!I38/Data!$A$16) -> 0
C47: Level B | D47: =D36*('HN Framework Values'!D39/Data!$A$16) -> 0 | E47: =E36*('HN Framework Values'!E39/Data!$A$16) -> 0 | F47: =F36*('HN Framework Values'!F39/Data!$A$16) -> 0 | G47: =G36*('HN Framework Values'!G39/Data!$A$16) -> 0 | H47: =H36*('HN Framework Values'!H39/Data!$A$16) -> 0 | I47: =I36*('HN Framework Values'!I39/Data!$A$16) -> 0
C48: Level C | D48: =D37*('HN Framework Values'!D40/Data!$A$16) -> 0 | E48: =E37*('HN Framework Values'!E40/Data!$A$16) -> 0 | F48: =F37*('HN Framework Values'!F40/Data!$A$16) -> 0 | G48: =G37*('HN Framework Values'!G40/Data!$A$16) -> 0 | H48: =H37*('HN Framework Values'!H40/Data!$A$16) -> 0 | I48: =I37*('HN Framework Values'!I40/Data!$A$16) -> 0 | K48: Total Other LA Top-up
C49: Level D | D49: =D38*('HN Framework Values'!D41/Data!$A$16) -> 0 | E49: =E38*('HN Framework Values'!E41/Data!$A$16) -> 0 | F49: =F38*('HN Framework Values'!F41/Data!$A$16) -> 0 | G49: =G38*('HN Framework Values'!G41/Data!$A$16) -> 0 | H49: =H38*('HN Framework Values'!H41/Data!$A$16) -> 0 | I49: =I38*('HN Framework Values'!I41/Data!$A$16) -> 0
C50: Level E | D50: =D39*('HN Framework Values'!D42/Data!$A$16) -> 0 | E50: =E39*('HN Framework Values'!E42/Data!$A$16) -> 0 | F50: =F39*('HN Framework Values'!F42/Data!$A$16) -> 0 | G50: =G39*('HN Framework Values'!G42/Data!$A$16) -> 0 | H50: =H39*('HN Framework Values'!H42/Data!$A$16) -> 0 | I50: =I39*('HN Framework Values'!I42/Data!$A$16) -> 0
C51: Level F | D51: =D40*('HN Framework Values'!D43/Data!$A$16) -> 12384.71947 | E51: =E40*('HN Framework Values'!E43/Data!$A$16) -> 0 | F51: =F40*('HN Framework Values'!F43/Data!$A$16) -> 0 | G51: =G40*('HN Framework Values'!G43/Data!$A$16) -> 0 | H51: =H40*('HN Framework Values'!H43/Data!$A$16) -> 0 | I51: =I40*('HN Framework Values'!I43/Data!$A$16) -> 0 | K51: =SUM(D46:I53) -> 12384.71947
C53: PRU | D53: =D42*'HN Framework Values'!D33/Data!A16 -> 0
A55: Total ACTUAL Summer 2024 Top-up Funding | K55: =K51+K29 -> 1011859.341 | Q55: =_xlfn.XLOOKUP(P3,Data!A21:A29,Data!AT21:AT29)-K55 -> 0
A59: Notes
A61: Top up funding is allocated to pupils based on their High Needs Banding and how many days they are on roll at your school.
A63: This data is based on the level of provision your school delivered in the summer term 2024.
A65: Other LA Top-up funding is not paid to you by Coventry City Council and you will need to invoice the relevant Local Authorities for this
A66: funding. If you need contact information for any other Local Authority please contact SEN Management Services on 024 7683 1614.

Sheet Autumn 2024 Top-up (hidden)
A1: ='Summary of Funding'!A1 -> Date Issued: 11th October 2024 | M1: ='Summary of Funding'!H1 -> Last Amended: 11th October 2024
A2: ='Summary of Funding'!A2 -> COVENTRY CITY COUNCIL
A3: ='Summary of Funding'!A3 -> 2024-25 Funding Allocations for Special Schools & Alternative Provision | P3: ='Summary of Funding'!P3 -> 8
A4: Autumn 2024 Top-up Funding
A6: =_xlfn.XLOOKUP(P3,Data!A4:A12,Data!B4:B12) -> Woodfield Special School | P6: Checks
A10: Total days in term: | B10: =Data!$A$34 -> 75
A11: Autumn 2024 Funded days - Coventry
A12: Indicative | D12: Cat 1 | E12: Cat 2 | F12: Cat 3 | G12: Cat 4 | H12: Cat 5 | I12: Cat 6
C13: Level A | D13: 0 | E13: 0 | F13: 0 | G13: 0 | H13: 0 | I13: 0
C14: Level B | D14: 0 | E14: 0 | F14: 0 | G14: 0 | H14: 0 | I14: 0
C15: Level C | D15: =_xlfn.XLOOKUP($P$3,Data!$A$47:$A$55,Data!E47:E55) -> 0 | E15: =_xlfn.XLOOKUP($P$3,Data!$A$47:$A$55,Data!F47:F55) -> 0 | F15: 0 | G15: 0 | H15: 0 | I15: 0
C16: Level D | D16: =_xlfn.XLOOKUP($P$3,Data!$A$47:$A$55,Data!G47:G55) -> 0 | E16: =_xlfn.XLOOKUP($P$3,Data!$A$47:$A$55,Data!H47:H55) -> 0 | F16: =_xlfn.XLOOKUP($P$3,Data!$A$47:$A$55,Data!I47:I55) -> 0 | G16: =_xlfn.XLOOKUP($P$3,Data!$A$47:$A$55,Data!J47:J55) -> 0 | H16: 0 | I16: 0
C17: Level E | D17: =_xlfn.XLOOKUP($P$3,Data!$A$47:$A$55,Data!K47:K55) -> 0 | E17: =_xlfn.XLOOKUP($P$3,Data!$A$47:$A$55,Data!L47:L55) -> 0 | F17: =_xlfn.XLOOKUP($P$3,Data!$A$47:$A$55,Data!M47:M55) -> 79.99818906 | G17: =_xlfn.XLOOKUP($P$3,Data!$A$47:$A$55,Data!N47:N55) -> 0 | H17: =_xlfn.XLOOKUP($P$3,Data!$A$47:$A$55,Data!O47:O55) -> 879.9800797 | I17: =_xlfn.XLOOKUP($P$3,Data!$A$47:$A$55,Data!P47:P55) -> 0 | K17: Total FTE
C18: Level F | D18: =_xlfn.XLOOKUP($P$3,Data!$A$47:$A$55,Data!Q47:Q55) -> 10002.93146 | E18: =_xlfn.XLOOKUP($P$3,Data!$A$47:$A$55,Data!R47:R55) -> 0 | F18: =_xlfn.XLOOKUP($P$3,Data!$A$47:$A$55,Data!S47:S55) -> 79.99818906 | G18: =_xlfn.XLOOKUP($P$3,Data!$A$47:$A$55,Data!T47:T55) -> 0 | H18: =_xlfn.XLOOKUP($P$3,Data!$A$47:$A$55,Data!U47:U55) -> 319.9927562 | I18: =_xlfn.XLOOKUP($P$3,Data!$A$47:$A$55,Data!V47:V55) -> 0 | K18: =SUM(D13:I20)/B10 -> 151.5053423
C20: PRU | D20: =_xlfn.XLOOKUP($P$3,Data!$A$47:$A$55,Data!D47:D55) -> 0
A22: Autumn 2024 Top-up Funding - Coventry
A23: Indicative | D23: Cat 1 | E23: Cat 2 | F23: Cat 3 | G23: Cat 4 | H23: Cat 5 | I23: Cat 6
C24: Level A | D24: =D13*('HN Framework Values'!D38/Data!$A$16) -> 0 | E24: =E13*('HN Framework Values'!E38/Data!$A$16) -> 0 | F24: =F13*('HN Framework Values'!F38/Data!$A$16) -> 0 | G24: =G13*('HN Framework Values'!G38/Data!$A$16) -> 0 | H24: 0 | I24: 0
C25: Level B | D25: =D14*('HN Framework Values'!D39/Data!$A$16) -> 0 | E25: =E14*('HN Framework Values'!E39/Data!$A$16) -> 0 | F25: =F14*('HN Framework Values'!F39/Data!$A$16) -> 0 | G25: =G14*('HN Framework Values'!G39/Data!$A$16) -> 0 | H25: 0 | I25: 0
C26: Level C | D26: =D15*('HN Framework Values'!D40/Data!$A$16) -> 0 | E26: =E15*('HN Framework Values'!E40/Data!$A$16) -> 0 | F26: =F15*('HN Framework Values'!F40/Data!$A$16) -> 0 | G26: =G15*('HN Framework Values'!G40/Data!$A$16) -> 0 | H26: 0 | I26: 0 | K26: Total Coventry Top-up
C27: Level D | D27: =D16*('HN Framework Values'!D41/Data!$A$16) -> 0 | E27: =E16*('HN Framework Values'!E41/Data!$A$16) -> 0 | F27: =F16*('HN Framework Values'!F41/Data!$A$16) -> 0 | G27: =G16*('HN Framework Values'!G41/Data!$A$16) -> 0 | H27: 0 | I27: 0
C28: Level E | D28: =D17*('HN Framework Values'!D42/Data!$A$16) -> 0 | E28: =E17*('HN Framework Values'!E42/Data!$A$16) -> 0 | F28: =F17*('HN Framework Values'!F42/Data!$A$16) -> 5522.601297 | G28: =G17*('HN Framework Values'!G42/Data!$A$16) -> 0 | H28: =H17*('HN Framework Values'!H42/Data!$A$16) -> 108375.4308 | I28: =I17*('HN Framework Values'!I42/Data!$A$16) -> 0
C29: Level F | D29: =D18*('HN Framework Values'!D43/Data!$A$16) -> 897706.5213 | E29: =E18*('HN Framework Values'!E43/Data!$A$16) -> 0 | F29: =F18*('HN Framework Values'!F43/Data!$A$16) -> 7179.384996 | G29: =G18*('HN Framework Values'!G43/Data!$A$16) -> 0 | H29: =H18*('HN Framework Values'!H43/Data!$A$16) -> 78818.49514 | I29: =I18*('HN Framework Values'!I43/Data!$A$16) -> 0 | K29: =SUM(D24:I31) -> 1097602.434
C31: PRU | D31: =D20*'HN Framework Values'!D33/Data!A16 -> 0
A33: Autumn 2024 Funded days - Other LAs
A34: Indicative | D34: Cat 1 | E34: Cat 2 | F34: Cat 3 | G34: Cat 4 | H34: Cat 5 | I34: Cat 6
C35: Level A | D35: 0 | E35: 0 | F35: 0 | G35: 0 | H35: 0 | I35: 0
C36: Level B | D36: 0 | E36: 0 | F36: 0 | G36: 0 | H36: 0 | I36: 0
C37: Level C | D37: =_xlfn.XLOOKUP($P$3,Data!$A$47:$A$55,Data!Z47:Z55) -> 0 | E37: =_xlfn.XLOOKUP($P$3,Data!$A$47:$A$55,Data!AA47:AA55) -> 0 | F37: 0 | G37: 0 | H37: 0 | I37: 0
C38: Level D | D38: =_xlfn.XLOOKUP($P$3,Data!$A$47:$A$55,Data!AB47:AB55) -> 0 | E38: =_xlfn.XLOOKUP($P$3,Data!$A$47:$A$55,Data!AC47:AC55) -> 0 | F38: =_xlfn.XLOOKUP($P$3,Data!$A$47:$A$55,Data!AD47:AD55) -> 0 | G38: =_xlfn.XLOOKUP($P$3,Data!$A$47:$A$55,Data!AE47:AE55) -> 0 | H38: 0 | I38: 0
C39: Level E | D39: =_xlfn.XLOOKUP($P$3,Data!$A$47:$A$55,Data!AF47:AF55) -> 0 | E39: =_xlfn.XLOOKUP($P$3,Data!$A$47:$A$55,Data!AG47:AG55) -> 0 | F39: =_xlfn.XLOOKUP($P$3,Data!$A$47:$A$55,Data!AH47:AH55) -> 0 | G39: =_xlfn.XLOOKUP($P$3,Data!$A$47:$A$55,Data!AI47:AI55) -> 0 | H39: =_xlfn.XLOOKUP($P$3,Data!$A$47:$A$55,Data!AJ47:AJ55) -> 79.99818906 | I39: =_xlfn.XLOOKUP($P$3,Data!$A$47:$A$55,Data!AK47:AK55) -> 0 | K39: Total FTE
C40: Level F | D40: =_xlfn.XLOOKUP($P$3,Data!$A$47:$A$55,Data!AL47:AL55) -> 182.1011409 | E40: =_xlfn.XLOOKUP($P$3,Data!$A$47:$A$55,Data!AM47:AM55) -> 0 | F40: =_xlfn.XLOOKUP($P$3,Data!$A$47:$A$55,Data!AN47:AN55) -> 0 | G40: =_xlfn.XLOOKUP($P$3,Data!$A$47:$A$55,Data!AO47:AO55) -> 0 | H40: =_xlfn.XLOOKUP($P$3,Data!$A$47:$A$55,Data!AP47:AP55) -> 0 | I40: =_xlfn.XLOOKUP($P$3,Data!$A$47:$A$55,Data!AQ47:AQ55) -> 0 | K40: =SUM(D35:I42)/B10 -> 3.494657733
C42: PRU | D42: =_xlfn.XLOOKUP($P$3,Data!$A$47:$A$55,Data!Y47:Y55) -> 0
A44: Autumn 2024 Top-up Funding - Other LAs
A45: Indicative | D45: Cat 1 | E45: Cat 2 | F45: Cat 3 | G45: Cat 4 | H45: Cat 5 | I45: Cat 6
C46: Level A | D46: =D35*('HN Framework Values'!D38/Data!$A$16) -> 0 | E46: =E35*('HN Framework Values'!E38/Data!$A$16) -> 0 | F46: =F35*('HN Framework Values'!F38/Data!$A$16) -> 0 | G46: =G35*('HN Framework Values'!G38/Data!$A$16) -> 0 | H46: =H35*('HN Framework Values'!H38/Data!$A$16) -> 0 | I46: =I35*('HN Framework Values'!I38/Data!$A$16) -> 0
C47: Level B | D47: =D36*('HN Framework Values'!D39/Data!$A$16) -> 0 | E47: =E36*('HN Framework Values'!E39/Data!$A$16) -> 0 | F47: =F36*('HN Framework Values'!F39/Data!$A$16) -> 0 | G47: =G36*('HN Framework Values'!G39/Data!$A$16) -> 0 | H47: =H36*('HN Framework Values'!H39/Data!$A$16) -> 0 | I47: =I36*('HN Framework Values'!I39/Data!$A$16) -> 0
C48: Level C | D48: =D37*('HN Framework Values'!D40/Data!$A$16) -> 0 | E48: =E37*('HN Framework Values'!E40/Data!$A$16) -> 0 | F48: =F37*('HN Framework Values'!F40/Data!$A$16) -> 0 | G48: =G37*('HN Framework Values'!G40/Data!$A$16) -> 0 | H48: =H37*('HN Framework Values'!H40/Data!$A$16) -> 0 | I48: =I37*('HN Framework Values'!I40/Data!$A$16) -> 0 | K48: Total Other LA Top-up
C49: Level D | D49: =D38*('HN Framework Values'!D41/Data!$A$16) -> 0 | E49: =E38*('HN Framework Values'!E41/Data!$A$16) -> 0 | F49: =F38*('HN Framework Values'!F41/Data!$A$16) -> 0 | G49: =G38*('HN Framework Values'!G41/Data!$A$16) -> 0 | H49: =H38*('HN Framework Values'!H41/Data!$A$16) -> 0 | I49: =I38*('HN Framework Values'!I41/Data!$A$16) -> 0
C50: Level E | D50: =D39*('HN Framework Values'!D42/Data!$A$16) -> 0 | E50: =E39*('HN Framework Values'!E42/Data!$A$16) -> 0 | F50: =F39*('HN Framework Values'!F42/Data!$A$16) -> 0 | G50: =G39*('HN Framework Values'!G42/Data!$A$16) -> 0 | H50: =H39*('HN Framework Values'!H42/Data!$A$16) -> 9852.311892 | I50: =I39*('HN Framework Values'!I42/Data!$A$16) -> 0
C51: Level F | D51: =D40*('HN Framework Values'!D43/Data!$A$16) -> 16342.54743 | E51: =E40*('HN Framework Values'!E43/Data!$A$16) -> 0 | F51: =F40*('HN Framework Values'!F43/Data!$A$16) -> 0 | G51: =G40*('HN Framework Values'!G43/Data!$A$16) -> 0 | H51: =H40*('HN Framework Values'!H43/Data!$A$16) -> 0 | I51: =I40*('HN Framework Values'!I43/Data!$A$16) -> 0 | K51: =SUM(D46:I53) -> 26194.85932
C53: PRU | D53: =D42*'HN Framework Values'!D33/Data!A16 -> 0
A55: Total INDICATIVE Autumn 2024 Top-up Funding | K55: =K51+K29 -> 1123797.293 | Q55: =_xlfn.XLOOKUP(P3,Data!A47:A55,Data!AT47:AT55)-K55 -> 0
A59: Notes
A61: Top up funding is allocated to pupils based on their High Needs Banding and how many days they are on roll at your school.
A63: This data is based on the level of provision your school delivered in the 2023 autumn term. Where the number of places at your school
A64: has changed we have scaled the indicative level of provision up or down as appropriate to reflect the changing position at the school -
A65: but we have not allowed this to increase above your number of comissioned places.
A67: This will be updated at the end of each term to reflect the actual number of Full Time Equivilant pupils that have been educated in this
A68: period. Your top-up funding budget will change accordingly.
A70: Other LA Top-up funding is not paid to you by Coventry City Council and you will need to invoice the relevant Local Authorities for this
A71: funding. If you need contact information for any other Local Authority please contact SEN Management Services on 024 7683 1614.

Sheet Spring 2025 Top-up (hidden)
A1: ='Summary of Funding'!A1 -> Date Issued: 11th October 2024 | M1: ='Summary of Funding'!H1 -> Last Amended: 11th October 2024
A2: ='Summary of Funding'!A2 -> COVENTRY CITY COUNCIL
A3: ='Summary of Funding'!A3 -> 2024-25 Funding Allocations for Special Schools & Alternative Provision | P3: ='Summary of Funding'!P3 -> 8
A4: Spring 2025 Top-up Funding
A6: =_xlfn.XLOOKUP(P3,Data!A4:A12,Data!B4:B12) -> Woodfield Special School | P6: Checks
A10: Total days in term: | B10: =Data!$A$61 -> 56
A11: Spring 2025 Funded days - Coventry
A12: Indicative | D12: Cat 1 | E12: Cat 2 | F12: Cat 3 | G12: Cat 4 | H12: Cat 5 | I12: Cat 6
C13: Level A | D13: 0 | E13: 0 | F13: 0 | G13: 0 | H13: 0 | I13: 0
C14: Level B | D14: 0 | E14: 0 | F14: 0 | G14: 0 | H14: 0 | I14: 0
C15: Level C | D15: =_xlfn.XLOOKUP($P$3,Data!$A$74:$A$82,Data!E74:E82) -> 0 | E15: =_xlfn.XLOOKUP($P$3,Data!$A$74:$A$82,Data!F74:F82) -> 0 | F15: 0 | G15: 0 | H15: 0 | I15: 0
C16: Level D | D16: =_xlfn.XLOOKUP($P$3,Data!$A$74:$A$82,Data!G74:G82) -> 0 | E16: =_xlfn.XLOOKUP($P$3,Data!$A$74:$A$82,Data!H74:H82) -> 0 | F16: =_xlfn.XLOOKUP($P$3,Data!$A$74:$A$82,Data!I74:I82) -> 0 | G16: =_xlfn.XLOOKUP($P$3,Data!$A$74:$A$82,Data!J74:J82) -> 0 | H16: 0 | I16: 0
C17: Level E | D17: =_xlfn.XLOOKUP($P$3,Data!$A$74:$A$82,Data!K74:K82) -> 0 | E17: =_xlfn.XLOOKUP($P$3,Data!$A$74:$A$82,Data!L74:L82) -> 0 | F17: =_xlfn.XLOOKUP($P$3,Data!$A$74:$A$82,Data!M74:M82) -> 0 | G17: =_xlfn.XLOOKUP($P$3,Data!$A$74:$A$82,Data!N74:N82) -> 0 | H17: =_xlfn.XLOOKUP($P$3,Data!$A$74:$A$82,Data!O74:O82) -> 670.6352087 | I17: =_xlfn.XLOOKUP($P$3,Data!$A$74:$A$82,Data!P74:P82) -> 0 | K17: Total FTE
C18: Level F | D18: =_xlfn.XLOOKUP($P$3,Data!$A$74:$A$82,Data!Q74:Q82) -> 7503.012704 | E18: =_xlfn.XLOOKUP($P$3,Data!$A$74:$A$82,Data!R74:R82) -> 0 | F18: =_xlfn.XLOOKUP($P$3,Data!$A$74:$A$82,Data!S74:S82) -> 0 | G18: =_xlfn.XLOOKUP($P$3,Data!$A$74:$A$82,Data!T74:T82) -> 0 | H18: =_xlfn.XLOOKUP($P$3,Data!$A$74:$A$82,Data!U74:U82) -> 225.0453721 | I18: =_xlfn.XLOOKUP($P$3,Data!$A$74:$A$82,Data!V74:V82) -> 0 | K18: =SUM(D13:I20)/B10 -> 149.9766658
C20: PRU | D20: =_xlfn.XLOOKUP($P$3,Data!$A$74:$A$82,Data!D74:D82) -> 0
A22: Spring 2025 Top-up Funding - Coventry
A23: Indicative | D23: Cat 1 | E23: Cat 2 | F23: Cat 3 | G23: Cat 4 | H23: Cat 5 | I23: Cat 6
C24: Level A | D24: =D13*('HN Framework Values'!D38/Data!$A$16) -> 0 | E24: =E13*('HN Framework Values'!E38/Data!$A$16) -> 0 | F24: =F13*('HN Framework Values'!F38/Data!$A$16) -> 0 | G24: =G13*('HN Framework Values'!G38/Data!$A$16) -> 0 | H24: 0 | I24: 0
C25: Level B | D25: =D14*('HN Framework Values'!D39/Data!$A$16) -> 0 | E25: =E14*('HN Framework Values'!E39/Data!$A$16) -> 0 | F25: =F14*('HN Framework Values'!F39/Data!$A$16) -> 0 | G25: =G14*('HN Framework Values'!G39/Data!$A$16) -> 0 | H25: 0 | I25: 0
C26: Level C | D26: =D15*('HN Framework Values'!D40/Data!$A$16) -> 0 | E26: =E15*('HN Framework Values'!E40/Data!$A$16) -> 0 | F26: =F15*('HN Framework Values'!F40/Data!$A$16) -> 0 | G26: =G15*('HN Framework Values'!G40/Data!$A$16) -> 0 | H26: 0 | I26: 0 | K26: Total Coventry Top-up
C27: Level D | D27: =D16*('HN Framework Values'!D41/Data!$A$16) -> 0 | E27: =E16*('HN Framework Values'!E41/Data!$A$16) -> 0 | F27: =F16*('HN Framework Values'!F41/Data!$A$16) -> 0 | G27: =G16*('HN Framework Values'!G41/Data!$A$16) -> 0 | H27: 0 | I27: 0
C28: Level E | D28: =D17*('HN Framework Values'!D42/Data!$A$16) -> 0 | E28: =E17*('HN Framework Values'!E42/Data!$A$16) -> 0 | F28: =F17*('HN Framework Values'!F42/Data!$A$16) -> 0 | G28: =G17*('HN Framework Values'!G42/Data!$A$16) -> 0 | H28: =H17*('HN Framework Values'!H42/Data!$A$16) -> 82593.21016 | I28: =I17*('HN Framework Values'!I42/Data!$A$16) -> 0
C29: Level F | D29: =D18*('HN Framework Values'!D43/Data!$A$16) -> 673352.9529 | E29: =E18*('HN Framework Values'!E43/Data!$A$16) -> 0 | F29: =F18*('HN Framework Values'!F43/Data!$A$16) -> 0 | G29: =G18*('HN Framework Values'!G43/Data!$A$16) -> 0 | H29: =H18*('HN Framework Values'!H43/Data!$A$16) -> 55431.68467 | I29: =I18*('HN Framework Values'!I43/Data!$A$16) -> 0 | K29: =SUM(D24:I31) -> 811377.8478
C31: PRU | D31: =D20*'HN Framework Values'!D33/Data!A16 -> 0
A33: Spring 2025 Funded days - Other LAs
A34: Indicative | D34: Cat 1 | E34: Cat 2 | F34: Cat 3 | G34: Cat 4 | H34: Cat 5 | I34: Cat 6
C35: Level A | D35: 0 | E35: 0 | F35: 0 | G35: 0 | H35: 0 | I35: 0
C36: Level B | D36: 0 | E36: 0 | F36: 0 | G36: 0 | H36: 0 | I36: 0
C37: Level C | D37: =_xlfn.XLOOKUP($P$3,Data!$A$74:$A$82,Data!Z74:Z82) -> 0 | E37: =_xlfn.XLOOKUP($P$3,Data!$A$74:$A$82,Data!AA74:AA82) -> 0 | F37: 0 | G37: 0 | H37: 0 | I37: 0
C38: Level D | D38: =_xlfn.XLOOKUP($P$3,Data!$A$74:$A$82,Data!AB74:AB82) -> 0 | E38: =_xlfn.XLOOKUP($P$3,Data!$A$74:$A$82,Data!AC74:AC82) -> 0 | F38: =_xlfn.XLOOKUP($P$3,Data!$A$74:$A$82,Data!AD74:AD82) -> 0 | G38: =_xlfn.XLOOKUP($P$3,Data!$A$74:$A$82,Data!AE74:AE82) -> 0 | H38: 0 | I38: 0
C39: Level E | D39: =_xlfn.XLOOKUP($P$3,Data!$A$74:$A$82,Data!AF74:AF82) -> 0 | E39: =_xlfn.XLOOKUP($P$3,Data!$A$74:$A$82,Data!AG74:AG82) -> 0 | F39: =_xlfn.XLOOKUP($P$3,Data!$A$74:$A$82,Data!AH74:AH82) -> 0 | G39: =_xlfn.XLOOKUP($P$3,Data!$A$74:$A$82,Data!AI74:AI82) -> 0 | H39: =_xlfn.XLOOKUP($P$3,Data!$A$74:$A$82,Data!AJ74:AJ82) -> 112.522686 | I39: =_xlfn.XLOOKUP($P$3,Data!$A$74:$A$82,Data!AK74:AK82) -> 0 | K39: Total FTE
C40: Level F | D40: =_xlfn.XLOOKUP($P$3,Data!$A$74:$A$82,Data!AL74:AL82) -> 168.784029 | E40: =_xlfn.XLOOKUP($P$3,Data!$A$74:$A$82,Data!AM74:AM82) -> 0 | F40: =_xlfn.XLOOKUP($P$3,Data!$A$74:$A$82,Data!AN74:AN82) -> 0 | G40: =_xlfn.XLOOKUP($P$3,Data!$A$74:$A$82,Data!AO74:AO82) -> 0 | H40: =_xlfn.XLOOKUP($P$3,Data!$A$74:$A$82,Data!AP74:AP82) -> 0 | I40: =_xlfn.XLOOKUP($P$3,Data!$A$74:$A$82,Data!AQ74:AQ82) -> 0 | K40: =SUM(D35:I42)/B10 -> 5.023334198
C42: PRU | D42: =_xlfn.XLOOKUP($P$3,Data!$A$74:$A$82,Data!Y74:Y82) -> 0
A44: Spring 2025 Top-up Funding - Other LAs
A45: Indicative | D45: Cat 1 | E45: Cat 2 | F45: Cat 3 | G45: Cat 4 | H45: Cat 5 | I45: Cat 6
C46: Level A | D46: =D35*('HN Framework Values'!D38/Data!$A$16) -> 0 | E46: =E35*('HN Framework Values'!E38/Data!$A$16) -> 0 | F46: =F35*('HN Framework Values'!F38/Data!$A$16) -> 0 | G46: =G35*('HN Framework Values'!G38/Data!$A$16) -> 0 | H46: =H35*('HN Framework Values'!H38/Data!$A$16) -> 0 | I46: =I35*('HN Framework Values'!I38/Data!$A$16) -> 0
C47: Level B | D47: =D36*('HN Framework Values'!D39/Data!$A$16) -> 0 | E47: =E36*('HN Framework Values'!E39/Data!$A$16) -> 0 | F47: =F36*('HN Framework Values'!F39/Data!$A$16) -> 0 | G47: =G36*('HN Framework Values'!G39/Data!$A$16) -> 0 | H47: =H36*('HN Framework Values'!H39/Data!$A$16) -> 0 | I47: =I36*('HN Framework Values'!I39/Data!$A$16) -> 0
C48: Level C | D48: =D37*('HN Framework Values'!D40/Data!$A$16) -> 0 | E48: =E37*('HN Framework Values'!E40/Data!$A$16) -> 0 | F48: =F37*('HN Framework Values'!F40/Data!$A$16) -> 0 | G48: =G37*('HN Framework Values'!G40/Data!$A$16) -> 0 | H48: =H37*('HN Framework Values'!H40/Data!$A$16) -> 0 | I48: =I37*('HN Framework Values'!I40/Data!$A$16) -> 0 | K48: Total Other LA Top-up
C49: Level D | D49: =D38*('HN Framework Values'!D41/Data!$A$16) -> 0 | E49: =E38*('HN Framework Values'!E41/Data!$A$16) -> 0 | F49: =F38*('HN Framework Values'!F41/Data!$A$16) -> 0 | G49: =G38*('HN Framework Values'!G41/Data!$A$16) -> 0 | H49: =H38*('HN Framework Values'!H41/Data!$A$16) -> 0 | I49: =I38*('HN Framework Values'!I41/Data!$A$16) -> 0
C50: Level E | D50: =D39*('HN Framework Values'!D42/Data!$A$16) -> 0 | E50: =E39*('HN Framework Values'!E42/Data!$A$16) -> 0 | F50: =F39*('HN Framework Values'!F42/Data!$A$16) -> 0 | G50: =G39*('HN Framework Values'!G42/Data!$A$16) -> 0 | H50: =H39*('HN Framework Values'!H42/Data!$A$16) -> 13857.92117 | I50: =I39*('HN Framework Values'!I42/Data!$A$16) -> 0
C51: Level F | D51: =D40*('HN Framework Values'!D43/Data!$A$16) -> 15147.41196 | E51: =E40*('HN Framework Values'!E43/Data!$A$16) -> 0 | F51: =F40*('HN Framework Values'!F43/Data!$A$16) -> 0 | G51: =G40*('HN Framework Values'!G43/Data!$A$16) -> 0 | H51: =H40*('HN Framework Values'!H43/Data!$A$16) -> 0 | I51: =I40*('HN Framework Values'!I43/Data!$A$16) -> 0 | K51: =SUM(D46:I53) -> 29005.33313
C53: PRU | D53: =D42*'HN Framework Values'!D33/Data!A16 -> 0
A55: Total INDICATIVE Spring 2025 Top-up Funding | K55: =K51+K29 -> 840383.1809 | Q55: =_xlfn.XLOOKUP(P3,Data!A74:A82,Data!AT74:AT82)-K55 -> 0
A60: Notes
A62: Top up funding is allocated to pupils based on their High Needs Banding and how many days they are on roll at your school.
A64: This data is based on the level of provision your school delivered in the 2024 spring term. Where the number of places at your school
A65: has changed we have scaled the indicative level of provision up or down as appropriate to reflect the changing position at the school -
A66: but we have not allowed this to increase above your number of comissioned places.
A68: This will be updated at the end of each term to reflect the actual number of Full Time Equivilant pupils that have been educated in this
A69: period. Your top-up funding budget will change accordingly.
A71: Other LA Top-up funding is not paid to you by Coventry City Council and you will need to invoice the relevant Local Authorities for this
A72: funding. If you need contact information for any other Local Authority please contact SEN Management Services on 024 7683 1614.

Sheet Data (hidden)
A1: 1 | B1: 2 | C1: 3 | D1: 4 | E1: 5 | F1: 6 | G1: 7 | H1: 8 | I1: 9 | J1: 10 | K1: 11 | L1: 12 | M1: 13 | N1: 14 | O1: 15 | P1: 16 | Q1: 17 | R1: 18 | S1: 19 | T1: 20 | U1: 21 | V1: 22 | W1: 23 | X1: 24 | Y1: 25 | Z1: 26 | AA1: 27 | AB1: 28 | AC1: 29 | AD1: 30 | AE1: 31 | AF1: 32 | AG1: 33 | AH1: 34 | AI1: 35 | AJ1: 36 | AK1: 37 | AL1: 38 | AM1: 39 | AN1: 40 | AO1: 41 | AP1: 42 | AQ1: 43 | AR1: 44 | AS1: 45 | AT1: 46
C2: 2023-24 places* | F2: 2024-25 Places Information | O2: Place Led Funding | V2: Funding Rate Information | AP2: Other Funding Elements | AT2: Deductions
A3: Ref # | B3: School Name | C3: TOTAL Apr - Jul PLACES | D3: TOTAL Aug PLACES | E3: TOTAL Sep - Mar PLACES | F3: Pre-16 Apr - Jul | G3: Pre-16 Aug | H3: Pre-16 Sept - Mar | I3: Post-16 Apr - Jul | J3: Post-16 Aug - Mar | K3: TOTAL Apr - Jul PLACES | L3: TOTAL Aug PLACES | M3: TOTAL Sep - Mar PLACES | O3: Pre-16 Apr - Jul | P3: Pre-16 Aug | Q3: Pre-16 Sept - Mar | R3: Post-16 Apr - Jul | S3: Post-16 Aug | T3: Post-16 Sept - Mar | V3: Coventry ELC Band | W3: Band 1C | X3: Band 2C | Y3: Band 1D | Z3: Band 2D | AA3: Band 3D | AB3: Band 4D | AC3: Band 1E | AD3: Band 2E | AE3: Band 3E | AF3: Band 4E | AG3: Band 5E | AH3: Band 6E | AI3: Band 1F | AJ3: Band 2F | AK3: Band 3F | AL3: Band 4F | AM3: Band 5F | AN3: Band 6F | AP3: 2024/25 Pupil Premium | AQ3: 2024/25 TPG/TPECG | AR3: 2024/25 TPAG | AS3: Split Site Funding | AT3: RPA
A4: 1 | B4: Castle Wood Special School | C4: =[5]Data!$K4 -> 160 | D4: =[5]Data!$L4 -> 160 | E4: =[5]Data!$M4 -> 160 | F4: 160 | G4: 160 | H4: 160 | I4: 0 | J4: 0 | K4: =F4+I4 -> 160 | L4: =G4+J4 -> 160 | M4: =H4+J4 -> 160 | O4: =F4*10000*4/12 -> 533333.3333 | P4: =G4*10000*1/12 -> 133333.3333 | Q4: =H4*10000*7/12 -> 933333.3333 | R4: =I4*10000*4/12 -> 0 | S4: =I4*10000*1/12 -> 0 | T4: =J4*10000*7/12 -> 0 | V4: 0 | W4: =+[6]Sheet1!$B$27 -> 2761.360792 | X4: =+[6]Sheet1!$C$27 -> 3313.63768 | Y4: =+[6]Sheet1!$B$28 -> 3313.63768 | Z4: =+[6]Sheet1!$C$28 -> 5522.721585 | AA4: =+[6]Sheet1!$D$28 -> 8284.094199 | AB4: =+[6]Sheet1!$E$28 -> 8284.094199 | AC4: =+[6]Sheet1!$B$29 -> 11045.45499 | AD4: =+[6]Sheet1!$C$29 -> 10217.05148 | AE4: =+[6]Sheet1!$D$29 -> 13806.81578 | AF4: =+[6]Sheet1!$E$29 -> 13806.81578 | AG4: =+[6]Sheet1!$F$29 -> 24631.3373 | AH4: 0 | AI4: =+[6]Sheet1!$B$30 -> 17948.86879 | AJ4: =+[6]Sheet1!$C$30 -> 16568.17658 | AK4: =+[6]Sheet1!$D$30 -> 17948.86879 | AL4: =+[6]Sheet1!$E$30 -> 16568.17658 | AM4: =+[6]Sheet1!$F$30 -> 49262.67461 | AN4: 0 | AP4: =[7]Allocations!$V$60 -> 115780 | AQ4: =[8]Sheet1!J2 -> 105600 | AR4: =[9]School_Allocations!$G$6 -> 70169.5 | AS4: 0 | AT4: =-IFERROR(_xlfn.XLOOKUP(A4,'[10]LAMS Data'!$AH:$AH,'[10]LAMS Data'!$AE:$AE),0) -> -4000
A5: 2 | B5: Kingsbury Academy | C5: =[5]Data!$K5 -> 100 | D5: =[5]Data!$L5 -> 100 | E5: =[5]Data!$M5 -> 100 | F5: 100 | G5: 100 | H5: 100 | I5: 0 | J5: 0 | K5: 100 | L5: 100 | M5: 100 | O5: 333333.3333 | P5: 83333.33333 | Q5: 583333.3333 | R5: 0 | S5: 0 | T5: 0 | V5: 0 | W5: =+[6]Sheet1!$B$27 -> 2761.360792 | X5: =+[6]Sheet1!$C$27 -> 3313.63768 | Y5: =+[6]Sheet1!$B$28 -> 3313.63768 | Z5: =+[6]Sheet1!$C$28 -> 5522.721585 | AA5: =+[6]Sheet1!$D$28 -> 8284.094199 | AB5: =+[6]Sheet1!$E$28 -> 8284.094199 | AC5: =+[6]Sheet1!$B$29 -> 11045.45499 | AD5: =+[6]Sheet1!$C$29 -> 10217.05148 | AE5: =+[6]Sheet1!$D$29 -> 13806.81578 | AF5: =+[6]Sheet1!$E$29 -> 13806.81578 | AG5: =+[6]Sheet1!$F$29 -> 24631.3373 | AH5: 0 | AI5: =+[6]Sheet1!$B$30 -> 17948.86879 | AJ5: =+[6]Sheet1!$C$30 -> 16568.17658 | AK5: =+[6]Sheet1!$D$30 -> 17948.86879 | AL5: =+[6]Sheet1!$E$30 -> 16568.17658 | AM5: =+[6]Sheet1!$F$30 -> 49262.67461 | AN5: 0 | AP5: 0 | AQ5: =[8]Sheet1!J3 -> 66000 | AR5: =[9]School_Allocations!$G$9 -> 43855.94 | AS5: 0 | AT5: =-IFERROR(_xlfn.XLOOKUP(A5,'[10]LAMS Data'!$AH:$AH,'[10]LAMS Data'!$AE:$AE),0) -> 0
A6: 3 | B6: Riverbank Academy | C6: =[5]Data!$K6 -> 200 | D6: =[5]Data!$L6 -> 200 | E6: =[5]Data!$M6 -> 200 | F6: 180 | G6: 180 | H6: 180 | I6: 20 | J6: 20 | K6: 200 | L6: 200 | M6: 200 | O6: 600000 | P6: 150000 | Q6: 1050000 | R6: 66666.66667 | S6: 16666.66667 | T6: 116666.6667 | V6: 0 | W6: =+[6]Sheet1!$B$27 -> 2761.360792 | X6: =+[6]Sheet1!$C$27 -> 3313.63768 | Y6: =+[6]Sheet1!$B$28 -> 3313.63768 | Z6: =+[6]Sheet1!$C$28 -> 5522.721585 | AA6: =+[6]Sheet1!$D$28 -> 8284.094199 | AB6: =+[6]Sheet1!$E$28 -> 8284.094199 | AC6: =+[6]Sheet1!$B$29 -> 11045.45499 | AD6: =+[6]Sheet1!$C$29 -> 10217.05148 | AE6: =+[6]Sheet1!$D$29 -> 13806.81578 | AF6: =+[6]Sheet1!$E$29 -> 13806.81578 | AG6: =+[6]Sheet1!$F$29 -> 24631.3373 | AH6: =(33083.19*1.014)*(1+AW8) -> 35530.10817 | AI6: =+[6]Sheet1!$B$30 -> 17948.86879 | AJ6: =+[6]Sheet1!$C$30 -> 16568.17658 | AK6: =+[6]Sheet1!$D$30 -> 17948.86879 | AL6: =+[6]Sheet1!$E$30 -> 16568.17658 | AM6: =+[6]Sheet1!$F$30 -> 49262.67461 | AN6: 0 | AP6: 0 | AQ6: =[8]Sheet1!J4 -> 132000 | AR6: =[9]School_Allocations!$G$10 -> 87711.87 | AS6: 0 | AT6: =-IFERROR(_xlfn.XLOOKUP(A6,'[10]LAMS Data'!$AH:$AH,'[10]LAMS Data'!$AE:$AE),0) -> 0
A7: 4 | B7: Corley Academy | C7: =[5]Data!$K7 -> 129 | D7: =[5]Data!$L7 -> 129 | E7: =[5]Data!$M7 -> 140 | F7: 130 | G7: 130 | H7: 145 | I7: 10 | J7: 10 | K7: 140 | L7: 140 | M7: 155 | O7: =F7*10000*4/12 -> 433333.3333 | P7: 108333.3333 | Q7: 845833.3333 | R7: 33333.33333 | S7: 8333.333333 | T7: 58333.33333 | V7: 0 | W7: =+[6]Sheet1!$B$27 -> 2761.360792 | X7: =+[6]Sheet1!$C$27 -> 3313.63768 | Y7: =+[6]Sheet1!$B$28 -> 3313.63768 | Z7: =+[6]Sheet1!$C$28 -> 5522.721585 | AA7: =+[6]Sheet1!$D$28 -> 8284.094199 | AB7: =+[6]Sheet1!$E$28 -> 8284.094199 | AC7: =+[6]Sheet1!$B$29 -> 11045.45499 | AD7: =+[6]Sheet1!$C$29 -> 10217.05148 | AE7: =+[6]Sheet1!$D$29 -> 13806.81578 | AF7: =+[6]Sheet1!$E$29 -> 13806.81578 | AG7: =+[6]Sheet1!$F$29 -> 24631.3373 | AH7: 0 | AI7: =+[6]Sheet1!$B$30 -> 17948.86879 | AJ7: =+[6]Sheet1!$C$30 -> 16568.17658 | AK7: =+[6]Sheet1!$D$30 -> 17948.86879 | AL7: =+[6]Sheet1!$E$30 -> 16568.17658 | AM7: =+[6]Sheet1!$F$30 -> 49262.67461 | AN7: 0 | AP7: 0 | AQ7: =[8]Sheet1!J5 -> 98175 | AR7: =[9]School_Allocations!$G$8 -> 61398.31 | AS7: 0 | AT7: =-IFERROR(_xlfn.XLOOKUP(A7,'[10]LAMS Data'!$AH:$AH,'[10]LAMS Data'!$AE:$AE),0) -> 0
A8: 5 | B8: Tiverton Special School | C8: =[5]Data!$K8 -> 112 | D8: =[5]Data!$L8 -> 112 | E8: =[5]Data!$M8 -> 118 | F8: 121 | G8: 121 | H8: =121+10 -> 131 | I8: 0 | J8: 0 | K8: 121 | L8: 121 | M8: 131 | O8: 403333.3333 | P8: 100833.3333 | Q8: 764166.6667 | R8: 0 | S8: 0 | T8: 0 | V8: 0 | W8: =+[6]Sheet1!$B$27 -> 2761.360792 | X8: =+[6]Sheet1!$C$27 -> 3313.63768 | Y8: =+[6]Sheet1!$B$28 -> 3313.63768 | Z8: =+[6]Sheet1!$C$28 -> 5522.721585 | AA8: =+[6]Sheet1!$D$28 -> 8284.094199 | AB8: =+[6]Sheet1!$E$28 -> 8284.094199 | AC8: =+[6]Sheet1!$B$29 -> 11045.45499 | AD8: =+[6]Sheet1!$C$29 -> 10217.05148 | AE8: =+[6]Sheet1!$D$29 -> 13806.81578 | AF8: =+[6]Sheet1!$E$29 -> 13806.81578 | AG8: =+[6]Sheet1!$F$29 -> 24631.3373 | AH8: 0 | AI8: =+[6]Sheet1!$B$30 -> 17948.86879 | AJ8: =+[6]Sheet1!$C$30 -> 16568.17658 | AK8: =+[6]Sheet1!$D$30 -> 17948.86879 | AL8: =+[6]Sheet1!$E$30 -> 16568.17658 | AM8: =+[6]Sheet1!$F$30 -> 49262.67461 | AN8: 0 | AP8: =[7]Allocations!$V$61 -> 67300 | AQ8: =[8]Sheet1!J6 -> 79860 | AR8: =[9]School_Allocations!$G$4 -> 53065.68 | AS8: 0 | AT8: =-IFERROR(_xlfn.XLOOKUP(A8,'[10]LAMS Data'!$AH:$AH,'[10]LAMS Data'!$AE:$AE),0) -> -2800 | AV8: Goal Seek | AW8: 0.05913469681
A9: 6 | B9: Baginton Fields Special School | C9: =[5]Data!$K9 -> 116 | D9: =[5]Data!$L9 -> 116 | E9: =[5]Data!$M9 -> 126 | F9: 88 | G9: 88 | H9: 88 | I9: 38 | J9: 38 | K9: 126 | L9: 126 | M9: 126 | O9: 293333.3333 | P9: 73333.33333 | Q9: 513333.3333 | R9: 126666.6667 | S9: 31666.66667 | T9: 221666.6667 | V9: 0 | W9: =+[6]Sheet1!$B$27 -> 2761.360792 | X9: =+[6]Sheet1!$C$27 -> 3313.63768 | Y9: =+[6]Sheet1!$B$28 -> 3313.63768 | Z9: =+[6]Sheet1!$C$28 -> 5522.721585 | AA9: =+[6]Sheet1!$D$28 -> 8284.094199 | AB9: =+[6]Sheet1!$E$28 -> 8284.094199 | AC9: =+[6]Sheet1!$B$29 -> 11045.45499 | AD9: =+[6]Sheet1!$C$29 -> 10217.05148 | AE9: =+[6]Sheet1!$D$29 -> 13806.81578 | AF9: =+[6]Sheet1!$E$29 -> 13806.81578 | AG9: =+[6]Sheet1!$F$29 -> 24631.3373 | AH9: 0 | AI9: =+[6]Sheet1!$B$30 -> 17948.86879 | AJ9: =+[6]Sheet1!$C$30 -> 16568.17658 | AK9: =+[6]Sheet1!$D$30 -> 17948.86879 | AL9: =+[6]Sheet1!$E$30 -> 16568.17658 | AM9: =+[6]Sheet1!$F$30 -> 49262.67461 | AN9: 0 | AP9: 0 | AQ9: =[8]Sheet1!J7 -> 83160 | AR9: =[9]School_Allocations!$G$7 -> 55258.48 | AS9: 0 | AT9: =-IFERROR(_xlfn.XLOOKUP(A9,'[10]LAMS Data'!$AH:$AH,'[10]LAMS Data'!$AE:$AE),0) -> 0 | AV9: =K109 -> 16905477.14
A10: 7 | B10: Sherbourne Fields Special School | C10: =[5]Data!$K10 -> 240 | D10: =[5]Data!$L10 -> 240 | E10: =[5]Data!$M10 -> 251 | F10: 217 | G10: 217 | H10: 224 | I10: 34 | J10: 34 | K10: 251 | L10: 251 | M10: 258 | O10: 723333.3333 | P10: 180833.3333 | Q10: 1306666.667 | R10: 113333.3333 | S10: 28333.33333 | T10: 198333.3333 | V10: 0 | W10: =+[6]Sheet1!$B$27 -> 2761.360792 | X10: =+[6]Sheet1!$C$27 -> 3313.63768 | Y10: =+[6]Sheet1!$B$28 -> 3313.63768 | Z10: =+[6]Sheet1!$C$28 -> 5522.721585 | AA10: =+[6]Sheet1!$D$28 -> 8284.094199 | AB10: =+[6]Sheet1!$E$28 -> 8284.094199 | AC10: =+[6]Sheet1!$B$29 -> 11045.45499 | AD10: =+[6]Sheet1!$C$29 -> 10217.05148 | AE10: =+[6]Sheet1!$D$29 -> 13806.81578 | AF10: =+[6]Sheet1!$E$29 -> 13806.81578 | AG10: =+[6]Sheet1!$F$29 -> 24631.3373 | AH10: 0 | AI10: =+[6]Sheet1!$B$30 -> 17948.86879 | AJ10: =+[6]Sheet1!$C$30 -> 16568.17658 | AK10: =+[6]Sheet1!$D$30 -> 17948.86879 | AL10: =+[6]Sheet1!$E$30 -> 16568.17658 | AM10: =+[6]Sheet1!$F$30 -> 49262.67461 | AN10: 0 | AP10: =[7]Allocations!$V$62+[7]Allocations!$V$67 -> 99770 | AQ10: =[8]Sheet1!J8 -> 168355 | AR10: =[9]School_Allocations!$G$3 -> 110078.4 | AS10: 0 | AT10: =-IFERROR(_xlfn.XLOOKUP(A10,'[10]LAMS Data'!$AH:$AH,'[10]LAMS Data'!$AE:$AE),0) -> -6125 | AV10: 896123
A11: 8 | B11: Woodfield Special School | C11: =[5]Data!$K11 -> 155 | D11: =[5]Data!$L11 -> 155 | E11: =[5]Data!$M11 -> 155 | F11: 155 | G11: 155 | H11: 155 | I11: 0 | J11: 0 | K11: 155 | L11: 155 | M11: 155 | O11: 516666.6667 | P11: 129166.6667 | Q11: 904166.6667 | R11: 0 | S11: 0 | T11: 0 | V11: 0 | W11: =+[6]Sheet1!$B$27 -> 2761.360792 | X11: =+[6]Sheet1!$C$27 -> 3313.63768 | Y11: =+[6]Sheet1!$B$28 -> 3313.63768 | Z11: =+[6]Sheet1!$C$28 -> 5522.721585 | AA11: =+[6]Sheet1!$D$28 -> 8284.094199 | AB11: =+[6]Sheet1!$E$28 -> 8284.094199 | AC11: =+[6]Sheet1!$B$29 -> 11045.45499 | AD11: =+[6]Sheet1!$C$29 -> 10217.05148 | AE11: =+[6]Sheet1!$D$29 -> 13806.81578 | AF11: =+[6]Sheet1!$E$29 -> 13806.81578 | AG11: =+[6]Sheet1!$F$29 -> 24631.3373 | AH11: 0 | AI11: =+[6]Sheet1!$B$30 -> 17948.86879 | AJ11: =+[6]Sheet1!$C$30 -> 16568.17658 | AK11: =+[6]Sheet1!$D$30 -> 17948.86879 | AL11: =+[6]Sheet1!$E$30 -> 16568.17658 | AM11: =+[6]Sheet1!$F$30 -> 49262.67461 | AN11: 0 | AP11: =[7]Allocations!$V$63+[7]Allocations!$V$68 -> 151280 | AQ11: =[8]Sheet1!J9 -> 102300 | AR11: =[9]School_Allocations!$G$5 -> 67976.7 | AS11: 90000 | AT11: =-IFERROR(_xlfn.XLOOKUP(A11,'[10]LAMS Data'!$AH:$AH,'[10]LAMS Data'!$AE:$AE),0) -> -3875 | AV11: =SUM(AV9:AV10) -> 17801600.14
A12: 9 | B12: Coventry Extended Learning Centre | C12: =[5]Data!$K12 -> 120 | D12: =[5]Data!$L12 -> 120 | E12: =[5]Data!$M12 -> 120 | F12: 120 | G12: 120 | H12: 120 | I12: 0 | J12: 0 | K12: 120 | L12: 120 | M12: 120 | O12: 400000 | P12: 100000 | Q12: 700000 | R12: 0 | S12: 0 | T12: 0 | V12: =+[6]Sheet1!$B$36 -> 13434.51733 | W12: 0 | X12: 0 | Y12: 0 | Z12: 0 | AA12: 0 | AB12: 0 | AC12: 0 | AD12: 0 | AE12: 0 | AF12: 0 | AG12: 0 | AH12: 0 | AI12: 0 | AJ12: 0 | AK12: 0 | AL12: 0 | AM12: 0 | AN12: 0 | AP12: =[7]Allocations!$U$75 -> 0 | AQ12: 76255 | AR12: =[9]School_Allocations!$G$2 -> 52627.12 | AS12: 0 | AT12: =-IFERROR(_xlfn.XLOOKUP(A12,'[10]LAMS Data'!$AH:$AH,'[10]LAMS Data'!$AE:$AE),0) -> 0
C13: =SUM(C4:C12) -> 1332 | D13: 1332 | E13: 1370 | F13: 1271 | G13: 1271 | H13: 1303 | I13: 102 | J13: 102 | K13: 1373 | L13: 1373 | M13: 1405 | O13: =SUM(O4:O12) -> 4236666.667 | P13: 1059166.667 | Q13: 7600833.333 | R13: 340000 | S13: 85000 | T13: 595000 | AP13: =SUM(AP4:AP12) -> 434130 | AQ13: 911705 | AR13: =SUM(AR4:AR12) -> 602142 | AS13: =SUM(AS4:AS12) -> 90000 | AT13: -16800
AM15: =X5*66/197 -> 1110.152725
A16: 200 | D16: Coventry pupils | Y16: Other LA Pupils
C17: Place Led | D17: Cov ELC Band | E17: Band 1C | F17: Band 2C | G17: Band 1D | H17: Band 2D | I17: Band 3D | J17: Band 4D | K17: Band 1E | L17: Band 2E | M17: Band 3E | N17: Band 4E | O17: Band 5E | P17: Band 6E | Q17: Band 1F | R17: Band 2F | S17: Band 3F | T17: Band 4F | U17: Band 5F | V17: Band 6F | W17: No. FTEs | X17: Coventry | Y17: Cov ELC Band | Z17: Band 1C | AA17: Band 2C | AB17: Band 1D | AC17: Band 2D | AD17: Band 3D | AE17: Band 4D | AF17: Band 1E | AG17: Band 2E | AH17: Band 3E | AI17: Band 4E | AJ17: Band 5E | AK17: Band 6E | AL17: Band 1F | AM17: Band 2F | AN17: Band 3F | AO17: Band 4F | AP17: Band 5F | AQ17: Band 6F | AR17: No. FTEs | AS17: Other LA | AT17: Total Top Up | AV17: Manual Check | AW17: Total | AX17: 23/24 | AY17: 23/24 | AZ17: Budget Setting | BA17: 23/24 | BB17: Additional
C18: Day Rate | D18: Day Units | E18: Day Units | F18: Day Units | G18: Day Units | H18: Day Units | I18: Day Units | J18: Day Units | K18: Day Units | L18: Day Units | M18: Day Units | N18: Day Units | O18: Day Units | P18: Day Units | Q18: Day Units | R18: Day Units | S18: Day Units | T18: Day Units | U18: Day Units | V18: Day Units | W18: Equivalency | X18: Funding £ | Y18: Day Units | Z18: Day Units | AA18: Day Units | AB18: Day Units | AC18: Day Units | AD18: Day Units | AE18: Day Units | AF18: Day Units | AG18: Day Units | AH18: Day Units | AI18: Day Units | AJ18: Day Units | AK18: Day Units | AL18: Day Units | AM18: Day Units | AN18: Day Units | AO18: Day Units | AP18: Day Units | AQ18: Day Units | AR18: Equivalency | AS18: Funding £ | AT18: Funding £ | AU18: No. FTE | AW18: Places | AX18: v4 FTE | AY18: Places | BA18: Term Days | BB18: Place Days | BD18: ELC Band | BE18: Band 1C | BF18: Band 2C | BG18: Band 1D | BH18: Band 2D | BI18: Band 3D | BJ18: Band 4D | BK18: Band 1E | BL18: Band 2E | BM18: Band 3E | BN18: Band 4E | BO18: Band 5E | BP18: Band 6E | BQ18: Band 1F | BR18: Band 2F | BS18: Band 3F | BT18: Band 4F | BU18: Band 5F | BV18: Band 6F | BX18: ELC Band | BY18: Band 1C | BZ18: Band 2C | CA18: Band 1D | CB18: Band 2D | CC18: Band 3D | CD18: Band 4D | CE18: Band 1E | CF18: Band 2E | CG18: Band 3E | CH18: Band 4E | CI18: Band 5E | CJ18: Band 6E | CK18: Band 1F | CL18: Band 2F | CM18: Band 3F | CN18: Band 4F | CO18: Band 5F | CP18: Band 6F
B19: Summer Term 2024
A20: 69 | B20: School | BA20: 69
A21: 1 | B21: Castle Wood | C21: =10000/$A$16 -> 50 | D21: 0 | E21: =SUMIFS(SummerProvRep!$K:$K,SummerProvRep!$A:$A,Data!$A$21,SummerProvRep!$O:$O,"Coventry",SummerProvRep!$T:$T,Data!E$17) -> 0 | F21: =SUMIFS(SummerProvRep!$K:$K,SummerProvRep!$A:$A,Data!$A$21,SummerProvRep!$O:$O,"Coventry",SummerProvRep!$T:$T,Data!F$17) -> 0 | G21: =SUMIFS(SummerProvRep!$K:$K,SummerProvRep!$A:$A,Data!$A$21,SummerProvRep!$O:$O,"Coventry",SummerProvRep!$T:$T,Data!G$17) -> 0 | H21: =SUMIFS(SummerProvRep!$K:$K,SummerProvRep!$A:$A,Data!$A$21,SummerProvRep!$O:$O,"Coventry",SummerProvRep!$T:$T,Data!H$17) -> 0 | I21: =SUMIFS(SummerProvRep!$K:$K,SummerProvRep!$A:$A,Data!$A$21,SummerProvRep!$O:$O,"Coventry",SummerProvRep!$T:$T,Data!I$17) -> 0 | J21: =SUMIFS(SummerProvRep!$K:$K,SummerProvRep!$A:$A,Data!$A$21,SummerProvRep!$O:$O,"Coventry",SummerProvRep!$T:$T,Data!J$17) -> 69 | K21: =SUMIFS(SummerProvRep!$K:$K,SummerProvRep!$A:$A,Data!$A$21,SummerProvRep!$O:$O,"Coventry",SummerProvRep!$T:$T,Data!K$17) -> 5900 | L21: =SUMIFS(SummerProvRep!$K:$K,SummerProvRep!$A:$A,Data!$A$21,SummerProvRep!$O:$O,"Coventry",SummerProvRep!$T:$T,Data!L$17) -> 897 | M21: =SUMIFS(SummerProvRep!$K:$K,SummerProvRep!$A:$A,Data!$A$21,SummerProvRep!$O:$O,"Coventry",SummerProvRep!$T:$T,Data!M$17) -> 69 | N21: =SUMIFS(SummerProvRep!$K:$K,SummerProvRep!$A:$A,Data!$A$21,SummerProvRep!$O:$O,"Coventry",SummerProvRep!$T:$T,Data!N$17) -> 345 | O21: =SUMIFS(SummerProvRep!$K:$K,SummerProvRep!$A:$A,Data!$A$21,SummerProvRep!$O:$O,"Coventry",SummerProvRep!$T:$T,Data!O$17) -> 690 | P21: =SUMIFS(SummerProvRep!$K:$K,SummerProvRep!$A:$A,Data!$A$21,SummerProvRep!$O:$O,"Coventry",SummerProvRep!$T:$T,Data!P$17) -> 0 | Q21: =SUMIFS(SummerProvRep!$K:$K,SummerProvRep!$A:$A,Data!$A$21,SummerProvRep!$O:$O,"Coventry",SummerProvRep!$T:$T,Data!Q$17) -> 2035 | R21: =SUMIFS(SummerProvRep!$K:$K,SummerProvRep!$A:$A,Data!$A$21,SummerProvRep!$O:$O,"Coventry",SummerProvRep!$T:$T,Data!R$17) -> 552 | S21: =SUMIFS(SummerProvRep!$K:$K,SummerProvRep!$A:$A,Data!$A$21,SummerProvRep!$O:$O,"Coventry",SummerProvRep!$T:$T,Data!S$17) -> 0 | T21: =SUMIFS(SummerProvRep!$K:$K,SummerProvRep!$A:$A,Data!$A$21,SummerProvRep!$O:$O,"Coventry",SummerProvRep!$T:$T,Data!T$17) -> 414 | U21: =SUMIFS(SummerProvRep!$K:$K,SummerProvRep!$A:$A,Data!$A$21,SummerProvRep!$O:$O,"Coventry",SummerProvRep!$T:$T,Data!U$17) -> 138 | V21: =SUMIFS(SummerProvRep!$K:$K,SummerProvRep!$A:$A,Data!$A$21,SummerProvRep!$O:$O,"Coventry",SummerProvRep!$T:$T,Data!V$17) -> 0 | W21: =SUM(D21:V21)/$A$20 -> 161 | X21: =SUMPRODUCT(E21:V21,$W$6:$AN$6)/$A$16 -> 784725.9113 | Y21: 0 | Z21: =SUMIFS(SummerProvRep!$K:$K,SummerProvRep!$A:$A,Data!$A$21,SummerProvRep!$O:$O,"<>Coventry",SummerProvRep!$T:$T,Data!Z$17) -> 0 | AA21: =SUMIFS(SummerProvRep!$K:$K,SummerProvRep!$A:$A,Data!$A$21,SummerProvRep!$O:$O,"<>Coventry",SummerProvRep!$T:$T,Data!AA$17) -> 0 | AB21: =SUMIFS(SummerProvRep!$K:$K,SummerProvRep!$A:$A,Data!$A$21,SummerProvRep!$O:$O,"<>Coventry",SummerProvRep!$T:$T,Data!AB$17) -> 0 | AC21: =SUMIFS(SummerProvRep!$K:$K,SummerProvRep!$A:$A,Data!$A$21,SummerProvRep!$O:$O,"<>Coventry",SummerProvRep!$T:$T,Data!AC$17) -> 0 | AD21: =SUMIFS(SummerProvRep!$K:$K,SummerProvRep!$A:$A,Data!$A$21,SummerProvRep!$O:$O,"<>Coventry",SummerProvRep!$T:$T,Data!AD$17) -> 0 | AE21: =SUMIFS(SummerProvRep!$K:$K,SummerProvRep!$A:$A,Data!$A$21,SummerProvRep!$O:$O,"<>Coventry",SummerProvRep!$T:$T,Data!AE$17) -> 0 | AF21: =SUMIFS(SummerProvRep!$K:$K,SummerProvRep!$A:$A,Data!$A$21,SummerProvRep!$O:$O,"<>Coventry",SummerProvRep!$T:$T,Data!AF$17) -> 0 | AG21: =SUMIFS(SummerProvRep!$K:$K,SummerProvRep!$A:$A,Data!$A$21,SummerProvRep!$O:$O,"<>Coventry",SummerProvRep!$T:$T,Data!AG$17) -> 0 | AH21: =SUMIFS(SummerProvRep!$K:$K,SummerProvRep!$A:$A,Data!$A$21,SummerProvRep!$O:$O,"<>Coventry",SummerProvRep!$T:$T,Data!AH$17) -> 0 | AI21: =SUMIFS(SummerProvRep!$K:$K,SummerProvRep!$A:$A,Data!$A$21,SummerProvRep!$O:$O,"<>Coventry",SummerProvRep!$T:$T,Data!AI$17) -> 0 | AJ21: =SUMIFS(SummerProvRep!$K:$K,SummerProvRep!$A:$A,Data!$A$21,SummerProvRep!$O:$O,"<>Coventry",SummerProvRep!$T:$T,Data!AJ$17) -> 0 | AK21: =SUMIFS(SummerProvRep!$K:$K,SummerProvRep!$A:$A,Data!$A$21,SummerProvRep!$O:$O,"<>Coventry",SummerProvRep!$T:$T,Data!AK$17) -> 0 | AL21: =SUMIFS(SummerProvRep!$K:$K,SummerProvRep!$A:$A,Data!$A$21,SummerProvRep!$O:$O,"<>Coventry",SummerProvRep!$T:$T,Data!AL$17) -> 0 | AM21: =SUMIFS(SummerProvRep!$K:$K,SummerProvRep!$A:$A,Data!$A$21,SummerProvRep!$O:$O,"<>Coventry",SummerProvRep!$T:$T,Data!AM$17) -> 0 | AN21: =SUMIFS(SummerProvRep!$K:$K,SummerProvRep!$A:$A,Data!$A$21,SummerProvRep!$O:$O,"<>Coventry",SummerProvRep!$T:$T,Data!AN$17) -> 0 | AO21: =SUMIFS(SummerProvRep!$K:$K,SummerProvRep!$A:$A,Data!$A$21,SummerProvRep!$O:$O,"<>Coventry",SummerProvRep!$T:$T,Data!AO$17) -> 0 | AP21: =SUMIFS(SummerProvRep!$K:$K,SummerProvRep!$A:$A,Data!$A$21,SummerProvRep!$O:$O,"<>Coventry",SummerProvRep!$T:$T,Data!AP$17) -> 0 | AQ21: =SUMIFS(SummerProvRep!$K:$K,SummerProvRep!$A:$A,Data!$A$21,SummerProvRep!$O:$O,"<>Coventry",SummerProvRep!$T:$T,Data!AQ$17) -> 0 | AR21: =SUM(Z21:AQ21)/$A$20 -> 0 | AS21: =SUMPRODUCT(Y21:AQ21,$V$6:$AN$6)/$A$16 -> 0 | AT21: =X21+AS21 -> 784725.9113 | AU21: =AR21+W21 -> 161 | AV21: =AU21-AW21 -> 1 | AW21: =K4 -> 160 | AX21: =[5]Data!$AU21 -> 159.9848485 | AY21: =C4 -> 160
A22: 2 | B22: Kingsbury | C22: =10000/$A$16 -> 50 | D22: 0 | E22: =SUMIFS(SummerProvRep!$K:$K,SummerProvRep!$A:$A,Data!$A$22,SummerProvRep!$O:$O,"Coventry",SummerProvRep!$T:$T,Data!E$17) -> 0 | F22: =SUMIFS(SummerProvRep!$K:$K,SummerProvRep!$A:$A,Data!$A$22,SummerProvRep!$O:$O,"Coventry",SummerProvRep!$T:$T,Data!F$17) -> 0 | G22: =SUMIFS(SummerProvRep!$K:$K,SummerProvRep!$A:$A,Data!$A$22,SummerProvRep!$O:$O,"Coventry",SummerProvRep!$T:$T,Data!G$17) -> 0 | H22: =SUMIFS(SummerProvRep!$K:$K,SummerProvRep!$A:$A,Data!$A$22,SummerProvRep!$O:$O,"Coventry",SummerProvRep!$T:$T,Data!H$17) -> 0 | I22: =SUMIFS(SummerProvRep!$K:$K,SummerProvRep!$A:$A,Data!$A$22,SummerProvRep!$O:$O,"Coventry",SummerProvRep!$T:$T,Data!I$17) -> 0 | J22: =SUMIFS(SummerProvRep!$K:$K,SummerProvRep!$A:$A,Data!$A$22,SummerProvRep!$O:$O,"Coventry",SummerProvRep!$T:$T,Data!J$17) -> 0 | K22: =SUMIFS(SummerProvRep!$K:$K,SummerProvRep!$A:$A,Data!$A$22,SummerProvRep!$O:$O,"Coventry",SummerProvRep!$T:$T,Data!K$17) -> 3870 | L22: =SUMIFS(SummerProvRep!$K:$K,SummerProvRep!$A:$A,Data!$A$22,SummerProvRep!$O:$O,"Coventry",SummerProvRep!$T:$T,Data!L$17) -> 345 | M22: =SUMIFS(SummerProvRep!$K:$K,SummerProvRep!$A:$A,Data!$A$22,SummerProvRep!$O:$O,"Coventry",SummerProvRep!$T:$T,Data!M$17) -> 0 | N22: =SUMIFS(SummerProvRep!$K:$K,SummerProvRep!$A:$A,Data!$A$22,SummerProvRep!$O:$O,"Coventry",SummerProvRep!$T:$T,Data!N$17) -> 0 | O22: =SUMIFS(SummerProvRep!$K:$K,SummerProvRep!$A:$A,Data!$A$22,SummerProvRep!$O:$O,"Coventry",SummerProvRep!$T:$T,Data!O$17) -> 621 | P22: =SUMIFS(SummerProvRep!$K:$K,SummerProvRep!$A:$A,Data!$A$22,SummerProvRep!$O:$O,"Coventry",SummerProvRep!$T:$T,Data!P$17) -> 0 | Q22: =SUMIFS(SummerProvRep!$K:$K,SummerProvRep!$A:$A,Data!$A$22,SummerProvRep!$O:$O,"Coventry",SummerProvRep!$T:$T,Data!Q$17) -> 1512 | R22: =SUMIFS(SummerProvRep!$K:$K,SummerProvRep!$A:$A,Data!$A$22,SummerProvRep!$O:$O,"Coventry",SummerProvRep!$T:$T,Data!R$17) -> 138 | S22: =SUMIFS(SummerProvRep!$K:$K,SummerProvRep!$A:$A,Data!$A$22,SummerProvRep!$O:$O,"Coventry",SummerProvRep!$T:$T,Data!S$17) -> 0 | T22: =SUMIFS(SummerProvRep!$K:$K,SummerProvRep!$A:$A,Data!$A$22,SummerProvRep!$O:$O,"Coventry",SummerProvRep!$T:$T,Data!T$17) -> 0 | U22: =SUMIFS(SummerProvRep!$K:$K,SummerProvRep!$A:$A,Data!$A$22,SummerProvRep!$O:$O,"Coventry",SummerProvRep!$T:$T,Data!U$17) -> 69 | V22: =SUMIFS(SummerProvRep!$K:$K,SummerProvRep!$A:$A,Data!$A$22,SummerProvRep!$O:$O,"Coventry",SummerProvRep!$T:$T,Data!V$17) -> 0 | W22: =SUM(D22:V22)/$A$20 -> 95 | X22: =SUMPRODUCT(E22:V22,$W$6:$AN$6)/$A$16 -> 471955.3829 | Y22: 0 | Z22: =SUMIFS(SummerProvRep!$K:$K,SummerProvRep!$A:$A,Data!$A$22,SummerProvRep!$O:$O,"<>Coventry",SummerProvRep!$T:$T,Data!Z$17) -> 0 | AA22: =SUMIFS(SummerProvRep!$K:$K,SummerProvRep!$A:$A,Data!$A$22,SummerProvRep!$O:$O,"<>Coventry",SummerProvRep!$T:$T,Data!AA$17) -> 0 | AB22: =SUMIFS(SummerProvRep!$K:$K,SummerProvRep!$A:$A,Data!$A$22,SummerProvRep!$O:$O,"<>Coventry",SummerProvRep!$T:$T,Data!AB$17) -> 0 | AC22: =SUMIFS(SummerProvRep!$K:$K,SummerProvRep!$A:$A,Data!$A$22,SummerProvRep!$O:$O,"<>Coventry",SummerProvRep!$T:$T,Data!AC$17) -> 0 | AD22: =SUMIFS(SummerProvRep!$K:$K,SummerProvRep!$A:$A,Data!$A$22,SummerProvRep!$O:$O,"<>Coventry",SummerProvRep!$T:$T,Data!AD$17) -> 0 | AE22: =SUMIFS(SummerProvRep!$K:$K,SummerProvRep!$A:$A,Data!$A$22,SummerProvRep!$O:$O,"<>Coventry",SummerProvRep!$T:$T,Data!AE$17) -> 0 | AF22: =SUMIFS(SummerProvRep!$K:$K,SummerProvRep!$A:$A,Data!$A$22,SummerProvRep!$O:$O,"<>Coventry",SummerProvRep!$T:$T,Data!AF$17) -> 138 | AG22: =SUMIFS(SummerProvRep!$K:$K,SummerProvRep!$A:$A,Data!$A$22,SummerProvRep!$O:$O,"<>Coventry",SummerProvRep!$T:$T,Data!AG$17) -> 69 | AH22: =SUMIFS(SummerProvRep!$K:$K,SummerProvRep!$A:$A,Data!$A$22,SummerProvRep!$O:$O,"<>Coventry",SummerProvRep!$T:$T,Data!AH$17) -> 0 | AI22: =SUMIFS(SummerProvRep!$K:$K,SummerProvRep!$A:$A,Data!$A$22,SummerProvRep!$O:$O,"<>Coventry",SummerProvRep!$T:$T,Data!AI$17) -> 0 | AJ22: =SUMIFS(SummerProvRep!$K:$K,SummerProvRep!$A:$A,Data!$A$22,SummerProvRep!$O:$O,"<>Coventry",SummerProvRep!$T:$T,Data!AJ$17) -> 0 | AK22: =SUMIFS(SummerProvRep!$K:$K,SummerProvRep!$A:$A,Data!$A$22,SummerProvRep!$O:$O,"<>Coventry",SummerProvRep!$T:$T,Data!AK$17) -> 0 | AL22: =SUMIFS(SummerProvRep!$K:$K,SummerProvRep!$A:$A,Data!$A$22,SummerProvRep!$O:$O,"<>Coventry",SummerProvRep!$T:$T,Data!AL$17) -> 138 | AM22: =SUMIFS(SummerProvRep!$K:$K,SummerProvRep!$A:$A,Data!$A$22,SummerProvRep!$O:$O,"<>Coventry",SummerProvRep!$T:$T,Data!AM$17) -> 0 | AN22: =SUMIFS(SummerProvRep!$K:$K,SummerProvRep!$A:$A,Data!$A$22,SummerProvRep!$O:$O,"<>Coventry",SummerProvRep!$T:$T,Data!AN$17) -> 0 | AO22: =SUMIFS(SummerProvRep!$K:$K,SummerProvRep!$A:$A,Data!$A$22,SummerProvRep!$O:$O,"<>Coventry",SummerProvRep!$T:$T,Data!AO$17) -> 0 | AP22: =SUMIFS(SummerProvRep!$K:$K,SummerProvRep!$A:$A,Data!$A$22,SummerProvRep!$O:$O,"<>Coventry",SummerProvRep!$T:$T,Data!AP$17) -> 0 | AQ22: =SUMIFS(SummerProvRep!$K:$K,SummerProvRep!$A:$A,Data!$A$22,SummerProvRep!$O:$O,"<>Coventry",SummerProvRep!$T:$T,Data!AQ$17) -> 0 | AR22: 5 | AS22: =SUMPRODUCT(Y22:AQ22,$V$6:$AN$6)/$A$16 -> 23530.96617 | AT22: =X22+AS22 -> 495486.3491 | AU22: 100 | AV22: =AU22-AW22 -> 0 | AW22: 100 | AX22: =[5]Data!$AU22 -> 98.84848485 | AY22: 100
A23: 3 | B23: Riverbank | C23: 50 | D23: 0 | E23: =SUMIFS(SummerProvRep!$K:$K,SummerProvRep!$A:$A,Data!$A$23,SummerProvRep!$O:$O,"Coventry",SummerProvRep!$T:$T,Data!E$17) -> 0 | F23: =SUMIFS(SummerProvRep!$K:$K,SummerProvRep!$A:$A,Data!$A$23,SummerProvRep!$O:$O,"Coventry",SummerProvRep!$T:$T,Data!F$17) -> 0 | G23: =SUMIFS(SummerProvRep!$K:$K,SummerProvRep!$A:$A,Data!$A$23,SummerProvRep!$O:$O,"Coventry",SummerProvRep!$T:$T,Data!G$17) -> 690 | H23: =SUMIFS(SummerProvRep!$K:$K,SummerProvRep!$A:$A,Data!$A$23,SummerProvRep!$O:$O,"Coventry",SummerProvRep!$T:$T,Data!H$17) -> 964 | I23: =SUMIFS(SummerProvRep!$K:$K,SummerProvRep!$A:$A,Data!$A$23,SummerProvRep!$O:$O,"Coventry",SummerProvRep!$T:$T,Data!I$17) -> 0 | J23: =SUMIFS(SummerProvRep!$K:$K,SummerProvRep!$A:$A,Data!$A$23,SummerProvRep!$O:$O,"Coventry",SummerProvRep!$T:$T,Data!J$17) -> 0 | K23: =SUMIFS(SummerProvRep!$K:$K,SummerProvRep!$A:$A,Data!$A$23,SummerProvRep!$O:$O,"Coventry",SummerProvRep!$T:$T,Data!K$17) -> 4545 | L23: =SUMIFS(SummerProvRep!$K:$K,SummerProvRep!$A:$A,Data!$A$23,SummerProvRep!$O:$O,"Coventry",SummerProvRep!$T:$T,Data!L$17) -> 3772 | M23: =SUMIFS(SummerProvRep!$K:$K,SummerProvRep!$A:$A,Data!$A$23,SummerProvRep!$O:$O,"Coventry",SummerProvRep!$T:$T,Data!M$17) -> 138 | N23: =SUMIFS(SummerProvRep!$K:$K,SummerProvRep!$A:$A,Data!$A$23,SummerProvRep!$O:$O,"Coventry",SummerProvRep!$T:$T,Data!N$17) -> 483 | O23: =SUMIFS(SummerProvRep!$K:$K,SummerProvRep!$A:$A,Data!$A$23,SummerProvRep!$O:$O,"Coventry",SummerProvRep!$T:$T,Data!O$17) -> 379 | P23: =SUMIFS(SummerProvRep!$K:$K,SummerProvRep!$A:$A,Data!$A$23,SummerProvRep!$O:$O,"Coventry",SummerProvRep!$T:$T,Data!P$17) -> 272 | Q23: =SUMIFS(SummerProvRep!$K:$K,SummerProvRep!$A:$A,Data!$A$23,SummerProvRep!$O:$O,"Coventry",SummerProvRep!$T:$T,Data!Q$17) -> 1443 | R23: =SUMIFS(SummerProvRep!$K:$K,SummerProvRep!$A:$A,Data!$A$23,SummerProvRep!$O:$O,"Coventry",SummerProvRep!$T:$T,Data!R$17) -> 345 | S23: =SUMIFS(SummerProvRep!$K:$K,SummerProvRep!$A:$A,Data!$A$23,SummerProvRep!$O:$O,"Coventry",SummerProvRep!$T:$T,Data!S$17) -> 0 | T23: =SUMIFS(SummerProvRep!$K:$K,SummerProvRep!$A:$A,Data!$A$23,SummerProvRep!$O:$O,"Coventry",SummerProvRep!$T:$T,Data!T$17) -> 207 | U23: =SUMIFS(SummerProvRep!$K:$K,SummerProvRep!$A:$A,Data!$A$23,SummerProvRep!$O:$O,"Coventry",SummerProvRep!$T:$T,Data!U$17) -> 0 | V23: =SUMIFS(SummerProvRep!$K:$K,SummerProvRep!$A:$A,Data!$A$23,SummerProvRep!$O:$O,"Coventry",SummerProvRep!$T:$T,Data!V$17) -> 0 | W23: 191.8550725 | X23: =SUMPRODUCT(E23:V23,$W$6:$AN$6)/$A$16 -> 794849.8737 | Y23: 0 | Z23: =SUMIFS(SummerProvRep!$K:$K,SummerProvRep!$A:$A,Data!$A$23,SummerProvRep!$O:$O,"<>Coventry",SummerProvRep!$T:$T,Data!Z$17) -> 0 | AA23: =SUMIFS(SummerProvRep!$K:$K,SummerProvRep!$A:$A,Data!$A$23,SummerProvRep!$O:$O,"<>Coventry",SummerProvRep!$T:$T,Data!AA$17) -> 0 | AB23: =SUMIFS(SummerProvRep!$K:$K,SummerProvRep!$A:$A,Data!$A$23,SummerProvRep!$O:$O,"<>Coventry",SummerProvRep!$T:$T,Data!AB$17) -> 0 | AC23: =SUMIFS(SummerProvRep!$K:$K,SummerProvRep!$A:$A,Data!$A$23,SummerProvRep!$O:$O,"<>Coventry",SummerProvRep!$T:$T,Data!AC$17) -> 0 | AD23: =SUMIFS(SummerProvRep!$K:$K,SummerProvRep!$A:$A,Data!$A$23,SummerProvRep!$O:$O,"<>Coventry",SummerProvRep!$T:$T,Data!AD$17) -> 0 | AE23: =SUMIFS(SummerProvRep!$K:$K,SummerProvRep!$A:$A,Data!$A$23,SummerProvRep!$O:$O,"<>Coventry",SummerProvRep!$T:$T,Data!AE$17) -> 0 | AF23: =SUMIFS(SummerProvRep!$K:$K,SummerProvRep!$A:$A,Data!$A$23,SummerProvRep!$O:$O,"<>Coventry",SummerProvRep!$T:$T,Data!AF$17) -> 69 | AG23: =SUMIFS(SummerProvRep!$K:$K,SummerProvRep!$A:$A,Data!$A$23,SummerProvRep!$O:$O,"<>Coventry",SummerProvRep!$T:$T,Data!AG$17) -> 0 | AH23: =SUMIFS(SummerProvRep!$K:$K,SummerProvRep!$A:$A,Data!$A$23,SummerProvRep!$O:$O,"<>Coventry",SummerProvRep!$T:$T,Data!AH$17) -> 0 | AI23: =SUMIFS(SummerProvRep!$K:$K,SummerProvRep!$A:$A,Data!$A$23,SummerProvRep!$O:$O,"<>Coventry",SummerProvRep!$T:$T,Data!AI$17) -> 0 | AJ23: =SUMIFS(SummerProvRep!$K:$K,SummerProvRep!$A:$A,Data!$A$23,SummerProvRep!$O:$O,"<>Coventry",SummerProvRep!$T:$T,Data!AJ$17) -> 0 | AK23: =SUMIFS(SummerProvRep!$K:$K,SummerProvRep!$A:$A,Data!$A$23,SummerProvRep!$O:$O,"<>Coventry",SummerProvRep!$T:$T,Data!AK$17) -> 0 | AL23: =SUMIFS(SummerProvRep!$K:$K,SummerProvRep!$A:$A,Data!$A$23,SummerProvRep!$O:$O,"<>Coventry",SummerProvRep!$T:$T,Data!AL$17) -> 0 | AM23: =SUMIFS(SummerProvRep!$K:$K,SummerProvRep!$A:$A,Data!$A$23,SummerProvRep!$O:$O,"<>Coventry",SummerProvRep!$T:$T,Data!AM$17) -> 0 | AN23: =SUMIFS(SummerProvRep!$K:$K,SummerProvRep!$A:$A,Data!$A$23,SummerProvRep!$O:$O,"<>Coventry",SummerProvRep!$T:$T,Data!AN$17) -> 0 | AO23: =SUMIFS(SummerProvRep!$K:$K,SummerProvRep!$A:$A,Data!$A$23,SummerProvRep!$O:$O,"<>Coventry",SummerProvRep!$T:$T,Data!AO$17) -> 0 | AP23: =SUMIFS(SummerProvRep!$K:$K,SummerProvRep!$A:$A,Data!$A$23,SummerProvRep!$O:$O,"<>Coventry",SummerProvRep!$T:$T,Data!AP$17) -> 0 | AQ23: =SUMIFS(SummerProvRep!$K:$K,SummerProvRep!$A:$A,Data!$A$23,SummerProvRep!$O:$O,"<>Coventry",SummerProvRep!$T:$T,Data!AQ$17) -> 0 | AR23: 1 | AS23: 3810.681972 | AT23: 798660.5557 | AU23: 192.8550725 | AV23: =AU23-AW23 -> -7.144927536 | AW23: 200 | AX23: =[5]Data!$AU23 -> 197.4393939 | AY23: 200
A24: 4 | B24: Corley | C24: 50 | D24: 0 | E24: =SUMIFS(SummerProvRep!$K:$K,SummerProvRep!$A:$A,Data!$A$24,SummerProvRep!$O:$O,"Coventry",SummerProvRep!$T:$T,Data!E$17) -> 0 | F24: =SUMIFS(SummerProvRep!$K:$K,SummerProvRep!$A:$A,Data!$A$24,SummerProvRep!$O:$O,"Coventry",SummerProvRep!$T:$T,Data!F$17) -> 0 | G24: =SUMIFS(SummerProvRep!$K:$K,SummerProvRep!$A:$A,Data!$A$24,SummerProvRep!$O:$O,"Coventry",SummerProvRep!$T:$T,Data!G$17) -> 0 | H24: =SUMIFS(SummerProvRep!$K:$K,SummerProvRep!$A:$A,Data!$A$24,SummerProvRep!$O:$O,"Coventry",SummerProvRep!$T:$T,Data!H$17) -> 0 | I24: =SUMIFS(SummerProvRep!$K:$K,SummerProvRep!$A:$A,Data!$A$24,SummerProvRep!$O:$O,"Coventry",SummerProvRep!$T:$T,Data!I$17) -> 0 | J24: =SUMIFS(SummerProvRep!$K:$K,SummerProvRep!$A:$A,Data!$A$24,SummerProvRep!$O:$O,"Coventry",SummerProvRep!$T:$T,Data!J$17) -> 0 | K24: =SUMIFS(SummerProvRep!$K:$K,SummerProvRep!$A:$A,Data!$A$24,SummerProvRep!$O:$O,"Coventry",SummerProvRep!$T:$T,Data!K$17) -> 7917 | L24: =SUMIFS(SummerProvRep!$K:$K,SummerProvRep!$A:$A,Data!$A$24,SummerProvRep!$O:$O,"Coventry",SummerProvRep!$T:$T,Data!L$17) -> 0 | M24: =SUMIFS(SummerProvRep!$K:$K,SummerProvRep!$A:$A,Data!$A$24,SummerProvRep!$O:$O,"Coventry",SummerProvRep!$T:$T,Data!M$17) -> 483 | N24: =SUMIFS(SummerProvRep!$K:$K,SummerProvRep!$A:$A,Data!$A$24,SummerProvRep!$O:$O,"Coventry",SummerProvRep!$T:$T,Data!N$17) -> 0 | O24: =SUMIFS(SummerProvRep!$K:$K,SummerProvRep!$A:$A,Data!$A$24,SummerProvRep!$O:$O,"Coventry",SummerProvRep!$T:$T,Data!O$17) -> 325 | P24: =SUMIFS(SummerProvRep!$K:$K,SummerProvRep!$A:$A,Data!$A$24,SummerProvRep!$O:$O,"Coventry",SummerProvRep!$T:$T,Data!P$17) -> 0 | Q24: =SUMIFS(SummerProvRep!$K:$K,SummerProvRep!$A:$A,Data!$A$24,SummerProvRep!$O:$O,"Coventry",SummerProvRep!$T:$T,Data!Q$17) -> 1306 | R24: =SUMIFS(SummerProvRep!$K:$K,SummerProvRep!$A:$A,Data!$A$24,SummerProvRep!$O:$O,"Coventry",SummerProvRep!$T:$T,Data!R$17) -> 0 | S24: =SUMIFS(SummerProvRep!$K:$K,SummerProvRep!$A:$A,Data!$A$24,SummerProvRep!$O:$O,"Coventry",SummerProvRep!$T:$T,Data!S$17) -> 0 | T24: =SUMIFS(SummerProvRep!$K:$K,SummerProvRep!$A:$A,Data!$A$24,SummerProvRep!$O:$O,"Coventry",SummerProvRep!$T:$T,Data!T$17) -> 0 | U24: =SUMIFS(SummerProvRep!$K:$K,SummerProvRep!$A:$A,Data!$A$24,SummerProvRep!$O:$O,"Coventry",SummerProvRep!$T:$T,Data!U$17) -> 0 | V24: =SUMIFS(SummerProvRep!$K:$K,SummerProvRep!$A:$A,Data!$A$24,SummerProvRep!$O:$O,"Coventry",SummerProvRep!$T:$T,Data!V$17) -> 0 | W24: 145.3768116 | X24: 627809.8323 | Y24: 0 | Z24: =SUMIFS(SummerProvRep!$K:$K,SummerProvRep!$A:$A,Data!$A$24,SummerProvRep!$O:$O,"<>Coventry",SummerProvRep!$T:$T,Data!Z$17) -> 0 | AA24: =SUMIFS(SummerProvRep!$K:$K,SummerProvRep!$A:$A,Data!$A$24,SummerProvRep!$O:$O,"<>Coventry",SummerProvRep!$T:$T,Data!AA$17) -> 0 | AB24: =SUMIFS(SummerProvRep!$K:$K,SummerProvRep!$A:$A,Data!$A$24,SummerProvRep!$O:$O,"<>Coventry",SummerProvRep!$T:$T,Data!AB$17) -> 0 | AC24: =SUMIFS(SummerProvRep!$K:$K,SummerProvRep!$A:$A,Data!$A$24,SummerProvRep!$O:$O,"<>Coventry",SummerProvRep!$T:$T,Data!AC$17) -> 0 | AD24: =SUMIFS(SummerProvRep!$K:$K,SummerProvRep!$A:$A,Data!$A$24,SummerProvRep!$O:$O,"<>Coventry",SummerProvRep!$T:$T,Data!AD$17) -> 0 | AE24: =SUMIFS(SummerProvRep!$K:$K,SummerProvRep!$A:$A,Data!$A$24,SummerProvRep!$O:$O,"<>Coventry",SummerProvRep!$T:$T,Data!AE$17) -> 0 | AF24: =SUMIFS(SummerProvRep!$K:$K,SummerProvRep!$A:$A,Data!$A$24,SummerProvRep!$O:$O,"<>Coventry",SummerProvRep!$T:$T,Data!AF$17) -> 138 | AG24: =SUMIFS(SummerProvRep!$K:$K,SummerProvRep!$A:$A,Data!$A$24,SummerProvRep!$O:$O,"<>Coventry",SummerProvRep!$T:$T,Data!AG$17) -> 0 | AH24: =SUMIFS(SummerProvRep!$K:$K,SummerProvRep!$A:$A,Data!$A$24,SummerProvRep!$O:$O,"<>Coventry",SummerProvRep!$T:$T,Data!AH$17) -> 0 | AI24: =SUMIFS(SummerProvRep!$K:$K,SummerProvRep!$A:$A,Data!$A$24,SummerProvRep!$O:$O,"<>Coventry",SummerProvRep!$T:$T,Data!AI$17) -> 0 | AJ24: =SUMIFS(SummerProvRep!$K:$K,SummerProvRep!$A:$A,Data!$A$24,SummerProvRep!$O:$O,"<>Coventry",SummerProvRep!$T:$T,Data!AJ$17) -> 0 | AK24: =SUMIFS(SummerProvRep!$K:$K,SummerProvRep!$A:$A,Data!$A$24,SummerProvRep!$O:$O,"<>Coventry",SummerProvRep!$T:$T,Data!AK$17) -> 0 | AL24: =SUMIFS(SummerProvRep!$K:$K,SummerProvRep!$A:$A,Data!$A$24,SummerProvRep!$O:$O,"<>Coventry",SummerProvRep!$T:$T,Data!AL$17) -> 0 | AM24: =SUMIFS(SummerProvRep!$K:$K,SummerProvRep!$A:$A,Data!$A$24,SummerProvRep!$O:$O,"<>Coventry",SummerProvRep!$T:$T,Data!AM$17) -> 0 | AN24: =SUMIFS(SummerProvRep!$K:$K,SummerProvRep!$A:$A,Data!$A$24,SummerProvRep!$O:$O,"<>Coventry",SummerProvRep!$T:$T,Data!AN$17) -> 0 | AO24: =SUMIFS(SummerProvRep!$K:$K,SummerProvRep!$A:$A,Data!$A$24,SummerProvRep!$O:$O,"<>Coventry",SummerProvRep!$T:$T,Data!AO$17) -> 0 | AP24: =SUMIFS(SummerProvRep!$K:$K,SummerProvRep!$A:$A,Data!$A$24,SummerProvRep!$O:$O,"<>Coventry",SummerProvRep!$T:$T,Data!AP$17) -> 0 | AQ24: =SUMIFS(SummerProvRep!$K:$K,SummerProvRep!$A:$A,Data!$A$24,SummerProvRep!$O:$O,"<>Coventry",SummerProvRep!$T:$T,Data!AQ$17) -> 0 | AR24: 2 | AS24: 7621.363944 | AT24: 635431.1962 | AU24: 147.3768116 | AV24: 7.376811594 | AW24: 140 | AX24: =[5]Data!$AU24 -> 136 | AY24: 129
A25: 5 | B25: Tiverton | C25: 50 | D25: 0 | E25: =SUMIFS(SummerProvRep!$K:$K,SummerProvRep!$A:$A,Data!$A$25,SummerProvRep!$O:$O,"Coventry",SummerProvRep!$T:$T,Data!E$17) -> 0 | F25: =SUMIFS(SummerProvRep!$K:$K,SummerProvRep!$A:$A,Data!$A$25,SummerProvRep!$O:$O,"Coventry",SummerProvRep!$T:$T,Data!F$17) -> 0 | G25: =SUMIFS(SummerProvRep!$K:$K,SummerProvRep!$A:$A,Data!$A$25,SummerProvRep!$O:$O,"Coventry",SummerProvRep!$T:$T,Data!G$17) -> 0 | H25: =SUMIFS(SummerProvRep!$K:$K,SummerProvRep!$A:$A,Data!$A$25,SummerProvRep!$O:$O,"Coventry",SummerProvRep!$T:$T,Data!H$17) -> 0 | I25: =SUMIFS(SummerProvRep!$K:$K,SummerProvRep!$A:$A,Data!$A$25,SummerProvRep!$O:$O,"Coventry",SummerProvRep!$T:$T,Data!I$17) -> 0 | J25: =SUMIFS(SummerProvRep!$K:$K,SummerProvRep!$A:$A,Data!$A$25,SummerProvRep!$O:$O,"Coventry",SummerProvRep!$T:$T,Data!J$17) -> 0 | K25: =SUMIFS(SummerProvRep!$K:$K,SummerProvRep!$A:$A,Data!$A$25,SummerProvRep!$O:$O,"Coventry",SummerProvRep!$T:$T,Data!K$17) -> 4485 | L25: =SUMIFS(SummerProvRep!$K:$K,SummerProvRep!$A:$A,Data!$A$25,SummerProvRep!$O:$O,"Coventry",SummerProvRep!$T:$T,Data!L$17) -> 897 | M25: =SUMIFS(SummerProvRep!$K:$K,SummerProvRep!$A:$A,Data!$A$25,SummerProvRep!$O:$O,"Coventry",SummerProvRep!$T:$T,Data!M$17) -> 0 | N25: =SUMIFS(SummerProvRep!$K:$K,SummerProvRep!$A:$A,Data!$A$25,SummerProvRep!$O:$O,"Coventry",SummerProvRep!$T:$T,Data!N$17) -> 414 | O25: =SUMIFS(SummerProvRep!$K:$K,SummerProvRep!$A:$A,Data!$A$25,SummerProvRep!$O:$O,"Coventry",SummerProvRep!$T:$T,Data!O$17) -> 414 | P25: =SUMIFS(SummerProvRep!$K:$K,SummerProvRep!$A:$A,Data!$A$25,SummerProvRep!$O:$O,"Coventry",SummerProvRep!$T:$T,Data!P$17) -> 0 | Q25: =SUMIFS(SummerProvRep!$K:$K,SummerProvRep!$A:$A,Data!$A$25,SummerProvRep!$O:$O,"Coventry",SummerProvRep!$T:$T,Data!Q$17) -> 1104 | R25: =SUMIFS(SummerProvRep!$K:$K,SummerProvRep!$A:$A,Data!$A$25,SummerProvRep!$O:$O,"Coventry",SummerProvRep!$T:$T,Data!R$17) -> 483 | S25: =SUMIFS(SummerProvRep!$K:$K,SummerProvRep!$A:$A,Data!$A$25,SummerProvRep!$O:$O,"Coventry",SummerProvRep!$T:$T,Data!S$17) -> 0 | T25: =SUMIFS(SummerProvRep!$K:$K,SummerProvRep!$A:$A,Data!$A$25,SummerProvRep!$O:$O,"Coventry",SummerProvRep!$T:$T,Data!T$17) -> 345 | U25: =SUMIFS(SummerProvRep!$K:$K,SummerProvRep!$A:$A,Data!$A$25,SummerProvRep!$O:$O,"Coventry",SummerProvRep!$T:$T,Data!U$17) -> 0 | V25: =SUMIFS(SummerProvRep!$K:$K,SummerProvRep!$A:$A,Data!$A$25,SummerProvRep!$O:$O,"Coventry",SummerProvRep!$T:$T,Data!V$17) -> 0 | W25: 118 | X25: 540754.7877 | Y25: 0 | Z25: =SUMIFS(SummerProvRep!$K:$K,SummerProvRep!$A:$A,Data!$A$25,SummerProvRep!$O:$O,"<>Coventry",SummerProvRep!$T:$T,Data!Z$17) -> 0 | AA25: =SUMIFS(SummerProvRep!$K:$K,SummerProvRep!$A:$A,Data!$A$25,SummerProvRep!$O:$O,"<>Coventry",SummerProvRep!$T:$T,Data!AA$17) -> 0 | AB25: =SUMIFS(SummerProvRep!$K:$K,SummerProvRep!$A:$A,Data!$A$25,SummerProvRep!$O:$O,"<>Coventry",SummerProvRep!$T:$T,Data!AB$17) -> 0 | AC25: =SUMIFS(SummerProvRep!$K:$K,SummerProvRep!$A:$A,Data!$A$25,SummerProvRep!$O:$O,"<>Coventry",SummerProvRep!$T:$T,Data!AC$17) -> 0 | AD25: =SUMIFS(SummerProvRep!$K:$K,SummerProvRep!$A:$A,Data!$A$25,SummerProvRep!$O:$O,"<>Coventry",SummerProvRep!$T:$T,Data!AD$17) -> 0 | AE25: =SUMIFS(SummerProvRep!$K:$K,SummerProvRep!$A:$A,Data!$A$25,SummerProvRep!$O:$O,"<>Coventry",SummerProvRep!$T:$T,Data!AE$17) -> 0 | AF25: =SUMIFS(SummerProvRep!$K:$K,SummerProvRep!$A:$A,Data!$A$25,SummerProvRep!$O:$O,"<>Coventry",SummerProvRep!$T:$T,Data!AF$17) -> 69 | AG25: =SUMIFS(SummerProvRep!$K:$K,SummerProvRep!$A:$A,Data!$A$25,SummerProvRep!$O:$O,"<>Coventry",SummerProvRep!$T:$T,Data!AG$17) -> 0 | AH25: =SUMIFS(SummerProvRep!$K:$K,SummerProvRep!$A:$A,Data!$A$25,SummerProvRep!$O:$O,"<>Coventry",SummerProvRep!$T:$T,Data!AH$17) -> 0 | AI25: =SUMIFS(SummerProvRep!$K:$K,SummerProvRep!$A:$A,Data!$A$25,SummerProvRep!$O:$O,"<>Coventry",SummerProvRep!$T:$T,Data!AI$17) -> 0 | AJ25: =SUMIFS(SummerProvRep!$K:$K,SummerProvRep!$A:$A,Data!$A$25,SummerProvRep!$O:$O,"<>Coventry",SummerProvRep!$T:$T,Data!AJ$17) -> 0 | AK25: =SUMIFS(SummerProvRep!$K:$K,SummerProvRep!$A:$A,Data!$A$25,SummerProvRep!$O:$O,"<>Coventry",SummerProvRep!$T:$T,Data!AK$17) -> 0 | AL25: =SUMIFS(SummerProvRep!$K:$K,SummerProvRep!$A:$A,Data!$A$25,SummerProvRep!$O:$O,"<>Coventry",SummerProvRep!$T:$T,Data!AL$17) -> 69 | AM25: =SUMIFS(SummerProvRep!$K:$K,SummerProvRep!$A:$A,Data!$A$25,SummerProvRep!$O:$O,"<>Coventry",SummerProvRep!$T:$T,Data!AM$17) -> 0 | AN25: =SUMIFS(SummerProvRep!$K:$K,SummerProvRep!$A:$A,Data!$A$25,SummerProvRep!$O:$O,"<>Coventry",SummerProvRep!$T:$T,Data!AN$17) -> 0 | AO25: =SUMIFS(SummerProvRep!$K:$K,SummerProvRep!$A:$A,Data!$A$25,SummerProvRep!$O:$O,"<>Coventry",SummerProvRep!$T:$T,Data!AO$17) -> 0 | AP25: =SUMIFS(SummerProvRep!$K:$K,SummerProvRep!$A:$A,Data!$A$25,SummerProvRep!$O:$O,"<>Coventry",SummerProvRep!$T:$T,Data!AP$17) -> 0 | AQ25: =SUMIFS(SummerProvRep!$K:$K,SummerProvRep!$A:$A,Data!$A$25,SummerProvRep!$O:$O,"<>Coventry",SummerProvRep!$T:$T,Data!AQ$17) -> 0 | AR25: 2 | AS25: 10003.04171 | AT25: 550757.8294 | AU25: 120 | AV25: -1 | AW25: 121 | AX25: =[5]Data!$AU25 -> 113 | AY25: 112
A26: 6 | B26: Baginton Fields | C26: 50 | D26: 0 | E26: =SUMIFS(SummerProvRep!$K:$K,SummerProvRep!$A:$A,Data!$A$26,SummerProvRep!$O:$O,"Coventry",SummerProvRep!$T:$T,Data!E$17) -> 0 | F26: =SUMIFS(SummerProvRep!$K:$K,SummerProvRep!$A:$A,Data!$A$26,SummerProvRep!$O:$O,"Coventry",SummerProvRep!$T:$T,Data!F$17) -> 0 | G26: =SUMIFS(SummerProvRep!$K:$K,SummerProvRep!$A:$A,Data!$A$26,SummerProvRep!$O:$O,"Coventry",SummerProvRep!$T:$T,Data!G$17) -> 0 | H26: =SUMIFS(SummerProvRep!$K:$K,SummerProvRep!$A:$A,Data!$A$26,SummerProvRep!$O:$O,"Coventry",SummerProvRep!$T:$T,Data!H$17) -> 0 | I26: =SUMIFS(SummerProvRep!$K:$K,SummerProvRep!$A:$A,Data!$A$26,SummerProvRep!$O:$O,"Coventry",SummerProvRep!$T:$T,Data!I$17) -> 0 | J26: =SUMIFS(SummerProvRep!$K:$K,SummerProvRep!$A:$A,Data!$A$26,SummerProvRep!$O:$O,"Coventry",SummerProvRep!$T:$T,Data!J$17) -> 0 | K26: =SUMIFS(SummerProvRep!$K:$K,SummerProvRep!$A:$A,Data!$A$26,SummerProvRep!$O:$O,"Coventry",SummerProvRep!$T:$T,Data!K$17) -> 2036 | L26: =SUMIFS(SummerProvRep!$K:$K,SummerProvRep!$A:$A,Data!$A$26,SummerProvRep!$O:$O,"Coventry",SummerProvRep!$T:$T,Data!L$17) -> 2863 | M26: =SUMIFS(SummerProvRep!$K:$K,SummerProvRep!$A:$A,Data!$A$26,SummerProvRep!$O:$O,"Coventry",SummerProvRep!$T:$T,Data!M$17) -> 0 | N26: =SUMIFS(SummerProvRep!$K:$K,SummerProvRep!$A:$A,Data!$A$26,SummerProvRep!$O:$O,"Coventry",SummerProvRep!$T:$T,Data!N$17) -> 138 | O26: =SUMIFS(SummerProvRep!$K:$K,SummerProvRep!$A:$A,Data!$A$26,SummerProvRep!$O:$O,"Coventry",SummerProvRep!$T:$T,Data!O$17) -> 720 | P26: =SUMIFS(SummerProvRep!$K:$K,SummerProvRep!$A:$A,Data!$A$26,SummerProvRep!$O:$O,"Coventry",SummerProvRep!$T:$T,Data!P$17) -> 0 | Q26: =SUMIFS(SummerProvRep!$K:$K,SummerProvRep!$A:$A,Data!$A$26,SummerProvRep!$O:$O,"Coventry",SummerProvRep!$T:$T,Data!Q$17) -> 1696 | R26: =SUMIFS(SummerProvRep!$K:$K,SummerProvRep!$A:$A,Data!$A$26,SummerProvRep!$O:$O,"Coventry",SummerProvRep!$T:$T,Data!R$17) -> 828 | S26: =SUMIFS(SummerProvRep!$K:$K,SummerProvRep!$A:$A,Data!$A$26,SummerProvRep!$O:$O,"Coventry",SummerProvRep!$T:$T,Data!S$17) -> 0 | T26: =SUMIFS(SummerProvRep!$K:$K,SummerProvRep!$A:$A,Data!$A$26,SummerProvRep!$O:$O,"Coventry",SummerProvRep!$T:$T,Data!T$17) -> 138 | U26: =SUMIFS(SummerProvRep!$K:$K,SummerProvRep!$A:$A,Data!$A$26,SummerProvRep!$O:$O,"Coventry",SummerProvRep!$T:$T,Data!U$17) -> 1 | V26: =SUMIFS(SummerProvRep!$K:$K,SummerProvRep!$A:$A,Data!$A$26,SummerProvRep!$O:$O,"Coventry",SummerProvRep!$T:$T,Data!V$17) -> 0 | W26: 122.0289855 | X26: 589376.3546 | Y26: 0 | Z26: =SUMIFS(SummerProvRep!$K:$K,SummerProvRep!$A:$A,Data!$A$26,SummerProvRep!$O:$O,"<>Coventry",SummerProvRep!$T:$T,Data!Z$17) -> 0 | AA26: =SUMIFS(SummerProvRep!$K:$K,SummerProvRep!$A:$A,Data!$A$26,SummerProvRep!$O:$O,"<>Coventry",SummerProvRep!$T:$T,Data!AA$17) -> 0 | AB26: =SUMIFS(SummerProvRep!$K:$K,SummerProvRep!$A:$A,Data!$A$26,SummerProvRep!$O:$O,"<>Coventry",SummerProvRep!$T:$T,Data!AB$17) -> 0 | AC26: =SUMIFS(SummerProvRep!$K:$K,SummerProvRep!$A:$A,Data!$A$26,SummerProvRep!$O:$O,"<>Coventry",SummerProvRep!$T:$T,Data!AC$17) -> 0 | AD26: =SUMIFS(SummerProvRep!$K:$K,SummerProvRep!$A:$A,Data!$A$26,SummerProvRep!$O:$O,"<>Coventry",SummerProvRep!$T:$T,Data!AD$17) -> 0 | AE26: =SUMIFS(SummerProvRep!$K:$K,SummerProvRep!$A:$A,Data!$A$26,SummerProvRep!$O:$O,"<>Coventry",SummerProvRep!$T:$T,Data!AE$17) -> 0 | AF26: =SUMIFS(SummerProvRep!$K:$K,SummerProvRep!$A:$A,Data!$A$26,SummerProvRep!$O:$O,"<>Coventry",SummerProvRep!$T:$T,Data!AF$17) -> 0 | AG26: =SUMIFS(SummerProvRep!$K:$K,SummerProvRep!$A:$A,Data!$A$26,SummerProvRep!$O:$O,"<>Coventry",SummerProvRep!$T:$T,Data!AG$17) -> 69 | AH26: =SUMIFS(SummerProvRep!$K:$K,SummerProvRep!$A:$A,Data!$A$26,SummerProvRep!$O:$O,"<>Coventry",SummerProvRep!$T:$T,Data!AH$17) -> 0 | AI26: =SUMIFS(SummerProvRep!$K:$K,SummerProvRep!$A:$A,Data!$A$26,SummerProvRep!$O:$O,"<>Coventry",SummerProvRep!$T:$T,Data!AI$17) -> 0 | AJ26: =SUMIFS(SummerProvRep!$K:$K,SummerProvRep!$A:$A,Data!$A$26,SummerProvRep!$O:$O,"<>Coventry",SummerProvRep!$T:$T,Data!AJ$17) -> 0 | AK26: =SUMIFS(SummerProvRep!$K:$K,SummerProvRep!$A:$A,Data!$A$26,SummerProvRep!$O:$O,"<>Coventry",SummerProvRep!$T:$T,Data!AK$17) -> 0 | AL26: =SUMIFS(SummerProvRep!$K:$K,SummerProvRep!$A:$A,Data!$A$26,SummerProvRep!$O:$O,"<>Coventry",SummerProvRep!$T:$T,Data!AL$17) -> 0 | AM26: =SUMIFS(SummerProvRep!$K:$K,SummerProvRep!$A:$A,Data!$A$26,SummerProvRep!$O:$O,"<>Coventry",SummerProvRep!$T:$T,Data!AM$17) -> 0 | AN26: =SUMIFS(SummerProvRep!$K:$K,SummerProvRep!$A:$A,Data!$A$26,SummerProvRep!$O:$O,"<>Coventry",SummerProvRep!$T:$T,Data!AN$17) -> 0 | AO26: =SUMIFS(SummerProvRep!$K:$K,SummerProvRep!$A:$A,Data!$A$26,SummerProvRep!$O:$O,"<>Coventry",SummerProvRep!$T:$T,Data!AO$17) -> 0 | AP26: =SUMIFS(SummerProvRep!$K:$K,SummerProvRep!$A:$A,Data!$A$26,SummerProvRep!$O:$O,"<>Coventry",SummerProvRep!$T:$T,Data!AP$17) -> 0 | AQ26: =SUMIFS(SummerProvRep!$K:$K,SummerProvRep!$A:$A,Data!$A$26,SummerProvRep!$O:$O,"<>Coventry",SummerProvRep!$T:$T,Data!AQ$17) -> 0 | AR26: 1 | AS26: 3524.882761 | AT26: 592901.2373 | AU26: 123.0289855 | AV26: -2.971014493 | AW26: 126 | AX26: =[5]Data!$AU26 -> 115 | AY26: 116
A27: 7 | B27: Sherbourne Fields | C27: 50 | D27: 0 | E27: =SUMIFS(SummerProvRep!$K:$K,SummerProvRep!$A:$A,Data!$A$27,SummerProvRep!$O:$O,"Coventry",SummerProvRep!$T:$T,Data!E$17) -> 0 | F27: =SUMIFS(SummerProvRep!$K:$K,SummerProvRep!$A:$A,Data!$A$27,SummerProvRep!$O:$O,"Coventry",SummerProvRep!$T:$T,Data!F$17) -> 0 | G27: =SUMIFS(SummerProvRep!$K:$K,SummerProvRep!$A:$A,Data!$A$27,SummerProvRep!$O:$O,"Coventry",SummerProvRep!$T:$T,Data!G$17) -> 0 | H27: =SUMIFS(SummerProvRep!$K:$K,SummerProvRep!$A:$A,Data!$A$27,SummerProvRep!$O:$O,"Coventry",SummerProvRep!$T:$T,Data!H$17) -> 69 | I27: =SUMIFS(SummerProvRep!$K:$K,SummerProvRep!$A:$A,Data!$A$27,SummerProvRep!$O:$O,"Coventry",SummerProvRep!$T:$T,Data!I$17) -> 0 | J27: =SUMIFS(SummerProvRep!$K:$K,SummerProvRep!$A:$A,Data!$A$27,SummerProvRep!$O:$O,"Coventry",SummerProvRep!$T:$T,Data!J$17) -> 0 | K27: =SUMIFS(SummerProvRep!$K:$K,SummerProvRep!$A:$A,Data!$A$27,SummerProvRep!$O:$O,"Coventry",SummerProvRep!$T:$T,Data!K$17) -> 5658 | L27: =SUMIFS(SummerProvRep!$K:$K,SummerProvRep!$A:$A,Data!$A$27,SummerProvRep!$O:$O,"Coventry",SummerProvRep!$T:$T,Data!L$17) -> 4554 | M27: =SUMIFS(SummerProvRep!$K:$K,SummerProvRep!$A:$A,Data!$A$27,SummerProvRep!$O:$O,"Coventry",SummerProvRep!$T:$T,Data!M$17) -> 0 | N27: =SUMIFS(SummerProvRep!$K:$K,SummerProvRep!$A:$A,Data!$A$27,SummerProvRep!$O:$O,"Coventry",SummerProvRep!$T:$T,Data!N$17) -> 2001 | O27: =SUMIFS(SummerProvRep!$K:$K,SummerProvRep!$A:$A,Data!$A$27,SummerProvRep!$O:$O,"Coventry",SummerProvRep!$T:$T,Data!O$17) -> 207 | P27: =SUMIFS(SummerProvRep!$K:$K,SummerProvRep!$A:$A,Data!$A$27,SummerProvRep!$O:$O,"Coventry",SummerProvRep!$T:$T,Data!P$17) -> 0 | Q27: =SUMIFS(SummerProvRep!$K:$K,SummerProvRep!$A:$A,Data!$A$27,SummerProvRep!$O:$O,"Coventry",SummerProvRep!$T:$T,Data!Q$17) -> 1725 | R27: =SUMIFS(SummerProvRep!$K:$K,SummerProvRep!$A:$A,Data!$A$27,SummerProvRep!$O:$O,"Coventry",SummerProvRep!$T:$T,Data!R$17) -> 1449 | S27: =SUMIFS(SummerProvRep!$K:$K,SummerProvRep!$A:$A,Data!$A$27,SummerProvRep!$O:$O,"Coventry",SummerProvRep!$T:$T,Data!S$17) -> 0 | T27: =SUMIFS(SummerProvRep!$K:$K,SummerProvRep!$A:$A,Data!$A$27,SummerProvRep!$O:$O,"Coventry",SummerProvRep!$T:$T,Data!T$17) -> 1449 | U27: =SUMIFS(SummerProvRep!$K:$K,SummerProvRep!$A:$A,Data!$A$27,SummerProvRep!$O:$O,"Coventry",SummerProvRep!$T:$T,Data!U$17) -> 0 | V27: =SUMIFS(SummerProvRep!$K:$K,SummerProvRep!$A:$A,Data!$A$27,SummerProvRep!$O:$O,"Coventry",SummerProvRep!$T:$T,Data!V$17) -> 0 | W27: 248 | X27: 1105536.021 | Y27: 0 | Z27: =SUMIFS(SummerProvRep!$K:$K,SummerProvRep!$A:$A,Data!$A$27,SummerProvRep!$O:$O,"<>Coventry",SummerProvRep!$T:$T,Data!Z$17) -> 0 | AA27: =SUMIFS(SummerProvRep!$K:$K,SummerProvRep!$A:$A,Data!$A$27,SummerProvRep!$O:$O,"<>Coventry",SummerProvRep!$T:$T,Data!AA$17) -> 0 | AB27: =SUMIFS(SummerProvRep!$K:$K,SummerProvRep!$A:$A,Data!$A$27,SummerProvRep!$O:$O,"<>Coventry",SummerProvRep!$T:$T,Data!AB$17) -> 0 | AC27: =SUMIFS(SummerProvRep!$K:$K,SummerProvRep!$A:$A,Data!$A$27,SummerProvRep!$O:$O,"<>Coventry",SummerProvRep!$T:$T,Data!AC$17) -> 0 | AD27: =SUMIFS(SummerProvRep!$K:$K,SummerProvRep!$A:$A,Data!$A$27,SummerProvRep!$O:$O,"<>Coventry",SummerProvRep!$T:$T,Data!AD$17) -> 0 | AE27: =SUMIFS(SummerProvRep!$K:$K,SummerProvRep!$A:$A,Data!$A$27,SummerProvRep!$O:$O,"<>Coventry",SummerProvRep!$T:$T,Data!AE$17) -> 0 | AF27: =SUMIFS(SummerProvRep!$K:$K,SummerProvRep!$A:$A,Data!$A$27,SummerProvRep!$O:$O,"<>Coventry",SummerProvRep!$T:$T,Data!AF$17) -> 69 | AG27: =SUMIFS(SummerProvRep!$K:$K,SummerProvRep!$A:$A,Data!$A$27,SummerProvRep!$O:$O,"<>Coventry",SummerProvRep!$T:$T,Data!AG$17) -> 0 | AH27: =SUMIFS(SummerProvRep!$K:$K,SummerProvRep!$A:$A,Data!$A$27,SummerProvRep!$O:$O,"<>Coventry",SummerProvRep!$T:$T,Data!AH$17) -> 0 | AI27: =SUMIFS(SummerProvRep!$K:$K,SummerProvRep!$A:$A,Data!$A$27,SummerProvRep!$O:$O,"<>Coventry",SummerProvRep!$T:$T,Data!AI$17) -> 69 | AJ27: =SUMIFS(SummerProvRep!$K:$K,SummerProvRep!$A:$A,Data!$A$27,SummerProvRep!$O:$O,"<>Coventry",SummerProvRep!$T:$T,Data!AJ$17) -> 0 | AK27: =SUMIFS(SummerProvRep!$K:$K,SummerProvRep!$A:$A,Data!$A$27,SummerProvRep!$O:$O,"<>Coventry",SummerProvRep!$T:$T,Data!AK$17) -> 0 | AL27: =SUMIFS(SummerProvRep!$K:$K,SummerProvRep!$A:$A,Data!$A$27,SummerProvRep!$O:$O,"<>Coventry",SummerProvRep!$T:$T,Data!AL$17) -> 0 | AM27: =SUMIFS(SummerProvRep!$K:$K,SummerProvRep!$A:$A,Data!$A$27,SummerProvRep!$O:$O,"<>Coventry",SummerProvRep!$T:$T,Data!AM$17) -> 0 | AN27: =SUMIFS(SummerProvRep!$K:$K,SummerProvRep!$A:$A,Data!$A$27,SummerProvRep!$O:$O,"<>Coventry",SummerProvRep!$T:$T,Data!AN$17) -> 0 | AO27: =SUMIFS(SummerProvRep!$K:$K,SummerProvRep!$A:$A,Data!$A$27,SummerProvRep!$O:$O,"<>Coventry",SummerProvRep!$T:$T,Data!AO$17) -> 138 | AP27: =SUMIFS(SummerProvRep!$K:$K,SummerProvRep!$A:$A,Data!$A$27,SummerProvRep!$O:$O,"<>Coventry",SummerProvRep!$T:$T,Data!AP$17) -> 0 | AQ27: =SUMIFS(SummerProvRep!$K:$K,SummerProvRep!$A:$A,Data!$A$27,SummerProvRep!$O:$O,"<>Coventry",SummerProvRep!$T:$T,Data!AQ$17) -> 0 | AR27: 4 | AS27: 20006.07526 | AT27: 1125542.096 | AU27: 252 | AV27: 1 | AW27: 251 | AX27: =[5]Data!$AU27 -> 240.7121212 | AY27: 240
A28: 8 | B28: Woodfield | C28: =10000/$A$16 -> 50 | D28: 0 | E28: =SUMIFS(SummerProvRep!$K:$K,SummerProvRep!$A:$A,Data!$A$28,SummerProvRep!$O:$O,"Coventry",SummerProvRep!$T:$T,Data!E$17) -> 0 | F28: =SUMIFS(SummerProvRep!$K:$K,SummerProvRep!$A:$A,Data!$A$28,SummerProvRep!$O:$O,"Coventry",SummerProvRep!$T:$T,Data!F$17) -> 0 | G28: =SUMIFS(SummerProvRep!$K:$K,SummerProvRep!$A:$A,Data!$A$28,SummerProvRep!$O:$O,"Coventry",SummerProvRep!$T:$T,Data!G$17) -> 0 | H28: =SUMIFS(SummerProvRep!$K:$K,SummerProvRep!$A:$A,Data!$A$28,SummerProvRep!$O:$O,"Coventry",SummerProvRep!$T:$T,Data!H$17) -> 0 | I28: =SUMIFS(SummerProvRep!$K:$K,SummerProvRep!$A:$A,Data!$A$28,SummerProvRep!$O:$O,"Coventry",SummerProvRep!$T:$T,Data!I$17) -> 0 | J28: =SUMIFS(SummerProvRep!$K:$K,SummerProvRep!$A:$A,Data!$A$28,SummerProvRep!$O:$O,"Coventry",SummerProvRep!$T:$T,Data!J$17) -> 0 | K28: =SUMIFS(SummerProvRep!$K:$K,SummerProvRep!$A:$A,Data!$A$28,SummerProvRep!$O:$O,"Coventry",SummerProvRep!$T:$T,Data!K$17) -> 0 | L28: =SUMIFS(SummerProvRep!$K:$K,SummerProvRep!$A:$A,Data!$A$28,SummerProvRep!$O:$O,"Coventry",SummerProvRep!$T:$T,Data!L$17) -> 0 | M28: =SUMIFS(SummerProvRep!$K:$K,SummerProvRep!$A:$A,Data!$A$28,SummerProvRep!$O:$O,"Coventry",SummerProvRep!$T:$T,Data!M$17) -> 0 | N28: =SUMIFS(SummerProvRep!$K:$K,SummerProvRep!$A:$A,Data!$A$28,SummerProvRep!$O:$O,"Coventry",SummerProvRep!$T:$T,Data!N$17) -> 0 | O28: =SUMIFS(SummerProvRep!$K:$K,SummerProvRep!$A:$A,Data!$A$28,SummerProvRep!$O:$O,"Coventry",SummerProvRep!$T:$T,Data!O$17) -> 500 | P28: =SUMIFS(SummerProvRep!$K:$K,SummerProvRep!$A:$A,Data!$A$28,SummerProvRep!$O:$O,"Coventry",SummerProvRep!$T:$T,Data!P$17) -> 0 | Q28: =SUMIFS(SummerProvRep!$K:$K,SummerProvRep!$A:$A,Data!$A$28,SummerProvRep!$O:$O,"Coventry",SummerProvRep!$T:$T,Data!Q$17) -> 10003 | R28: =SUMIFS(SummerProvRep!$K:$K,SummerProvRep!$A:$A,Data!$A$28,SummerProvRep!$O:$O,"Coventry",SummerProvRep!$T:$T,Data!R$17) -> 0 | S28: =SUMIFS(SummerProvRep!$K:$K,SummerProvRep!$A:$A,Data!$A$28,SummerProvRep!$O:$O,"Coventry",SummerProvRep!$T:$T,Data!S$17) -> 69 | T28: =SUMIFS(SummerProvRep!$K:$K,SummerProvRep!$A:$A,Data!$A$28,SummerProvRep!$O:$O,"Coventry",SummerProvRep!$T:$T,Data!T$17) -> 0 | U28: =SUMIFS(SummerProvRep!$K:$K,SummerProvRep!$A:$A,Data!$A$28,SummerProvRep!$O:$O,"Coventry",SummerProvRep!$T:$T,Data!U$17) -> 138 | V28: =SUMIFS(SummerProvRep!$K:$K,SummerProvRep!$A:$A,Data!$A$28,SummerProvRep!$O:$O,"Coventry",SummerProvRep!$T:$T,Data!V$17) -> 0 | W28: 155.2173913 | X28: 999474.6212 | Y28: 0 | Z28: =SUMIFS(SummerProvRep!$K:$K,SummerProvRep!$A:$A,Data!$A$28,SummerProvRep!$O:$O,"<>Coventry",SummerProvRep!$T:$T,Data!Z$17) -> 0 | AA28: =SUMIFS(SummerProvRep!$K:$K,SummerProvRep!$A:$A,Data!$A$28,SummerProvRep!$O:$O,"<>Coventry",SummerProvRep!$T:$T,Data!AA$17) -> 0 | AB28: =SUMIFS(SummerProvRep!$K:$K,SummerProvRep!$A:$A,Data!$A$28,SummerProvRep!$O:$O,"<>Coventry",SummerProvRep!$T:$T,Data!AB$17) -> 0 | AC28: =SUMIFS(SummerProvRep!$K:$K,SummerProvRep!$A:$A,Data!$A$28,SummerProvRep!$O:$O,"<>Coventry",SummerProvRep!$T:$T,Data!AC$17) -> 0 | AD28: =SUMIFS(SummerProvRep!$K:$K,SummerProvRep!$A:$A,Data!$A$28,SummerProvRep!$O:$O,"<>Coventry",SummerProvRep!$T:$T,Data!AD$17) -> 0 | AE28: =SUMIFS(SummerProvRep!$K:$K,SummerProvRep!$A:$A,Data!$A$28,SummerProvRep!$O:$O,"<>Coventry",SummerProvRep!$T:$T,Data!AE$17) -> 0 | AF28: =SUMIFS(SummerProvRep!$K:$K,SummerProvRep!$A:$A,Data!$A$28,SummerProvRep!$O:$O,"<>Coventry",SummerProvRep!$T:$T,Data!AF$17) -> 0 | AG28: =SUMIFS(SummerProvRep!$K:$K,SummerProvRep!$A:$A,Data!$A$28,SummerProvRep!$O:$O,"<>Coventry",SummerProvRep!$T:$T,Data!AG$17) -> 0 | AH28: =SUMIFS(SummerProvRep!$K:$K,SummerProvRep!$A:$A,Data!$A$28,SummerProvRep!$O:$O,"<>Coventry",SummerProvRep!$T:$T,Data!AH$17) -> 0 | AI28: =SUMIFS(SummerProvRep!$K:$K,SummerProvRep!$A:$A,Data!$A$28,SummerProvRep!$O:$O,"<>Coventry",SummerProvRep!$T:$T,Data!AI$17) -> 0 | AJ28: =SUMIFS(SummerProvRep!$K:$K,SummerProvRep!$A:$A,Data!$A$28,SummerProvRep!$O:$O,"<>Coventry",SummerProvRep!$T:$T,Data!AJ$17) -> 0 | AK28: =SUMIFS(SummerProvRep!$K:$K,SummerProvRep!$A:$A,Data!$A$28,SummerProvRep!$O:$O,"<>Coventry",SummerProvRep!$T:$T,Data!AK$17) -> 0 | AL28: =SUMIFS(SummerProvRep!$K:$K,SummerProvRep!$A:$A,Data!$A$28,SummerProvRep!$O:$O,"<>Coventry",SummerProvRep!$T:$T,Data!AL$17) -> 138 | AM28: =SUMIFS(SummerProvRep!$K:$K,SummerProvRep!$A:$A,Data!$A$28,SummerProvRep!$O:$O,"<>Coventry",SummerProvRep!$T:$T,Data!AM$17) -> 0 | AN28: =SUMIFS(SummerProvRep!$K:$K,SummerProvRep!$A:$A,Data!$A$28,SummerProvRep!$O:$O,"<>Coventry",SummerProvRep!$T:$T,Data!AN$17) -> 0 | AO28: =SUMIFS(SummerProvRep!$K:$K,SummerProvRep!$A:$A,Data!$A$28,SummerProvRep!$O:$O,"<>Coventry",SummerProvRep!$T:$T,Data!AO$17) -> 0 | AP28: =SUMIFS(SummerProvRep!$K:$K,SummerProvRep!$A:$A,Data!$A$28,SummerProvRep!$O:$O,"<>Coventry",SummerProvRep!$T:$T,Data!AP$17) -> 0 | AQ28: =SUMIFS(SummerProvRep!$K:$K,SummerProvRep!$A:$A,Data!$A$28,SummerProvRep!$O:$O,"<>Coventry",SummerProvRep!$T:$T,Data!AQ$17) -> 0 | AR28: =SUM(Y28:AQ28)/$A$20 -> 2 | AS28: 12384.71947 | AT28: 1011859.341 | AU28: 157.2173913 | AV28: =AU28-AW28 -> 2.217391304 | AW28: 155 | AX28: =[5]Data!$AU28 -> 143.9848485 | AY28: 155
A29: 9 | B29: Coventry ELC | C29: =10000/$A$16 -> 50 | D29: =120*A20 -> 8280 | E29: 0 | F29: 0 | G29: 0 | H29: 0 | I29: 0 | J29: 0 | K29: 0 | L29: 0 | M29: 0 | N29: 0 | O29: 0 | P29: 0 | Q29: 0 | R29: 0 | S29: 0 | T29: 0 | U29: 0 | V29: 0 | W29: 120 | X29: =SUMPRODUCT(D29:V29,$V$12:$AN$12)/$A$16 -> 556189.0176 | Y29: 0 | Z29: 0 | AA29: 0 | AB29: 0 | AC29: 0 | AD29: 0 | AE29: 0 | AF29: 0 | AG29: 0 | AH29: 0 | AI29: 0 | AJ29: 0 | AK29: 0 | AL29: 0 | AM29: 0 | AN29: 0 | AO29: 0 | AP29: 0 | AQ29: 0 | AR29: =SUM(Y29:AQ29)/$A$20 -> 0 | AS29: =SUMPRODUCT(Y29:AQ29,$V$12:$AN$12)/$A$16 -> 0 | AT29: 556189.0176 | AU29: 120 | AV29: =AU29-AW29 -> 0 | AW29: 120 | AX29: =[5]Data!$AU29 -> 120 | AY29: 120
AS30: =SUM(AS21:AS29) -> 80881.73128 | AT30: =SUM(AT21:AT29) -> 6551553.533 | AU30: =SUM(AU21:AU29) -> 1373.478261
D32: Coventry pupils | Y32: Other LA Pupils
B33: Autumn Term 2024
A34: 75 | B34: School | BA34: 76
A35: 1 | B35: Castle Wood | C35: =10000/$A$16 -> 50 | D35: 0 | E35: =SUMIFS(AutumnProvRep!$K:$K,AutumnProvRep!$A:$A,Data!$A$21,AutumnProvRep!$O:$O,"Coventry",AutumnProvRep!$T:$T,Data!E$17)/$BA$34*$A$34 -> 0 | F35: =SUMIFS(AutumnProvRep!$K:$K,AutumnProvRep!$A:$A,Data!$A$21,AutumnProvRep!$O:$O,"Coventry",AutumnProvRep!$T:$T,Data!F$17)/$BA$34*$A$34 -> 0 | G35: =SUMIFS(AutumnProvRep!$K:$K,AutumnProvRep!$A:$A,Data!$A$21,AutumnProvRep!$O:$O,"Coventry",AutumnProvRep!$T:$T,Data!G$17)/$BA$34*$A$34 -> 0 | H35: =SUMIFS(AutumnProvRep!$K:$K,AutumnProvRep!$A:$A,Data!$A$21,AutumnProvRep!$O:$O,"Coventry",AutumnProvRep!$T:$T,Data!H$17)/$BA$34*$A$34 -> 0 | I35: =SUMIFS(AutumnProvRep!$K:$K,AutumnProvRep!$A:$A,Data!$A$21,AutumnProvRep!$O:$O,"Coventry",AutumnProvRep!$T:$T,Data!I$17)/$BA$34*$A$34 -> 0 | J35: =SUMIFS(AutumnProvRep!$K:$K,AutumnProvRep!$A:$A,Data!$A$21,AutumnProvRep!$O:$O,"Coventry",AutumnProvRep!$T:$T,Data!J$17)/$BA$34*$A$34 -> 75 | K35: =SUMIFS(AutumnProvRep!$K:$K,AutumnProvRep!$A:$A,Data!$A$21,AutumnProvRep!$O:$O,"Coventry",AutumnProvRep!$T:$T,Data!K$17)/$BA$34*$A$34 -> 6408.552632 | L35: =SUMIFS(AutumnProvRep!$K:$K,AutumnProvRep!$A:$A,Data!$A$21,AutumnProvRep!$O:$O,"Coventry",AutumnProvRep!$T:$T,Data!L$17)/$BA$34*$A$34 -> 1024.342105 | M35: =SUMIFS(AutumnProvRep!$K:$K,AutumnProvRep!$A:$A,Data!$A$21,AutumnProvRep!$O:$O,"Coventry",AutumnProvRep!$T:$T,Data!M$17)/$BA$34*$A$34 -> 75 | N35: =SUMIFS(AutumnProvRep!$K:$K,AutumnProvRep!$A:$A,Data!$A$21,AutumnProvRep!$O:$O,"Coventry",AutumnProvRep!$T:$T,Data!N$17)/$BA$34*$A$34 -> 375 | O35: =SUMIFS(AutumnProvRep!$K:$K,AutumnProvRep!$A:$A,Data!$A$21,AutumnProvRep!$O:$O,"Coventry",AutumnProvRep!$T:$T,Data!O$17)/$BA$34*$A$34 -> 600 | P35: =SUMIFS(AutumnProvRep!$K:$K,AutumnProvRep!$A:$A,Data!$A$21,AutumnProvRep!$O:$O,"Coventry",AutumnProvRep!$T:$T,Data!P$17)/$BA$34*$A$34 -> 0 | Q35: =SUMIFS(AutumnProvRep!$K:$K,AutumnProvRep!$A:$A,Data!$A$21,AutumnProvRep!$O:$O,"Coventry",AutumnProvRep!$T:$T,Data!Q$17)/$BA$34*$A$34 -> 2178.947368 | R35: =SUMIFS(AutumnProvRep!$K:$K,AutumnProvRep!$A:$A,Data!$A$21,AutumnProvRep!$O:$O,"Coventry",AutumnProvRep!$T:$T,Data!R$17)/$BA$34*$A$34 -> 600 | S35: =SUMIFS(AutumnProvRep!$K:$K,AutumnProvRep!$A:$A,Data!$A$21,AutumnProvRep!$O:$O,"Coventry",AutumnProvRep!$T:$T,Data!S$17)/$BA$34*$A$34 -> 0 | T35: =SUMIFS(AutumnProvRep!$K:$K,AutumnProvRep!$A:$A,Data!$A$21,AutumnProvRep!$O:$O,"Coventry",AutumnProvRep!$T:$T,Data!T$17)/$BA$34*$A$34 -> 415.4605263 | U35: =SUMIFS(AutumnProvRep!$K:$K,AutumnProvRep!$A:$A,Data!$A$21,AutumnProvRep!$O:$O,"Coventry",AutumnProvRep!$T:$T,Data!U$17)/$BA$34*$A$34 -> 112.5 | V35: =SUMIFS(AutumnProvRep!$K:$K,AutumnProvRep!$A:$A,Data!$A$21,AutumnProvRep!$O:$O,"Coventry",AutumnProvRep!$T:$T,Data!V$17)/$BA$34*$A$34 -> 0 | W35: =SUM(D35:V35)/$A$34 -> 158.1973684 | X35: =SUMPRODUCT(D35:V35,$V$6:$AN$6)/$A$16 -> 821701.6643 | Y35: 0 | Z35: =SUMIFS(AutumnProvRep!$K:$K,AutumnProvRep!$A:$A,Data!$A$21,AutumnProvRep!$O:$O,"<>Coventry",AutumnProvRep!$T:$T,Data!Z$17)/$BA$34*$A$34 -> 0 | AA35: =SUMIFS(AutumnProvRep!$K:$K,AutumnProvRep!$A:$A,Data!$A$21,AutumnProvRep!$O:$O,"<>Coventry",AutumnProvRep!$T:$T,Data!AA$17)/$BA$34*$A$34 -> 0 | AB35: =SUMIFS(AutumnProvRep!$K:$K,AutumnProvRep!$A:$A,Data!$A$21,AutumnProvRep!$O:$O,"<>Coventry",AutumnProvRep!$T:$T,Data!AB$17)/$BA$34*$A$34 -> 0 | AC35: =SUMIFS(AutumnProvRep!$K:$K,AutumnProvRep!$A:$A,Data!$A$21,AutumnProvRep!$O:$O,"<>Coventry",AutumnProvRep!$T:$T,Data!AC$17)/$BA$34*$A$34 -> 0 | AD35: =SUMIFS(AutumnProvRep!$K:$K,AutumnProvRep!$A:$A,Data!$A$21,AutumnProvRep!$O:$O,"<>Coventry",AutumnProvRep!$T:$T,Data!AD$17)/$BA$34*$A$34 -> 0 | AE35: =SUMIFS(AutumnProvRep!$K:$K,AutumnProvRep!$A:$A,Data!$A$21,AutumnProvRep!$O:$O,"<>Coventry",AutumnProvRep!$T:$T,Data!AE$17)/$BA$34*$A$34 -> 0 | AF35: =SUMIFS(AutumnProvRep!$K:$K,AutumnProvRep!$A:$A,Data!$A$21,AutumnProvRep!$O:$O,"<>Coventry",AutumnProvRep!$T:$T,Data!AF$17)/$BA$34*$A$34 -> 75 | AG35: =SUMIFS(AutumnProvRep!$K:$K,AutumnProvRep!$A:$A,Data!$A$21,AutumnProvRep!$O:$O,"<>Coventry",AutumnProvRep!$T:$T,Data!AG$17)/$BA$34*$A$34 -> 0 | AH35: =SUMIFS(AutumnProvRep!$K:$K,AutumnProvRep!$A:$A,Data!$A$21,AutumnProvRep!$O:$O,"<>Coventry",AutumnProvRep!$T:$T,Data!AH$17)/$BA$34*$A$34 -> 0 | AI35: =SUMIFS(AutumnProvRep!$K:$K,AutumnProvRep!$A:$A,Data!$A$21,AutumnProvRep!$O:$O,"<>Coventry",AutumnProvRep!$T:$T,Data!AI$17)/$BA$34*$A$34 -> 0 | AJ35: =SUMIFS(AutumnProvRep!$K:$K,AutumnProvRep!$A:$A,Data!$A$21,AutumnProvRep!$O:$O,"<>Coventry",AutumnProvRep!$T:$T,Data!AJ$17)/$BA$34*$A$34 -> 0 | AK35: =SUMIFS(AutumnProvRep!$K:$K,AutumnProvRep!$A:$A,Data!$A$21,AutumnProvRep!$O:$O,"<>Coventry",AutumnProvRep!$T:$T,Data!AK$17)/$BA$34*$A$34 -> 0 | AL35: =SUMIFS(AutumnProvRep!$K:$K,AutumnProvRep!$A:$A,Data!$A$21,AutumnProvRep!$O:$O,"<>Coventry",AutumnProvRep!$T:$T,Data!AL$17)/$BA$34*$A$34 -> 0 | AM35: =SUMIFS(AutumnProvRep!$K:$K,AutumnProvRep!$A:$A,Data!$A$21,AutumnProvRep!$O:$O,"<>Coventry",AutumnProvRep!$T:$T,Data!AM$17)/$BA$34*$A$34 -> 0 | AN35: =SUMIFS(AutumnProvRep!$K:$K,AutumnProvRep!$A:$A,Data!$A$21,AutumnProvRep!$O:$O,"<>Coventry",AutumnProvRep!$T:$T,Data!AN$17)/$BA$34*$A$34 -> 0 | AO35: =SUMIFS(AutumnProvRep!$K:$K,AutumnProvRep!$A:$A,Data!$A$21,AutumnProvRep!$O:$O,"<>Coventry",AutumnProvRep!$T:$T,Data!AO$17)/$BA$34*$A$34 -> 0 | AP35: =SUMIFS(AutumnProvRep!$K:$K,AutumnProvRep!$A:$A,Data!$A$21,AutumnProvRep!$O:$O,"<>Coventry",AutumnProvRep!$T:$T,Data!AP$17)/$BA$34*$A$34 -> 0 | AQ35: =SUMIFS(AutumnProvRep!$K:$K,AutumnProvRep!$A:$A,Data!$A$21,AutumnProvRep!$O:$O,"<>Coventry",AutumnProvRep!$T:$T,Data!AQ$17)/$BA$34*$A$34 -> 0 | AR35: =SUM(Y35:AQ35)/$A$34 -> 1 | AS35: =SUMPRODUCT(Y35:AQ35,$V$6:$AN$6)/$A$16 -> 4142.045622 | AT35: =X35+AS35 -> 825843.7099 | AU35: =AR35+W35 -> 159.1973684 | AV35: =AU35-AW35 -> -0.8026315789 | AW35: =M4 -> 160 | AX35: =[5]Data!$AU35 -> 160.2 | AY35: =E4 -> 160 | BB35: =($M$4-$AU$35)*$A$34 -> 60.19736842 | BC35: =AU35*$A$34 -> 11939.80263 | BD35: =$BB$35/$BC$35*D35 -> 0 | BE35: =$BB$35/$BC$35*E35 -> 0 | BF35: 0 | BG35: 0 | BH35: 0 | BI35: 0 | BJ35: =$BB$35/$BC$35*J35 -> 0.378130424 | BK35: 32.31024965 | BL35: 5.164465528 | BM35: 0.378130424 | BN35: 1.89065212 | BO35: 3.025043392 | BP35: 0 | BQ35: 10.9856839 | BR35: 3.025043392 | BS35: 0 | BT35: 2.094643533 | BU35: =$BB$35/$BC$35*U35 -> 0.567195636 | BV35: 0 | BX35: =$BB$35/$BC$35*Y35 -> 0 | BY35: =$BB$35/$BC$35*Z35 -> 0 | BZ35: 0 | CA35: 0 | CB35: 0 | CC35: 0 | CD35: 0 | CE35: 0.378130424 | CF35: 0 | CG35: 0 | CH35: 0 | CI35: 0 | CJ35: 0 | CK35: 0 | CL35: 0 | CM35: 0 | CN35: 0 | CO35: 0 | CP35: 0
A36: 2 | B36: Kingsbury | C36: =10000/$A$16 -> 50 | D36: 0 | E36: =SUMIFS(AutumnProvRep!$K:$K,AutumnProvRep!$A:$A,Data!$A$22,AutumnProvRep!$O:$O,"Coventry",AutumnProvRep!$T:$T,Data!E$17)/$BA$34*$A$34 -> 0 | F36: =SUMIFS(AutumnProvRep!$K:$K,AutumnProvRep!$A:$A,Data!$A$22,AutumnProvRep!$O:$O,"Coventry",AutumnProvRep!$T:$T,Data!F$17)/$BA$34*$A$34 -> 0 | G36: =SUMIFS(AutumnProvRep!$K:$K,AutumnProvRep!$A:$A,Data!$A$22,AutumnProvRep!$O:$O,"Coventry",AutumnProvRep!$T:$T,Data!G$17)/$BA$34*$A$34 -> 0 | H36: =SUMIFS(AutumnProvRep!$K:$K,AutumnProvRep!$A:$A,Data!$A$22,AutumnProvRep!$O:$O,"Coventry",AutumnProvRep!$T:$T,Data!H$17)/$BA$34*$A$34 -> 0 | I36: =SUMIFS(AutumnProvRep!$K:$K,AutumnProvRep!$A:$A,Data!$A$22,AutumnProvRep!$O:$O,"Coventry",AutumnProvRep!$T:$T,Data!I$17)/$BA$34*$A$34 -> 0 | J36: =SUMIFS(AutumnProvRep!$K:$K,AutumnProvRep!$A:$A,Data!$A$22,AutumnProvRep!$O:$O,"Coventry",AutumnProvRep!$T:$T,Data!J$17)/$BA$34*$A$34 -> 0 | K36: =SUMIFS(AutumnProvRep!$K:$K,AutumnProvRep!$A:$A,Data!$A$22,AutumnProvRep!$O:$O,"Coventry",AutumnProvRep!$T:$T,Data!K$17)/$BA$34*$A$34 -> 4575 | L36: =SUMIFS(AutumnProvRep!$K:$K,AutumnProvRep!$A:$A,Data!$A$22,AutumnProvRep!$O:$O,"Coventry",AutumnProvRep!$T:$T,Data!L$17)/$BA$34*$A$34 -> 375 | M36: =SUMIFS(AutumnProvRep!$K:$K,AutumnProvRep!$A:$A,Data!$A$22,AutumnProvRep!$O:$O,"Coventry",AutumnProvRep!$T:$T,Data!M$17)/$BA$34*$A$34 -> 0 | N36: =SUMIFS(AutumnProvRep!$K:$K,AutumnProvRep!$A:$A,Data!$A$22,AutumnProvRep!$O:$O,"Coventry",AutumnProvRep!$T:$T,Data!N$17)/$BA$34*$A$34 -> 0 | O36: =SUMIFS(AutumnProvRep!$K:$K,AutumnProvRep!$A:$A,Data!$A$22,AutumnProvRep!$O:$O,"Coventry",AutumnProvRep!$T:$T,Data!O$17)/$BA$34*$A$34 -> 250.6578947 | P36: =SUMIFS(AutumnProvRep!$K:$K,AutumnProvRep!$A:$A,Data!$A$22,AutumnProvRep!$O:$O,"Coventry",AutumnProvRep!$T:$T,Data!P$17)/$BA$34*$A$34 -> 0 | Q36: =SUMIFS(AutumnProvRep!$K:$K,AutumnProvRep!$A:$A,Data!$A$22,AutumnProvRep!$O:$O,"Coventry",AutumnProvRep!$T:$T,Data!Q$17)/$BA$34*$A$34 -> 1875 | R36: =SUMIFS(AutumnProvRep!$K:$K,AutumnProvRep!$A:$A,Data!$A$22,AutumnProvRep!$O:$O,"Coventry",AutumnProvRep!$T:$T,Data!R$17)/$BA$34*$A$34 -> 150 | S36: =SUMIFS(AutumnProvRep!$K:$K,AutumnProvRep!$A:$A,Data!$A$22,AutumnProvRep!$O:$O,"Coventry",AutumnProvRep!$T:$T,Data!S$17)/$BA$34*$A$34 -> 0 | T36: =SUMIFS(AutumnProvRep!$K:$K,AutumnProvRep!$A:$A,Data!$A$22,AutumnProvRep!$O:$O,"Coventry",AutumnProvRep!$T:$T,Data!T$17)/$BA$34*$A$34 -> 0 | U36: =SUMIFS(AutumnProvRep!$K:$K,AutumnProvRep!$A:$A,Data!$A$22,AutumnProvRep!$O:$O,"Coventry",AutumnProvRep!$T:$T,Data!U$17)/$BA$34*$A$34 -> 49.34210526 | V36: =SUMIFS(AutumnProvRep!$K:$K,AutumnProvRep!$A:$A,Data!$A$22,AutumnProvRep!$O:$O,"Coventry",AutumnProvRep!$T:$T,Data!V$17)/$BA$34*$A$34 -> 0 | W36: 97 | X36: 495542.348 | Y36: 0 | Z36: =SUMIFS(AutumnProvRep!$K:$K,AutumnProvRep!$A:$A,Data!$A$22,AutumnProvRep!$O:$O,"<>Coventry",AutumnProvRep!$T:$T,Data!Z$17)/$BA$34*$A$34 -> 0 | AA36: =SUMIFS(AutumnProvRep!$K:$K,AutumnProvRep!$A:$A,Data!$A$22,AutumnProvRep!$O:$O,"<>Coventry",AutumnProvRep!$T:$T,Data!AA$17)/$BA$34*$A$34 -> 0 | AB36: =SUMIFS(AutumnProvRep!$K:$K,AutumnProvRep!$A:$A,Data!$A$22,AutumnProvRep!$O:$O,"<>Coventry",AutumnProvRep!$T:$T,Data!AB$17)/$BA$34*$A$34 -> 0 | AC36: =SUMIFS(AutumnProvRep!$K:$K,AutumnProvRep!$A:$A,Data!$A$22,AutumnProvRep!$O:$O,"<>Coventry",AutumnProvRep!$T:$T,Data!AC$17)/$BA$34*$A$34 -> 0 | AD36: =SUMIFS(AutumnProvRep!$K:$K,AutumnProvRep!$A:$A,Data!$A$22,AutumnProvRep!$O:$O,"<>Coventry",AutumnProvRep!$T:$T,Data!AD$17)/$BA$34*$A$34 -> 0 | AE36: =SUMIFS(AutumnProvRep!$K:$K,AutumnProvRep!$A:$A,Data!$A$22,AutumnProvRep!$O:$O,"<>Coventry",AutumnProvRep!$T:$T,Data!AE$17)/$BA$34*$A$34 -> 0 | AF36: =SUMIFS(AutumnProvRep!$K:$K,AutumnProvRep!$A:$A,Data!$A$22,AutumnProvRep!$O:$O,"<>Coventry",AutumnProvRep!$T:$T,Data!AF$17)/$BA$34*$A$34 -> 150 | AG36: =SUMIFS(AutumnProvRep!$K:$K,AutumnProvRep!$A:$A,Data!$A$22,AutumnProvRep!$O:$O,"<>Coventry",AutumnProvRep!$T:$T,Data!AG$17)/$BA$34*$A$34 -> 75 | AH36: =SUMIFS(AutumnProvRep!$K:$K,AutumnProvRep!$A:$A,Data!$A$22,AutumnProvRep!$O:$O,"<>Coventry",AutumnProvRep!$T:$T,Data!AH$17)/$BA$34*$A$34 -> 0 | AI36: =SUMIFS(AutumnProvRep!$K:$K,AutumnProvRep!$A:$A,Data!$A$22,AutumnProvRep!$O:$O,"<>Coventry",AutumnProvRep!$T:$T,Data!AI$17)/$BA$34*$A$34 -> 0 | AJ36: =SUMIFS(AutumnProvRep!$K:$K,AutumnProvRep!$A:$A,Data!$A$22,AutumnProvRep!$O:$O,"<>Coventry",AutumnProvRep!$T:$T,Data!AJ$17)/$BA$34*$A$34 -> 0 | AK36: =SUMIFS(AutumnProvRep!$K:$K,AutumnProvRep!$A:$A,Data!$A$22,AutumnProvRep!$O:$O,"<>Coventry",AutumnProvRep!$T:$T,Data!AK$17)/$BA$34*$A$34 -> 0 | AL36: =SUMIFS(AutumnProvRep!$K:$K,AutumnProvRep!$A:$A,Data!$A$22,AutumnProvRep!$O:$O,"<>Coventry",AutumnProvRep!$T:$T,Data!AL$17)/$BA$34*$A$34 -> 75 | AM36: =SUMIFS(AutumnProvRep!$K:$K,AutumnProvRep!$A:$A,Data!$A$22,AutumnProvRep!$O:$O,"<>Coventry",AutumnProvRep!$T:$T,Data!AM$17)/$BA$34*$A$34 -> 0 | AN36: =SUMIFS(AutumnProvRep!$K:$K,AutumnProvRep!$A:$A,Data!$A$22,AutumnProvRep!$O:$O,"<>Coventry",AutumnProvRep!$T:$T,Data!AN$17)/$BA$34*$A$34 -> 0 | AO36: =SUMIFS(AutumnProvRep!$K:$K,AutumnProvRep!$A:$A,Data!$A$22,AutumnProvRep!$O:$O,"<>Coventry",AutumnProvRep!$T:$T,Data!AO$17)/$BA$34*$A$34 -> 0 | AP36: =SUMIFS(AutumnProvRep!$K:$K,AutumnProvRep!$A:$A,Data!$A$22,AutumnProvRep!$O:$O,"<>Coventry",AutumnProvRep!$T:$T,Data!AP$17)/$BA$34*$A$34 -> 0 | AQ36: =SUMIFS(AutumnProvRep!$K:$K,AutumnProvRep!$A:$A,Data!$A$22,AutumnProvRep!$O:$O,"<>Coventry",AutumnProvRep!$T:$T,Data!AQ$17)/$BA$34*$A$34 -> 0 | AR36: =SUM(Y36:AQ36)/$A$34 -> 4 | AS36: 18846.31135 | AT36: 514388.6593 | AU36: =AR36+W36 -> 101 | AV36: 1 | AW36: 100 | AX36: =[5]Data!$AU36 -> 100.1428571 | AY36: 100 | BB36: =($M$5-$AU$36)*$A$34 -> -75 | BC36: =AU36*$A$34 -> 7575 | BD36: =$BB$36/$BC$36*D36 -> 0 | BE36: =$BB$36/$BC$36*E36 -> 0 | BF36: 0 | BG36: 0 | BH36: 0 | BI36: 0 | BJ36: 0 | BK36: -45.2970297 | BL36: -3.712871287 | BM36: 0 | BN36: 0 | BO36: -2.481761334 | BP36: 0 | BQ36: -18.56435644 | BR36: -1.485148515 | BS36: 0 | BT36: 0 | BU36: -0.4885356957 | BV36: 0 | BX36: =$BB$36/$BC$36*Y36 -> 0 | BY36: =$BB$36/$BC$36*Z36 -> 0 | BZ36: 0 | CA36: 0 | CB36: 0 | CC36: 0 | CD36: 0 | CE36: -1.485148515 | CF36: -0.7425742574 | CG36: 0 | CH36: 0 | CI36: 0 | CJ36: 0 | CK36: -0.7425742574 | CL36: 0 | CM36: 0 | CN36: 0 | CO36: 0 | CP36: 0
A37: 3 | B37: RiverBank | C37: 50 | D37: 0 | E37: =SUMIFS(AutumnProvRep!$K:$K,AutumnProvRep!$A:$A,Data!$A$23,AutumnProvRep!$O:$O,"Coventry",AutumnProvRep!$T:$T,Data!E$17)/$BA$34*$A$34 -> 0 | F37: =SUMIFS(AutumnProvRep!$K:$K,AutumnProvRep!$A:$A,Data!$A$23,AutumnProvRep!$O:$O,"Coventry",AutumnProvRep!$T:$T,Data!F$17)/$BA$34*$A$34 -> 0 | G37: =SUMIFS(AutumnProvRep!$K:$K,AutumnProvRep!$A:$A,Data!$A$23,AutumnProvRep!$O:$O,"Coventry",AutumnProvRep!$T:$T,Data!G$17)/$BA$34*$A$34 -> 750 | H37: =SUMIFS(AutumnProvRep!$K:$K,AutumnProvRep!$A:$A,Data!$A$23,AutumnProvRep!$O:$O,"Coventry",AutumnProvRep!$T:$T,Data!H$17)/$BA$34*$A$34 -> 1125 | I37: =SUMIFS(AutumnProvRep!$K:$K,AutumnProvRep!$A:$A,Data!$A$23,AutumnProvRep!$O:$O,"Coventry",AutumnProvRep!$T:$T,Data!I$17)/$BA$34*$A$34 -> 0 | J37: =SUMIFS(AutumnProvRep!$K:$K,AutumnProvRep!$A:$A,Data!$A$23,AutumnProvRep!$O:$O,"Coventry",AutumnProvRep!$T:$T,Data!J$17)/$BA$34*$A$34 -> 0 | K37: =SUMIFS(AutumnProvRep!$K:$K,AutumnProvRep!$A:$A,Data!$A$23,AutumnProvRep!$O:$O,"Coventry",AutumnProvRep!$T:$T,Data!K$17)/$BA$34*$A$34 -> 5175 | L37: =SUMIFS(AutumnProvRep!$K:$K,AutumnProvRep!$A:$A,Data!$A$23,AutumnProvRep!$O:$O,"Coventry",AutumnProvRep!$T:$T,Data!L$17)/$BA$34*$A$34 -> 4050 | M37: =SUMIFS(AutumnProvRep!$K:$K,AutumnProvRep!$A:$A,Data!$A$23,AutumnProvRep!$O:$O,"Coventry",AutumnProvRep!$T:$T,Data!M$17)/$BA$34*$A$34 -> 150 | N37: =SUMIFS(AutumnProvRep!$K:$K,AutumnProvRep!$A:$A,Data!$A$23,AutumnProvRep!$O:$O,"Coventry",AutumnProvRep!$T:$T,Data!N$17)/$BA$34*$A$34 -> 525 | O37: =SUMIFS(AutumnProvRep!$K:$K,AutumnProvRep!$A:$A,Data!$A$23,AutumnProvRep!$O:$O,"Coventry",AutumnProvRep!$T:$T,Data!O$17)/$BA$34*$A$34 -> 300 | P37: =SUMIFS(AutumnProvRep!$K:$K,AutumnProvRep!$A:$A,Data!$A$23,AutumnProvRep!$O:$O,"Coventry",AutumnProvRep!$T:$T,Data!P$17)/$BA$34*$A$34 -> 225 | Q37: =SUMIFS(AutumnProvRep!$K:$K,AutumnProvRep!$A:$A,Data!$A$23,AutumnProvRep!$O:$O,"Coventry",AutumnProvRep!$T:$T,Data!Q$17)/$BA$34*$A$34 -> 1800 | R37: =SUMIFS(AutumnProvRep!$K:$K,AutumnProvRep!$A:$A,Data!$A$23,AutumnProvRep!$O:$O,"Coventry",AutumnProvRep!$T:$T,Data!R$17)/$BA$34*$A$34 -> 375 | S37: =SUMIFS(AutumnProvRep!$K:$K,AutumnProvRep!$A:$A,Data!$A$23,AutumnProvRep!$O:$O,"Coventry",AutumnProvRep!$T:$T,Data!S$17)/$BA$34*$A$34 -> 0 | T37: =SUMIFS(AutumnProvRep!$K:$K,AutumnProvRep!$A:$A,Data!$A$23,AutumnProvRep!$O:$O,"Coventry",AutumnProvRep!$T:$T,Data!T$17)/$BA$34*$A$34 -> 150 | U37: =SUMIFS(AutumnProvRep!$K:$K,AutumnProvRep!$A:$A,Data!$A$23,AutumnProvRep!$O:$O,"Coventry",AutumnProvRep!$T:$T,Data!U$17)/$BA$34*$A$34 -> 0 | V37: =SUMIFS(AutumnProvRep!$K:$K,AutumnProvRep!$A:$A,Data!$A$23,AutumnProvRep!$O:$O,"Coventry",AutumnProvRep!$T:$T,Data!V$17)/$BA$34*$A$34 -> 0 | W37: 195 | X37: 864735.5542 | Y37: 0 | Z37: =SUMIFS(AutumnProvRep!$K:$K,AutumnProvRep!$A:$A,Data!$A$23,AutumnProvRep!$O:$O,"<>Coventry",AutumnProvRep!$T:$T,Data!Z$17)/$BA$34*$A$34 -> 0 | AA37: =SUMIFS(AutumnProvRep!$K:$K,AutumnProvRep!$A:$A,Data!$A$23,AutumnProvRep!$O:$O,"<>Coventry",AutumnProvRep!$T:$T,Data!AA$17)/$BA$34*$A$34 -> 0 | AB37: =SUMIFS(AutumnProvRep!$K:$K,AutumnProvRep!$A:$A,Data!$A$23,AutumnProvRep!$O:$O,"<>Coventry",AutumnProvRep!$T:$T,Data!AB$17)/$BA$34*$A$34 -> 75 | AC37: =SUMIFS(AutumnProvRep!$K:$K,AutumnProvRep!$A:$A,Data!$A$23,AutumnProvRep!$O:$O,"<>Coventry",AutumnProvRep!$T:$T,Data!AC$17)/$BA$34*$A$34 -> 0 | AD37: =SUMIFS(AutumnProvRep!$K:$K,AutumnProvRep!$A:$A,Data!$A$23,AutumnProvRep!$O:$O,"<>Coventry",AutumnProvRep!$T:$T,Data!AD$17)/$BA$34*$A$34 -> 0 | AE37: =SUMIFS(AutumnProvRep!$K:$K,AutumnProvRep!$A:$A,Data!$A$23,AutumnProvRep!$O:$O,"<>Coventry",AutumnProvRep!$T:$T,Data!AE$17)/$BA$34*$A$34 -> 0 | AF37: =SUMIFS(AutumnProvRep!$K:$K,AutumnProvRep!$A:$A,Data!$A$23,AutumnProvRep!$O:$O,"<>Coventry",AutumnProvRep!$T:$T,Data!AF$17)/$BA$34*$A$34 -> 75 | AG37: =SUMIFS(AutumnProvRep!$K:$K,AutumnProvRep!$A:$A,Data!$A$23,AutumnProvRep!$O:$O,"<>Coventry",AutumnProvRep!$T:$T,Data!AG$17)/$BA$34*$A$34 -> 0 | AH37: =SUMIFS(AutumnProvRep!$K:$K,AutumnProvRep!$A:$A,Data!$A$23,AutumnProvRep!$O:$O,"<>Coventry",AutumnProvRep!$T:$T,Data!AH$17)/$BA$34*$A$34 -> 0 | AI37: =SUMIFS(AutumnProvRep!$K:$K,AutumnProvRep!$A:$A,Data!$A$23,AutumnProvRep!$O:$O,"<>Coventry",AutumnProvRep!$T:$T,Data!AI$17)/$BA$34*$A$34 -> 0 | AJ37: =SUMIFS(AutumnProvRep!$K:$K,AutumnProvRep!$A:$A,Data!$A$23,AutumnProvRep!$O:$O,"<>Coventry",AutumnProvRep!$T:$T,Data!AJ$17)/$BA$34*$A$34 -> 0 | AK37: =SUMIFS(AutumnProvRep!$K:$K,AutumnProvRep!$A:$A,Data!$A$23,AutumnProvRep!$O:$O,"<>Coventry",AutumnProvRep!$T:$T,Data!AK$17)/$BA$34*$A$34 -> 0 | AL37: =SUMIFS(AutumnProvRep!$K:$K,AutumnProvRep!$A:$A,Data!$A$23,AutumnProvRep!$O:$O,"<>Coventry",AutumnProvRep!$T:$T,Data!AL$17)/$BA$34*$A$34 -> 0 | AM37: =SUMIFS(AutumnProvRep!$K:$K,AutumnProvRep!$A:$A,Data!$A$23,AutumnProvRep!$O:$O,"<>Coventry",AutumnProvRep!$T:$T,Data!AM$17)/$BA$34*$A$34 -> 0 | AN37: =SUMIFS(AutumnProvRep!$K:$K,AutumnProvRep!$A:$A,Data!$A$23,AutumnProvRep!$O:$O,"<>Coventry",AutumnProvRep!$T:$T,Data!AN$17)/$BA$34*$A$34 -> 0 | AO37: =SUMIFS(AutumnProvRep!$K:$K,AutumnProvRep!$A:$A,Data!$A$23,AutumnProvRep!$O:$O,"<>Coventry",AutumnProvRep!$T:$T,Data!AO$17)/$BA$34*$A$34 -> 0 | AP37: =SUMIFS(AutumnProvRep!$K:$K,AutumnProvRep!$A:$A,Data!$A$23,AutumnProvRep!$O:$O,"<>Coventry",AutumnProvRep!$T:$T,Data!AP$17)/$BA$34*$A$34 -> 0 | AQ37: =SUMIFS(AutumnProvRep!$K:$K,AutumnProvRep!$A:$A,Data!$A$23,AutumnProvRep!$O:$O,"<>Coventry",AutumnProvRep!$T:$T,Data!AQ$17)/$BA$34*$A$34 -> 0 | AR37: 2 | AS37: 5384.659752 | AT37: 870120.214 | AU37: 197 | AV37: -3 | AW37: 200 | AX37: =[5]Data!$AU37 -> 198.3142857 | AY37: 200 | BB37: =($M$6-$AU$37)*$A$34 -> 225 | BC37: 14775 | BD37: =$BB$37/$BC$37*D37 -> 0 | BE37: =$BB$37/$BC$37*E37 -> 0 | BF37: 0 | BG37: 11.4213198 | BH37: 17.1319797 | BI37: 0 | BJ37: 0 | BK37: =$BB$37/$BC$37*K37 -> 78.8071066 | BL37: 61.6751269 | BM37: 2.284263959 | BN37: 7.994923858 | BO37: 4.568527919 | BP37: 3.426395939 | BQ37: 27.41116751 | BR37: 5.710659898 | BS37: 0 | BT37: 2.284263959 | BU37: 0 | BV37: 0 | BX37: =$BB$37/$BC$37*Y37 -> 0 | BY37: =$BB$37/$BC$37*Z37 -> 0 | BZ37: 0 | CA37: 1.14213198 | CB37: 0 | CC37: 0 | CD37: 0 | CE37: 1.14213198 | CF37: 0 | CG37: 0 | CH37: 0 | CI37: 0 | CJ37: 0 | CK37: 0 | CL37: 0 | CM37: 0 | CN37: 0 | CO37: 0 | CP37: 0
A38: 4 | B38: Corley | C38: 50 | D38: 0 | E38: =SUMIFS(AutumnProvRep!$K:$K,AutumnProvRep!$A:$A,Data!$A$24,AutumnProvRep!$O:$O,"Coventry",AutumnProvRep!$T:$T,Data!E$17)/$BA$34*$A$34 -> 0 | F38: =SUMIFS(AutumnProvRep!$K:$K,AutumnProvRep!$A:$A,Data!$A$24,AutumnProvRep!$O:$O,"Coventry",AutumnProvRep!$T:$T,Data!F$17)/$BA$34*$A$34 -> 0 | G38: =SUMIFS(AutumnProvRep!$K:$K,AutumnProvRep!$A:$A,Data!$A$24,AutumnProvRep!$O:$O,"Coventry",AutumnProvRep!$T:$T,Data!G$17)/$BA$34*$A$34 -> 0 | H38: =SUMIFS(AutumnProvRep!$K:$K,AutumnProvRep!$A:$A,Data!$A$24,AutumnProvRep!$O:$O,"Coventry",AutumnProvRep!$T:$T,Data!H$17)/$BA$34*$A$34 -> 0 | I38: =SUMIFS(AutumnProvRep!$K:$K,AutumnProvRep!$A:$A,Data!$A$24,AutumnProvRep!$O:$O,"Coventry",AutumnProvRep!$T:$T,Data!I$17)/$BA$34*$A$34 -> 0 | J38: =SUMIFS(AutumnProvRep!$K:$K,AutumnProvRep!$A:$A,Data!$A$24,AutumnProvRep!$O:$O,"Coventry",AutumnProvRep!$T:$T,Data!J$17)/$BA$34*$A$34 -> 0 | K38: =SUMIFS(AutumnProvRep!$K:$K,AutumnProvRep!$A:$A,Data!$A$24,AutumnProvRep!$O:$O,"Coventry",AutumnProvRep!$T:$T,Data!K$17)/$BA$34*$A$34 -> 8497.697368 | L38: =SUMIFS(AutumnProvRep!$K:$K,AutumnProvRep!$A:$A,Data!$A$24,AutumnProvRep!$O:$O,"Coventry",AutumnProvRep!$T:$T,Data!L$17)/$BA$34*$A$34 -> 0 | M38: =SUMIFS(AutumnProvRep!$K:$K,AutumnProvRep!$A:$A,Data!$A$24,AutumnProvRep!$O:$O,"Coventry",AutumnProvRep!$T:$T,Data!M$17)/$BA$34*$A$34 -> 545.7236842 | N38: =SUMIFS(AutumnProvRep!$K:$K,AutumnProvRep!$A:$A,Data!$A$24,AutumnProvRep!$O:$O,"Coventry",AutumnProvRep!$T:$T,Data!N$17)/$BA$34*$A$34 -> 0 | O38: =SUMIFS(AutumnProvRep!$K:$K,AutumnProvRep!$A:$A,Data!$A$24,AutumnProvRep!$O:$O,"Coventry",AutumnProvRep!$T:$T,Data!O$17)/$BA$34*$A$34 -> 279.2763158 | P38: =SUMIFS(AutumnProvRep!$K:$K,AutumnProvRep!$A:$A,Data!$A$24,AutumnProvRep!$O:$O,"Coventry",AutumnProvRep!$T:$T,Data!P$17)/$BA$34*$A$34 -> 0 | Q38: =SUMIFS(AutumnProvRep!$K:$K,AutumnProvRep!$A:$A,Data!$A$24,AutumnProvRep!$O:$O,"Coventry",AutumnProvRep!$T:$T,Data!Q$17)/$BA$34*$A$34 -> 1275 | R38: =SUMIFS(AutumnProvRep!$K:$K,AutumnProvRep!$A:$A,Data!$A$24,AutumnProvRep!$O:$O,"Coventry",AutumnProvRep!$T:$T,Data!R$17)/$BA$34*$A$34 -> 0 | S38: =SUMIFS(AutumnProvRep!$K:$K,AutumnProvRep!$A:$A,Data!$A$24,AutumnProvRep!$O:$O,"Coventry",AutumnProvRep!$T:$T,Data!S$17)/$BA$34*$A$34 -> 0 | T38: =SUMIFS(AutumnProvRep!$K:$K,AutumnProvRep!$A:$A,Data!$A$24,AutumnProvRep!$O:$O,"Coventry",AutumnProvRep!$T:$T,Data!T$17)/$BA$34*$A$34 -> 0 | U38: =SUMIFS(AutumnProvRep!$K:$K,AutumnProvRep!$A:$A,Data!$A$24,AutumnProvRep!$O:$O,"Coventry",AutumnProvRep!$T:$T,Data!U$17)/$BA$34*$A$34 -> 0 | V38: =SUMIFS(AutumnProvRep!$K:$K,AutumnProvRep!$A:$A,Data!$A$24,AutumnProvRep!$O:$O,"Coventry",AutumnProvRep!$T:$T,Data!V$17)/$BA$34*$A$34 -> 0 | W38: 141.3026316 | X38: 655796.9852 | Y38: 0 | Z38: =SUMIFS(AutumnProvRep!$K:$K,AutumnProvRep!$A:$A,Data!$A$24,AutumnProvRep!$O:$O,"<>Coventry",AutumnProvRep!$T:$T,Data!Z$17)/$BA$34*$A$34 -> 0 | AA38: =SUMIFS(AutumnProvRep!$K:$K,AutumnProvRep!$A:$A,Data!$A$24,AutumnProvRep!$O:$O,"<>Coventry",AutumnProvRep!$T:$T,Data!AA$17)/$BA$34*$A$34 -> 0 | AB38: =SUMIFS(AutumnProvRep!$K:$K,AutumnProvRep!$A:$A,Data!$A$24,AutumnProvRep!$O:$O,"<>Coventry",AutumnProvRep!$T:$T,Data!AB$17)/$BA$34*$A$34 -> 0 | AC38: =SUMIFS(AutumnProvRep!$K:$K,AutumnProvRep!$A:$A,Data!$A$24,AutumnProvRep!$O:$O,"<>Coventry",AutumnProvRep!$T:$T,Data!AC$17)/$BA$34*$A$34 -> 0 | AD38: =SUMIFS(AutumnProvRep!$K:$K,AutumnProvRep!$A:$A,Data!$A$24,AutumnProvRep!$O:$O,"<>Coventry",AutumnProvRep!$T:$T,Data!AD$17)/$BA$34*$A$34 -> 0 | AE38: =SUMIFS(AutumnProvRep!$K:$K,AutumnProvRep!$A:$A,Data!$A$24,AutumnProvRep!$O:$O,"<>Coventry",AutumnProvRep!$T:$T,Data!AE$17)/$BA$34*$A$34 -> 0 | AF38: =SUMIFS(AutumnProvRep!$K:$K,AutumnProvRep!$A:$A,Data!$A$24,AutumnProvRep!$O:$O,"<>Coventry",AutumnProvRep!$T:$T,Data!AF$17)/$BA$34*$A$34 -> 75 | AG38: =SUMIFS(AutumnProvRep!$K:$K,AutumnProvRep!$A:$A,Data!$A$24,AutumnProvRep!$O:$O,"<>Coventry",AutumnProvRep!$T:$T,Data!AG$17)/$BA$34*$A$34 -> 0 | AH38: =SUMIFS(AutumnProvRep!$K:$K,AutumnProvRep!$A:$A,Data!$A$24,AutumnProvRep!$O:$O,"<>Coventry",AutumnProvRep!$T:$T,Data!AH$17)/$BA$34*$A$34 -> 0 | AI38: =SUMIFS(AutumnProvRep!$K:$K,AutumnProvRep!$A:$A,Data!$A$24,AutumnProvRep!$O:$O,"<>Coventry",AutumnProvRep!$T:$T,Data!AI$17)/$BA$34*$A$34 -> 0 | AJ38: =SUMIFS(AutumnProvRep!$K:$K,AutumnProvRep!$A:$A,Data!$A$24,AutumnProvRep!$O:$O,"<>Coventry",AutumnProvRep!$T:$T,Data!AJ$17)/$BA$34*$A$34 -> 0 | AK38: =SUMIFS(AutumnProvRep!$K:$K,AutumnProvRep!$A:$A,Data!$A$24,AutumnProvRep!$O:$O,"<>Coventry",AutumnProvRep!$T:$T,Data!AK$17)/$BA$34*$A$34 -> 0 | AL38: =SUMIFS(AutumnProvRep!$K:$K,AutumnProvRep!$A:$A,Data!$A$24,AutumnProvRep!$O:$O,"<>Coventry",AutumnProvRep!$T:$T,Data!AL$17)/$BA$34*$A$34 -> 0 | AM38: =SUMIFS(AutumnProvRep!$K:$K,AutumnProvRep!$A:$A,Data!$A$24,AutumnProvRep!$O:$O,"<>Coventry",AutumnProvRep!$T:$T,Data!AM$17)/$BA$34*$A$34 -> 0 | AN38: =SUMIFS(AutumnProvRep!$K:$K,AutumnProvRep!$A:$A,Data!$A$24,AutumnProvRep!$O:$O,"<>Coventry",AutumnProvRep!$T:$T,Data!AN$17)/$BA$34*$A$34 -> 0 | AO38: =SUMIFS(AutumnProvRep!$K:$K,AutumnProvRep!$A:$A,Data!$A$24,AutumnProvRep!$O:$O,"<>Coventry",AutumnProvRep!$T:$T,Data!AO$17)/$BA$34*$A$34 -> 0 | AP38: =SUMIFS(AutumnProvRep!$K:$K,AutumnProvRep!$A:$A,Data!$A$24,AutumnProvRep!$O:$O,"<>Coventry",AutumnProvRep!$T:$T,Data!AP$17)/$BA$34*$A$34 -> 0 | AQ38: =SUMIFS(AutumnProvRep!$K:$K,AutumnProvRep!$A:$A,Data!$A$24,AutumnProvRep!$O:$O,"<>Coventry",AutumnProvRep!$T:$T,Data!AQ$17)/$BA$34*$A$34 -> 0 | AR38: 1 | AS38: 4142.045622 | AT38: 659939.0308 | AU38: 142.3026316 | AV38: -12.69736842 | AW38: 155 | AX38: =[5]Data!$AU38 -> 148.6511628 | AY38: 140 | BB38: =($M$7-$AU$38)*$A$34 -> 952.3026316 | BC38: 10672.69737 | BD38: =$BB$38/$BC$38*D38 -> 0 | BE38: =$BB$38/$BC$38*E38 -> 0 | BF38: 0 | BG38: 0 | BH38: 0 | BI38: 0 | BJ38: 0 | BK38: 758.2318965 | BL38: 0 | BM38: 48.69379152 | BN38: 0 | BO38: 24.91924593 | BP38: 0 | BQ38: 113.7656033 | BR38: 0 | BS38: 0 | BT38: 0 | BU38: 0 | BV38: 0 | BX38: =$BB$38/$BC$38*Y38 -> 0 | BY38: =$BB$38/$BC$38*Z38 -> 0 | BZ38: 0 | CA38: 0 | CB38: 0 | CC38: 0 | CD38: 0 | CE38: 6.692094313 | CF38: 0 | CG38: 0 | CH38: 0 | CI38: 0 | CJ38: 0 | CK38: 0 | CL38: 0 | CM38: 0 | CN38: 0 | CO38: 0 | CP38: 0
A39: 5 | B39: Tiverton | C39: 50 | D39: 0 | E39: =SUMIFS(AutumnProvRep!$K:$K,AutumnProvRep!$A:$A,Data!$A$25,AutumnProvRep!$O:$O,"Coventry",AutumnProvRep!$T:$T,Data!E$17)/$BA$34*$A$34 -> 0 | F39: =SUMIFS(AutumnProvRep!$K:$K,AutumnProvRep!$A:$A,Data!$A$25,AutumnProvRep!$O:$O,"Coventry",AutumnProvRep!$T:$T,Data!F$17)/$BA$34*$A$34 -> 0 | G39: =SUMIFS(AutumnProvRep!$K:$K,AutumnProvRep!$A:$A,Data!$A$25,AutumnProvRep!$O:$O,"Coventry",AutumnProvRep!$T:$T,Data!G$17)/$BA$34*$A$34 -> 0 | H39: =SUMIFS(AutumnProvRep!$K:$K,AutumnProvRep!$A:$A,Data!$A$25,AutumnProvRep!$O:$O,"Coventry",AutumnProvRep!$T:$T,Data!H$17)/$BA$34*$A$34 -> 0 | I39: =SUMIFS(AutumnProvRep!$K:$K,AutumnProvRep!$A:$A,Data!$A$25,AutumnProvRep!$O:$O,"Coventry",AutumnProvRep!$T:$T,Data!I$17)/$BA$34*$A$34 -> 0 | J39: =SUMIFS(AutumnProvRep!$K:$K,AutumnProvRep!$A:$A,Data!$A$25,AutumnProvRep!$O:$O,"Coventry",AutumnProvRep!$T:$T,Data!J$17)/$BA$34*$A$34 -> 0 | K39: =SUMIFS(AutumnProvRep!$K:$K,AutumnProvRep!$A:$A,Data!$A$25,AutumnProvRep!$O:$O,"Coventry",AutumnProvRep!$T:$T,Data!K$17)/$BA$34*$A$34 -> 4788.157895 | L39: =SUMIFS(AutumnProvRep!$K:$K,AutumnProvRep!$A:$A,Data!$A$25,AutumnProvRep!$O:$O,"Coventry",AutumnProvRep!$T:$T,Data!L$17)/$BA$34*$A$34 -> 975 | M39: =SUMIFS(AutumnProvRep!$K:$K,AutumnProvRep!$A:$A,Data!$A$25,AutumnProvRep!$O:$O,"Coventry",AutumnProvRep!$T:$T,Data!M$17)/$BA$34*$A$34 -> 0 | N39: =SUMIFS(AutumnProvRep!$K:$K,AutumnProvRep!$A:$A,Data!$A$25,AutumnProvRep!$O:$O,"Coventry",AutumnProvRep!$T:$T,Data!N$17)/$BA$34*$A$34 -> 450 | O39: =SUMIFS(AutumnProvRep!$K:$K,AutumnProvRep!$A:$A,Data!$A$25,AutumnProvRep!$O:$O,"Coventry",AutumnProvRep!$T:$T,Data!O$17)/$BA$34*$A$34 -> 450 | P39: =SUMIFS(AutumnProvRep!$K:$K,AutumnProvRep!$A:$A,Data!$A$25,AutumnProvRep!$O:$O,"Coventry",AutumnProvRep!$T:$T,Data!P$17)/$BA$34*$A$34 -> 0 | Q39: =SUMIFS(AutumnProvRep!$K:$K,AutumnProvRep!$A:$A,Data!$A$25,AutumnProvRep!$O:$O,"Coventry",AutumnProvRep!$T:$T,Data!Q$17)/$BA$34*$A$34 -> 1259.210526 | R39: =SUMIFS(AutumnProvRep!$K:$K,AutumnProvRep!$A:$A,Data!$A$25,AutumnProvRep!$O:$O,"Coventry",AutumnProvRep!$T:$T,Data!R$17)/$BA$34*$A$34 -> 525 | S39: =SUMIFS(AutumnProvRep!$K:$K,AutumnProvRep!$A:$A,Data!$A$25,AutumnProvRep!$O:$O,"Coventry",AutumnProvRep!$T:$T,Data!S$17)/$BA$34*$A$34 -> 0 | T39: =SUMIFS(AutumnProvRep!$K:$K,AutumnProvRep!$A:$A,Data!$A$25,AutumnProvRep!$O:$O,"Coventry",AutumnProvRep!$T:$T,Data!T$17)/$BA$34*$A$34 -> 300 | U39: =SUMIFS(AutumnProvRep!$K:$K,AutumnProvRep!$A:$A,Data!$A$25,AutumnProvRep!$O:$O,"Coventry",AutumnProvRep!$T:$T,Data!U$17)/$BA$34*$A$34 -> 0 | V39: =SUMIFS(AutumnProvRep!$K:$K,AutumnProvRep!$A:$A,Data!$A$25,AutumnProvRep!$O:$O,"Coventry",AutumnProvRep!$T:$T,Data!V$17)/$BA$34*$A$34 -> 0 | W39: 116.6315789 | X39: 582081.634 | Y39: 0 | Z39: =SUMIFS(AutumnProvRep!$K:$K,AutumnProvRep!$A:$A,Data!$A$25,AutumnProvRep!$O:$O,"<>Coventry",AutumnProvRep!$T:$T,Data!Z$17)/$BA$34*$A$34 -> 0 | AA39: =SUMIFS(AutumnProvRep!$K:$K,AutumnProvRep!$A:$A,Data!$A$25,AutumnProvRep!$O:$O,"<>Coventry",AutumnProvRep!$T:$T,Data!AA$17)/$BA$34*$A$34 -> 0 | AB39: =SUMIFS(AutumnProvRep!$K:$K,AutumnProvRep!$A:$A,Data!$A$25,AutumnProvRep!$O:$O,"<>Coventry",AutumnProvRep!$T:$T,Data!AB$17)/$BA$34*$A$34 -> 0 | AC39: =SUMIFS(AutumnProvRep!$K:$K,AutumnProvRep!$A:$A,Data!$A$25,AutumnProvRep!$O:$O,"<>Coventry",AutumnProvRep!$T:$T,Data!AC$17)/$BA$34*$A$34 -> 0 | AD39: =SUMIFS(AutumnProvRep!$K:$K,AutumnProvRep!$A:$A,Data!$A$25,AutumnProvRep!$O:$O,"<>Coventry",AutumnProvRep!$T:$T,Data!AD$17)/$BA$34*$A$34 -> 0 | AE39: =SUMIFS(AutumnProvRep!$K:$K,AutumnProvRep!$A:$A,Data!$A$25,AutumnProvRep!$O:$O,"<>Coventry",AutumnProvRep!$T:$T,Data!AE$17)/$BA$34*$A$34 -> 0 | AF39: =SUMIFS(AutumnProvRep!$K:$K,AutumnProvRep!$A:$A,Data!$A$25,AutumnProvRep!$O:$O,"<>Coventry",AutumnProvRep!$T:$T,Data!AF$17)/$BA$34*$A$34 -> 75 | AG39: =SUMIFS(AutumnProvRep!$K:$K,AutumnProvRep!$A:$A,Data!$A$25,AutumnProvRep!$O:$O,"<>Coventry",AutumnProvRep!$T:$T,Data!AG$17)/$BA$34*$A$34 -> 0 | AH39: =SUMIFS(AutumnProvRep!$K:$K,AutumnProvRep!$A:$A,Data!$A$25,AutumnProvRep!$O:$O,"<>Coventry",AutumnProvRep!$T:$T,Data!AH$17)/$BA$34*$A$34 -> 0 | AI39: =SUMIFS(AutumnProvRep!$K:$K,AutumnProvRep!$A:$A,Data!$A$25,AutumnProvRep!$O:$O,"<>Coventry",AutumnProvRep!$T:$T,Data!AI$17)/$BA$34*$A$34 -> 0 | AJ39: =SUMIFS(AutumnProvRep!$K:$K,AutumnProvRep!$A:$A,Data!$A$25,AutumnProvRep!$O:$O,"<>Coventry",AutumnProvRep!$T:$T,Data!AJ$17)/$BA$34*$A$34 -> 0 | AK39: =SUMIFS(AutumnProvRep!$K:$K,AutumnProvRep!$A:$A,Data!$A$25,AutumnProvRep!$O:$O,"<>Coventry",AutumnProvRep!$T:$T,Data!AK$17)/$BA$34*$A$34 -> 0 | AL39: =SUMIFS(AutumnProvRep!$K:$K,AutumnProvRep!$A:$A,Data!$A$25,AutumnProvRep!$O:$O,"<>Coventry",AutumnProvRep!$T:$T,Data!AL$17)/$BA$34*$A$34 -> 75 | AM39: =SUMIFS(AutumnProvRep!$K:$K,AutumnProvRep!$A:$A,Data!$A$25,AutumnProvRep!$O:$O,"<>Coventry",AutumnProvRep!$T:$T,Data!AM$17)/$BA$34*$A$34 -> 0 | AN39: =SUMIFS(AutumnProvRep!$K:$K,AutumnProvRep!$A:$A,Data!$A$25,AutumnProvRep!$O:$O,"<>Coventry",AutumnProvRep!$T:$T,Data!AN$17)/$BA$34*$A$34 -> 0 | AO39: =SUMIFS(AutumnProvRep!$K:$K,AutumnProvRep!$A:$A,Data!$A$25,AutumnProvRep!$O:$O,"<>Coventry",AutumnProvRep!$T:$T,Data!AO$17)/$BA$34*$A$34 -> 0 | AP39: =SUMIFS(AutumnProvRep!$K:$K,AutumnProvRep!$A:$A,Data!$A$25,AutumnProvRep!$O:$O,"<>Coventry",AutumnProvRep!$T:$T,Data!AP$17)/$BA$34*$A$34 -> 0 | AQ39: =SUMIFS(AutumnProvRep!$K:$K,AutumnProvRep!$A:$A,Data!$A$25,AutumnProvRep!$O:$O,"<>Coventry",AutumnProvRep!$T:$T,Data!AQ$17)/$BA$34*$A$34 -> 0 | AR39: 2 | AS39: 10872.87142 | AT39: 592954.5054 | AU39: 118.6315789 | AV39: -12.36842105 | AW39: 131 | AX39: =[5]Data!$AU39 -> 119.0535714 | AY39: 118 | BB39: =($M$8-$AU$39)*$A$34 -> 927.6315789 | BC39: 8897.368421 | BD39: =$BB$39/$BC$39*D39 -> 0 | BE39: =$BB$39/$BC$39*E39 -> 0 | BF39: 0 | BG39: 0 | BH39: 0 | BI39: 0 | BJ39: 0 | BK39: 499.2090085 | BL39: 101.6526176 | BM39: 0 | BN39: 46.91659272 | BO39: 46.91659272 | BP39: 0 | BQ39: 131.2841498 | BR39: 54.73602484 | BS39: 0 | BT39: 31.27772848 | BU39: 0 | BV39: 0 | BX39: =$BB$39/$BC$39*Y39 -> 0 | BY39: =$BB$39/$BC$39*Z39 -> 0 | BZ39: 0 | CA39: 0 | CB39: 0 | CC39: 0 | CD39: 0 | CE39: 7.819432121 | CF39: 0 | CG39: 0 | CH39: 0 | CI39: 0 | CJ39: 0 | CK39: 7.819432121 | CL39: 0 | CM39: 0 | CN39: 0 | CO39: 0 | CP39: 0
A40: 6 | B40: Baginton Fields | C40: 50 | D40: 0 | E40: =SUMIFS(AutumnProvRep!$K:$K,AutumnProvRep!$A:$A,Data!$A$26,AutumnProvRep!$O:$O,"Coventry",AutumnProvRep!$T:$T,Data!E$17)/$BA$34*$A$34 -> 0 | F40: =SUMIFS(AutumnProvRep!$K:$K,AutumnProvRep!$A:$A,Data!$A$26,AutumnProvRep!$O:$O,"Coventry",AutumnProvRep!$T:$T,Data!F$17)/$BA$34*$A$34 -> 0 | G40: =SUMIFS(AutumnProvRep!$K:$K,AutumnProvRep!$A:$A,Data!$A$26,AutumnProvRep!$O:$O,"Coventry",AutumnProvRep!$T:$T,Data!G$17)/$BA$34*$A$34 -> 0 | H40: =SUMIFS(AutumnProvRep!$K:$K,AutumnProvRep!$A:$A,Data!$A$26,AutumnProvRep!$O:$O,"Coventry",AutumnProvRep!$T:$T,Data!H$17)/$BA$34*$A$34 -> 0 | I40: =SUMIFS(AutumnProvRep!$K:$K,AutumnProvRep!$A:$A,Data!$A$26,AutumnProvRep!$O:$O,"Coventry",AutumnProvRep!$T:$T,Data!I$17)/$BA$34*$A$34 -> 0 | J40: =SUMIFS(AutumnProvRep!$K:$K,AutumnProvRep!$A:$A,Data!$A$26,AutumnProvRep!$O:$O,"Coventry",AutumnProvRep!$T:$T,Data!J$17)/$BA$34*$A$34 -> 0 | K40: =SUMIFS(AutumnProvRep!$K:$K,AutumnProvRep!$A:$A,Data!$A$26,AutumnProvRep!$O:$O,"Coventry",AutumnProvRep!$T:$T,Data!K$17)/$BA$34*$A$34 -> 2206.578947 | L40: =SUMIFS(AutumnProvRep!$K:$K,AutumnProvRep!$A:$A,Data!$A$26,AutumnProvRep!$O:$O,"Coventry",AutumnProvRep!$T:$T,Data!L$17)/$BA$34*$A$34 -> 3119.407895 | M40: =SUMIFS(AutumnProvRep!$K:$K,AutumnProvRep!$A:$A,Data!$A$26,AutumnProvRep!$O:$O,"Coventry",AutumnProvRep!$T:$T,Data!M$17)/$BA$34*$A$34 -> 0 | N40: =SUMIFS(AutumnProvRep!$K:$K,AutumnProvRep!$A:$A,Data!$A$26,AutumnProvRep!$O:$O,"Coventry",AutumnProvRep!$T:$T,Data!N$17)/$BA$34*$A$34 -> 75 | O40: =SUMIFS(AutumnProvRep!$K:$K,AutumnProvRep!$A:$A,Data!$A$26,AutumnProvRep!$O:$O,"Coventry",AutumnProvRep!$T:$T,Data!O$17)/$BA$34*$A$34 -> 677.9605263 | P40: =SUMIFS(AutumnProvRep!$K:$K,AutumnProvRep!$A:$A,Data!$A$26,AutumnProvRep!$O:$O,"Coventry",AutumnProvRep!$T:$T,Data!P$17)/$BA$34*$A$34 -> 0 | Q40: =SUMIFS(AutumnProvRep!$K:$K,AutumnProvRep!$A:$A,Data!$A$26,AutumnProvRep!$O:$O,"Coventry",AutumnProvRep!$T:$T,Data!Q$17)/$BA$34*$A$34 -> 1990.460526 | R40: =SUMIFS(AutumnProvRep!$K:$K,AutumnProvRep!$A:$A,Data!$A$26,AutumnProvRep!$O:$O,"Coventry",AutumnProvRep!$T:$T,Data!R$17)/$BA$34*$A$34 -> 900 | S40: =SUMIFS(AutumnProvRep!$K:$K,AutumnProvRep!$A:$A,Data!$A$26,AutumnProvRep!$O:$O,"Coventry",AutumnProvRep!$T:$T,Data!S$17)/$BA$34*$A$34 -> 0 | T40: =SUMIFS(AutumnProvRep!$K:$K,AutumnProvRep!$A:$A,Data!$A$26,AutumnProvRep!$O:$O,"Coventry",AutumnProvRep!$T:$T,Data!T$17)/$BA$34*$A$34 -> 150 | U40: =SUMIFS(AutumnProvRep!$K:$K,AutumnProvRep!$A:$A,Data!$A$26,AutumnProvRep!$O:$O,"Coventry",AutumnProvRep!$T:$T,Data!U$17)/$BA$34*$A$34 -> 0 | V40: =SUMIFS(AutumnProvRep!$K:$K,AutumnProvRep!$A:$A,Data!$A$26,AutumnProvRep!$O:$O,"Coventry",AutumnProvRep!$T:$T,Data!V$17)/$BA$34*$A$34 -> 0 | W40: 121.5921053 | X40: 635507.5266 | Y40: 0 | Z40: =SUMIFS(AutumnProvRep!$K:$K,AutumnProvRep!$A:$A,Data!$A$26,AutumnProvRep!$O:$O,"<>Coventry",AutumnProvRep!$T:$T,Data!Z$17)/$BA$34*$A$34 -> 0 | AA40: =SUMIFS(AutumnProvRep!$K:$K,AutumnProvRep!$A:$A,Data!$A$26,AutumnProvRep!$O:$O,"<>Coventry",AutumnProvRep!$T:$T,Data!AA$17)/$BA$34*$A$34 -> 0 | AB40: =SUMIFS(AutumnProvRep!$K:$K,AutumnProvRep!$A:$A,Data!$A$26,AutumnProvRep!$O:$O,"<>Coventry",AutumnProvRep!$T:$T,Data!AB$17)/$BA$34*$A$34 -> 0 | AC40: =SUMIFS(AutumnProvRep!$K:$K,AutumnProvRep!$A:$A,Data!$A$26,AutumnProvRep!$O:$O,"<>Coventry",AutumnProvRep!$T:$T,Data!AC$17)/$BA$34*$A$34 -> 0 | AD40: =SUMIFS(AutumnProvRep!$K:$K,AutumnProvRep!$A:$A,Data!$A$26,AutumnProvRep!$O:$O,"<>Coventry",AutumnProvRep!$T:$T,Data!AD$17)/$BA$34*$A$34 -> 0 | AE40: =SUMIFS(AutumnProvRep!$K:$K,AutumnProvRep!$A:$A,Data!$A$26,AutumnProvRep!$O:$O,"<>Coventry",AutumnProvRep!$T:$T,Data!AE$17)/$BA$34*$A$34 -> 0 | AF40: =SUMIFS(AutumnProvRep!$K:$K,AutumnProvRep!$A:$A,Data!$A$26,AutumnProvRep!$O:$O,"<>Coventry",AutumnProvRep!$T:$T,Data!AF$17)/$BA$34*$A$34 -> 0 | AG40: =SUMIFS(AutumnProvRep!$K:$K,AutumnProvRep!$A:$A,Data!$A$26,AutumnProvRep!$O:$O,"<>Coventry",AutumnProvRep!$T:$T,Data!AG$17)/$BA$34*$A$34 -> 150 | AH40: =SUMIFS(AutumnProvRep!$K:$K,AutumnProvRep!$A:$A,Data!$A$26,AutumnProvRep!$O:$O,"<>Coventry",AutumnProvRep!$T:$T,Data!AH$17)/$BA$34*$A$34 -> 0 | AI40: =SUMIFS(AutumnProvRep!$K:$K,AutumnProvRep!$A:$A,Data!$A$26,AutumnProvRep!$O:$O,"<>Coventry",AutumnProvRep!$T:$T,Data!AI$17)/$BA$34*$A$34 -> 0 | AJ40: =SUMIFS(AutumnProvRep!$K:$K,AutumnProvRep!$A:$A,Data!$A$26,AutumnProvRep!$O:$O,"<>Coventry",AutumnProvRep!$T:$T,Data!AJ$17)/$BA$34*$A$34 -> 0 | AK40: =SUMIFS(AutumnProvRep!$K:$K,AutumnProvRep!$A:$A,Data!$A$26,AutumnProvRep!$O:$O,"<>Coventry",AutumnProvRep!$T:$T,Data!AK$17)/$BA$34*$A$34 -> 0 | AL40: =SUMIFS(AutumnProvRep!$K:$K,AutumnProvRep!$A:$A,Data!$A$26,AutumnProvRep!$O:$O,"<>Coventry",AutumnProvRep!$T:$T,Data!AL$17)/$BA$34*$A$34 -> 0 | AM40: =SUMIFS(AutumnProvRep!$K:$K,AutumnProvRep!$A:$A,Data!$A$26,AutumnProvRep!$O:$O,"<>Coventry",AutumnProvRep!$T:$T,Data!AM$17)/$BA$34*$A$34 -> 0 | AN40: =SUMIFS(AutumnProvRep!$K:$K,AutumnProvRep!$A:$A,Data!$A$26,AutumnProvRep!$O:$O,"<>Coventry",AutumnProvRep!$T:$T,Data!AN$17)/$BA$34*$A$34 -> 0 | AO40: =SUMIFS(AutumnProvRep!$K:$K,AutumnProvRep!$A:$A,Data!$A$26,AutumnProvRep!$O:$O,"<>Coventry",AutumnProvRep!$T:$T,Data!AO$17)/$BA$34*$A$34 -> 0 | AP40: =SUMIFS(AutumnProvRep!$K:$K,AutumnProvRep!$A:$A,Data!$A$26,AutumnProvRep!$O:$O,"<>Coventry",AutumnProvRep!$T:$T,Data!AP$17)/$BA$34*$A$34 -> 0 | AQ40: =SUMIFS(AutumnProvRep!$K:$K,AutumnProvRep!$A:$A,Data!$A$26,AutumnProvRep!$O:$O,"<>Coventry",AutumnProvRep!$T:$T,Data!AQ$17)/$BA$34*$A$34 -> 0 | AR40: 2 | AS40: 7662.788612 | AT40: 643170.3152 | AU40: 123.5921053 | AV40: -2.407894737 | AW40: 126 | AX40: =[5]Data!$AU40 -> 124.7517787 | AY40: 126 | BB40: =($M$9-$AU$40)*$A$34 -> 180.5921053 | BC40: 9269.407895 | BD40: =$BB$40/$BC$40*D40 -> 0 | BE40: =$BB$40/$BC$40*E40 -> 0 | BF40: 0 | BG40: 0 | BH40: 0 | BI40: 0 | BJ40: 0 | BK40: 42.98988048 | BL40: 60.77415573 | BM40: 0 | BN40: 1.461194507 | BO40: 13.20842929 | BP40: 0 | BQ40: 38.77933315 | BR40: 17.53433408 | BS40: 0 | BT40: 2.922389013 | BU40: 0 | BV40: 0 | BX40: =$BB$40/$BC$40*Y40 -> 0 | BY40: =$BB$40/$BC$40*Z40 -> 0 | BZ40: 0 | CA40: 0 | CB40: 0 | CC40: 0 | CD40: 0 | CE40: 0 | CF40: 2.922389013 | CG40: 0 | CH40: 0 | CI40: 0 | CJ40: 0 | CK40: 0 | CL40: 0 | CM40: 0 | CN40: 0 | CO40: 0 | CP40: 0
A41: 7 | B41: Sherbourne Fields | C41: 50 | D41: 0 | E41: =SUMIFS(AutumnProvRep!$K:$K,AutumnProvRep!$A:$A,Data!$A$27,AutumnProvRep!$O:$O,"Coventry",AutumnProvRep!$T:$T,Data!E$17)/$BA$34*$A$34 -> 0 | F41: =SUMIFS(AutumnProvRep!$K:$K,AutumnProvRep!$A:$A,Data!$A$27,AutumnProvRep!$O:$O,"Coventry",AutumnProvRep!$T:$T,Data!F$17)/$BA$34*$A$34 -> 0 | G41: =SUMIFS(AutumnProvRep!$K:$K,AutumnProvRep!$A:$A,Data!$A$27,AutumnProvRep!$O:$O,"Coventry",AutumnProvRep!$T:$T,Data!G$17)/$BA$34*$A$34 -> 0 | H41: =SUMIFS(AutumnProvRep!$K:$K,AutumnProvRep!$A:$A,Data!$A$27,AutumnProvRep!$O:$O,"Coventry",AutumnProvRep!$T:$T,Data!H$17)/$BA$34*$A$34 -> 75 | I41: =SUMIFS(AutumnProvRep!$K:$K,AutumnProvRep!$A:$A,Data!$A$27,AutumnProvRep!$O:$O,"Coventry",AutumnProvRep!$T:$T,Data!I$17)/$BA$34*$A$34 -> 0 | J41: =SUMIFS(AutumnProvRep!$K:$K,AutumnProvRep!$A:$A,Data!$A$27,AutumnProvRep!$O:$O,"Coventry",AutumnProvRep!$T:$T,Data!J$17)/$BA$34*$A$34 -> 0 | K41: =SUMIFS(AutumnProvRep!$K:$K,AutumnProvRep!$A:$A,Data!$A$27,AutumnProvRep!$O:$O,"Coventry",AutumnProvRep!$T:$T,Data!K$17)/$BA$34*$A$34 -> 5996.052632 | L41: =SUMIFS(AutumnProvRep!$K:$K,AutumnProvRep!$A:$A,Data!$A$27,AutumnProvRep!$O:$O,"Coventry",AutumnProvRep!$T:$T,Data!L$17)/$BA$34*$A$34 -> 4950 | M41: =SUMIFS(AutumnProvRep!$K:$K,AutumnProvRep!$A:$A,Data!$A$27,AutumnProvRep!$O:$O,"Coventry",AutumnProvRep!$T:$T,Data!M$17)/$BA$34*$A$34 -> 0 | N41: =SUMIFS(AutumnProvRep!$K:$K,AutumnProvRep!$A:$A,Data!$A$27,AutumnProvRep!$O:$O,"Coventry",AutumnProvRep!$T:$T,Data!N$17)/$BA$34*$A$34 -> 2111.842105 | O41: =SUMIFS(AutumnProvRep!$K:$K,AutumnProvRep!$A:$A,Data!$A$27,AutumnProvRep!$O:$O,"Coventry",AutumnProvRep!$T:$T,Data!O$17)/$BA$34*$A$34 -> 225 | P41: =SUMIFS(AutumnProvRep!$K:$K,AutumnProvRep!$A:$A,Data!$A$27,AutumnProvRep!$O:$O,"Coventry",AutumnProvRep!$T:$T,Data!P$17)/$BA$34*$A$34 -> 0 | Q41: =SUMIFS(AutumnProvRep!$K:$K,AutumnProvRep!$A:$A,Data!$A$27,AutumnProvRep!$O:$O,"Coventry",AutumnProvRep!$T:$T,Data!Q$17)/$BA$34*$A$34 -> 1875 | R41: =SUMIFS(AutumnProvRep!$K:$K,AutumnProvRep!$A:$A,Data!$A$27,AutumnProvRep!$O:$O,"Coventry",AutumnProvRep!$T:$T,Data!R$17)/$BA$34*$A$34 -> 1425 | S41: =SUMIFS(AutumnProvRep!$K:$K,AutumnProvRep!$A:$A,Data!$A$27,AutumnProvRep!$O:$O,"Coventry",AutumnProvRep!$T:$T,Data!S$17)/$BA$34*$A$34 -> 0 | T41: =SUMIFS(AutumnProvRep!$K:$K,AutumnProvRep!$A:$A,Data!$A$27,AutumnProvRep!$O:$O,"Coventry",AutumnProvRep!$T:$T,Data!T$17)/$BA$34*$A$34 -> 1575 | U41: =SUMIFS(AutumnProvRep!$K:$K,AutumnProvRep!$A:$A,Data!$A$27,AutumnProvRep!$O:$O,"Coventry",AutumnProvRep!$T:$T,Data!U$17)/$BA$34*$A$34 -> 75 | V41: =SUMIFS(AutumnProvRep!$K:$K,AutumnProvRep!$A:$A,Data!$A$27,AutumnProvRep!$O:$O,"Coventry",AutumnProvRep!$T:$T,Data!V$17)/$BA$34*$A$34 -> 0 | W41: 244.1052632 | X41: 1194854.818 | Y41: 0 | Z41: =SUMIFS(AutumnProvRep!$K:$K,AutumnProvRep!$A:$A,Data!$A$27,AutumnProvRep!$O:$O,"<>Coventry",AutumnProvRep!$T:$T,Data!Z$17)/$BA$34*$A$34 -> 0 | AA41: =SUMIFS(AutumnProvRep!$K:$K,AutumnProvRep!$A:$A,Data!$A$27,AutumnProvRep!$O:$O,"<>Coventry",AutumnProvRep!$T:$T,Data!AA$17)/$BA$34*$A$34 -> 0 | AB41: =SUMIFS(AutumnProvRep!$K:$K,AutumnProvRep!$A:$A,Data!$A$27,AutumnProvRep!$O:$O,"<>Coventry",AutumnProvRep!$T:$T,Data!AB$17)/$BA$34*$A$34 -> 0 | AC41: =SUMIFS(AutumnProvRep!$K:$K,AutumnProvRep!$A:$A,Data!$A$27,AutumnProvRep!$O:$O,"<>Coventry",AutumnProvRep!$T:$T,Data!AC$17)/$BA$34*$A$34 -> 0 | AD41: =SUMIFS(AutumnProvRep!$K:$K,AutumnProvRep!$A:$A,Data!$A$27,AutumnProvRep!$O:$O,"<>Coventry",AutumnProvRep!$T:$T,Data!AD$17)/$BA$34*$A$34 -> 0 | AE41: =SUMIFS(AutumnProvRep!$K:$K,AutumnProvRep!$A:$A,Data!$A$27,AutumnProvRep!$O:$O,"<>Coventry",AutumnProvRep!$T:$T,Data!AE$17)/$BA$34*$A$34 -> 0 | AF41: =SUMIFS(AutumnProvRep!$K:$K,AutumnProvRep!$A:$A,Data!$A$27,AutumnProvRep!$O:$O,"<>Coventry",AutumnProvRep!$T:$T,Data!AF$17)/$BA$34*$A$34 -> 75 | AG41: =SUMIFS(AutumnProvRep!$K:$K,AutumnProvRep!$A:$A,Data!$A$27,AutumnProvRep!$O:$O,"<>Coventry",AutumnProvRep!$T:$T,Data!AG$17)/$BA$34*$A$34 -> 0 | AH41: =SUMIFS(AutumnProvRep!$K:$K,AutumnProvRep!$A:$A,Data!$A$27,AutumnProvRep!$O:$O,"<>Coventry",AutumnProvRep!$T:$T,Data!AH$17)/$BA$34*$A$34 -> 0 | AI41: =SUMIFS(AutumnProvRep!$K:$K,AutumnProvRep!$A:$A,Data!$A$27,AutumnProvRep!$O:$O,"<>Coventry",AutumnProvRep!$T:$T,Data!AI$17)/$BA$34*$A$34 -> 75 | AJ41: =SUMIFS(AutumnProvRep!$K:$K,AutumnProvRep!$A:$A,Data!$A$27,AutumnProvRep!$O:$O,"<>Coventry",AutumnProvRep!$T:$T,Data!AJ$17)/$BA$34*$A$34 -> 0 | AK41: =SUMIFS(AutumnProvRep!$K:$K,AutumnProvRep!$A:$A,Data!$A$27,AutumnProvRep!$O:$O,"<>Coventry",AutumnProvRep!$T:$T,Data!AK$17)/$BA$34*$A$34 -> 0 | AL41: =SUMIFS(AutumnProvRep!$K:$K,AutumnProvRep!$A:$A,Data!$A$27,AutumnProvRep!$O:$O,"<>Coventry",AutumnProvRep!$T:$T,Data!AL$17)/$BA$34*$A$34 -> 0 | AM41: =SUMIFS(AutumnProvRep!$K:$K,AutumnProvRep!$A:$A,Data!$A$27,AutumnProvRep!$O:$O,"<>Coventry",AutumnProvRep!$T:$T,Data!AM$17)/$BA$34*$A$34 -> 0 | AN41: =SUMIFS(AutumnProvRep!$K:$K,AutumnProvRep!$A:$A,Data!$A$27,AutumnProvRep!$O:$O,"<>Coventry",AutumnProvRep!$T:$T,Data!AN$17)/$BA$34*$A$34 -> 0 | AO41: =SUMIFS(AutumnProvRep!$K:$K,AutumnProvRep!$A:$A,Data!$A$27,AutumnProvRep!$O:$O,"<>Coventry",AutumnProvRep!$T:$T,Data!AO$17)/$BA$34*$A$34 -> 150 | AP41: =SUMIFS(AutumnProvRep!$K:$K,AutumnProvRep!$A:$A,Data!$A$27,AutumnProvRep!$O:$O,"<>Coventry",AutumnProvRep!$T:$T,Data!AP$17)/$BA$34*$A$34 -> 0 | AQ41: =SUMIFS(AutumnProvRep!$K:$K,AutumnProvRep!$A:$A,Data!$A$27,AutumnProvRep!$O:$O,"<>Coventry",AutumnProvRep!$T:$T,Data!AQ$17)/$BA$34*$A$34 -> 0 | AR41: 4 | AS41: 21745.73397 | AT41: 1216600.552 | AU41: 248.1052632 | AV41: -9.894736842 | AW41: 258 | AX41: =[5]Data!$AU41 -> 249.2160557 | AY41: 251 | BB41: =($M$10-$AU$41)*$A$34 -> 742.1052632 | BC41: 18607.89474 | BD41: =$BB$41/$BC$41*D41 -> 0 | BE41: =$BB$41/$BC$41*E41 -> 0 | BF41: 0 | BG41: 0 | BH41: 2.991090369 | BI41: 0 | BJ41: 0 | BK41: 239.1298037 | BL41: 197.4119644 | BM41: 0 | BN41: 84.22280776 | BO41: 8.973271107 | BP41: 0 | BQ41: 74.77725923 | BR41: 56.83071701 | BS41: 0 | BT41: 62.81289775 | BU41: 2.991090369 | BV41: 0 | BX41: =$BB$41/$BC$41*Y41 -> 0 | BY41: =$BB$41/$BC$41*Z41 -> 0 | BZ41: 0 | CA41: 0 | CB41: 0 | CC41: 0 | CD41: 0 | CE41: 2.991090369 | CF41: 0 | CG41: 0 | CH41: 2.991090369 | CI41: 0 | CJ41: 0 | CK41: 0 | CL41: 0 | CM41: 0 | CN41: 5.982180738 | CO41: 0 | CP41: 0
A42: 8 | B42: Woodfield | C42: =10000/$A$16 -> 50 | D42: 0 | E42: =SUMIFS(AutumnProvRep!$K:$K,AutumnProvRep!$A:$A,Data!$A$28,AutumnProvRep!$O:$O,"Coventry",AutumnProvRep!$T:$T,Data!E$17)/$BA$34*$A$34 -> 0 | F42: =SUMIFS(AutumnProvRep!$K:$K,AutumnProvRep!$A:$A,Data!$A$28,AutumnProvRep!$O:$O,"Coventry",AutumnProvRep!$T:$T,Data!F$17)/$BA$34*$A$34 -> 0 | G42: =SUMIFS(AutumnProvRep!$K:$K,AutumnProvRep!$A:$A,Data!$A$28,AutumnProvRep!$O:$O,"Coventry",AutumnProvRep!$T:$T,Data!G$17)/$BA$34*$A$34 -> 0 | H42: =SUMIFS(AutumnProvRep!$K:$K,AutumnProvRep!$A:$A,Data!$A$28,AutumnProvRep!$O:$O,"Coventry",AutumnProvRep!$T:$T,Data!H$17)/$BA$34*$A$34 -> 0 | I42: =SUMIFS(AutumnProvRep!$K:$K,AutumnProvRep!$A:$A,Data!$A$28,AutumnProvRep!$O:$O,"Coventry",AutumnProvRep!$T:$T,Data!I$17)/$BA$34*$A$34 -> 0 | J42: =SUMIFS(AutumnProvRep!$K:$K,AutumnProvRep!$A:$A,Data!$A$28,AutumnProvRep!$O:$O,"Coventry",AutumnProvRep!$T:$T,Data!J$17)/$BA$34*$A$34 -> 0 | K42: =SUMIFS(AutumnProvRep!$K:$K,AutumnProvRep!$A:$A,Data!$A$28,AutumnProvRep!$O:$O,"Coventry",AutumnProvRep!$T:$T,Data!K$17)/$BA$34*$A$34 -> 0 | L42: =SUMIFS(AutumnProvRep!$K:$K,AutumnProvRep!$A:$A,Data!$A$28,AutumnProvRep!$O:$O,"Coventry",AutumnProvRep!$T:$T,Data!L$17)/$BA$34*$A$34 -> 0 | M42: =SUMIFS(AutumnProvRep!$K:$K,AutumnProvRep!$A:$A,Data!$A$28,AutumnProvRep!$O:$O,"Coventry",AutumnProvRep!$T:$T,Data!M$17)/$BA$34*$A$34 -> 75 | N42: =SUMIFS(AutumnProvRep!$K:$K,AutumnProvRep!$A:$A,Data!$A$28,AutumnProvRep!$O:$O,"Coventry",AutumnProvRep!$T:$T,Data!N$17)/$BA$34*$A$34 -> 0 | O42: =SUMIFS(AutumnProvRep!$K:$K,AutumnProvRep!$A:$A,Data!$A$28,AutumnProvRep!$O:$O,"Coventry",AutumnProvRep!$T:$T,Data!O$17)/$BA$34*$A$34 -> 825 | P42: =SUMIFS(AutumnProvRep!$K:$K,AutumnProvRep!$A:$A,Data!$A$28,AutumnProvRep!$O:$O,"Coventry",AutumnProvRep!$T:$T,Data!P$17)/$BA$34*$A$34 -> 0 | Q42: =SUMIFS(AutumnProvRep!$K:$K,AutumnProvRep!$A:$A,Data!$A$28,AutumnProvRep!$O:$O,"Coventry",AutumnProvRep!$T:$T,Data!Q$17)/$BA$34*$A$34 -> 9377.960526 | R42: =SUMIFS(AutumnProvRep!$K:$K,AutumnProvRep!$A:$A,Data!$A$28,AutumnProvRep!$O:$O,"Coventry",AutumnProvRep!$T:$T,Data!R$17)/$BA$34*$A$34 -> 0 | S42: =SUMIFS(AutumnProvRep!$K:$K,AutumnProvRep!$A:$A,Data!$A$28,AutumnProvRep!$O:$O,"Coventry",AutumnProvRep!$T:$T,Data!S$17)/$BA$34*$A$34 -> 75 | T42: =SUMIFS(AutumnProvRep!$K:$K,AutumnProvRep!$A:$A,Data!$A$28,AutumnProvRep!$O:$O,"Coventry",AutumnProvRep!$T:$T,Data!T$17)/$BA$34*$A$34 -> 0 | U42: =SUMIFS(AutumnProvRep!$K:$K,AutumnProvRep!$A:$A,Data!$A$28,AutumnProvRep!$O:$O,"Coventry",AutumnProvRep!$T:$T,Data!U$17)/$BA$34*$A$34 -> 300 | V42: =SUMIFS(AutumnProvRep!$K:$K,AutumnProvRep!$A:$A,Data!$A$28,AutumnProvRep!$O:$O,"Coventry",AutumnProvRep!$T:$T,Data!V$17)/$BA$34*$A$34 -> 0 | W42: =SUM(D42:V42)/$A$34 -> 142.0394737 | X42: 1029025.575 | Y42: 0 | Z42: =SUMIFS(AutumnProvRep!$K:$K,AutumnProvRep!$A:$A,Data!$A$28,AutumnProvRep!$O:$O,"<>Coventry",AutumnProvRep!$T:$T,Data!Z$17)/$BA$34*$A$34 -> 0 | AA42: =SUMIFS(AutumnProvRep!$K:$K,AutumnProvRep!$A:$A,Data!$A$28,AutumnProvRep!$O:$O,"<>Coventry",AutumnProvRep!$T:$T,Data!AA$17)/$BA$34*$A$34 -> 0 | AB42: =SUMIFS(AutumnProvRep!$K:$K,AutumnProvRep!$A:$A,Data!$A$28,AutumnProvRep!$O:$O,"<>Coventry",AutumnProvRep!$T:$T,Data!AB$17)/$BA$34*$A$34 -> 0 | AC42: =SUMIFS(AutumnProvRep!$K:$K,AutumnProvRep!$A:$A,Data!$A$28,AutumnProvRep!$O:$O,"<>Coventry",AutumnProvRep!$T:$T,Data!AC$17)/$BA$34*$A$34 -> 0 | AD42: =SUMIFS(AutumnProvRep!$K:$K,AutumnProvRep!$A:$A,Data!$A$28,AutumnProvRep!$O:$O,"<>Coventry",AutumnProvRep!$T:$T,Data!AD$17)/$BA$34*$A$34 -> 0 | AE42: =SUMIFS(AutumnProvRep!$K:$K,AutumnProvRep!$A:$A,Data!$A$28,AutumnProvRep!$O:$O,"<>Coventry",AutumnProvRep!$T:$T,Data!AE$17)/$BA$34*$A$34 -> 0 | AF42: =SUMIFS(AutumnProvRep!$K:$K,AutumnProvRep!$A:$A,Data!$A$28,AutumnProvRep!$O:$O,"<>Coventry",AutumnProvRep!$T:$T,Data!AF$17)/$BA$34*$A$34 -> 0 | AG42: =SUMIFS(AutumnProvRep!$K:$K,AutumnProvRep!$A:$A,Data!$A$28,AutumnProvRep!$O:$O,"<>Coventry",AutumnProvRep!$T:$T,Data!AG$17)/$BA$34*$A$34 -> 0 | AH42: =SUMIFS(AutumnProvRep!$K:$K,AutumnProvRep!$A:$A,Data!$A$28,AutumnProvRep!$O:$O,"<>Coventry",AutumnProvRep!$T:$T,Data!AH$17)/$BA$34*$A$34 -> 0 | AI42: =SUMIFS(AutumnProvRep!$K:$K,AutumnProvRep!$A:$A,Data!$A$28,AutumnProvRep!$O:$O,"<>Coventry",AutumnProvRep!$T:$T,Data!AI$17)/$BA$34*$A$34 -> 0 | AJ42: =SUMIFS(AutumnProvRep!$K:$K,AutumnProvRep!$A:$A,Data!$A$28,AutumnProvRep!$O:$O,"<>Coventry",AutumnProvRep!$T:$T,Data!AJ$17)/$BA$34*$A$34 -> 75 | AK42: =SUMIFS(AutumnProvRep!$K:$K,AutumnProvRep!$A:$A,Data!$A$28,AutumnProvRep!$O:$O,"<>Coventry",AutumnProvRep!$T:$T,Data!AK$17)/$BA$34*$A$34 -> 0 | AL42: =SUMIFS(AutumnProvRep!$K:$K,AutumnProvRep!$A:$A,Data!$A$28,AutumnProvRep!$O:$O,"<>Coventry",AutumnProvRep!$T:$T,Data!AL$17)/$BA$34*$A$34 -> 170.7236842 | AM42: =SUMIFS(AutumnProvRep!$K:$K,AutumnProvRep!$A:$A,Data!$A$28,AutumnProvRep!$O:$O,"<>Coventry",AutumnProvRep!$T:$T,Data!AM$17)/$BA$34*$A$34 -> 0 | AN42: =SUMIFS(AutumnProvRep!$K:$K,AutumnProvRep!$A:$A,Data!$A$28,AutumnProvRep!$O:$O,"<>Coventry",AutumnProvRep!$T:$T,Data!AN$17)/$BA$34*$A$34 -> 0 | AO42: =SUMIFS(AutumnProvRep!$K:$K,AutumnProvRep!$A:$A,Data!$A$28,AutumnProvRep!$O:$O,"<>Coventry",AutumnProvRep!$T:$T,Data!AO$17)/$BA$34*$A$34 -> 0 | AP42: =SUMIFS(AutumnProvRep!$K:$K,AutumnProvRep!$A:$A,Data!$A$28,AutumnProvRep!$O:$O,"<>Coventry",AutumnProvRep!$T:$T,Data!AP$17)/$BA$34*$A$34 -> 0 | AQ42: =SUMIFS(AutumnProvRep!$K:$K,AutumnProvRep!$A:$A,Data!$A$28,AutumnProvRep!$O:$O,"<>Coventry",AutumnProvRep!$T:$T,Data!AQ$17)/$BA$34*$A$34 -> 0 | AR42: 3.276315789 | AS42: 24558.23653 | AT42: 1053583.812 | AU42: 145.3157895 | AV42: -9.684210526 | AW42: 155 | AX42: =[5]Data!$AU42 -> 151.7857143 | AY42: 155 | BB42: =($M$11-$AU$42)*$A$34 -> 726.3157895 | BC42: 10898.68421 | BD42: =$BB$42/$BC$42*D42 -> 0 | BE42: =$BB$42/$BC$42*E42 -> 0 | BF42: 0 | BG42: 0 | BH42: 0 | BI42: 0 | BJ42: 0 | BK42: 0 | BL42: 0 | BM42: 4.998189062 | BN42: 0 | BO42: 54.98007968 | BP42: 0 | BQ42: 624.9709297 | BR42: 0 | BS42: 4.998189062 | BT42: 0 | BU42: 19.99275625 | BV42: 0 | BX42: =$BB$42/$BC$42*Y42 -> 0 | BY42: =$BB$42/$BC$42*Z42 -> 0 | BZ42: 0 | CA42: 0 | CB42: 0 | CC42: 0 | CD42: 0 | CE42: 0 | CF42: 0 | CG42: 0 | CH42: 0 | CI42: 4.998189062 | CJ42: 0 | CK42: 11.37745668 | CL42: 0 | CM42: 0 | CN42: 0 | CO42: 0 | CP42: 0
A43: 9 | B43: Coventry ELC | C43: =10000/$A$16 -> 50 | D43: =120*A34 -> 9000 | E43: 0 | F43: 0 | G43: 0 | H43: 0 | I43: 0 | J43: 0 | K43: 0 | L43: 0 | M43: 0 | N43: 0 | O43: 0 | P43: 0 | Q43: 0 | R43: 0 | S43: 0 | T43: 0 | U43: 0 | V43: 0 | W43: =SUM(D43:V43)/$A$34 -> 120 | X43: =SUMPRODUCT(D43:V43,$V$12:$AN$12)/$A$16 -> 604553.28 | Y43: =A34*0 -> 0 | Z43: 0 | AA43: 0 | AB43: 0 | AC43: 0 | AD43: 0 | AE43: 0 | AF43: 0 | AG43: 0 | AH43: 0 | AI43: 0 | AJ43: 0 | AK43: 0 | AL43: 0 | AM43: 0 | AN43: 0 | AO43: 0 | AP43: 0 | AQ43: 0 | AR43: 0 | AS43: =SUMPRODUCT(Y43:AQ43,$V$12:$AN$12)/$A$16 -> 0 | AT43: 604553.28 | AU43: 120 | AV43: =AU43-AW43 -> 0 | AW43: 120 | AX43: =[5]Data!$AU43 -> 120 | AY43: 120 | BB43: =($M$12-$AU$43)*$A$34 -> 0 | BC43: 9000 | BD43: =$BB$43/$BC$43*D43 -> 0 | BE43: =$BB$43/$BC$43*E43 -> 0 | BF43: 0 | BG43: 0 | BH43: 0 | BI43: 0 | BJ43: 0 | BK43: 0 | BL43: 0 | BM43: 0 | BN43: 0 | BO43: 0 | BP43: 0 | BQ43: 0 | BR43: 0 | BS43: 0 | BT43: 0 | BU43: 0 | BV43: 0 | BX43: =$BB$43/$BC$43*Y43 -> 0 | BY43: =$BB$43/$BC$43*Z43 -> 0 | BZ43: 0 | CA43: 0 | CB43: 0 | CC43: 0 | CD43: 0 | CE43: 0 | CF43: 0 | CG43: 0 | CH43: 0 | CI43: 0 | CJ43: 0 | CK43: 0 | CL43: 0 | CM43: 0 | CN43: 0 | CO43: 0 | CP43: 0
AS44: =SUM(AS35:AS43) -> 97354.69288 | AT44: =SUM(AT35:AT43) -> 6981154.078 | AU44: =SUM(AU35:AU43) -> 1355.144737
B45: Autumn Term 2024
A46: 75 | B46: School
A47: 1 | B47: Castle Wood | C47: =10000/$A$16 -> 50 | D47: =D35+BD35 -> 0 | E47: =E35+BE35 -> 0 | F47: =F35+BF35 -> 0 | G47: =G35+BG35 -> 0 | H47: =H35+BH35 -> 0 | I47: =I35+BI35 -> 0 | J47: =J35+BJ35 -> 75.37813042 | K47: =K35+BK35 -> 6440.862881 | L47: =L35+BL35 -> 1029.506571 | M47: =M35+BM35 -> 75.37813042 | N47: =N35+BN35 -> 376.8906521 | O47: =O35+BO35 -> 603.0250434 | P47: =P35+BP35 -> 0 | Q47: =Q35+BQ35 -> 2189.933052 | R47: =R35+BR35 -> 603.0250434 | S47: =S35+BS35 -> 0 | T47: =T35+BT35 -> 417.5551698 | U47: =U35+BU35 -> 113.0671956 | V47: =V35+BV35 -> 0 | W47: =SUM(D47:V47)/$A$34 -> 158.9949583 | X47: =SUMPRODUCT(D47:V47,$V$6:$AN$6)/$A$16 -> 825844.4696 | Y47: =Y35+BX35 -> 0 | Z47: =Z35+BY35 -> 0 | AA47: =AA35+BZ35 -> 0 | AB47: =AB35+CA35 -> 0 | AC47: =AC35+CB35 -> 0 | AD47: =AD35+CC35 -> 0 | AE47: =AE35+CD35 -> 0 | AF47: =AF35+CE35 -> 75.37813042 | AG47: =AG35+CF35 -> 0 | AH47: =AH35+CG35 -> 0 | AI47: =AI35+CH35 -> 0 | AJ47: =AJ35+CI35 -> 0 | AK47: =AK35+CJ35 -> 0 | AL47: =AL35+CK35 -> 0 | AM47: =AM35+CL35 -> 0 | AN47: =AN35+CM35 -> 0 | AO47: =AO35+CN35 -> 0 | AP47: =AP35+CO35 -> 0 | AQ47: =AQ35+CP35 -> 0 | AR47: =SUM(Y47:AQ47)/$A$34 -> 1.005041739 | AS47: =SUMPRODUCT(Y47:AQ47,$V$6:$AN$6)/$A$16 -> 4162.928735 | AT47: =X47+AS47 -> 830007.3983 | AU47: =AR47+W47 -> 160 | AV47: =AU47-AW47 -> 0 | AW47: =M4 -> 160 | AX47: =[5]Data!$AU35 -> 160.2 | AY47: =E4 -> 160 | BA47: =(AT47/75*200)/AU47 -> 13833.45664
A48: 2 | B48: Kingsbury | C48: =10000/$A$16 -> 50 | D48: =D36+BD36 -> 0 | E48: 0 | F48: 0 | G48: 0 | H48: 0 | I48: 0 | J48: =J36+BJ36 -> 0 | K48: 4529.70297 | L48: =L36+BL36 -> 371.2871287 | M48: 0 | N48: 0 | O48: 248.1761334 | P48: 0 | Q48: =Q36+BQ36 -> 1856.435644 | R48: 148.5148515 | S48: 0 | T48: 0 | U48: 48.85356957 | V48: 0 | W48: 96.03960396 | X48: =SUMPRODUCT(D48:V48,$V$6:$AN$6)/$A$16 -> 490635.9881 | Y48: =Y36+BX36 -> 0 | Z48: 0 | AA48: 0 | AB48: 0 | AC48: 0 | AD48: 0 | AE48: 0 | AF48: 148.5148515 | AG48: 74.25742574 | AH48: 0 | AI48: 0 | AJ48: 0 | AK48: 0 | AL48: 74.25742574 | AM48: 0 | AN48: 0 | AO48: 0 | AP48: 0 | AQ48: 0 | AR48: =SUM(Y48:AQ48)/$A$34 -> 3.96039604 | AS48: 18659.71421 | AT48: 509295.7023 | AU48: 100 | AV48: 0 | AW48: 100 | AX48: =[5]Data!$AU36 -> 100.1428571 | AY48: 100 | BA48: =(AT48/75*200)/AU48 -> 13581.21873
A49: 3 | B49: RiverBank | C49: 50 | D49: 0 | E49: 0 | F49: 0 | G49: 761.4213198 | H49: 1142.13198 | I49: 0 | J49: 0 | K49: =K37+BK37 -> 5253.807107 | L49: 4111.675127 | M49: 152.284264 | N49: 532.9949239 | O49: 304.5685279 | P49: 228.4263959 | Q49: 1827.411168 | R49: 380.7106599 | S49: 0 | T49: 152.284264 | U49: 0 | V49: 0 | W49: 197.9695431 | X49: 877904.116 | Y49: 0 | Z49: 0 | AA49: 0 | AB49: 76.14213198 | AC49: 0 | AD49: 0 | AE49: 0 | AF49: 76.14213198 | AG49: 0 | AH49: 0 | AI49: 0 | AJ49: 0 | AK49: 0 | AL49: 0 | AM49: 0 | AN49: 0 | AO49: 0 | AP49: 0 | AQ49: 0 | AR49: 2.030456853 | AS49: 5466.659646 | AT49: 883370.7756 | AU49: 200 | AV49: 0 | AW49: 200 | AX49: =[5]Data!$AU37 -> 198.3142857 | AY49: 200 | BA49: 11778.27701
A50: 4 | B50: Corley | C50: 50 | D50: 0 | E50: 0 | F50: 0 | G50: 0 | H50: 0 | I50: 0 | J50: 0 | K50: 9255.929265 | L50: 0 | M50: 594.4174757 | N50: 0 | O50: 304.1955617 | P50: 0 | Q50: 1388.765603 | R50: 0 | S50: 0 | T50: 0 | U50: 0 | V50: 0 | W50: 153.9107721 | X50: 714312.3889 | Y50: 0 | Z50: 0 | AA50: 0 | AB50: 0 | AC50: 0 | AD50: 0 | AE50: 0 | AF50: 81.69209431 | AG50: 0 | AH50: 0 | AI50: 0 | AJ50: 0 | AK50: 0 | AL50: 0 | AM50: 0 | AN50: 0 | AO50: 0 | AP50: 0 | AQ50: 0 | AR50: 1.089227924 | AS50: 4511.631754 | AT50: 718824.0206 | AU50: 155 | AV50: 0 | AW50: 155 | AX50: =[5]Data!$AU38 -> 148.6511628 | AY50: 140 | BA50: 12366.86487
A51: 5 | B51: Tiverton | C51: 50 | D51: 0 | E51: 0 | F51: 0 | G51: 0 | H51: 0 | I51: 0 | J51: 0 | K51: 5287.366903 | L51: 1076.652618 | M51: 0 | N51: 496.9165927 | O51: 496.9165927 | P51: 0 | Q51: 1390.494676 | R51: 579.7360248 | S51: 0 | T51: 331.2777285 | U51: 0 | V51: 0 | W51: 128.7914818 | X51: 642768.9383 | Y51: 0 | Z51: 0 | AA51: 0 | AB51: 0 | AC51: 0 | AD51: 0 | AE51: 0 | AF51: 82.81943212 | AG51: 0 | AH51: 0 | AI51: 0 | AJ51: 0 | AK51: 0 | AL51: 82.81943212 | AM51: 0 | AN51: 0 | AO51: 0 | AP51: 0 | AQ51: 0 | AR51: 2.20851819 | AS51: 12006.46715 | AT51: 654775.4055 | AU51: 131 | AV51: 0 | AW51: 131 | AX51: =[5]Data!$AU39 -> 119.0535714 | AY51: 118 | BA51: 13328.76143
A52: 6 | B52: Baginton Fields | C52: 50 | D52: 0 | E52: 0 | F52: 0 | G52: 0 | H52: 0 | I52: 0 | J52: 0 | K52: 2249.568828 | L52: 3180.18205 | M52: 0 | N52: 76.46119451 | O52: 691.1689556 | P52: 0 | Q52: 2029.239859 | R52: 917.5343341 | S52: 0 | T52: 152.922389 | U52: 0 | V52: 0 | W52: 123.9610348 | X52: 647888.8614 | Y52: 0 | Z52: 0 | AA52: 0 | AB52: 0 | AC52: 0 | AD52: 0 | AE52: 0 | AF52: 0 | AG52: 152.922389 | AH52: 0 | AI52: 0 | AJ52: 0 | AK52: 0 | AL52: 0 | AM52: 0 | AN52: 0 | AO52: =AO40+CN40 -> 0 | AP52: 0 | AQ52: 0 | AR52: 2.038965187 | AS52: 7812.079607 | AT52: 655700.941 | AU52: 126 | AV52: 0 | AW52: 126 | AX52: =[5]Data!$AU40 -> 124.7517787 | AY52: 126 | BA52: 13877.26859
A53: 7 | B53: Sherbourne Fields | C53: 50 | D53: 0 | E53: 0 | F53: 0 | G53: 0 | H53: 77.99109037 | I53: 0 | J53: 0 | K53: 6235.182435 | L53: 5147.411964 | M53: 0 | N53: 2196.064913 | O53: 233.9732711 | P53: 0 | Q53: 1949.777259 | R53: 1481.830717 | S53: 0 | T53: 1637.812898 | U53: 77.99109037 | V53: 0 | W53: 253.8404752 | X53: 1242507.068 | Y53: 0 | Z53: 0 | AA53: 0 | AB53: 0 | AC53: 0 | AD53: 0 | AE53: 0 | AF53: 77.99109037 | AG53: 0 | AH53: 0 | AI53: 77.99109037 | AJ53: 0 | AK53: 0 | AL53: 0 | AM53: 0 | AN53: 0 | AO53: 155.9821807 | AP53: 0 | AQ53: 0 | AR53: 4.15952482 | AS53: 22612.98005 | AT53: 1265120.048 | AU53: 258 | AV53: 0 | AW53: 258 | AX53: =[5]Data!$AU41 -> 249.2160557 | AY53: 251 | BA53: 13076.1762
A54: 8 | B54: Woodfield | C54: =10000/$A$16 -> 50 | D54: 0 | E54: 0 | F54: 0 | G54: 0 | H54: 0 | I54: 0 | J54: 0 | K54: 0 | L54: 0 | M54: 79.99818906 | N54: 0 | O54: 879.9800797 | P54: 0 | Q54: 10002.93146 | R54: 0 | S54: 79.99818906 | T54: 0 | U54: 319.9927562 | V54: 0 | W54: =SUM(D54:V54)/$A$34 -> 151.5053423 | X54: 1097602.434 | Y54: 0 | Z54: 0 | AA54: 0 | AB54: 0 | AC54: 0 | AD54: 0 | AE54: 0 | AF54: 0 | AG54: 0 | AH54: 0 | AI54: 0 | AJ54: 79.99818906 | AK54: 0 | AL54: 182.1011409 | AM54: 0 | AN54: 0 | AO54: 0 | AP54: 0 | AQ54: 0 | AR54: 3.494657733 | AS54: 26194.85932 | AT54: 1123797.293 | AU54: 155 | AV54: 0 | AW54: 155 | AX54: =[5]Data!$AU42 -> 151.7857143 | AY54: 155 | BA54: 19334.14697
A55: 9 | B55: Coventry ELC | C55: =10000/$A$16 -> 50 | D55: 9000 | E55: 0 | F55: 0 | G55: 0 | H55: 0 | I55: 0 | J55: 0 | K55: 0 | L55: 0 | M55: 0 | N55: 0 | O55: 0 | P55: 0 | Q55: 0 | R55: 0 | S55: 0 | T55: 0 | U55: 0 | V55: 0 | W55: =SUM(D55:V55)/$A$34 -> 120 | X55: =SUMPRODUCT(D55:V55,$V$12:$AN$12)/$A$16 -> 604553.28 | Y55: 0 | Z55: 0 | AA55: 0 | AB55: 0 | AC55: 0 | AD55: 0 | AE55: 0 | AF55: 0 | AG55: 0 | AH55: 0 | AI55: 0 | AJ55: 0 | AK55: 0 | AL55: 0 | AM55: 0 | AN55: 0 | AO55: 0 | AP55: 0 | AQ55: 0 | AR55: 0 | AS55: =SUMPRODUCT(Y55:AQ55,$V$12:$AN$12)/$A$16 -> 0 | AT55: 604553.28 | AU55: 120 | AV55: =AU55-AW55 -> 0 | AW55: 120 | AX55: =[5]Data!$AU43 -> 120 | AY55: 120 | BA55: 13434.51733
AS56: =SUM(AS47:AS55) -> 101427.3205 | AT56: =SUM(AT47:AT55) -> 7245444.864 | AU56: =SUM(AU47:AU55) -> 1405
D59: Coventry pupils | Y59: Other LA Pupils
B60: Spring Term 2025
A61: 56 | B61: School | BA61: 50
A62: 1 | B62: Castle Wood | C62: =10000/$A$16 -> 50 | D62: 0 | E62: =SUMIFS(SpringProvRep!$K:$K,SpringProvRep!$A:$A,Data!$A$21,SpringProvRep!$O:$O,"Coventry",SpringProvRep!$T:$T,Data!E$17)/$BA$61*$A$61 -> 0 | F62: =SUMIFS(SpringProvRep!$K:$K,SpringProvRep!$A:$A,Data!$A$21,SpringProvRep!$O:$O,"Coventry",SpringProvRep!$T:$T,Data!F$17)/$BA$61*$A$61 -> 0 | G62: =SUMIFS(SpringProvRep!$K:$K,SpringProvRep!$A:$A,Data!$A$21,SpringProvRep!$O:$O,"Coventry",SpringProvRep!$T:$T,Data!G$17)/$BA$61*$A$61 -> 0 | H62: =SUMIFS(SpringProvRep!$K:$K,SpringProvRep!$A:$A,Data!$A$21,SpringProvRep!$O:$O,"Coventry",SpringProvRep!$T:$T,Data!H$17)/$BA$61*$A$61 -> 0 | I62: =SUMIFS(SpringProvRep!$K:$K,SpringProvRep!$A:$A,Data!$A$21,SpringProvRep!$O:$O,"Coventry",SpringProvRep!$T:$T,Data!I$17)/$BA$61*$A$61 -> 0 | J62: =SUMIFS(SpringProvRep!$K:$K,SpringProvRep!$A:$A,Data!$A$21,SpringProvRep!$O:$O,"Coventry",SpringProvRep!$T:$T,Data!J$17)/$BA$61*$A$61 -> 56 | K62: =SUMIFS(SpringProvRep!$K:$K,SpringProvRep!$A:$A,Data!$A$21,SpringProvRep!$O:$O,"Coventry",SpringProvRep!$T:$T,Data!K$17)/$BA$61*$A$61 -> 4785.76 | L62: =SUMIFS(SpringProvRep!$K:$K,SpringProvRep!$A:$A,Data!$A$21,SpringProvRep!$O:$O,"Coventry",SpringProvRep!$T:$T,Data!L$17)/$BA$61*$A$61 -> 728 | M62: =SUMIFS(SpringProvRep!$K:$K,SpringProvRep!$A:$A,Data!$A$21,SpringProvRep!$O:$O,"Coventry",SpringProvRep!$T:$T,Data!M$17)/$BA$61*$A$61 -> 56 | N62: =SUMIFS(SpringProvRep!$K:$K,SpringProvRep!$A:$A,Data!$A$21,SpringProvRep!$O:$O,"Coventry",SpringProvRep!$T:$T,Data!N$17)/$BA$61*$A$61 -> 280 | O62: =SUMIFS(SpringProvRep!$K:$K,SpringProvRep!$A:$A,Data!$A$21,SpringProvRep!$O:$O,"Coventry",SpringProvRep!$T:$T,Data!O$17)/$BA$61*$A$61 -> 560 | P62: =SUMIFS(SpringProvRep!$K:$K,SpringProvRep!$A:$A,Data!$A$21,SpringProvRep!$O:$O,"Coventry",SpringProvRep!$T:$T,Data!P$17)/$BA$61*$A$61 -> 0 | Q62: =SUMIFS(SpringProvRep!$K:$K,SpringProvRep!$A:$A,Data!$A$21,SpringProvRep!$O:$O,"Coventry",SpringProvRep!$T:$T,Data!Q$17)/$BA$61*$A$61 -> 1656.48 | R62: =SUMIFS(SpringProvRep!$K:$K,SpringProvRep!$A:$A,Data!$A$21,SpringProvRep!$O:$O,"Coventry",SpringProvRep!$T:$T,Data!R$17)/$BA$61*$A$61 -> 448 | S62: =SUMIFS(SpringProvRep!$K:$K,SpringProvRep!$A:$A,Data!$A$21,SpringProvRep!$O:$O,"Coventry",SpringProvRep!$T:$T,Data!S$17)/$BA$61*$A$61 -> 0 | T62: =SUMIFS(SpringProvRep!$K:$K,SpringProvRep!$A:$A,Data!$A$21,SpringProvRep!$O:$O,"Coventry",SpringProvRep!$T:$T,Data!T$17)/$BA$61*$A$61 -> 336 | U62: =SUMIFS(SpringProvRep!$K:$K,SpringProvRep!$A:$A,Data!$A$21,SpringProvRep!$O:$O,"Coventry",SpringProvRep!$T:$T,Data!U$17)/$BA$61*$A$61 -> 94.08 | V62: =SUMIFS(SpringProvRep!$K:$K,SpringProvRep!$A:$A,Data!$A$21,SpringProvRep!$O:$O,"Coventry",SpringProvRep!$T:$T,Data!V$17)/$BA$61*$A$61 -> 0 | W62: =SUM(D62:V62)/$A$61 -> 160.72 | X62: =SUMPRODUCT(E62:V62,$W$6:$AN$6)/$A$16 -> 632757.4174 | Y62: 0 | Z62: =SUMIFS(SpringProvRep!$K:$K,SpringProvRep!$A:$A,Data!$A$21,SpringProvRep!$O:$O,"<>Coventry",SpringProvRep!$T:$T,Data!Z$17)/$BA$61*$A$61 -> 0 | AA62: =SUMIFS(SpringProvRep!$K:$K,SpringProvRep!$A:$A,Data!$A$21,SpringProvRep!$O:$O,"<>Coventry",SpringProvRep!$T:$T,Data!AA$17)/$BA$61*$A$61 -> 0 | AB62: =SUMIFS(SpringProvRep!$K:$K,SpringProvRep!$A:$A,Data!$A$21,SpringProvRep!$O:$O,"<>Coventry",SpringProvRep!$T:$T,Data!AB$17)/$BA$61*$A$61 -> 0 | AC62: =SUMIFS(SpringProvRep!$K:$K,SpringProvRep!$A:$A,Data!$A$21,SpringProvRep!$O:$O,"<>Coventry",SpringProvRep!$T:$T,Data!AC$17)/$BA$61*$A$61 -> 0 | AD62: =SUMIFS(SpringProvRep!$K:$K,SpringProvRep!$A:$A,Data!$A$21,SpringProvRep!$O:$O,"<>Coventry",SpringProvRep!$T:$T,Data!AD$17)/$BA$61*$A$61 -> 0 | AE62: =SUMIFS(SpringProvRep!$K:$K,SpringProvRep!$A:$A,Data!$A$21,SpringProvRep!$O:$O,"<>Coventry",SpringProvRep!$T:$T,Data!AE$17)/$BA$61*$A$61 -> 0 | AF62: =SUMIFS(SpringProvRep!$K:$K,SpringProvRep!$A:$A,Data!$A$21,SpringProvRep!$O:$O,"<>Coventry",SpringProvRep!$T:$T,Data!AF$17)/$BA$61*$A$61 -> 56 | AG62: =SUMIFS(SpringProvRep!$K:$K,SpringProvRep!$A:$A,Data!$A$21,SpringProvRep!$O:$O,"<>Coventry",SpringProvRep!$T:$T,Data!AG$17)/$BA$61*$A$61 -> 0 | AH62: =SUMIFS(SpringProvRep!$K:$K,SpringProvRep!$A:$A,Data!$A$21,SpringProvRep!$O:$O,"<>Coventry",SpringProvRep!$T:$T,Data!AH$17)/$BA$61*$A$61 -> 0 | AI62: =SUMIFS(SpringProvRep!$K:$K,SpringProvRep!$A:$A,Data!$A$21,SpringProvRep!$O:$O,"<>Coventry",SpringProvRep!$T:$T,Data!AI$17)/$BA$61*$A$61 -> 0 | AJ62: =SUMIFS(SpringProvRep!$K:$K,SpringProvRep!$A:$A,Data!$A$21,SpringProvRep!$O:$O,"<>Coventry",SpringProvRep!$T:$T,Data!AJ$17)/$BA$61*$A$61 -> 0 | AK62: =SUMIFS(SpringProvRep!$K:$K,SpringProvRep!$A:$A,Data!$A$21,SpringProvRep!$O:$O,"<>Coventry",SpringProvRep!$T:$T,Data!AK$17)/$BA$61*$A$61 -> 0 | AL62: =SUMIFS(SpringProvRep!$K:$K,SpringProvRep!$A:$A,Data!$A$21,SpringProvRep!$O:$O,"<>Coventry",SpringProvRep!$T:$T,Data!AL$17)/$BA$61*$A$61 -> 0 | AM62: =SUMIFS(SpringProvRep!$K:$K,SpringProvRep!$A:$A,Data!$A$21,SpringProvRep!$O:$O,"<>Coventry",SpringProvRep!$T:$T,Data!AM$17)/$BA$61*$A$61 -> 0 | AN62: =SUMIFS(SpringProvRep!$K:$K,SpringProvRep!$A:$A,Data!$A$21,SpringProvRep!$O:$O,"<>Coventry",SpringProvRep!$T:$T,Data!AN$17)/$BA$61*$A$61 -> 0 | AO62: =SUMIFS(SpringProvRep!$K:$K,SpringProvRep!$A:$A,Data!$A$21,SpringProvRep!$O:$O,"<>Coventry",SpringProvRep!$T:$T,Data!AO$17)/$BA$61*$A$61 -> 0 | AP62: =SUMIFS(SpringProvRep!$K:$K,SpringProvRep!$A:$A,Data!$A$21,SpringProvRep!$O:$O,"<>Coventry",SpringProvRep!$T:$T,Data!AP$17)/$BA$61*$A$61 -> 0 | AQ62: =SUMIFS(SpringProvRep!$K:$K,SpringProvRep!$A:$A,Data!$A$21,SpringProvRep!$O:$O,"<>Coventry",SpringProvRep!$T:$T,Data!AQ$17)/$BA$61*$A$61 -> 0 | AR62: =SUM(Z62:AQ62)/$A$61 -> 1 | AS62: =SUMPRODUCT(Z62:AQ62,$W$4:$AN$4)/$A$16 -> 3092.727398 | AT62: =X62+AS62 -> 635850.1447 | AU62: =AR62+W62 -> 161.72 | AV62: =AU62-AW62 -> 1.72 | AW62: =AW35 -> 160 | AX62: =[5]Data!$AU49 -> 160.1525424 | AY62: =E4 -> 160 | BB62: =($M$4-$AU$62)*$A$61 -> -96.32 | BC62: =AU62*$A$61 -> 9056.32 | BD62: =$BB$62/$BC$62*D62 -> 0 | BE62: =$BB$62/$BC$62*E62 -> 0 | BF62: =$BB$62/$BC$62*F62 -> 0 | BG62: 0 | BH62: 0 | BI62: 0 | BJ62: -0.5955973287 | BK62: -50.89974771 | BL62: -7.742765273 | BM62: -0.5955973287 | BN62: -2.977986644 | BO62: -5.955973287 | BP62: 0 | BQ62: -17.61776898 | BR62: -4.76477863 | BS62: 0 | BT62: -3.573583972 | BU62: -1.000603512 | BV62: 0 | BX62: =$BB$62/$BC$62*Y62 -> 0 | BY62: =$BB$62/$BC$62*Z62 -> 0 | BZ62: 0 | CA62: 0 | CB62: 0 | CC62: 0 | CD62: 0 | CE62: -0.5955973287 | CF62: 0 | CG62: 0 | CH62: 0 | CI62: 0 | CJ62: 0 | CK62: 0 | CL62: 0 | CM62: 0 | CN62: 0 | CO62: 0 | CP62: 0
A63: 2 | B63: Kingsbury | C63: =10000/$A$16 -> 50 | D63: 0 | E63: =SUMIFS(SpringProvRep!$K:$K,SpringProvRep!$A:$A,Data!$A$22,SpringProvRep!$O:$O,"Coventry",SpringProvRep!$T:$T,Data!E$17)/$BA$61*$A$61 -> 0 | F63: =SUMIFS(SpringProvRep!$K:$K,SpringProvRep!$A:$A,Data!$A$22,SpringProvRep!$O:$O,"Coventry",SpringProvRep!$T:$T,Data!F$17)/$BA$61*$A$61 -> 0 | G63: =SUMIFS(SpringProvRep!$K:$K,SpringProvRep!$A:$A,Data!$A$22,SpringProvRep!$O:$O,"Coventry",SpringProvRep!$T:$T,Data!G$17)/$BA$61*$A$61 -> 0 | H63: =SUMIFS(SpringProvRep!$K:$K,SpringProvRep!$A:$A,Data!$A$22,SpringProvRep!$O:$O,"Coventry",SpringProvRep!$T:$T,Data!H$17)/$BA$61*$A$61 -> 0 | I63: =SUMIFS(SpringProvRep!$K:$K,SpringProvRep!$A:$A,Data!$A$22,SpringProvRep!$O:$O,"Coventry",SpringProvRep!$T:$T,Data!I$17)/$BA$61*$A$61 -> 0 | J63: =SUMIFS(SpringProvRep!$K:$K,SpringProvRep!$A:$A,Data!$A$22,SpringProvRep!$O:$O,"Coventry",SpringProvRep!$T:$T,Data!J$17)/$BA$61*$A$61 -> 0 | K63: =SUMIFS(SpringProvRep!$K:$K,SpringProvRep!$A:$A,Data!$A$22,SpringProvRep!$O:$O,"Coventry",SpringProvRep!$T:$T,Data!K$17)/$BA$61*$A$61 -> 3366.72 | L63: =SUMIFS(SpringProvRep!$K:$K,SpringProvRep!$A:$A,Data!$A$22,SpringProvRep!$O:$O,"Coventry",SpringProvRep!$T:$T,Data!L$17)/$BA$61*$A$61 -> 280 | M63: =SUMIFS(SpringProvRep!$K:$K,SpringProvRep!$A:$A,Data!$A$22,SpringProvRep!$O:$O,"Coventry",SpringProvRep!$T:$T,Data!M$17)/$BA$61*$A$61 -> 0 | N63: =SUMIFS(SpringProvRep!$K:$K,SpringProvRep!$A:$A,Data!$A$22,SpringProvRep!$O:$O,"Coventry",SpringProvRep!$T:$T,Data!N$17)/$BA$61*$A$61 -> 0 | O63: =SUMIFS(SpringProvRep!$K:$K,SpringProvRep!$A:$A,Data!$A$22,SpringProvRep!$O:$O,"Coventry",SpringProvRep!$T:$T,Data!O$17)/$BA$61*$A$61 -> 272.16 | P63: =SUMIFS(SpringProvRep!$K:$K,SpringProvRep!$A:$A,Data!$A$22,SpringProvRep!$O:$O,"Coventry",SpringProvRep!$T:$T,Data!P$17)/$BA$61*$A$61 -> 0 | Q63: =SUMIFS(SpringProvRep!$K:$K,SpringProvRep!$A:$A,Data!$A$22,SpringProvRep!$O:$O,"Coventry",SpringProvRep!$T:$T,Data!Q$17)/$BA$61*$A$61 -> 1262.24 | R63: =SUMIFS(SpringProvRep!$K:$K,SpringProvRep!$A:$A,Data!$A$22,SpringProvRep!$O:$O,"Coventry",SpringProvRep!$T:$T,Data!R$17)/$BA$61*$A$61 -> 112 | S63: =SUMIFS(SpringProvRep!$K:$K,SpringProvRep!$A:$A,Data!$A$22,SpringProvRep!$O:$O,"Coventry",SpringProvRep!$T:$T,Data!S$17)/$BA$61*$A$61 -> 0 | T63: =SUMIFS(SpringProvRep!$K:$K,SpringProvRep!$A:$A,Data!$A$22,SpringProvRep!$O:$O,"Coventry",SpringProvRep!$T:$T,Data!T$17)/$BA$61*$A$61 -> 0 | U63: =SUMIFS(SpringProvRep!$K:$K,SpringProvRep!$A:$A,Data!$A$22,SpringProvRep!$O:$O,"Coventry",SpringProvRep!$T:$T,Data!U$17)/$BA$61*$A$61 -> 56 | V63: =SUMIFS(SpringProvRep!$K:$K,SpringProvRep!$A:$A,Data!$A$22,SpringProvRep!$O:$O,"Coventry",SpringProvRep!$T:$T,Data!V$17)/$BA$61*$A$61 -> 0 | W63: =SUM(D63:V63)/$A$61 -> 95.52 | X63: 370107.5955 | Y63: 0 | Z63: =SUMIFS(SpringProvRep!$K:$K,SpringProvRep!$A:$A,Data!$A$22,SpringProvRep!$O:$O,"<>Coventry",SpringProvRep!$T:$T,Data!Z$17)/$BA$61*$A$61 -> 0 | AA63: =SUMIFS(SpringProvRep!$K:$K,SpringProvRep!$A:$A,Data!$A$22,SpringProvRep!$O:$O,"<>Coventry",SpringProvRep!$T:$T,Data!AA$17)/$BA$61*$A$61 -> 0 | AB63: =SUMIFS(SpringProvRep!$K:$K,SpringProvRep!$A:$A,Data!$A$22,SpringProvRep!$O:$O,"<>Coventry",SpringProvRep!$T:$T,Data!AB$17)/$BA$61*$A$61 -> 0 | AC63: =SUMIFS(SpringProvRep!$K:$K,SpringProvRep!$A:$A,Data!$A$22,SpringProvRep!$O:$O,"<>Coventry",SpringProvRep!$T:$T,Data!AC$17)/$BA$61*$A$61 -> 0 | AD63: =SUMIFS(SpringProvRep!$K:$K,SpringProvRep!$A:$A,Data!$A$22,SpringProvRep!$O:$O,"<>Coventry",SpringProvRep!$T:$T,Data!AD$17)/$BA$61*$A$61 -> 0 | AE63: =SUMIFS(SpringProvRep!$K:$K,SpringProvRep!$A:$A,Data!$A$22,SpringProvRep!$O:$O,"<>Coventry",SpringProvRep!$T:$T,Data!AE$17)/$BA$61*$A$61 -> 0 | AF63: =SUMIFS(SpringProvRep!$K:$K,SpringProvRep!$A:$A,Data!$A$22,SpringProvRep!$O:$O,"<>Coventry",SpringProvRep!$T:$T,Data!AF$17)/$BA$61*$A$61 -> 112 | AG63: =SUMIFS(SpringProvRep!$K:$K,SpringProvRep!$A:$A,Data!$A$22,SpringProvRep!$O:$O,"<>Coventry",SpringProvRep!$T:$T,Data!AG$17)/$BA$61*$A$61 -> 56 | AH63: =SUMIFS(SpringProvRep!$K:$K,SpringProvRep!$A:$A,Data!$A$22,SpringProvRep!$O:$O,"<>Coventry",SpringProvRep!$T:$T,Data!AH$17)/$BA$61*$A$61 -> 0 | AI63: =SUMIFS(SpringProvRep!$K:$K,SpringProvRep!$A:$A,Data!$A$22,SpringProvRep!$O:$O,"<>Coventry",SpringProvRep!$T:$T,Data!AI$17)/$BA$61*$A$61 -> 0 | AJ63: =SUMIFS(SpringProvRep!$K:$K,SpringProvRep!$A:$A,Data!$A$22,SpringProvRep!$O:$O,"<>Coventry",SpringProvRep!$T:$T,Data!AJ$17)/$BA$61*$A$61 -> 0 | AK63: =SUMIFS(SpringProvRep!$K:$K,SpringProvRep!$A:$A,Data!$A$22,SpringProvRep!$O:$O,"<>Coventry",SpringProvRep!$T:$T,Data!AK$17)/$BA$61*$A$61 -> 0 | AL63: =SUMIFS(SpringProvRep!$K:$K,SpringProvRep!$A:$A,Data!$A$22,SpringProvRep!$O:$O,"<>Coventry",SpringProvRep!$T:$T,Data!AL$17)/$BA$61*$A$61 -> 112 | AM63: =SUMIFS(SpringProvRep!$K:$K,SpringProvRep!$A:$A,Data!$A$22,SpringProvRep!$O:$O,"<>Coventry",SpringProvRep!$T:$T,Data!AM$17)/$BA$61*$A$61 -> 0 | AN63: =SUMIFS(SpringProvRep!$K:$K,SpringProvRep!$A:$A,Data!$A$22,SpringProvRep!$O:$O,"<>Coventry",SpringProvRep!$T:$T,Data!AN$17)/$BA$61*$A$61 -> 0 | AO63: =SUMIFS(SpringProvRep!$K:$K,SpringProvRep!$A:$A,Data!$A$22,SpringProvRep!$O:$O,"<>Coventry",SpringProvRep!$T:$T,Data!AO$17)/$BA$61*$A$61 -> 0 | AP63: =SUMIFS(SpringProvRep!$K:$K,SpringProvRep!$A:$A,Data!$A$22,SpringProvRep!$O:$O,"<>Coventry",SpringProvRep!$T:$T,Data!AP$17)/$BA$61*$A$61 -> 0 | AQ63: =SUMIFS(SpringProvRep!$K:$K,SpringProvRep!$A:$A,Data!$A$22,SpringProvRep!$O:$O,"<>Coventry",SpringProvRep!$T:$T,Data!AQ$17)/$BA$61*$A$61 -> 0 | AR63: =SUM(Z63:AQ63)/$A$61 -> 5 | AS63: 19097.59574 | AT63: 389205.1913 | AU63: =AR63+W63 -> 100.52 | AV63: =AU63-AW63 -> 0.52 | AW63: 100 | AX63: =[5]Data!$AU50 -> 101 | AY63: 100 | BB63: =($M$5-$AU$63)*$A$61 -> -29.12 | BC63: 5629.12 | BD63: =$BB$63/$BC$63*D63 -> 0 | BE63: =$BB$63/$BC$63*E63 -> 0 | BF63: 0 | BG63: 0 | BH63: 0 | BI63: 0 | BJ63: 0 | BK63: -17.41637883 | BL63: -1.448467967 | BM63: 0 | BN63: 0 | BO63: -1.407910864 | BP63: 0 | BQ63: -6.529693593 | BR63: -0.5793871866 | BS63: 0 | BT63: 0 | BU63: -0.2896935933 | BV63: 0 | BX63: =$BB$63/$BC$63*Y63 -> 0 | BY63: =$BB$63/$BC$63*Z63 -> 0 | BZ63: 0 | CA63: 0 | CB63: 0 | CC63: 0 | CD63: 0 | CE63: -0.5793871866 | CF63: -0.2896935933 | CG63: 0 | CH63: 0 | CI63: 0 | CJ63: 0 | CK63: -0.5793871866 | CL63: 0 | CM63: 0 | CN63: 0 | CO63: 0 | CP63: 0
A64: 3 | B64: RiverBank | C64: 50 | D64: 0 | E64: =SUMIFS(SpringProvRep!$K:$K,SpringProvRep!$A:$A,Data!$A$23,SpringProvRep!$O:$O,"Coventry",SpringProvRep!$T:$T,Data!E$17)/$BA$61*$A$61 -> 0 | F64: =SUMIFS(SpringProvRep!$K:$K,SpringProvRep!$A:$A,Data!$A$23,SpringProvRep!$O:$O,"Coventry",SpringProvRep!$T:$T,Data!F$17)/$BA$61*$A$61 -> 0 | G64: =SUMIFS(SpringProvRep!$K:$K,SpringProvRep!$A:$A,Data!$A$23,SpringProvRep!$O:$O,"Coventry",SpringProvRep!$T:$T,Data!G$17)/$BA$61*$A$61 -> 560 | H64: =SUMIFS(SpringProvRep!$K:$K,SpringProvRep!$A:$A,Data!$A$23,SpringProvRep!$O:$O,"Coventry",SpringProvRep!$T:$T,Data!H$17)/$BA$61*$A$61 -> 840 | I64: =SUMIFS(SpringProvRep!$K:$K,SpringProvRep!$A:$A,Data!$A$23,SpringProvRep!$O:$O,"Coventry",SpringProvRep!$T:$T,Data!I$17)/$BA$61*$A$61 -> 0 | J64: =SUMIFS(SpringProvRep!$K:$K,SpringProvRep!$A:$A,Data!$A$23,SpringProvRep!$O:$O,"Coventry",SpringProvRep!$T:$T,Data!J$17)/$BA$61*$A$61 -> 56 | K64: =SUMIFS(SpringProvRep!$K:$K,SpringProvRep!$A:$A,Data!$A$23,SpringProvRep!$O:$O,"Coventry",SpringProvRep!$T:$T,Data!K$17)/$BA$61*$A$61 -> 3864 | L64: =SUMIFS(SpringProvRep!$K:$K,SpringProvRep!$A:$A,Data!$A$23,SpringProvRep!$O:$O,"Coventry",SpringProvRep!$T:$T,Data!L$17)/$BA$61*$A$61 -> 3040.8 | M64: =SUMIFS(SpringProvRep!$K:$K,SpringProvRep!$A:$A,Data!$A$23,SpringProvRep!$O:$O,"Coventry",SpringProvRep!$T:$T,Data!M$17)/$BA$61*$A$61 -> 112 | N64: =SUMIFS(SpringProvRep!$K:$K,SpringProvRep!$A:$A,Data!$A$23,SpringProvRep!$O:$O,"Coventry",SpringProvRep!$T:$T,Data!N$17)/$BA$61*$A$61 -> 392 | O64: =SUMIFS(SpringProvRep!$K:$K,SpringProvRep!$A:$A,Data!$A$23,SpringProvRep!$O:$O,"Coventry",SpringProvRep!$T:$T,Data!O$17)/$BA$61*$A$61 -> 207.2 | P64: =SUMIFS(SpringProvRep!$K:$K,SpringProvRep!$A:$A,Data!$A$23,SpringProvRep!$O:$O,"Coventry",SpringProvRep!$T:$T,Data!P$17)/$BA$61*$A$61 -> 224 | Q64: =SUMIFS(SpringProvRep!$K:$K,SpringProvRep!$A:$A,Data!$A$23,SpringProvRep!$O:$O,"Coventry",SpringProvRep!$T:$T,Data!Q$17)/$BA$61*$A$61 -> 1288 | R64: =SUMIFS(SpringProvRep!$K:$K,SpringProvRep!$A:$A,Data!$A$23,SpringProvRep!$O:$O,"Coventry",SpringProvRep!$T:$T,Data!R$17)/$BA$61*$A$61 -> 280 | S64: =SUMIFS(SpringProvRep!$K:$K,SpringProvRep!$A:$A,Data!$A$23,SpringProvRep!$O:$O,"Coventry",SpringProvRep!$T:$T,Data!S$17)/$BA$61*$A$61 -> 0 | T64: =SUMIFS(SpringProvRep!$K:$K,SpringProvRep!$A:$A,Data!$A$23,SpringProvRep!$O:$O,"Coventry",SpringProvRep!$T:$T,Data!T$17)/$BA$61*$A$61 -> 112 | U64: =SUMIFS(SpringProvRep!$K:$K,SpringProvRep!$A:$A,Data!$A$23,SpringProvRep!$O:$O,"Coventry",SpringProvRep!$T:$T,Data!U$17)/$BA$61*$A$61 -> 0 | V64: =SUMIFS(SpringProvRep!$K:$K,SpringProvRep!$A:$A,Data!$A$23,SpringProvRep!$O:$O,"Coventry",SpringProvRep!$T:$T,Data!V$17)/$BA$61*$A$61 -> 0 | W64: 196 | X64: 651700.7072 | Y64: 0 | Z64: =SUMIFS(SpringProvRep!$K:$K,SpringProvRep!$A:$A,Data!$A$23,SpringProvRep!$O:$O,"<>Coventry",SpringProvRep!$T:$T,Data!Z$17)/$BA$61*$A$61 -> 0 | AA64: =SUMIFS(SpringProvRep!$K:$K,SpringProvRep!$A:$A,Data!$A$23,SpringProvRep!$O:$O,"<>Coventry",SpringProvRep!$T:$T,Data!AA$17)/$BA$61*$A$61 -> 0 | AB64: =SUMIFS(SpringProvRep!$K:$K,SpringProvRep!$A:$A,Data!$A$23,SpringProvRep!$O:$O,"<>Coventry",SpringProvRep!$T:$T,Data!AB$17)/$BA$61*$A$61 -> 0 | AC64: =SUMIFS(SpringProvRep!$K:$K,SpringProvRep!$A:$A,Data!$A$23,SpringProvRep!$O:$O,"<>Coventry",SpringProvRep!$T:$T,Data!AC$17)/$BA$61*$A$61 -> 0 | AD64: =SUMIFS(SpringProvRep!$K:$K,SpringProvRep!$A:$A,Data!$A$23,SpringProvRep!$O:$O,"<>Coventry",SpringProvRep!$T:$T,Data!AD$17)/$BA$61*$A$61 -> 0 | AE64: =SUMIFS(SpringProvRep!$K:$K,SpringProvRep!$A:$A,Data!$A$23,SpringProvRep!$O:$O,"<>Coventry",SpringProvRep!$T:$T,Data!AE$17)/$BA$61*$A$61 -> 0 | AF64: =SUMIFS(SpringProvRep!$K:$K,SpringProvRep!$A:$A,Data!$A$23,SpringProvRep!$O:$O,"<>Coventry",SpringProvRep!$T:$T,Data!AF$17)/$BA$61*$A$61 -> 56 | AG64: =SUMIFS(SpringProvRep!$K:$K,SpringProvRep!$A:$A,Data!$A$23,SpringProvRep!$O:$O,"<>Coventry",SpringProvRep!$T:$T,Data!AG$17)/$BA$61*$A$61 -> 0 | AH64: =SUMIFS(SpringProvRep!$K:$K,SpringProvRep!$A:$A,Data!$A$23,SpringProvRep!$O:$O,"<>Coventry",SpringProvRep!$T:$T,Data!AH$17)/$BA$61*$A$61 -> 0 | AI64: =SUMIFS(SpringProvRep!$K:$K,SpringProvRep!$A:$A,Data!$A$23,SpringProvRep!$O:$O,"<>Coventry",SpringProvRep!$T:$T,Data!AI$17)/$BA$61*$A$61 -> 0 | AJ64: =SUMIFS(SpringProvRep!$K:$K,SpringProvRep!$A:$A,Data!$A$23,SpringProvRep!$O:$O,"<>Coventry",SpringProvRep!$T:$T,Data!AJ$17)/$BA$61*$A$61 -> 0 | AK64: =SUMIFS(SpringProvRep!$K:$K,SpringProvRep!$A:$A,Data!$A$23,SpringProvRep!$O:$O,"<>Coventry",SpringProvRep!$T:$T,Data!AK$17)/$BA$61*$A$61 -> 0 | AL64: =SUMIFS(SpringProvRep!$K:$K,SpringProvRep!$A:$A,Data!$A$23,SpringProvRep!$O:$O,"<>Coventry",SpringProvRep!$T:$T,Data!AL$17)/$BA$61*$A$61 -> 0 | AM64: =SUMIFS(SpringProvRep!$K:$K,SpringProvRep!$A:$A,Data!$A$23,SpringProvRep!$O:$O,"<>Coventry",SpringProvRep!$T:$T,Data!AM$17)/$BA$61*$A$61 -> 0 | AN64: =SUMIFS(SpringProvRep!$K:$K,SpringProvRep!$A:$A,Data!$A$23,SpringProvRep!$O:$O,"<>Coventry",SpringProvRep!$T:$T,Data!AN$17)/$BA$61*$A$61 -> 0 | AO64: =SUMIFS(SpringProvRep!$K:$K,SpringProvRep!$A:$A,Data!$A$23,SpringProvRep!$O:$O,"<>Coventry",SpringProvRep!$T:$T,Data!AO$17)/$BA$61*$A$61 -> 0 | AP64: =SUMIFS(SpringProvRep!$K:$K,SpringProvRep!$A:$A,Data!$A$23,SpringProvRep!$O:$O,"<>Coventry",SpringProvRep!$T:$T,Data!AP$17)/$BA$61*$A$61 -> 0 | AQ64: =SUMIFS(SpringProvRep!$K:$K,SpringProvRep!$A:$A,Data!$A$23,SpringProvRep!$O:$O,"<>Coventry",SpringProvRep!$T:$T,Data!AQ$17)/$BA$61*$A$61 -> 0 | AR64: 1 | AS64: 3092.727398 | AT64: 654793.4346 | AU64: 197 | AV64: -3 | AW64: 200 | AX64: =[5]Data!$AU51 -> 198.1016949 | AY64: 200 | BB64: =($M$6-$AU$64)*$A$61 -> 168 | BC64: 11032 | BD64: =$BB$64/$BC$64*D64 -> 0 | BE64: =$BB$64/$BC$64*E64 -> 0 | BF64: 0 | BG64: 8.527918782 | BH64: 12.79187817 | BI64: 0 | BJ64: 0.8527918782 | BK64: 58.84263959 | BL64: 46.30659898 | BM64: 1.705583756 | BN64: 5.969543147 | BO64: 3.155329949 | BP64: 3.411167513 | BQ64: 19.6142132 | BR64: 4.263959391 | BS64: 0 | BT64: 1.705583756 | BU64: 0 | BV64: 0 | BX64: =$BB$64/$BC$64*Y64 -> 0 | BY64: =$BB$64/$BC$64*Z64 -> 0 | BZ64: 0 | CA64: 0 | CB64: 0 | CC64: 0 | CD64: 0 | CE64: 0.8527918782 | CF64: 0 | CG64: 0 | CH64: 0 | CI64: 0 | CJ64: 0 | CK64: 0 | CL64: 0 | CM64: 0 | CN64: 0 | CO64: 0 | CP64: 0
A65: 4 | B65: Corley | C65: 50 | D65: 0 | E65: =SUMIFS(SpringProvRep!$K:$K,SpringProvRep!$A:$A,Data!$A$24,SpringProvRep!$O:$O,"Coventry",SpringProvRep!$T:$T,Data!E$17)/$BA$61*$A$61 -> 0 | F65: =SUMIFS(SpringProvRep!$K:$K,SpringProvRep!$A:$A,Data!$A$24,SpringProvRep!$O:$O,"Coventry",SpringProvRep!$T:$T,Data!F$17)/$BA$61*$A$61 -> 0 | G65: =SUMIFS(SpringProvRep!$K:$K,SpringProvRep!$A:$A,Data!$A$24,SpringProvRep!$O:$O,"Coventry",SpringProvRep!$T:$T,Data!G$17)/$BA$61*$A$61 -> 0 | H65: =SUMIFS(SpringProvRep!$K:$K,SpringProvRep!$A:$A,Data!$A$24,SpringProvRep!$O:$O,"Coventry",SpringProvRep!$T:$T,Data!H$17)/$BA$61*$A$61 -> 0 | I65: =SUMIFS(SpringProvRep!$K:$K,SpringProvRep!$A:$A,Data!$A$24,SpringProvRep!$O:$O,"Coventry",SpringProvRep!$T:$T,Data!I$17)/$BA$61*$A$61 -> 0 | J65: =SUMIFS(SpringProvRep!$K:$K,SpringProvRep!$A:$A,Data!$A$24,SpringProvRep!$O:$O,"Coventry",SpringProvRep!$T:$T,Data!J$17)/$BA$61*$A$61 -> 0 | K65: =SUMIFS(SpringProvRep!$K:$K,SpringProvRep!$A:$A,Data!$A$24,SpringProvRep!$O:$O,"Coventry",SpringProvRep!$T:$T,Data!K$17)/$BA$61*$A$61 -> 6479.2 | L65: =SUMIFS(SpringProvRep!$K:$K,SpringProvRep!$A:$A,Data!$A$24,SpringProvRep!$O:$O,"Coventry",SpringProvRep!$T:$T,Data!L$17)/$BA$61*$A$61 -> 0 | M65: =SUMIFS(SpringProvRep!$K:$K,SpringProvRep!$A:$A,Data!$A$24,SpringProvRep!$O:$O,"Coventry",SpringProvRep!$T:$T,Data!M$17)/$BA$61*$A$61 -> 392 | N65: =SUMIFS(SpringProvRep!$K:$K,SpringProvRep!$A:$A,Data!$A$24,SpringProvRep!$O:$O,"Coventry",SpringProvRep!$T:$T,Data!N$17)/$BA$61*$A$61 -> 0 | O65: =SUMIFS(SpringProvRep!$K:$K,SpringProvRep!$A:$A,Data!$A$24,SpringProvRep!$O:$O,"Coventry",SpringProvRep!$T:$T,Data!O$17)/$BA$61*$A$61 -> 224 | P65: =SUMIFS(SpringProvRep!$K:$K,SpringProvRep!$A:$A,Data!$A$24,SpringProvRep!$O:$O,"Coventry",SpringProvRep!$T:$T,Data!P$17)/$BA$61*$A$61 -> 0 | Q65: =SUMIFS(SpringProvRep!$K:$K,SpringProvRep!$A:$A,Data!$A$24,SpringProvRep!$O:$O,"Coventry",SpringProvRep!$T:$T,Data!Q$17)/$BA$61*$A$61 -> 952 | R65: =SUMIFS(SpringProvRep!$K:$K,SpringProvRep!$A:$A,Data!$A$24,SpringProvRep!$O:$O,"Coventry",SpringProvRep!$T:$T,Data!R$17)/$BA$61*$A$61 -> 0 | S65: =SUMIFS(SpringProvRep!$K:$K,SpringProvRep!$A:$A,Data!$A$24,SpringProvRep!$O:$O,"Coventry",SpringProvRep!$T:$T,Data!S$17)/$BA$61*$A$61 -> 0 | T65: =SUMIFS(SpringProvRep!$K:$K,SpringProvRep!$A:$A,Data!$A$24,SpringProvRep!$O:$O,"Coventry",SpringProvRep!$T:$T,Data!T$17)/$BA$61*$A$61 -> 0 | U65: =SUMIFS(SpringProvRep!$K:$K,SpringProvRep!$A:$A,Data!$A$24,SpringProvRep!$O:$O,"Coventry",SpringProvRep!$T:$T,Data!U$17)/$BA$61*$A$61 -> 0 | V65: =SUMIFS(SpringProvRep!$K:$K,SpringProvRep!$A:$A,Data!$A$24,SpringProvRep!$O:$O,"Coventry",SpringProvRep!$T:$T,Data!V$17)/$BA$61*$A$61 -> 0 | W65: 143.7 | X65: 497913.6321 | Y65: 0 | Z65: =SUMIFS(SpringProvRep!$K:$K,SpringProvRep!$A:$A,Data!$A$24,SpringProvRep!$O:$O,"<>Coventry",SpringProvRep!$T:$T,Data!Z$17)/$BA$61*$A$61 -> 0 | AA65: =SUMIFS(SpringProvRep!$K:$K,SpringProvRep!$A:$A,Data!$A$24,SpringProvRep!$O:$O,"<>Coventry",SpringProvRep!$T:$T,Data!AA$17)/$BA$61*$A$61 -> 0 | AB65: =SUMIFS(SpringProvRep!$K:$K,SpringProvRep!$A:$A,Data!$A$24,SpringProvRep!$O:$O,"<>Coventry",SpringProvRep!$T:$T,Data!AB$17)/$BA$61*$A$61 -> 0 | AC65: =SUMIFS(SpringProvRep!$K:$K,SpringProvRep!$A:$A,Data!$A$24,SpringProvRep!$O:$O,"<>Coventry",SpringProvRep!$T:$T,Data!AC$17)/$BA$61*$A$61 -> 0 | AD65: =SUMIFS(SpringProvRep!$K:$K,SpringProvRep!$A:$A,Data!$A$24,SpringProvRep!$O:$O,"<>Coventry",SpringProvRep!$T:$T,Data!AD$17)/$BA$61*$A$61 -> 0 | AE65: =SUMIFS(SpringProvRep!$K:$K,SpringProvRep!$A:$A,Data!$A$24,SpringProvRep!$O:$O,"<>Coventry",SpringProvRep!$T:$T,Data!AE$17)/$BA$61*$A$61 -> 0 | AF65: =SUMIFS(SpringProvRep!$K:$K,SpringProvRep!$A:$A,Data!$A$24,SpringProvRep!$O:$O,"<>Coventry",SpringProvRep!$T:$T,Data!AF$17)/$BA$61*$A$61 -> 112 | AG65: =SUMIFS(SpringProvRep!$K:$K,SpringProvRep!$A:$A,Data!$A$24,SpringProvRep!$O:$O,"<>Coventry",SpringProvRep!$T:$T,Data!AG$17)/$BA$61*$A$61 -> 0 | AH65: =SUMIFS(SpringProvRep!$K:$K,SpringProvRep!$A:$A,Data!$A$24,SpringProvRep!$O:$O,"<>Coventry",SpringProvRep!$T:$T,Data!AH$17)/$BA$61*$A$61 -> 0 | AI65: =SUMIFS(SpringProvRep!$K:$K,SpringProvRep!$A:$A,Data!$A$24,SpringProvRep!$O:$O,"<>Coventry",SpringProvRep!$T:$T,Data!AI$17)/$BA$61*$A$61 -> 0 | AJ65: =SUMIFS(SpringProvRep!$K:$K,SpringProvRep!$A:$A,Data!$A$24,SpringProvRep!$O:$O,"<>Coventry",SpringProvRep!$T:$T,Data!AJ$17)/$BA$61*$A$61 -> 0 | AK65: =SUMIFS(SpringProvRep!$K:$K,SpringProvRep!$A:$A,Data!$A$24,SpringProvRep!$O:$O,"<>Coventry",SpringProvRep!$T:$T,Data!AK$17)/$BA$61*$A$61 -> 0 | AL65: =SUMIFS(SpringProvRep!$K:$K,SpringProvRep!$A:$A,Data!$A$24,SpringProvRep!$O:$O,"<>Coventry",SpringProvRep!$T:$T,Data!AL$17)/$BA$61*$A$61 -> 0 | AM65: =SUMIFS(SpringProvRep!$K:$K,SpringProvRep!$A:$A,Data!$A$24,SpringProvRep!$O:$O,"<>Coventry",SpringProvRep!$T:$T,Data!AM$17)/$BA$61*$A$61 -> 0 | AN65: =SUMIFS(SpringProvRep!$K:$K,SpringProvRep!$A:$A,Data!$A$24,SpringProvRep!$O:$O,"<>Coventry",SpringProvRep!$T:$T,Data!AN$17)/$BA$61*$A$61 -> 0 | AO65: =SUMIFS(SpringProvRep!$K:$K,SpringProvRep!$A:$A,Data!$A$24,SpringProvRep!$O:$O,"<>Coventry",SpringProvRep!$T:$T,Data!AO$17)/$BA$61*$A$61 -> 0 | AP65: =SUMIFS(SpringProvRep!$K:$K,SpringProvRep!$A:$A,Data!$A$24,SpringProvRep!$O:$O,"<>Coventry",SpringProvRep!$T:$T,Data!AP$17)/$BA$61*$A$61 -> 0 | AQ65: =SUMIFS(SpringProvRep!$K:$K,SpringProvRep!$A:$A,Data!$A$24,SpringProvRep!$O:$O,"<>Coventry",SpringProvRep!$T:$T,Data!AQ$17)/$BA$61*$A$61 -> 0 | AR65: 2 | AS65: 6185.454795 | AT65: 504099.0869 | AU65: 145.7 | AV65: -9.3 | AW65: 155 | AX65: =[5]Data!$AU52 -> 148.2223098 | AY65: 140 | BB65: =($M$7-$AU$65)*$A$61 -> 520.8 | BC65: 8159.2 | BD65: =$BB$65/$BC$65*D65 -> 0 | BE65: =$BB$65/$BC$65*E65 -> 0 | BF65: 0 | BG65: 0 | BH65: 0 | BI65: 0 | BJ65: 0 | BK65: 413.5659574 | BL65: 0 | BM65: 25.0212766 | BN65: 0 | BO65: 14.29787234 | BP65: 0 | BQ65: 60.76595745 | BR65: 0 | BS65: 0 | BT65: 0 | BU65: 0 | BV65: 0 | BX65: =$BB$65/$BC$65*Y65 -> 0 | BY65: =$BB$65/$BC$65*Z65 -> 0 | BZ65: 0 | CA65: 0 | CB65: 0 | CC65: 0 | CD65: 0 | CE65: 7.14893617 | CF65: 0 | CG65: 0 | CH65: 0 | CI65: 0 | CJ65: 0 | CK65: 0 | CL65: 0 | CM65: 0 | CN65: 0 | CO65: 0 | CP65: 0
A66: 5 | B66: Tiverton | C66: 50 | D66: 0 | E66: =SUMIFS(SpringProvRep!$K:$K,SpringProvRep!$A:$A,Data!$A$25,SpringProvRep!$O:$O,"Coventry",SpringProvRep!$T:$T,Data!E$17)/$BA$61*$A$61 -> 0 | F66: =SUMIFS(SpringProvRep!$K:$K,SpringProvRep!$A:$A,Data!$A$25,SpringProvRep!$O:$O,"Coventry",SpringProvRep!$T:$T,Data!F$17)/$BA$61*$A$61 -> 0 | G66: =SUMIFS(SpringProvRep!$K:$K,SpringProvRep!$A:$A,Data!$A$25,SpringProvRep!$O:$O,"Coventry",SpringProvRep!$T:$T,Data!G$17)/$BA$61*$A$61 -> 0 | H66: =SUMIFS(SpringProvRep!$K:$K,SpringProvRep!$A:$A,Data!$A$25,SpringProvRep!$O:$O,"Coventry",SpringProvRep!$T:$T,Data!H$17)/$BA$61*$A$61 -> 0 | I66: =SUMIFS(SpringProvRep!$K:$K,SpringProvRep!$A:$A,Data!$A$25,SpringProvRep!$O:$O,"Coventry",SpringProvRep!$T:$T,Data!I$17)/$BA$61*$A$61 -> 0 | J66: =SUMIFS(SpringProvRep!$K:$K,SpringProvRep!$A:$A,Data!$A$25,SpringProvRep!$O:$O,"Coventry",SpringProvRep!$T:$T,Data!J$17)/$BA$61*$A$61 -> 0 | K66: =SUMIFS(SpringProvRep!$K:$K,SpringProvRep!$A:$A,Data!$A$25,SpringProvRep!$O:$O,"Coventry",SpringProvRep!$T:$T,Data!K$17)/$BA$61*$A$61 -> 3584 | L66: =SUMIFS(SpringProvRep!$K:$K,SpringProvRep!$A:$A,Data!$A$25,SpringProvRep!$O:$O,"Coventry",SpringProvRep!$T:$T,Data!L$17)/$BA$61*$A$61 -> 728 | M66: =SUMIFS(SpringProvRep!$K:$K,SpringProvRep!$A:$A,Data!$A$25,SpringProvRep!$O:$O,"Coventry",SpringProvRep!$T:$T,Data!M$17)/$BA$61*$A$61 -> 0 | N66: =SUMIFS(SpringProvRep!$K:$K,SpringProvRep!$A:$A,Data!$A$25,SpringProvRep!$O:$O,"Coventry",SpringProvRep!$T:$T,Data!N$17)/$BA$61*$A$61 -> 336 | O66: =SUMIFS(SpringProvRep!$K:$K,SpringProvRep!$A:$A,Data!$A$25,SpringProvRep!$O:$O,"Coventry",SpringProvRep!$T:$T,Data!O$17)/$BA$61*$A$61 -> 308 | P66: =SUMIFS(SpringProvRep!$K:$K,SpringProvRep!$A:$A,Data!$A$25,SpringProvRep!$O:$O,"Coventry",SpringProvRep!$T:$T,Data!P$17)/$BA$61*$A$61 -> 0 | Q66: =SUMIFS(SpringProvRep!$K:$K,SpringProvRep!$A:$A,Data!$A$25,SpringProvRep!$O:$O,"Coventry",SpringProvRep!$T:$T,Data!Q$17)/$BA$61*$A$61 -> 896 | R66: =SUMIFS(SpringProvRep!$K:$K,SpringProvRep!$A:$A,Data!$A$25,SpringProvRep!$O:$O,"Coventry",SpringProvRep!$T:$T,Data!R$17)/$BA$61*$A$61 -> 392 | S66: =SUMIFS(SpringProvRep!$K:$K,SpringProvRep!$A:$A,Data!$A$25,SpringProvRep!$O:$O,"Coventry",SpringProvRep!$T:$T,Data!S$17)/$BA$61*$A$61 -> 0 | T66: =SUMIFS(SpringProvRep!$K:$K,SpringProvRep!$A:$A,Data!$A$25,SpringProvRep!$O:$O,"Coventry",SpringProvRep!$T:$T,Data!T$17)/$BA$61*$A$61 -> 280 | U66: =SUMIFS(SpringProvRep!$K:$K,SpringProvRep!$A:$A,Data!$A$25,SpringProvRep!$O:$O,"Coventry",SpringProvRep!$T:$T,Data!U$17)/$BA$61*$A$61 -> 0 | V66: =SUMIFS(SpringProvRep!$K:$K,SpringProvRep!$A:$A,Data!$A$25,SpringProvRep!$O:$O,"Coventry",SpringProvRep!$T:$T,Data!V$17)/$BA$61*$A$61 -> 0 | W66: 116.5 | X66: 432332.3363 | Y66: 0 | Z66: =SUMIFS(SpringProvRep!$K:$K,SpringProvRep!$A:$A,Data!$A$25,SpringProvRep!$O:$O,"<>Coventry",SpringProvRep!$T:$T,Data!Z$17)/$BA$61*$A$61 -> 0 | AA66: =SUMIFS(SpringProvRep!$K:$K,SpringProvRep!$A:$A,Data!$A$25,SpringProvRep!$O:$O,"<>Coventry",SpringProvRep!$T:$T,Data!AA$17)/$BA$61*$A$61 -> 0 | AB66: =SUMIFS(SpringProvRep!$K:$K,SpringProvRep!$A:$A,Data!$A$25,SpringProvRep!$O:$O,"<>Coventry",SpringProvRep!$T:$T,Data!AB$17)/$BA$61*$A$61 -> 0 | AC66: =SUMIFS(SpringProvRep!$K:$K,SpringProvRep!$A:$A,Data!$A$25,SpringProvRep!$O:$O,"<>Coventry",SpringProvRep!$T:$T,Data!AC$17)/$BA$61*$A$61 -> 0 | AD66: =SUMIFS(SpringProvRep!$K:$K,SpringProvRep!$A:$A,Data!$A$25,SpringProvRep!$O:$O,"<>Coventry",SpringProvRep!$T:$T,Data!AD$17)/$BA$61*$A$61 -> 0 | AE66: =SUMIFS(SpringProvRep!$K:$K,SpringProvRep!$A:$A,Data!$A$25,SpringProvRep!$O:$O,"<>Coventry",SpringProvRep!$T:$T,Data!AE$17)/$BA$61*$A$61 -> 0 | AF66: =SUMIFS(SpringProvRep!$K:$K,SpringProvRep!$A:$A,Data!$A$25,SpringProvRep!$O:$O,"<>Coventry",SpringProvRep!$T:$T,Data!AF$17)/$BA$61*$A$61 -> 56 | AG66: =SUMIFS(SpringProvRep!$K:$K,SpringProvRep!$A:$A,Data!$A$25,SpringProvRep!$O:$O,"<>Coventry",SpringProvRep!$T:$T,Data!AG$17)/$BA$61*$A$61 -> 0 | AH66: =SUMIFS(SpringProvRep!$K:$K,SpringProvRep!$A:$A,Data!$A$25,SpringProvRep!$O:$O,"<>Coventry",SpringProvRep!$T:$T,Data!AH$17)/$BA$61*$A$61 -> 0 | AI66: =SUMIFS(SpringProvRep!$K:$K,SpringProvRep!$A:$A,Data!$A$25,SpringProvRep!$O:$O,"<>Coventry",SpringProvRep!$T:$T,Data!AI$17)/$BA$61*$A$61 -> 0 | AJ66: =SUMIFS(SpringProvRep!$K:$K,SpringProvRep!$A:$A,Data!$A$25,SpringProvRep!$O:$O,"<>Coventry",SpringProvRep!$T:$T,Data!AJ$17)/$BA$61*$A$61 -> 0 | AK66: =SUMIFS(SpringProvRep!$K:$K,SpringProvRep!$A:$A,Data!$A$25,SpringProvRep!$O:$O,"<>Coventry",SpringProvRep!$T:$T,Data!AK$17)/$BA$61*$A$61 -> 0 | AL66: =SUMIFS(SpringProvRep!$K:$K,SpringProvRep!$A:$A,Data!$A$25,SpringProvRep!$O:$O,"<>Coventry",SpringProvRep!$T:$T,Data!AL$17)/$BA$61*$A$61 -> 112 | AM66: =SUMIFS(SpringProvRep!$K:$K,SpringProvRep!$A:$A,Data!$A$25,SpringProvRep!$O:$O,"<>Coventry",SpringProvRep!$T:$T,Data!AM$17)/$BA$61*$A$61 -> 0 | AN66: =SUMIFS(SpringProvRep!$K:$K,SpringProvRep!$A:$A,Data!$A$25,SpringProvRep!$O:$O,"<>Coventry",SpringProvRep!$T:$T,Data!AN$17)/$BA$61*$A$61 -> 0 | AO66: =SUMIFS(SpringProvRep!$K:$K,SpringProvRep!$A:$A,Data!$A$25,SpringProvRep!$O:$O,"<>Coventry",SpringProvRep!$T:$T,Data!AO$17)/$BA$61*$A$61 -> 0 | AP66: =SUMIFS(SpringProvRep!$K:$K,SpringProvRep!$A:$A,Data!$A$25,SpringProvRep!$O:$O,"<>Coventry",SpringProvRep!$T:$T,Data!AP$17)/$BA$61*$A$61 -> 0 | AQ66: =SUMIFS(SpringProvRep!$K:$K,SpringProvRep!$A:$A,Data!$A$25,SpringProvRep!$O:$O,"<>Coventry",SpringProvRep!$T:$T,Data!AQ$17)/$BA$61*$A$61 -> 0 | AR66: 3 | AS66: 13144.09392 | AT66: 445476.4302 | AU66: 119.5 | AV66: -11.5 | AW66: 131 | AX66: =[5]Data!$AU53 -> 118.25 | AY66: 118 | BB66: =($M$8-$AU$66)*$A$61 -> 644 | BC66: 6692 | BD66: =$BB$66/$BC$66*D66 -> 0 | BE66: =$BB$66/$BC$66*E66 -> 0 | BF66: 0 | BG66: 0 | BH66: 0 | BI66: 0 | BJ66: 0 | BK66: 344.9037657 | BL66: 70.05857741 | BM66: 0 | BN66: 32.33472803 | BO66: 29.64016736 | BP66: 0 | BQ66: 86.22594142 | BR66: 37.72384937 | BS66: 0 | BT66: 26.94560669 | BU66: 0 | BV66: 0 | BX66: =$BB$66/$BC$66*Y66 -> 0 | BY66: =$BB$66/$BC$66*Z66 -> 0 | BZ66: 0 | CA66: 0 | CB66: 0 | CC66: 0 | CD66: 0 | CE66: 5.389121339 | CF66: 0 | CG66: 0 | CH66: 0 | CI66: 0 | CJ66: 0 | CK66: 10.77824268 | CL66: 0 | CM66: 0 | CN66: 0 | CO66: 0 | CP66: 0
A67: 6 | B67: Baginton Fields | C67: 50 | D67: 0 | E67: =SUMIFS(SpringProvRep!$K:$K,SpringProvRep!$A:$A,Data!$A$26,SpringProvRep!$O:$O,"Coventry",SpringProvRep!$T:$T,Data!E$17)/$BA$61*$A$61 -> 0 | F67: =SUMIFS(SpringProvRep!$K:$K,SpringProvRep!$A:$A,Data!$A$26,SpringProvRep!$O:$O,"Coventry",SpringProvRep!$T:$T,Data!F$17)/$BA$61*$A$61 -> 0 | G67: =SUMIFS(SpringProvRep!$K:$K,SpringProvRep!$A:$A,Data!$A$26,SpringProvRep!$O:$O,"Coventry",SpringProvRep!$T:$T,Data!G$17)/$BA$61*$A$61 -> 0 | H67: =SUMIFS(SpringProvRep!$K:$K,SpringProvRep!$A:$A,Data!$A$26,SpringProvRep!$O:$O,"Coventry",SpringProvRep!$T:$T,Data!H$17)/$BA$61*$A$61 -> 0 | I67: =SUMIFS(SpringProvRep!$K:$K,SpringProvRep!$A:$A,Data!$A$26,SpringProvRep!$O:$O,"Coventry",SpringProvRep!$T:$T,Data!I$17)/$BA$61*$A$61 -> 0 | J67: =SUMIFS(SpringProvRep!$K:$K,SpringProvRep!$A:$A,Data!$A$26,SpringProvRep!$O:$O,"Coventry",SpringProvRep!$T:$T,Data!J$17)/$BA$61*$A$61 -> 0 | K67: =SUMIFS(SpringProvRep!$K:$K,SpringProvRep!$A:$A,Data!$A$26,SpringProvRep!$O:$O,"Coventry",SpringProvRep!$T:$T,Data!K$17)/$BA$61*$A$61 -> 1601.6 | L67: =SUMIFS(SpringProvRep!$K:$K,SpringProvRep!$A:$A,Data!$A$26,SpringProvRep!$O:$O,"Coventry",SpringProvRep!$T:$T,Data!L$17)/$BA$61*$A$61 -> 2301.6 | M67: =SUMIFS(SpringProvRep!$K:$K,SpringProvRep!$A:$A,Data!$A$26,SpringProvRep!$O:$O,"Coventry",SpringProvRep!$T:$T,Data!M$17)/$BA$61*$A$61 -> 0 | N67: =SUMIFS(SpringProvRep!$K:$K,SpringProvRep!$A:$A,Data!$A$26,SpringProvRep!$O:$O,"Coventry",SpringProvRep!$T:$T,Data!N$17)/$BA$61*$A$61 -> 106.4 | O67: =SUMIFS(SpringProvRep!$K:$K,SpringProvRep!$A:$A,Data!$A$26,SpringProvRep!$O:$O,"Coventry",SpringProvRep!$T:$T,Data!O$17)/$BA$61*$A$61 -> 448 | P67: =SUMIFS(SpringProvRep!$K:$K,SpringProvRep!$A:$A,Data!$A$26,SpringProvRep!$O:$O,"Coventry",SpringProvRep!$T:$T,Data!P$17)/$BA$61*$A$61 -> 0 | Q67: =SUMIFS(SpringProvRep!$K:$K,SpringProvRep!$A:$A,Data!$A$26,SpringProvRep!$O:$O,"Coventry",SpringProvRep!$T:$T,Data!Q$17)/$BA$61*$A$61 -> 1568 | R67: =SUMIFS(SpringProvRep!$K:$K,SpringProvRep!$A:$A,Data!$A$26,SpringProvRep!$O:$O,"Coventry",SpringProvRep!$T:$T,Data!R$17)/$BA$61*$A$61 -> 672 | S67: =SUMIFS(SpringProvRep!$K:$K,SpringProvRep!$A:$A,Data!$A$26,SpringProvRep!$O:$O,"Coventry",SpringProvRep!$T:$T,Data!S$17)/$BA$61*$A$61 -> 0 | T67: =SUMIFS(SpringProvRep!$K:$K,SpringProvRep!$A:$A,Data!$A$26,SpringProvRep!$O:$O,"Coventry",SpringProvRep!$T:$T,Data!T$17)/$BA$61*$A$61 -> 112 | U67: =SUMIFS(SpringProvRep!$K:$K,SpringProvRep!$A:$A,Data!$A$26,SpringProvRep!$O:$O,"Coventry",SpringProvRep!$T:$T,Data!U$17)/$BA$61*$A$61 -> 0 | V67: =SUMIFS(SpringProvRep!$K:$K,SpringProvRep!$A:$A,Data!$A$26,SpringProvRep!$O:$O,"Coventry",SpringProvRep!$T:$T,Data!V$17)/$BA$61*$A$61 -> 0 | W67: 121.6 | X67: 474215.6371 | Y67: 0 | Z67: =SUMIFS(SpringProvRep!$K:$K,SpringProvRep!$A:$A,Data!$A$26,SpringProvRep!$O:$O,"<>Coventry",SpringProvRep!$T:$T,Data!Z$17)/$BA$61*$A$61 -> 0 | AA67: =SUMIFS(SpringProvRep!$K:$K,SpringProvRep!$A:$A,Data!$A$26,SpringProvRep!$O:$O,"<>Coventry",SpringProvRep!$T:$T,Data!AA$17)/$BA$61*$A$61 -> 0 | AB67: =SUMIFS(SpringProvRep!$K:$K,SpringProvRep!$A:$A,Data!$A$26,SpringProvRep!$O:$O,"<>Coventry",SpringProvRep!$T:$T,Data!AB$17)/$BA$61*$A$61 -> 0 | AC67: =SUMIFS(SpringProvRep!$K:$K,SpringProvRep!$A:$A,Data!$A$26,SpringProvRep!$O:$O,"<>Coventry",SpringProvRep!$T:$T,Data!AC$17)/$BA$61*$A$61 -> 0 | AD67: =SUMIFS(SpringProvRep!$K:$K,SpringProvRep!$A:$A,Data!$A$26,SpringProvRep!$O:$O,"<>Coventry",SpringProvRep!$T:$T,Data!AD$17)/$BA$61*$A$61 -> 0 | AE67: =SUMIFS(SpringProvRep!$K:$K,SpringProvRep!$A:$A,Data!$A$26,SpringProvRep!$O:$O,"<>Coventry",SpringProvRep!$T:$T,Data!AE$17)/$BA$61*$A$61 -> 0 | AF67: =SUMIFS(SpringProvRep!$K:$K,SpringProvRep!$A:$A,Data!$A$26,SpringProvRep!$O:$O,"<>Coventry",SpringProvRep!$T:$T,Data!AF$17)/$BA$61*$A$61 -> 0 | AG67: =SUMIFS(SpringProvRep!$K:$K,SpringProvRep!$A:$A,Data!$A$26,SpringProvRep!$O:$O,"<>Coventry",SpringProvRep!$T:$T,Data!AG$17)/$BA$61*$A$61 -> 56 | AH67: =SUMIFS(SpringProvRep!$K:$K,SpringProvRep!$A:$A,Data!$A$26,SpringProvRep!$O:$O,"<>Coventry",SpringProvRep!$T:$T,Data!AH$17)/$BA$61*$A$61 -> 0 | AI67: =SUMIFS(SpringProvRep!$K:$K,SpringProvRep!$A:$A,Data!$A$26,SpringProvRep!$O:$O,"<>Coventry",SpringProvRep!$T:$T,Data!AI$17)/$BA$61*$A$61 -> 0 | AJ67: =SUMIFS(SpringProvRep!$K:$K,SpringProvRep!$A:$A,Data!$A$26,SpringProvRep!$O:$O,"<>Coventry",SpringProvRep!$T:$T,Data!AJ$17)/$BA$61*$A$61 -> 0 | AK67: =SUMIFS(SpringProvRep!$K:$K,SpringProvRep!$A:$A,Data!$A$26,SpringProvRep!$O:$O,"<>Coventry",SpringProvRep!$T:$T,Data!AK$17)/$BA$61*$A$61 -> 0 | AL67: =SUMIFS(SpringProvRep!$K:$K,SpringProvRep!$A:$A,Data!$A$26,SpringProvRep!$O:$O,"<>Coventry",SpringProvRep!$T:$T,Data!AL$17)/$BA$61*$A$61 -> 0 | AM67: =SUMIFS(SpringProvRep!$K:$K,SpringProvRep!$A:$A,Data!$A$26,SpringProvRep!$O:$O,"<>Coventry",SpringProvRep!$T:$T,Data!AM$17)/$BA$61*$A$61 -> 0 | AN67: =SUMIFS(SpringProvRep!$K:$K,SpringProvRep!$A:$A,Data!$A$26,SpringProvRep!$O:$O,"<>Coventry",SpringProvRep!$T:$T,Data!AN$17)/$BA$61*$A$61 -> 0 | AO67: =SUMIFS(SpringProvRep!$K:$K,SpringProvRep!$A:$A,Data!$A$26,SpringProvRep!$O:$O,"<>Coventry",SpringProvRep!$T:$T,Data!AO$17)/$BA$61*$A$61 -> 0 | AP67: =SUMIFS(SpringProvRep!$K:$K,SpringProvRep!$A:$A,Data!$A$26,SpringProvRep!$O:$O,"<>Coventry",SpringProvRep!$T:$T,Data!AP$17)/$BA$61*$A$61 -> 0 | AQ67: =SUMIFS(SpringProvRep!$K:$K,SpringProvRep!$A:$A,Data!$A$26,SpringProvRep!$O:$O,"<>Coventry",SpringProvRep!$T:$T,Data!AQ$17)/$BA$61*$A$61 -> 0 | AR67: 1 | AS67: 2860.774415 | AT67: 477076.4115 | AU67: 122.6 | AV67: -3.4 | AW67: 126 | AX67: =[5]Data!$AU54 -> 124.9137931 | AY67: 126 | BB67: =($M$9-$AU$67)*$A$61 -> 190.4 | BC67: 6865.6 | BD67: =$BB$67/$BC$67*D67 -> 0 | BE67: =$BB$67/$BC$67*E67 -> 0 | BF67: 0 | BG67: 0 | BH67: 0 | BI67: 0 | BJ67: 0 | BK67: 44.41631321 | BL67: 63.82903752 | BM67: 0 | BN67: 2.950734095 | BO67: 12.42414356 | BP67: 0 | BQ67: 43.48450245 | BR67: 18.63621533 | BS67: 0 | BT67: 3.106035889 | BU67: 0 | BV67: 0 | BX67: =$BB$67/$BC$67*Y67 -> 0 | BY67: =$BB$67/$BC$67*Z67 -> 0 | BZ67: 0 | CA67: 0 | CB67: 0 | CC67: 0 | CD67: 0 | CE67: 0 | CF67: 1.553017945 | CG67: 0 | CH67: 0 | CI67: 0 | CJ67: 0 | CK67: 0 | CL67: 0 | CM67: 0 | CN67: 0 | CO67: 0 | CP67: 0
A68: 7 | B68: Sherbourne Fields | C68: 50 | D68: 0 | E68: =SUMIFS(SpringProvRep!$K:$K,SpringProvRep!$A:$A,Data!$A$27,SpringProvRep!$O:$O,"Coventry",SpringProvRep!$T:$T,Data!E$17)/$BA$61*$A$61 -> 0 | F68: =SUMIFS(SpringProvRep!$K:$K,SpringProvRep!$A:$A,Data!$A$27,SpringProvRep!$O:$O,"Coventry",SpringProvRep!$T:$T,Data!F$17)/$BA$61*$A$61 -> 0 | G68: =SUMIFS(SpringProvRep!$K:$K,SpringProvRep!$A:$A,Data!$A$27,SpringProvRep!$O:$O,"Coventry",SpringProvRep!$T:$T,Data!G$17)/$BA$61*$A$61 -> 0 | H68: =SUMIFS(SpringProvRep!$K:$K,SpringProvRep!$A:$A,Data!$A$27,SpringProvRep!$O:$O,"Coventry",SpringProvRep!$T:$T,Data!H$17)/$BA$61*$A$61 -> 56 | I68: =SUMIFS(SpringProvRep!$K:$K,SpringProvRep!$A:$A,Data!$A$27,SpringProvRep!$O:$O,"Coventry",SpringProvRep!$T:$T,Data!I$17)/$BA$61*$A$61 -> 0 | J68: =SUMIFS(SpringProvRep!$K:$K,SpringProvRep!$A:$A,Data!$A$27,SpringProvRep!$O:$O,"Coventry",SpringProvRep!$T:$T,Data!J$17)/$BA$61*$A$61 -> 0 | K68: =SUMIFS(SpringProvRep!$K:$K,SpringProvRep!$A:$A,Data!$A$27,SpringProvRep!$O:$O,"Coventry",SpringProvRep!$T:$T,Data!K$17)/$BA$61*$A$61 -> 4580.8 | L68: =SUMIFS(SpringProvRep!$K:$K,SpringProvRep!$A:$A,Data!$A$27,SpringProvRep!$O:$O,"Coventry",SpringProvRep!$T:$T,Data!L$17)/$BA$61*$A$61 -> 3696 | M68: =SUMIFS(SpringProvRep!$K:$K,SpringProvRep!$A:$A,Data!$A$27,SpringProvRep!$O:$O,"Coventry",SpringProvRep!$T:$T,Data!M$17)/$BA$61*$A$61 -> 0 | N68: =SUMIFS(SpringProvRep!$K:$K,SpringProvRep!$A:$A,Data!$A$27,SpringProvRep!$O:$O,"Coventry",SpringProvRep!$T:$T,Data!N$17)/$BA$61*$A$61 -> 1624 | O68: =SUMIFS(SpringProvRep!$K:$K,SpringProvRep!$A:$A,Data!$A$27,SpringProvRep!$O:$O,"Coventry",SpringProvRep!$T:$T,Data!O$17)/$BA$61*$A$61 -> 168 | P68: =SUMIFS(SpringProvRep!$K:$K,SpringProvRep!$A:$A,Data!$A$27,SpringProvRep!$O:$O,"Coventry",SpringProvRep!$T:$T,Data!P$17)/$BA$61*$A$61 -> 0 | Q68: =SUMIFS(SpringProvRep!$K:$K,SpringProvRep!$A:$A,Data!$A$27,SpringProvRep!$O:$O,"Coventry",SpringProvRep!$T:$T,Data!Q$17)/$BA$61*$A$61 -> 1400 | R68: =SUMIFS(SpringProvRep!$K:$K,SpringProvRep!$A:$A,Data!$A$27,SpringProvRep!$O:$O,"Coventry",SpringProvRep!$T:$T,Data!R$17)/$BA$61*$A$61 -> 1120 | S68: =SUMIFS(SpringProvRep!$K:$K,SpringProvRep!$A:$A,Data!$A$27,SpringProvRep!$O:$O,"Coventry",SpringProvRep!$T:$T,Data!S$17)/$BA$61*$A$61 -> 0 | T68: =SUMIFS(SpringProvRep!$K:$K,SpringProvRep!$A:$A,Data!$A$27,SpringProvRep!$O:$O,"Coventry",SpringProvRep!$T:$T,Data!T$17)/$BA$61*$A$61 -> 1176 | U68: =SUMIFS(SpringProvRep!$K:$K,SpringProvRep!$A:$A,Data!$A$27,SpringProvRep!$O:$O,"Coventry",SpringProvRep!$T:$T,Data!U$17)/$BA$61*$A$61 -> 56 | V68: =SUMIFS(SpringProvRep!$K:$K,SpringProvRep!$A:$A,Data!$A$27,SpringProvRep!$O:$O,"Coventry",SpringProvRep!$T:$T,Data!V$17)/$BA$61*$A$61 -> 0 | W68: 247.8 | X68: 905782.5396 | Y68: 0 | Z68: =SUMIFS(SpringProvRep!$K:$K,SpringProvRep!$A:$A,Data!$A$27,SpringProvRep!$O:$O,"<>Coventry",SpringProvRep!$T:$T,Data!Z$17)/$BA$61*$A$61 -> 0 | AA68: =SUMIFS(SpringProvRep!$K:$K,SpringProvRep!$A:$A,Data!$A$27,SpringProvRep!$O:$O,"<>Coventry",SpringProvRep!$T:$T,Data!AA$17)/$BA$61*$A$61 -> 0 | AB68: =SUMIFS(SpringProvRep!$K:$K,SpringProvRep!$A:$A,Data!$A$27,SpringProvRep!$O:$O,"<>Coventry",SpringProvRep!$T:$T,Data!AB$17)/$BA$61*$A$61 -> 0 | AC68: =SUMIFS(SpringProvRep!$K:$K,SpringProvRep!$A:$A,Data!$A$27,SpringProvRep!$O:$O,"<>Coventry",SpringProvRep!$T:$T,Data!AC$17)/$BA$61*$A$61 -> 0 | AD68: =SUMIFS(SpringProvRep!$K:$K,SpringProvRep!$A:$A,Data!$A$27,SpringProvRep!$O:$O,"<>Coventry",SpringProvRep!$T:$T,Data!AD$17)/$BA$61*$A$61 -> 0 | AE68: =SUMIFS(SpringProvRep!$K:$K,SpringProvRep!$A:$A,Data!$A$27,SpringProvRep!$O:$O,"<>Coventry",SpringProvRep!$T:$T,Data!AE$17)/$BA$61*$A$61 -> 0 | AF68: =SUMIFS(SpringProvRep!$K:$K,SpringProvRep!$A:$A,Data!$A$27,SpringProvRep!$O:$O,"<>Coventry",SpringProvRep!$T:$T,Data!AF$17)/$BA$61*$A$61 -> 56 | AG68: =SUMIFS(SpringProvRep!$K:$K,SpringProvRep!$A:$A,Data!$A$27,SpringProvRep!$O:$O,"<>Coventry",SpringProvRep!$T:$T,Data!AG$17)/$BA$61*$A$61 -> 0 | AH68: =SUMIFS(SpringProvRep!$K:$K,SpringProvRep!$A:$A,Data!$A$27,SpringProvRep!$O:$O,"<>Coventry",SpringProvRep!$T:$T,Data!AH$17)/$BA$61*$A$61 -> 0 | AI68: =SUMIFS(SpringProvRep!$K:$K,SpringProvRep!$A:$A,Data!$A$27,SpringProvRep!$O:$O,"<>Coventry",SpringProvRep!$T:$T,Data!AI$17)/$BA$61*$A$61 -> 56 | AJ68: =SUMIFS(SpringProvRep!$K:$K,SpringProvRep!$A:$A,Data!$A$27,SpringProvRep!$O:$O,"<>Coventry",SpringProvRep!$T:$T,Data!AJ$17)/$BA$61*$A$61 -> 0 | AK68: =SUMIFS(SpringProvRep!$K:$K,SpringProvRep!$A:$A,Data!$A$27,SpringProvRep!$O:$O,"<>Coventry",SpringProvRep!$T:$T,Data!AK$17)/$BA$61*$A$61 -> 0 | AL68: =SUMIFS(SpringProvRep!$K:$K,SpringProvRep!$A:$A,Data!$A$27,SpringProvRep!$O:$O,"<>Coventry",SpringProvRep!$T:$T,Data!AL$17)/$BA$61*$A$61 -> 0 | AM68: =SUMIFS(SpringProvRep!$K:$K,SpringProvRep!$A:$A,Data!$A$27,SpringProvRep!$O:$O,"<>Coventry",SpringProvRep!$T:$T,Data!AM$17)/$BA$61*$A$61 -> 0 | AN68: =SUMIFS(SpringProvRep!$K:$K,SpringProvRep!$A:$A,Data!$A$27,SpringProvRep!$O:$O,"<>Coventry",SpringProvRep!$T:$T,Data!AN$17)/$BA$61*$A$61 -> 0 | AO68: =SUMIFS(SpringProvRep!$K:$K,SpringProvRep!$A:$A,Data!$A$27,SpringProvRep!$O:$O,"<>Coventry",SpringProvRep!$T:$T,Data!AO$17)/$BA$61*$A$61 -> 112 | AP68: =SUMIFS(SpringProvRep!$K:$K,SpringProvRep!$A:$A,Data!$A$27,SpringProvRep!$O:$O,"<>Coventry",SpringProvRep!$T:$T,Data!AP$17)/$BA$61*$A$61 -> 0 | AQ68: =SUMIFS(SpringProvRep!$K:$K,SpringProvRep!$A:$A,Data!$A$27,SpringProvRep!$O:$O,"<>Coventry",SpringProvRep!$T:$T,Data!AQ$17)/$BA$61*$A$61 -> 0 | AR68: 4 | AS68: 16236.8147 | AT68: 922019.3543 | AU68: 251.8 | AV68: -6.2 | AW68: 258 | AX68: =[5]Data!$AU55 -> 249.5226772 | AY68: 251 | BB68: =($M$10-$AU$68)*$A$61 -> 347.2 | BC68: 14100.8 | BD68: =$BB$68/$BC$68*D68 -> 0 | BE68: =$BB$68/$BC$68*E68 -> 0 | BF68: 0 | BG68: 0 | BH68: 1.378872121 | BI68: 0 | BJ68: 0 | BK68: 112.7917395 | BL68: 91.00555997 | BM68: 0 | BN68: 39.9872915 | BO68: 4.136616362 | BP68: 0 | BQ68: 34.47180302 | BR68: 27.57744241 | BS68: 0 | BT68: 28.95631454 | BU68: 1.378872121 | BV68: 0 | BX68: =$BB$68/$BC$68*Y68 -> 0 | BY68: =$BB$68/$BC$68*Z68 -> 0 | BZ68: 0 | CA68: 0 | CB68: 0 | CC68: 0 | CD68: 0 | CE68: 1.378872121 | CF68: 0 | CG68: 0 | CH68: 1.378872121 | CI68: 0 | CJ68: 0 | CK68: 0 | CL68: 0 | CM68: 0 | CN68: 2.757744241 | CO68: 0 | CP68: 0
A69: 8 | B69: Woodfield | C69: =10000/$A$16 -> 50 | D69: 0 | E69: =SUMIFS(SpringProvRep!$K:$K,SpringProvRep!$A:$A,Data!$A$28,SpringProvRep!$O:$O,"Coventry",SpringProvRep!$T:$T,Data!E$17)/$BA$61*$A$61 -> 0 | F69: =SUMIFS(SpringProvRep!$K:$K,SpringProvRep!$A:$A,Data!$A$28,SpringProvRep!$O:$O,"Coventry",SpringProvRep!$T:$T,Data!F$17)/$BA$61*$A$61 -> 0 | G69: =SUMIFS(SpringProvRep!$K:$K,SpringProvRep!$A:$A,Data!$A$28,SpringProvRep!$O:$O,"Coventry",SpringProvRep!$T:$T,Data!G$17)/$BA$61*$A$61 -> 0 | H69: =SUMIFS(SpringProvRep!$K:$K,SpringProvRep!$A:$A,Data!$A$28,SpringProvRep!$O:$O,"Coventry",SpringProvRep!$T:$T,Data!H$17)/$BA$61*$A$61 -> 0 | I69: =SUMIFS(SpringProvRep!$K:$K,SpringProvRep!$A:$A,Data!$A$28,SpringProvRep!$O:$O,"Coventry",SpringProvRep!$T:$T,Data!I$17)/$BA$61*$A$61 -> 0 | J69: =SUMIFS(SpringProvRep!$K:$K,SpringProvRep!$A:$A,Data!$A$28,SpringProvRep!$O:$O,"Coventry",SpringProvRep!$T:$T,Data!J$17)/$BA$61*$A$61 -> 0 | K69: =SUMIFS(SpringProvRep!$K:$K,SpringProvRep!$A:$A,Data!$A$28,SpringProvRep!$O:$O,"Coventry",SpringProvRep!$T:$T,Data!K$17)/$BA$61*$A$61 -> 0 | L69: =SUMIFS(SpringProvRep!$K:$K,SpringProvRep!$A:$A,Data!$A$28,SpringProvRep!$O:$O,"Coventry",SpringProvRep!$T:$T,Data!L$17)/$BA$61*$A$61 -> 0 | M69: =SUMIFS(SpringProvRep!$K:$K,SpringProvRep!$A:$A,Data!$A$28,SpringProvRep!$O:$O,"Coventry",SpringProvRep!$T:$T,Data!M$17)/$BA$61*$A$61 -> 0 | N69: =SUMIFS(SpringProvRep!$K:$K,SpringProvRep!$A:$A,Data!$A$28,SpringProvRep!$O:$O,"Coventry",SpringProvRep!$T:$T,Data!N$17)/$BA$61*$A$61 -> 0 | O69: =SUMIFS(SpringProvRep!$K:$K,SpringProvRep!$A:$A,Data!$A$28,SpringProvRep!$O:$O,"Coventry",SpringProvRep!$T:$T,Data!O$17)/$BA$61*$A$61 -> 667.52 | P69: =SUMIFS(SpringProvRep!$K:$K,SpringProvRep!$A:$A,Data!$A$28,SpringProvRep!$O:$O,"Coventry",SpringProvRep!$T:$T,Data!P$17)/$BA$61*$A$61 -> 0 | Q69: =SUMIFS(SpringProvRep!$K:$K,SpringProvRep!$A:$A,Data!$A$28,SpringProvRep!$O:$O,"Coventry",SpringProvRep!$T:$T,Data!Q$17)/$BA$61*$A$61 -> 7468.16 | R69: =SUMIFS(SpringProvRep!$K:$K,SpringProvRep!$A:$A,Data!$A$28,SpringProvRep!$O:$O,"Coventry",SpringProvRep!$T:$T,Data!R$17)/$BA$61*$A$61 -> 0 | S69: =SUMIFS(SpringProvRep!$K:$K,SpringProvRep!$A:$A,Data!$A$28,SpringProvRep!$O:$O,"Coventry",SpringProvRep!$T:$T,Data!S$17)/$BA$61*$A$61 -> 0 | T69: =SUMIFS(SpringProvRep!$K:$K,SpringProvRep!$A:$A,Data!$A$28,SpringProvRep!$O:$O,"Coventry",SpringProvRep!$T:$T,Data!T$17)/$BA$61*$A$61 -> 0 | U69: =SUMIFS(SpringProvRep!$K:$K,SpringProvRep!$A:$A,Data!$A$28,SpringProvRep!$O:$O,"Coventry",SpringProvRep!$T:$T,Data!U$17)/$BA$61*$A$61 -> 224 | V69: =SUMIFS(SpringProvRep!$K:$K,SpringProvRep!$A:$A,Data!$A$28,SpringProvRep!$O:$O,"Coventry",SpringProvRep!$T:$T,Data!V$17)/$BA$61*$A$61 -> 0 | W69: =SUM(D69:V69)/$A$61 -> 149.28 | X69: 807608.8668 | Y69: 0 | Z69: =SUMIFS(SpringProvRep!$K:$K,SpringProvRep!$A:$A,Data!$A$28,SpringProvRep!$O:$O,"<>Coventry",SpringProvRep!$T:$T,Data!Z$17)/$BA$61*$A$61 -> 0 | AA69: =SUMIFS(SpringProvRep!$K:$K,SpringProvRep!$A:$A,Data!$A$28,SpringProvRep!$O:$O,"<>Coventry",SpringProvRep!$T:$T,Data!AA$17)/$BA$61*$A$61 -> 0 | AB69: =SUMIFS(SpringProvRep!$K:$K,SpringProvRep!$A:$A,Data!$A$28,SpringProvRep!$O:$O,"<>Coventry",SpringProvRep!$T:$T,Data!AB$17)/$BA$61*$A$61 -> 0 | AC69: =SUMIFS(SpringProvRep!$K:$K,SpringProvRep!$A:$A,Data!$A$28,SpringProvRep!$O:$O,"<>Coventry",SpringProvRep!$T:$T,Data!AC$17)/$BA$61*$A$61 -> 0 | AD69: =SUMIFS(SpringProvRep!$K:$K,SpringProvRep!$A:$A,Data!$A$28,SpringProvRep!$O:$O,"<>Coventry",SpringProvRep!$T:$T,Data!AD$17)/$BA$61*$A$61 -> 0 | AE69: =SUMIFS(SpringProvRep!$K:$K,SpringProvRep!$A:$A,Data!$A$28,SpringProvRep!$O:$O,"<>Coventry",SpringProvRep!$T:$T,Data!AE$17)/$BA$61*$A$61 -> 0 | AF69: =SUMIFS(SpringProvRep!$K:$K,SpringProvRep!$A:$A,Data!$A$28,SpringProvRep!$O:$O,"<>Coventry",SpringProvRep!$T:$T,Data!AF$17)/$BA$61*$A$61 -> 0 | AG69: =SUMIFS(SpringProvRep!$K:$K,SpringProvRep!$A:$A,Data!$A$28,SpringProvRep!$O:$O,"<>Coventry",SpringProvRep!$T:$T,Data!AG$17)/$BA$61*$A$61 -> 0 | AH69: =SUMIFS(SpringProvRep!$K:$K,SpringProvRep!$A:$A,Data!$A$28,SpringProvRep!$O:$O,"<>Coventry",SpringProvRep!$T:$T,Data!AH$17)/$BA$61*$A$61 -> 0 | AI69: =SUMIFS(SpringProvRep!$K:$K,SpringProvRep!$A:$A,Data!$A$28,SpringProvRep!$O:$O,"<>Coventry",SpringProvRep!$T:$T,Data!AI$17)/$BA$61*$A$61 -> 0 | AJ69: =SUMIFS(SpringProvRep!$K:$K,SpringProvRep!$A:$A,Data!$A$28,SpringProvRep!$O:$O,"<>Coventry",SpringProvRep!$T:$T,Data!AJ$17)/$BA$61*$A$61 -> 112 | AK69: =SUMIFS(SpringProvRep!$K:$K,SpringProvRep!$A:$A,Data!$A$28,SpringProvRep!$O:$O,"<>Coventry",SpringProvRep!$T:$T,Data!AK$17)/$BA$61*$A$61 -> 0 | AL69: =SUMIFS(SpringProvRep!$K:$K,SpringProvRep!$A:$A,Data!$A$28,SpringProvRep!$O:$O,"<>Coventry",SpringProvRep!$T:$T,Data!AL$17)/$BA$61*$A$61 -> 168 | AM69: =SUMIFS(SpringProvRep!$K:$K,SpringProvRep!$A:$A,Data!$A$28,SpringProvRep!$O:$O,"<>Coventry",SpringProvRep!$T:$T,Data!AM$17)/$BA$61*$A$61 -> 0 | AN69: =SUMIFS(SpringProvRep!$K:$K,SpringProvRep!$A:$A,Data!$A$28,SpringProvRep!$O:$O,"<>Coventry",SpringProvRep!$T:$T,Data!AN$17)/$BA$61*$A$61 -> 0 | AO69: =SUMIFS(SpringProvRep!$K:$K,SpringProvRep!$A:$A,Data!$A$28,SpringProvRep!$O:$O,"<>Coventry",SpringProvRep!$T:$T,Data!AO$17)/$BA$61*$A$61 -> 0 | AP69: =SUMIFS(SpringProvRep!$K:$K,SpringProvRep!$A:$A,Data!$A$28,SpringProvRep!$O:$O,"<>Coventry",SpringProvRep!$T:$T,Data!AP$17)/$BA$61*$A$61 -> 0 | AQ69: =SUMIFS(SpringProvRep!$K:$K,SpringProvRep!$A:$A,Data!$A$28,SpringProvRep!$O:$O,"<>Coventry",SpringProvRep!$T:$T,Data!AQ$17)/$BA$61*$A$61 -> 0 | AR69: 5 | AS69: 28870.59868 | AT69: 836479.4655 | AU69: =AR69+W69 -> 154.28 | AV69: -0.72 | AW69: 155 | AX69: =[5]Data!$AU56 -> 145.220339 | AY69: 155 | BB69: =($M$11-$AU$69)*$A$61 -> 40.32 | BC69: 8639.68 | BD69: =$BB$69/$BC$69*D69 -> 0 | BE69: =$BB$69/$BC$69*E69 -> 0 | BF69: 0 | BG69: 0 | BH69: 0 | BI69: 0 | BJ69: 0 | BK69: 0 | BL69: 0 | BM69: 0 | BN69: 0 | BO69: 3.115208711 | BP69: 0 | BQ69: 34.85270417 | BR69: 0 | BS69: 0 | BT69: 0 | BU69: 1.045372051 | BV69: 0 | BX69: =$BB$69/$BC$69*Y69 -> 0 | BY69: =$BB$69/$BC$69*Z69 -> 0 | BZ69: 0 | CA69: 0 | CB69: 0 | CC69: 0 | CD69: 0 | CE69: 0 | CF69: 0 | CG69: 0 | CH69: 0 | CI69: 0.5226860254 | CJ69: 0 | CK69: 0.7840290381 | CL69: 0 | CM69: 0 | CN69: 0 | CO69: 0 | CP69: 0
A70: 9 | B70: Coventry ELC | C70: =10000/$A$16 -> 50 | D70: =120*A61 -> 6720 | E70: 0 | F70: 0 | G70: 0 | H70: 0 | I70: 0 | J70: 0 | K70: 0 | L70: 0 | M70: 0 | N70: 0 | O70: 0 | P70: 0 | Q70: 0 | R70: 0 | S70: 0 | T70: 0 | U70: 0 | V70: 0 | W70: =SUM(D70:V70)/$A$61 -> 120 | X70: =SUMPRODUCT(D70:V70,$V$12:$AN$12)/$A$16 -> 451399.7824 | Y70: =A61*0 -> 0 | Z70: 0 | AA70: 0 | AB70: 0 | AC70: 0 | AD70: 0 | AE70: 0 | AF70: 0 | AG70: 0 | AH70: 0 | AI70: 0 | AJ70: 0 | AK70: 0 | AL70: 0 | AM70: 0 | AN70: 0 | AO70: 0 | AP70: 0 | AQ70: 0 | AR70: 0 | AS70: 0 | AT70: 451399.7824 | AU70: 120 | AV70: 0 | AW70: 120 | AX70: =[5]Data!$AU57 -> 120 | AY70: 120 | BB70: =($M$12-$AU$70)*$A$62 -> 0 | BC70: 6720 | BD70: =$BB$70/$BC$70*D70 -> 0 | BE70: =$BB$70/$BC$70*E70 -> 0 | BF70: 0 | BG70: 0 | BH70: 0 | BI70: 0 | BJ70: 0 | BK70: 0 | BL70: 0 | BM70: 0 | BN70: 0 | BO70: 0 | BP70: 0 | BQ70: 0 | BR70: 0 | BS70: 0 | BT70: 0 | BU70: 0 | BV70: 0 | BX70: =$BB$70/$BC$70*Y70 -> 0 | BY70: =$BB$70/$BC$70*Z70 -> 0 | BZ70: 0 | CA70: 0 | CB70: 0 | CC70: 0 | CD70: 0 | CE70: 0 | CF70: 0 | CG70: 0 | CH70: 0 | CI70: 0 | CJ70: 0 | CK70: 0 | CL70: 0 | CM70: 0 | CN70: 0 | CO70: 0 | CP70: 0
AS71: =SUM(AS62:AS70) -> 92580.78704 | AT71: =SUM(AT62:AT70) -> 5316399.301 | AU71: =SUM(AU62:AU70) -> 1373.12
B72: Spring Term 2025
A73: 56 | B73: School
A74: 1 | B74: Castle Wood | C74: =10000/$A$16 -> 50 | D74: =D62+BD62 -> 0 | E74: =E62+BE62 -> 0 | F74: =F62+BF62 -> 0 | G74: =G62+BG62 -> 0 | H74: =H62+BH62 -> 0 | I74: =I62+BI62 -> 0 | J74: =J62+BJ62 -> 55.40440267 | K74: =K62+BK62 -> 4734.860252 | L74: =L62+BL62 -> 720.2572347 | M74: =M62+BM62 -> 55.40440267 | N74: =N62+BN62 -> 277.0220134 | O74: =O62+BO62 -> 554.0440267 | P74: =P62+BP62 -> 0 | Q74: =Q62+BQ62 -> 1638.862231 | R74: =R62+BR62 -> 443.2352214 | S74: =S62+BS62 -> 0 | T74: =T62+BT62 -> 332.426416 | U74: =U62+BU62 -> 93.07939649 | V74: =V62+BV62 -> 0 | W74: =SUM(D74:V74)/$A$61 -> 159.0106357 | X74: =SUMPRODUCT(D74:V74,$V$6:$AN$6)/$A$16 -> 626027.6204 | Y74: =Y62+BX62 -> 0 | Z74: =Z62+BY62 -> 0 | AA74: =AA62+BZ62 -> 0 | AB74: =AB62+CA62 -> 0 | AC74: =AC62+CB62 -> 0 | AD74: =AD62+CC62 -> 0 | AE74: =AE62+CD62 -> 0 | AF74: =AF62+CE62 -> 55.40440267 | AG74: =AG62+CF62 -> 0 | AH74: =AH62+CG62 -> 0 | AI74: =AI62+CH62 -> 0 | AJ74: =AJ62+CI62 -> 0 | AK74: =AK62+CJ62 -> 0 | AL74: =AL62+CK62 -> 0 | AM74: =AM62+CL62 -> 0 | AN74: =AN62+CM62 -> 0 | AO74: =AO62+CN62 -> 0 | AP74: =AP62+CO62 -> 0 | AQ74: =AQ62+CP62 -> 0 | AR74: =SUM(Y74:AQ74)/$A$61 -> 0.9893643334 | AS74: =SUMPRODUCT(Y74:AQ74,$V$6:$AN$6)/$A$16 -> 3059.83418 | AT74: =X74+AS74 -> 629087.4546 | AU74: =AR74+W74 -> 160 | AV74: =AU74-AW74 -> 0 | AW74: =M4 -> 160 | AX74: =[5]Data!$AU49 -> 160.1525424 | AY74: =E4 -> 160 | BA74: =(AT74/56*200)/AU74 -> 14042.13068
A75: 2 | B75: Kingsbury | C75: =10000/$A$16 -> 50 | D75: =D63+BD63 -> 0 | E75: 0 | F75: 0 | G75: 0 | H75: 0 | I75: 0 | J75: 0 | K75: =K63+BK63 -> 3349.303621 | L75: 278.551532 | M75: 0 | N75: 0 | O75: 270.7520891 | P75: 0 | Q75: =Q63+BQ63 -> 1255.710306 | R75: 111.4206128 | S75: 0 | T75: 0 | U75: 55.71030641 | V75: 0 | W75: =SUM(D75:V75)/$A$61 -> 95.0258655 | X75: 368192.992 | Y75: =Y63+BX63 -> 0 | Z75: 0 | AA75: 0 | AB75: 0 | AC75: 0 | AD75: 0 | AE75: 0 | AF75: 111.4206128 | AG75: 55.71030641 | AH75: 0 | AI75: 0 | AJ75: 0 | AK75: 0 | AL75: 111.4206128 | AM75: 0 | AN75: 0 | AO75: 0 | AP75: 0 | AQ75: 0 | AR75: =SUM(Y75:AQ75)/$A$61 -> 4.974134501 | AS75: 18998.80196 | AT75: 387191.7939 | AU75: 100 | AV75: 0 | AW75: 100 | AX75: =[5]Data!$AU50 -> 101 | AY75: 100 | BA75: =(AT75/56*200)/AU75 -> 13828.27835
A76: 3 | B76: RiverBank | C76: 50 | D76: 0 | E76: 0 | F76: 0 | G76: 568.5279188 | H76: 852.7918782 | I76: 0 | J76: 56.85279188 | K76: 3922.84264 | L76: 3087.106599 | M76: 113.7055838 | N76: 397.9695431 | O76: 210.3553299 | P76: 227.4111675 | Q76: 1307.614213 | R76: 284.2639594 | S76: 0 | T76: 113.7055838 | U76: 0 | V76: 0 | W76: 198.9847716 | X76: 661625.0835 | Y76: 0 | Z76: 0 | AA76: 0 | AB76: 0 | AC76: 0 | AD76: 0 | AE76: 0 | AF76: 56.85279188 | AG76: 0 | AH76: 0 | AI76: 0 | AJ76: 0 | AK76: 0 | AL76: 0 | AM76: 0 | AN76: 0 | AO76: 0 | AP76: 0 | AQ76: 0 | AR76: 1.015228426 | AS76: 3139.824769 | AT76: 664764.9082 | AU76: 200 | AV76: 0 | AW76: 200 | AX76: =[5]Data!$AU51 -> 198.1016949 | AY76: 200 | BA76: 11870.80193
A77: 4 | B77: Corley | C77: 50 | D77: 0 | E77: 0 | F77: 0 | G77: 0 | H77: 0 | I77: 0 | J77: 0 | K77: 6892.765957 | L77: 0 | M77: 417.0212766 | N77: 0 | O77: 238.2978723 | P77: 0 | Q77: 1012.765957 | R77: 0 | S77: 0 | T77: 0 | U77: 0 | V77: 0 | W77: 152.8723404 | X77: 529695.3533 | Y77: 0 | Z77: 0 | AA77: 0 | AB77: 0 | AC77: 0 | AD77: 0 | AE77: 0 | AF77: 119.1489362 | AG77: 0 | AH77: 0 | AI77: 0 | AJ77: 0 | AK77: 0 | AL77: 0 | AM77: 0 | AN77: 0 | AO77: 0 | AP77: 0 | AQ77: 0 | AR77: 2.127659574 | AS77: 6580.271059 | AT77: 536275.6243 | AU77: 155 | AV77: 0 | AW77: 155 | AX77: =[5]Data!$AU52 -> 148.2223098 | AY77: 140 | BA77: 12356.58121
A78: 5 | B78: Tiverton | C78: 50 | D78: 0 | E78: 0 | F78: 0 | G78: 0 | H78: 0 | I78: 0 | J78: 0 | K78: 3928.903766 | L78: 798.0585774 | M78: 0 | N78: 368.334728 | O78: 337.6401674 | P78: 0 | Q78: 982.2259414 | R78: 429.7238494 | S78: 0 | T78: 306.9456067 | U78: 0 | V78: 0 | W78: 127.7112971 | X78: 473937.5402 | Y78: 0 | Z78: 0 | AA78: 0 | AB78: 0 | AC78: 0 | AD78: 0 | AE78: 0 | AF78: 61.38912134 | AG78: 0 | AH78: 0 | AI78: 0 | AJ78: 0 | AK78: 0 | AL78: 122.7782427 | AM78: 0 | AN78: 0 | AO78: 0 | AP78: 0 | AQ78: 0 | AR78: 3.288702929 | AS78: 14409.00673 | AT78: 488346.5469 | AU78: 131 | AV78: 0 | AW78: 131 | AX78: =[5]Data!$AU53 -> 118.25 | AY78: 118 | BA78: 13313.70084
A79: 6 | B79: Baginton Fields | C79: 50 | D79: 0 | E79: 0 | F79: 0 | G79: 0 | H79: 0 | I79: 0 | J79: 0 | K79: 1646.016313 | L79: 2365.429038 | M79: 0 | N79: 109.3507341 | O79: 460.4241436 | P79: 0 | Q79: 1611.484502 | R79: 690.6362153 | S79: 0 | T79: 115.1060359 | U79: 0 | V79: 0 | W79: 124.9722675 | X79: 487366.8049 | Y79: 0 | Z79: 0 | AA79: 0 | AB79: 0 | AC79: 0 | AD79: 0 | AE79: 0 | AF79: 0 | AG79: 57.55301794 | AH79: 0 | AI79: 0 | AJ79: 0 | AK79: 0 | AL79: 0 | AM79: 0 | AN79: 0 | AO79: =AO67+CN67 -> 0 | AP79: 0 | AQ79: 0 | AR79: 1.027732463 | AS79: 2940.110737 | AT79: 490306.9156 | AU79: 126 | AV79: 0 | AW79: 126 | AX79: =[5]Data!$AU54 -> 124.9137931 | AY79: 126 | BA79: 13897.58831
A80: 7 | B80: Sherbourne Fields | C80: 50 | D80: 0 | E80: 0 | F80: 0 | G80: 0 | H80: 57.37887212 | I80: 0 | J80: 0 | K80: 4693.591739 | L80: 3787.00556 | M80: 0 | N80: 1663.987292 | O80: 172.1366164 | P80: 0 | Q80: 1434.471803 | R80: 1147.577442 | S80: 0 | T80: 1204.956315 | U80: 57.37887212 | V80: 0 | W80: 253.9015091 | X80: 928085.3662 | Y80: 0 | Z80: 0 | AA80: 0 | AB80: 0 | AC80: 0 | AD80: 0 | AE80: 0 | AF80: 57.37887212 | AG80: 0 | AH80: 0 | AI80: 57.37887212 | AJ80: 0 | AK80: 0 | AL80: 0 | AM80: 0 | AN80: 0 | AO80: =AO68+CN68 -> 114.7577442 | AP80: 0 | AQ80: 0 | AR80: 4.098490866 | AS80: 16636.60918 | AT80: 944721.9754 | AU80: 258 | AV80: 0 | AW80: 258 | AX80: =[5]Data!$AU55 -> 249.5226772 | AY80: 251 | BA80: 13077.54673
A81: 8 | B81: Woodfield | C81: =10000/$A$16 -> 50 | D81: 0 | E81: 0 | F81: 0 | G81: 0 | H81: 0 | I81: 0 | J81: 0 | K81: 0 | L81: 0 | M81: 0 | N81: 0 | O81: 670.6352087 | P81: 0 | Q81: 7503.012704 | R81: 0 | S81: 0 | T81: 0 | U81: 225.0453721 | V81: 0 | W81: =SUM(D81:V81)/$A$61 -> 149.9766658 | X81: 811377.8478 | Y81: 0 | Z81: 0 | AA81: 0 | AB81: 0 | AC81: 0 | AD81: 0 | AE81: 0 | AF81: 0 | AG81: 0 | AH81: 0 | AI81: 0 | AJ81: 112.522686 | AK81: 0 | AL81: 168.784029 | AM81: 0 | AN81: 0 | AO81: 0 | AP81: 0 | AQ81: 0 | AR81: 5.023334198 | AS81: 29005.33313 | AT81: 840383.1809 | AU81: =AR81+W81 -> 155 | AV81: =AU81-AW81 -> 0 | AW81: 155 | AX81: =[5]Data!$AU56 -> 145.220339 | AY81: 155 | BA81: 19363.66776
A82: 9 | B82: Coventry ELC | C82: =10000/$A$16 -> 50 | D82: =D70+BD70 -> 6720 | E82: 0 | F82: 0 | G82: 0 | H82: 0 | I82: 0 | J82: 0 | K82: 0 | L82: 0 | M82: 0 | N82: 0 | O82: 0 | P82: 0 | Q82: 0 | R82: 0 | S82: 0 | T82: 0 | U82: 0 | V82: 0 | W82: 120 | X82: =SUMPRODUCT(D82:V82,$V$12:$AN$12)/$A$16 -> 451399.7824 | Y82: 0 | Z82: 0 | AA82: 0 | AB82: 0 | AC82: 0 | AD82: 0 | AE82: 0 | AF82: 0 | AG82: 0 | AH82: 0 | AI82: 0 | AJ82: 0 | AK82: 0 | AL82: 0 | AM82: 0 | AN82: 0 | AO82: 0 | AP82: 0 | AQ82: 0 | AR82: 0 | AS82: =SUMPRODUCT(Y82:AQ82,$V$12:$AN$12)/$A$16 -> 0 | AT82: 451399.7824 | AU82: 120 | AV82: =AU82-AW82 -> 0 | AW82: 120 | AX82: =[5]Data!$AU57 -> 120 | AY82: 120 | BA82: 13434.51733
D84: Coventry pupils | Y84: Other LA Pupils
B85: Full Year 2024/25
A87: 1 | B87: Castle Wood | C87: =10000/$A$16 -> 50 | D87: =D21+D47+D74 -> 0 | E87: 0 | F87: 0 | G87: 0 | H87: 0 | I87: 0 | J87: 199.7825331 | K87: 17075.72313 | L87: =L21+L47+L74 -> 2646.763806 | M87: 199.7825331 | N87: 998.9126655 | O87: 1847.06907 | P87: 0 | Q87: 5863.795283 | R87: 1598.260265 | S87: 0 | T87: 1163.981586 | U87: 344.1465921 | V87: 0 | W87: =SUM(D87:V87)/$A$16 -> 159.6910873 | X87: =X21+X47+X74 -> 2236598.001 | Y87: 0 | Z87: 0 | AA87: 0 | AB87: 0 | AC87: 0 | AD87: 0 | AE87: 0 | AF87: 130.7825331 | AG87: 0 | AH87: 0 | AI87: 0 | AJ87: 0 | AK87: 0 | AL87: 0 | AM87: 0 | AN87: 0 | AO87: 0 | AP87: 0 | AQ87: 0 | AR87: =SUM(Y87:AQ87)/$A$16 -> 0.6539126655 | AS87: =AS21+AS47+AS74 -> 7222.762915 | AT87: 2243820.764 | AU87: =AR87+W87 -> 160.345 | AV87: =AT87/AU87 -> 13993.70585 | BA87: =AVERAGE(BA21,BA47,BA74) -> 13937.79366 | BB87: =BA87-AV87 -> -55.91218747
A88: 2 | B88: Kingsbury | C88: =10000/$A$16 -> 50 | D88: =D22+D48+D75 -> 0 | E88: 0 | F88: 0 | G88: 0 | H88: 0 | I88: 0 | J88: 0 | K88: 11749.00659 | L88: 994.8386607 | M88: 0 | N88: 0 | O88: 1139.928223 | P88: 0 | Q88: 4624.14595 | R88: 397.9354643 | S88: 0 | T88: 0 | U88: 173.563876 | V88: 0 | W88: 95.39709382 | X88: =X22+X48+X75 -> 1330784.363 | Y88: 0 | Z88: 0 | AA88: 0 | AB88: 0 | AC88: 0 | AD88: 0 | AE88: 0 | AF88: 397.9354643 | AG88: 198.9677321 | AH88: 0 | AI88: 0 | AJ88: 0 | AK88: 0 | AL88: 323.6780386 | AM88: 0 | AN88: 0 | AO88: 0 | AP88: 0 | AQ88: 0 | AR88: =SUM(Y88:AQ88)/$A$16 -> 4.602906175 | AS88: 61189.48234 | AT88: 1391973.845 | AU88: =AR88+W88 -> 100 | AV88: =AT88/AU88 -> 13919.73845 | BA88: 13704.74854 | BB88: =BA88-AV88 -> -214.9899114
A89: 3 | B89: RiverBank | C89: 50 | D89: =D23+D49+D76 -> 0 | E89: 0 | F89: 0 | G89: 2019.949239 | H89: 2958.923858 | I89: 0 | J89: 56.85279188 | K89: 13721.64975 | L89: 10970.78173 | M89: 403.9898477 | N89: 1413.964467 | O89: 893.9238579 | P89: 727.8375635 | Q89: 4578.025381 | R89: 1009.974619 | S89: 0 | T89: 472.9898477 | U89: 0 | V89: 0 | W89: 196.1443147 | X89: =X23+X49+X76 -> 2334379.073 | Y89: 0 | Z89: 0 | AA89: 0 | AB89: 76.14213198 | AC89: 0 | AD89: 0 | AE89: 0 | AF89: 201.9949239 | AG89: 0 | AH89: 0 | AI89: 0 | AJ89: 0 | AK89: 0 | AL89: 0 | AM89: 0 | AN89: 0 | AO89: 0 | AP89: 0 | AQ89: 0 | AR89: 1.390685279 | AS89: 12417.16639 | AT89: 2346796.239 | AU89: 197.535 | AV89: 11880.40722 | BA89: 11824.53947 | BB89: -55.86774605
A90: 4 | B90: Corley | C90: 50 | D90: =D24+D50+D77 -> 0 | E90: 0 | F90: 0 | G90: 0 | H90: 0 | I90: 0 | J90: 0 | K90: 24065.69522 | L90: 0 | M90: 1494.438752 | N90: 0 | O90: 867.4934341 | P90: 0 | Q90: 3707.531561 | R90: 0 | S90: 0 | T90: 0 | U90: 0 | V90: 0 | W90: 150.6757948 | X90: =X24+X50+X77 -> 1871817.574 | Y90: 0 | Z90: 0 | AA90: 0 | AB90: 0 | AC90: 0 | AD90: 0 | AE90: 0 | AF90: 338.8410305 | AG90: 0 | AH90: 0 | AI90: 0 | AJ90: 0 | AK90: 0 | AL90: 0 | AM90: 0 | AN90: 0 | AO90: 0 | AP90: 0 | AQ90: 0 | AR90: 1.694205152 | AS90: 18713.26676 | AT90: 1890530.841 | AU90: 152.37 | AV90: 12407.50043 | BA90: 12361.72304 | BB90: -45.77739608
A91: 5 | B91: Tiverton | C91: 50 | D91: =D25+D51+D78 -> 0 | E91: 0 | F91: 0 | G91: 0 | H91: 0 | I91: 0 | J91: 0 | K91: 13701.27067 | L91: 2771.711195 | M91: 0 | N91: 1279.251321 | O91: 1248.55676 | P91: 0 | Q91: 3476.720618 | R91: 1492.459874 | S91: 0 | T91: 983.2233352 | U91: 0 | V91: 0 | W91: 124.7659689 | X91: =X25+X51+X78 -> 1657461.266 | Y91: 0 | Z91: 0 | AA91: 0 | AB91: 0 | AC91: 0 | AD91: 0 | AE91: 0 | AF91: 213.2085535 | AG91: 0 | AH91: 0 | AI91: 0 | AJ91: 0 | AK91: 0 | AL91: 274.5976748 | AM91: 0 | AN91: 0 | AO91: 0 | AP91: 0 | AQ91: 0 | AR91: 2.439031141 | AS91: 36418.51559 | AT91: 1693879.782 | AU91: 127.205 | AV91: 13316.14152 | BA91: 13321.23114 | BB91: 5.08962058
A92: 6 | B92: Baginton Fields | C92: 50 | D92: =D26+D52+D79 -> 0 | E92: 0 | F92: 0 | G92: 0 | H92: 0 | I92: 0 | J92: 0 | K92: 5931.585141 | L92: 8408.611088 | M92: 0 | N92: 323.8119286 | O92: 1871.593099 | P92: 0 | Q92: 5336.724362 | R92: 2436.170549 | S92: 0 | T92: 406.0284249 | U92: 1 | V92: 0 | W92: 123.577623 | X92: =X26+X52+X79 -> 1724632.021 | Y92: 0 | Z92: 0 | AA92: 0 | AB92: 0 | AC92: 0 | AD92: 0 | AE92: 0 | AF92: 0 | AG92: 279.475407 | AH92: 0 | AI92: 0 | AJ92: 0 | AK92: 0 | AL92: 0 | AM92: 0 | AN92: 0 | AO92: 0 | AP92: 0 | AQ92: 0 | AR92: 1.397377035 | AS92: 14277.0731 | AT92: 1738909.094 | AU92: 124.975 | AV92: 13914.05556 | BA92: 13887.42845 | BB92: -26.62711108
A93: 7 | B93: Sherbourne Fields | C93: 50 | D93: =D27+D53+D80 -> 0 | E93: 0 | F93: 0 | G93: 0 | H93: 204.3699625 | I93: 0 | J93: 0 | K93: 16586.77417 | L93: 13488.41752 | M93: 0 | N93: 5861.052205 | O93: 613.1098875 | P93: 0 | Q93: 5109.249062 | R93: 4078.408159 | S93: 0 | T93: 4291.769212 | U93: 135.3699625 | V93: 0 | W93: 251.8426008 | X93: =X27+X53+X80 -> 3276128.455 | Y93: 0 | Z93: 0 | AA93: 0 | AB93: 0 | AC93: 0 | AD93: 0 | AE93: 0 | AF93: 204.3699625 | AG93: 0 | AH93: 0 | AI93: 204.3699625 | AJ93: 0 | AK93: 0 | AL93: 0 | AM93: 0 | AN93: 0 | AO93: 408.739925 | AP93: 0 | AQ93: 0 | AR93: 4.08739925 | AS93: 59255.66449 | AT93: 3335384.119 | AU93: 255.93 | AV93: 13032.40776 | BA93: 13076.86146 | BB93: 44.45369941
A94: 8 | B94: Woodfield | C94: =10000/$A$16 -> 50 | D94: =D28+D54+D81 -> 0 | E94: 0 | F94: 0 | G94: 0 | H94: 0 | I94: 0 | J94: 0 | K94: 0 | L94: 0 | M94: 79.99818906 | N94: 0 | O94: 2050.615288 | P94: 0 | Q94: 27508.94416 | R94: 0 | S94: 148.9981891 | T94: 0 | U94: 683.0381283 | V94: 0 | W94: 152.3579698 | X94: =X28+X54+X81 -> 2908454.903 | Y94: 0 | Z94: 0 | AA94: 0 | AB94: 0 | AC94: 0 | AD94: 0 | AE94: 0 | AF94: 0 | AG94: 0 | AH94: 0 | AI94: 0 | AJ94: 192.5208751 | AK94: 0 | AL94: 488.8851699 | AM94: 0 | AN94: 0 | AO94: 0 | AP94: 0 | AQ94: 0 | AR94: =SUM(Y94:AQ94)/$A$16 -> 3.407030225 | AS94: 67584.91191 | AT94: 2976039.814 | AU94: 155.765 | AV94: 19105.95971 | BA94: 19348.90737 | BB94: 242.947657
A95: 9 | B95: Coventry ELC | C95: =10000/$A$16 -> 50 | D95: =D29+D55+D82 -> 24000 | E95: 0 | F95: 0 | G95: 0 | H95: 0 | I95: 0 | J95: 0 | K95: 0 | L95: 0 | M95: 0 | N95: 0 | O95: 0 | P95: 0 | Q95: 0 | R95: 0 | S95: 0 | T95: 0 | U95: 0 | V95: 0 | W95: =SUM(D95:V95)/$A$16 -> 120 | X95: =X29+X55+X82 -> 1612142.08 | Y95: 0 | Z95: 0 | AA95: 0 | AB95: 0 | AC95: 0 | AD95: 0 | AE95: 0 | AF95: 0 | AG95: 0 | AH95: 0 | AI95: 0 | AJ95: 0 | AK95: 0 | AL95: 0 | AM95: 0 | AN95: 0 | AO95: 0 | AP95: 0 | AQ95: 0 | AR95: =SUM(Y95:AQ95)/$A$16 -> 0 | AS95: 0 | AT95: 1612142.08 | AU95: 120 | AV95: 13434.51733 | BA95: 13434.51733 | BB95: 0
B99: TOTALS | C99: Place Led | D99: Coventry | E99: Other LA | F99: Total
B100: School | C100: Funding | D100: Top-up | E100: Top-up | F100: Funding
A101: 1 | B101: Castle Wood | C101: =(K4*4/12+L4*1/12+M4*7/12)*10000 -> 1600000 | D101: =X87 -> 2236598.001 | E101: =AS87 -> 7222.762915 | F101: =SUM(C101:E101) -> 3843820.764 | I101: 13777.51664
A102: 2 | B102: Kingsbury | C102: 1000000 | D102: =X88 -> 1330784.363 | E102: 61189.48234 | F102: =SUM(C102:E102) -> 2391973.845 | I102: 13758.11053
A103: 3 | B103: RiverBank | C103: 2000000 | D103: 2334379.073 | E103: 12417.16639 | F103: 4346796.239 | I103: 11705.04036
A104: 4 | B104: Corley | C104: 1487500 | D104: 1871817.574 | E104: 18713.26676 | F104: 3378030.841 | I104: 12356.32894
A105: 5 | B105: Tiverton | C105: 1268333.333 | D105: 1657461.266 | E105: 36418.51559 | F105: 2962213.115 | I105: 13340.73397
A106: 6 | B106: Baginton Fields | C106: 1260000 | D106: 1724632.021 | E106: 14277.0731 | F106: 2998909.094 | I106: 14070.04074
A107: 7 | B107: Sherbourne Fields | C107: 2550833.333 | D107: 3276128.455 | E107: 59255.66449 | F107: =SUM(C107:E107) -> 5886217.452 | I107: 13092.20215
A108: 8 | B108: Woodfield | C108: 1550000 | D108: 2908454.903 | E108: =AS94 -> 67584.91191 | F108: 4526039.814 | I108: 19553.81225
C109: =SUM(C101:C108) -> 12716666.67 | D109: =SUM(D101:D108) -> 17340255.66 | E109: =SUM(E101:E108) -> 277078.8435 | F109: =SUM(F101:F108) -> 30334001.17 | G109: =D109+E109 -> 17617334.5 | K109: 16905477.14 | L109: Special School Top Up Value before Goal Seek
A110: 9 | B110: Coventry ELC | C110: =(K12*4/12+L12*1/12+M12*7/12)*10000 -> 1200000 | D110: =X95 -> 1612142.08 | E110: =AS95 -> 0 | F110: 2812142.08 | I110: 13434.51733
C111: =C110 -> 1200000 | D111: =D110 -> 1612142.08 | E111: =E110 -> 0 | F111: =F110 -> 2812142.08 | G111: =D111+E111 -> 1612142.08
C113: =C109+C111 -> 13916666.67 | D113: =D109+D111 -> 18952397.74 | E113: =E109+E111 -> 277078.8435 | F113: =F109+F111 -> 33146143.25 | G113: =SUM(D113:E113) -> 19229476.58

Sheet SummerProvRep (hidden)
B1: SEND Finance - Special Schools 01/04/2024 and 31/07/2024
A2: =IF(LEFT(N2,2)="BF",6,IF(LEFT(N2,2)="CW",1,IF(LEFT(N2,2)="CO",4,IF(LEFT(N2,2)="TS",2,IF(LEFT(N2,2)="RB",3,IF(LEFT(N2,2)="SF",7,IF(LEFT(N2,2)="TV",5,IF(LEFT(N2,2)="WF",8,"")))))))) ->  | B2: School | C2: Capita ID | D2: NCY | E2: Surname | F2: Forename | G2: # Days in year | H2: Provision start | I2: Provision end | J2: Unit cost | K2: # Term Days | L2: Funding | M2: Funded FTE | N2: Band | O2: Funding LA | P2: Previous School | Q2: Next School | T2: =IF(ISBLANK(A2),"",CONCATENATE($N$2," ",RIGHT(N2,2))) -> Band nd
A3: 6 | B3: Baginton Fields Academy | C3: 255288 | D3: 13 | E3: Abdullah | F3: Nasif | G3: 200 | H3: 2024-04-08 | I3: 2024-07-19 | J3: 16568.177 | K3: 69 | L3: 5716.021065 | M3: 1 | N3: BF2F | O3: Coventry | T3: Band 2F
A4: 6 | B4: Baginton Fields Academy | C4: 243036 | D4: 11 | E4: Abu Baker | F4: Daniel | G4: 200 | H4: 2024-04-08 | I4: 2024-07-19 | J4: 24631.337 | K4: 69 | L4: 8497.811265 | M4: 1 | N4: BF5E | O4: Coventry | T4: Band 5E
A5: 6 | B5: Baginton Fields Academy | C5: 427012 | D5: 7 | E5: ADBULAHI | F5: Abdirahman | G5: 200 | H5: 2024-04-08 | I5: 2024-07-19 | J5: 11045.455 | K5: 69 | L5: 3810.681975 | M5: 1 | N5: BF1E | O5: Coventry | T5: Band 1E
A6: 6 | B6: Baginton Fields Academy | C6: 241973 | D6: 12 | E6: Ademakinwa | F6: Kikiola | G6: 200 | H6: 2024-04-08 | I6: 2024-07-19 | J6: 17948.869 | K6: 69 | L6: 6192.359805 | M6: 1 | N6: BF1F | O6: Coventry | T6: Band 1F
A7: 6 | B7: Baginton Fields Academy | C7: 292158 | D7: 9 | E7: Ahmed | F7: Hana | G7: 200 | H7: 2024-04-08 | I7: 2024-07-19 | J7: 11045.455 | K7: 69 | L7: 3810.681975 | M7: 1 | N7: BF1E | O7: Coventry | T7: Band 1E
A8: 6 | B8: Baginton Fields Academy | C8: 288451 | D8: 10 | E8: Akhtar | F8: Shumena | G8: 200 | H8: 2024-04-08 | I8: 2024-07-19 | J8: 11045.455 | K8: 69 | L8: 3810.681975 | M8: 1 | N8: BF1E | O8: Coventry | T8: Band 1E
A9: 6 | B9: Baginton Fields Academy | C9: 418473 | D9: 8 | E9: Al Sabban | F9: Bissan | G9: 200 | H9: 2024-04-08 | I9: 2024-07-19 | J9: 10217.051 | K9: 69 | L9: 3524.882595 | M9: 1 | N9: BF2E | O9: Coventry | T9: Band 2E
A10: 6 | B10: Baginton Fields Academy | C10: 293742 | D10: 9 | E10: Ali | F10: Azhar | G10: 200 | H10: 2024-04-08 | I10: 2024-07-19 | J10: 17948.869 | K10: 69 | L10: 6192.359805 | M10: 1 | N10: BF1F | O10: Coventry | T10: Band 1F
A11: 6 | B11: Baginton Fields Academy | C11: 235739 | D11: 12 | E11: Ali | F11: Ifza | G11: 200 | H11: 2024-04-08 | I11: 2024-07-19 | J11: 10217.051 | K11: 69 | L11: 3524.882595 | M11: 1 | N11: BF2E | O11: Coventry | T11: Band 2E
A12: 6 | B12: Baginton Fields Academy | C12: 314806 | D12: 7 | E12: Bailey | F12: Joshua | G12: 200 | H12: 2024-04-08 | I12: 2024-07-19 | J12: 11045.455 | K12: 69 | L12: 3810.681975 | M12: 1 | N12: BF1E | O12: Coventry | T12: Band 1E
A13: 6 | B13: Baginton Fields Academy | C13: 311105 | D13: 8 | E13: Barrowman | F13: Lee | G13: 200 | H13: 2024-04-08 | I13: 2024-07-19 | J13: 11045.455 | K13: 69 | L13: 3810.681975 | M13: 1 | N13: BF1E | O13: Coventry | T13: Band 1E
A14: 6 | B14: Baginton Fields Academy | C14: 279153 | D14: 11 | E14: Beauchamp | F14: Morgan | G14: 200 | H14: 2024-04-08 | I14: 2024-07-19 | J14: 10217.051 | K14: 69 | L14: 3524.882595 | M14: 1 | N14: BF2E | O14: Coventry | T14: Band 2E
A15: 6 | B15: Baginton Fields Academy | C15: 235466 | D15: 13 | E15: Bhatti | F15: Aman | G15: 200 | H15: 2024-04-08 | I15: 2024-07-19 | J15: 16568.177 | K15: 69 | L15: 5716.021065 | M15: 1 | N15: BF2F | O15: Coventry | T15: Band 2F
A16: 6 | B16: Baginton Fields Academy | C16: 396080 | D16: 12 | E16: Biyasi | F16: Hala | G16: 200 | H16: 2024-04-08 | I16: 2024-07-19 | J16: 10217.051 | K16: 69 | L16: 3524.882595 | M16: 1 | N16: BF2E | O16: Coventry | T16: Band 2E
A17: 6 | B17: Baginton Fields Academy | C17: 282041 | D17: 9 | E17: Braithwaite | F17: Lacey | G17: 200 | H17: 2024-04-08 | I17: 2024-07-19 | J17: 24631.337 | K17: 69 | L17: 8497.811265 | M17: 1 | N17: BF5E | O17: Coventry | T17: Band 5E
A18: 6 | B18: Baginton Fields Academy | C18: 281810 | D18: 10 | E18: Bush | F18: Matthew | G18: 200 | H18: 2024-04-08 | I18: 2024-07-19 | J18: 10217.051 | K18: 69 | L18: 3524.882595 | M18: 1 | N18: BF2E | O18: Coventry | T18: Band 2E
A19: 6 | B19: Baginton Fields Academy | C19: 269933 | D19: 12 | E19: Cain | F19: Chanel | G19: 200 | H19: 2024-04-08 | I19: 2024-07-19 | J19: 10217.051 | K19: 69 | L19: 3524.882595 | M19: 1 | N19: BF2E | O19: Coventry | T19: Band 2E
A20: 6 | B20: Baginton Fields Academy | C20: 334045 | D20: 7 | E20: Cain | F20: Ryan | G20: 200 | H20: 2024-04-08 | I20: 2024-07-19 | J20: 10217.051 | K20: 69 | L20: 3524.882595 | M20: 1 | N20: BF2E | O20: Coventry | T20: Band 2E
A21: 6 | B21: Baginton Fields Academy | C21: 284471 | D21: 7 | E21: Caraian | F21: Sara | G21: 200 | H21: 2024-04-08 | I21: 2024-07-19 | J21: 10217.051 | K21: 69 | L21: 3524.882595 | M21: 1 | N21: BF2E | O21: Coventry | T21: Band 2E
A22: 6 | B22: Baginton Fields Academy | C22: 257028 | D22: 10 | E22: Carty | F22: Loveonhe | G22: 200 | H22: 2024-04-08 | I22: 2024-07-19 | J22: 10217.051 | K22: 69 | L22: 3524.882595 | M22: 1 | N22: BF2E | O22: Coventry | T22: Band 2E
A23: 6 | B23: Baginton Fields Academy | C23: 252823 | D23: 10 | E23: Chidube | F23: Maurice | G23: 200 | H23: 2024-04-08 | I23: 2024-07-19 | J23: 10217.051 | K23: 69 | L23: 3524.882595 | M23: 1 | N23: BF2E | O23: Coventry | T23: Band 2E
A24: 6 | B24: Baginton Fields Academy | C24: 311820 | D24: 7 | E24: Choudhury | F24: Rishi | G24: 200 | H24: 2024-04-08 | I24: 2024-07-19 | J24: 11045.455 | K24: 69 | L24: 3810.681975 | M24: 1 | N24: BF1E | O24: Coventry | T24: Band 1E
A25: 6 | B25: Baginton Fields Academy | C25: 256582 | D25: 13 | E25: Christian | F25: Riquelme | G25: 200 | H25: 2024-04-08 | I25: 2024-07-19 | J25: 11045.455 | K25: 69 | L25: 3810.681975 | M25: 1 | N25: BF1E | O25: Coventry | T25: Band 1E
A26: 6 | B26: Baginton Fields Academy | C26: 234950 | D26: 14 | E26: Clifton | F26: Amy | G26: 200 | H26: 2024-04-08 | I26: 2024-07-19 | J26: 10217.051 | K26: 69 | L26: 3524.882595 | M26: 1 | N26: BF2E | O26: Coventry | T26: Band 2E
A27: 6 | B27: Baginton Fields Academy | C27: 256843 | D27: 13 | E27: Cockerill | F27: William | G27: 200 | H27: 2024-04-08 | I27: 2024-07-19 | J27: 10217.051 | K27: 69 | L27: 3524.882595 | M27: 1 | N27: BF2E | O27: Coventry | T27: Band 2E
A28: 6 | B28: Baginton Fields Academy | C28: 267500 | D28: 9 | E28: Collinson | F28: Catherine | G28: 200 | H28: 2024-04-08 | I28: 2024-07-19 | J28: 10217.051 | K28: 69 | L28: 3524.882595 | M28: 1 | N28: BF2E | O28: Warwickshire | T28: Band 2E
A29: 6 | B29: Baginton Fields Academy | C29: 243724 | D29: 10 | E29: Cooney | F29: Charlotte | G29: 200 | H29: 2024-04-08 | I29: 2024-07-19 | J29: 16568.177 | K29: 69 | L29: 5716.021065 | M29: 1 | N29: BF2F | O29: Coventry | T29: Band 2F
A30: 6 | B30: Baginton Fields Academy | C30: 310848 | D30: 7 | E30: Cooper | F30: Liam | G30: 200 | H30: 2024-04-08 | I30: 2024-07-19 | J30: 11045.455 | K30: 69 | L30: 3810.681975 | M30: 1 | N30: BF1E | O30: Coventry | T30: Band 1E
A31: 6 | B31: Baginton Fields Academy | C31: 319811 | D31: 8 | E31: Crowley | F31: Macey | G31: 200 | H31: 2024-04-08 | I31: 2024-07-19 | J31: 10217.051 | K31: 69 | L31: 3524.882595 | M31: 1 | N31: BF2E | O31: Coventry | T31: Band 2E
A32: 6 | B32: Baginton Fields Academy | C32: 315071 | D32: 7 | E32: Dyari | F32: Muhammad | G32: 200 | H32: 2024-04-08 | I32: 2024-07-19 | J32: 17948.869 | K32: 69 | L32: 6192.359805 | M32: 1 | N32: BF1F | O32: Coventry | T32: Band 1F
A33: 6 | B33: Baginton Fields Academy | C33: 268244 | D33: 13 | E33: Efrem Tekle | F33: Feelmona | G33: 200 | H33: 2024-04-08 | I33: 2024-07-19 | J33: 10217.051 | K33: 69 | L33: 3524.882595 | M33: 1 | N33: BF2E | O33: Coventry | T33: Band 2E
A34: 6 | B34: Baginton Fields Academy | C34: 228632 | D34: 14 | E34: Ekalakala | F34: Beni | G34: 200 | H34: 2024-04-08 | I34: 2024-07-19 | J34: 11045.455 | K34: 69 | L34: 3810.681975 | M34: 1 | N34: BF1E | O34: Coventry | T34: Band 1E
A35: 6 | B35: Baginton Fields Academy | C35: 260010 | D35: 12 | E35: EKALAKALA | F35: Eliezer | G35: 200 | H35: 2024-04-08 | I35: 2024-07-19 | J35: 10217.051 | K35: 69 | L35: 3524.882595 | M35: 1 | N35: BF2E | O35: Coventry | T35: Band 2E
A36: 6 | B36: Baginton Fields Academy | C36: 416200 | D36: 13 | E36: ESSEKU-OTOO | F36: Nadia | G36: 200 | H36: 2024-04-08 | I36: 2024-07-19 | J36: 11045.455 | K36: 69 | L36: 3810.681975 | M36: 1 | N36: BF1E | O36: Coventry | T36: Band 1E
A37: 6 | B37: Baginton Fields Academy | C37: 310536 | D37: 7 | E37: Forshew | F37: Sophie | G37: 200 | H37: 2024-04-08 | I37: 2024-07-19 | J37: 10217.051 | K37: 69 | L37: 3524.882595 | M37: 1 | N37: BF2E | O37: Coventry | T37: Band 2E
A38: 6 | B38: Baginton Fields Academy | C38: 279401 | D38: 9 | E38: Gibson | F38: Libby | G38: 200 | H38: 2024-04-08 | I38: 2024-07-19 | J38: 17948.869 | K38: 69 | L38: 6192.359805 | M38: 1 | N38: BF1F | O38: Coventry | T38: Band 1F
A39: 6 | B39: Baginton Fields Academy | C39: 224832 | D39: 13 | E39: Ginova-Pearson | F39: Denisa | G39: 200 | H39: 2024-04-08 | I39: 2024-07-19 | J39: 10217.051 | K39: 69 | L39: 3524.882595 | M39: 1 | N39: BF2E | O39: Coventry | T39: Band 2E
A40: 6 | B40: Baginton Fields Academy | C40: 292034 | D40: 9 | E40: Gleeson | F40: Reece | G40: 200 | H40: 2024-04-08 | I40: 2024-07-19 | J40: 11045.455 | K40: 69 | L40: 3810.681975 | M40: 1 | N40: BF1E | O40: Coventry | T40: Band 1E
A41: 6 | B41: Baginton Fields Academy | C41: 280153 | D41: 10 | E41: GRYSZKIENAS | F41: Santiago | G41: 200 | H41: 2024-04-08 | I41: 2024-07-19 | J41: 11045.455 | K41: 69 | L41: 3810.681975 | M41: 1 | N41: BF1E | O41: Coventry | T41: Band 1E
A42: 6 | B42: Baginton Fields Academy | C42: 274311 | D42: 9 | E42: Gul | F42: Annum | G42: 200 | H42: 2024-04-08 | I42: 2024-07-19 | J42: 16568.177 | K42: 69 | L42: 5716.021065 | M42: 1 | N42: BF2F | O42: Coventry | T42: Band 2F
A43: 6 | B43: Baginton Fields Academy | C43: 385928 | D43: 12 | E43: Hatem | F43: Ahmed | G43: 200 | H43: 2024-04-08 | I43: 2024-07-19 | J43: 24631.337 | K43: 69 | L43: 8497.811265 | M43: 1 | N43: BF5E | O43: Coventry | P43: Baginton Fields Academy | T43: Band 5E
A44: 6 | B44: Baginton Fields Academy | C44: 385928 | D44: 12 | E44: Hatem | F44: Ahmed | G44: 200 | H44: 2024-04-08 | I44: 2024-04-08 | J44: 17948.869 | K44: 1 | L44: 89.744345 | M44: 0.01 | N44: BF1F | O44: Coventry | Q44: Baginton Fields Academy | T44: Band 1F
A45: 6 | B45: Baginton Fields Academy | C45: 385927 | D45: 13 | E45: Hatem | F45: Ibraheem | G45: 200 | H45: 2024-04-08 | I45: 2024-07-19 | J45: 24631.337 | K45: 69 | L45: 8497.811265 | M45: 1 | N45: BF5E | O45: Coventry | P45: Baginton Fields Academy | T45: Band 5E
A46: 6 | B46: Baginton Fields Academy | C46: 385927 | D46: 13 | E46: Hatem | F46: Ibraheem | G46: 200 | H46: 2024-04-08 | I46: 2024-04-08 | J46: 16568.177 | K46: 1 | L46: 82.840885 | M46: 0.01 | N46: BF2F | O46: Coventry | Q46: Baginton Fields Academy | T46: Band 2F
A47: 6 | B47: Baginton Fields Academy | C47: 235853 | D47: 11 | E47: Hudson | F47: Elise | G47: 200 | H47: 2024-04-08 | I47: 2024-07-19 | J47: 10217.051 | K47: 69 | L47: 3524.882595 | M47: 1 | N47: BF2E | O47: Coventry | T47: Band 2E
A48: 6 | B48: Baginton Fields Academy | C48: 236415 | D48: 13 | E48: Hughes | F48: Dylan | G48: 200 | H48: 2024-04-08 | I48: 2024-07-19 | J48: 10217.051 | K48: 69 | L48: 3524.882595 | M48: 1 | N48: BF2E | O48: Coventry | T48: Band 2E
A49: 6 | B49: Baginton Fields Academy | C49: 309026 | D49: 7 | E49: Hussain | F49: Faizaan | G49: 200 | H49: 2024-04-08 | I49: 2024-07-19 | J49: 10217.051 | K49: 69 | L49: 3524.882595 | M49: 1 | N49: BF2E | O49: Coventry | T49: Band 2E
A50: 6 | B50: Baginton Fields Academy | C50: 308818 | D50: 7 | E50: Hussain | F50: Sufyaan | G50: 200 | H50: 2024-04-08 | I50: 2024-07-19 | J50: 10217.051 | K50: 69 | L50: 3524.882595 | M50: 1 | N50: BF2E | O50: Coventry | T50: Band 2E
A51: 6 | B51: Baginton Fields Academy | C51: 297365 | D51: 9 | E51: Hyde | F51: Brody | G51: 200 | H51: 2024-04-08 | I51: 2024-07-19 | J51: 11045.455 | K51: 69 | L51: 3810.681975 | M51: 1 | N51: BF1E | O51: Coventry | T51: Band 1E
A52: 6 | B52: Baginton Fields Academy | C52: 424886 | D52: 9 | E52: Igbokwe | F52: Francis | G52: 200 | H52: 2024-04-08 | I52: 2024-07-19 | J52: 16568.177 | K52: 69 | L52: 5716.021065 | M52: 1 | N52: BF2F | O52: Coventry | T52: Band 2F
A53: 6 | B53: Baginton Fields Academy | C53: 293989 | D53: 8 | E53: Imran | F53: Isa | G53: 200 | H53: 2024-04-08 | I53: 2024-07-19 | J53: 10217.051 | K53: 69 | L53: 3524.882595 | M53: 1 | N53: BF2E | O53: Coventry | T53: Band 2E
A54: 6 | B54: Baginton Fields Academy | C54: 274087 | D54: 9 | E54: Islam | F54: Mohammed Sami | G54: 200 | H54: 2024-04-08 | I54: 2024-07-19 | J54: 17948.869 | K54: 69 | L54: 6192.359805 | M54: 1 | N54: BF1F | O54: Coventry | T54: Band 1F
A55: 6 | B55: Baginton Fields Academy | C55: 380274 | D55: 13 | E55: Jadeszko | F55: Gabriel | G55: 200 | H55: 2024-04-08 | I55: 2024-07-19 | J55: 10217.051 | K55: 69 | L55: 3524.882595 | M55: 1 | N55: BF2E | O55: Coventry | T55: Band 2E
A56: 6 | B56: Baginton Fields Academy | C56: 295189 | D56: 7 | E56: Janjua | F56: Muhammed | G56: 200 | H56: 2024-04-08 | I56: 2024-07-19 | J56: 16568.177 | K56: 69 | L56: 5716.021065 | M56: 1 | N56: BF2F | O56: Coventry | T56: Band 2F
A57: 6 | B57: Baginton Fields Academy | C57: 261963 | D57: 11 | E57: Jones | F57: Ellis | G57: 200 | H57: 2024-04-08 | I57: 2024-07-19 | J57: 11045.455 | K57: 69 | L57: 3810.681975 | M57: 1 | N57: BF1E | O57: Coventry | T57: Band 1E
A58: 6 | B58: Baginton Fields Academy | C58: 372048 | D58: 11 | E58: Jose | F58: Aannet | G58: 200 | H58: 2024-04-08 | I58: 2024-07-19 | J58: 11045.455 | K58: 69 | L58: 3810.681975 | M58: 1 | N58: BF1E | O58: Coventry | T58: Band 1E
A59: 6 | B59: Baginton Fields Academy | C59: 264675 | D59: 10 | E59: Karamat | F59: Safiullah | G59: 200 | H59: 2024-04-08 | I59: 2024-07-19 | J59: 24631.337 | K59: 69 | L59: 8497.811265 | M59: 1 | N59: BF5E | O59: Coventry | T59: Band 5E
A60: 6 | B60: Baginton Fields Academy | C60: 244102 | D60: 12 | E60: KASONGO | F60: Tony | G60: 200 | H60: 2024-04-08 | I60: 2024-07-19 | J60: 17948.869 | K60: 69 | L60: 6192.359805 | M60: 1 | N60: BF1F | O60: Coventry | T60: Band 1F
A61: 6 | B61: Baginton Fields Academy | C61: 226141 | D61: 13 | E61: Kazmi | F61: Aleeza | G61: 200 | H61: 2024-04-08 | I61: 2024-07-19 | J61: 16568.177 | K61: 69 | L61: 5716.021065 | M61: 1 | N61: BF2F | O61: Coventry | T61: Band 2F
A62: 6 | B62: Baginton Fields Academy | C62: 282890 | D62: 11 | E62: Khapane | F62: Yugandhar | G62: 200 | H62: 2024-04-08 | I62: 2024-04-08 | J62: 49262.675 | K62: 1 | L62: 246.313375 | M62: 0.01 | N62: BF5F | O62: Coventry | T62: Band 5F
A63: 6 | B63: Baginton Fields Academy | C63: 235857 | D63: 14 | E63: Kirkby | F63: Olivia | G63: 200 | H63: 2024-04-08 | I63: 2024-07-19 | J63: 11045.455 | K63: 69 | L63: 3810.681975 | M63: 1 | N63: BF1E | O63: Coventry | T63: Band 1E
A64: 6 | B64: Baginton Fields Academy | C64: 258687 | D64: 12 | E64: Kunasingam | F64: Harryshan | G64: 200 | H64: 2024-04-08 | I64: 2024-07-19 | J64: 17948.869 | K64: 69 | L64: 6192.359805 | M64: 1 | N64: BF1F | O64: Coventry | T64: Band 1F
A65: 6 | B65: Baginton Fields Academy | C65: 235762 | D65: 13 | E65: Leese | F65: Noah | G65: 200 | H65: 2024-04-08 | I65: 2024-07-19 | J65: 17948.869 | K65: 69 | L65: 6192.359805 | M65: 1 | N65: BF1F | O65: Coventry | T65: Band 1F
A66: =IF(LEFT(N66,2)="BF",6,IF(LEFT(N66,2)="CW",1,IF(LEFT(N66,2)="CO",4,IF(LEFT(N66,2)="TS",2,IF(LEFT(N66,2)="RB",3,IF(LEFT(N66,2)="SF",7,IF(LEFT(N66,2)="TV",5,IF(LEFT(N66,2)="WF",8,"")))))))) -> 6 | B66: Baginton Fields Academy | C66: 283055 | D66: 10 | E66: Mack | F66: Paige | G66: 200 | H66: 2024-04-08 | I66: 2024-07-19 | J66: 10217.051 | K66: 69 | L66: 3524.882595 | M66: 1 | N66: BF2E | O66: Coventry | T66: =IF(ISBLANK(A66),"",CONCATENATE($N$2," ",RIGHT(N66,2))) -> Band 2E
A67: 6 | B67: Baginton Fields Academy | C67: 387240 | D67: 9 | E67: Madu | F67: Great | G67: 200 | H67: 2024-04-08 | I67: 2024-07-19 | J67: 16568.177 | K67: 69 | L67: 5716.021065 | M67: 1 | N67: BF4F | O67: Coventry | T67: Band 4F
A68: 6 | B68: Baginton Fields Academy | C68: 248534 | D68: 12 | E68: MALANGU | F68: Sharon | G68: 200 | H68: 2024-04-08 | I68: 2024-07-19 | J68: 17948.869 | K68: 69 | L68: 6192.359805 | M68: 1 | N68: BF1F | O68: Coventry | T68: Band 1F
A69: 6 | B69: Baginton Fields Academy | C69: 300198 | D69: 8 | E69: Mburichen | F69: Onyekachukwu Ki | G69: 200 | H69: 2024-06-10 | I69: 2024-07-19 | J69: 24631.337 | K69: 30 | L69: 3694.70055 | M69: 0.43 | N69: BF5E | O69: Coventry | P69: Baginton Fields Academy | T69: Band 5E
A70: 6 | B70: Baginton Fields Academy | C70: 300198 | D70: 8 | E70: Mburichen | F70: Onyekachukwu Ki | G70: 200 | H70: 2024-04-08 | I70: 2024-06-09 | J70: 17948.869 | K70: 39 | L70: 3500.029455 | M70: 0.56 | N70: BF1F | O70: Coventry | Q70: Baginton Fields Academy | T70: Band 1F
A71: 6 | B71: Baginton Fields Academy | C71: 397316 | D71: 7 | E71: McDuke | F71: Jaedon | G71: 200 | H71: 2024-04-08 | I71: 2024-07-19 | J71: 17948.869 | K71: 69 | L71: 6192.359805 | M71: 1 | N71: BF1F | O71: Coventry | T71: Band 1F
A72: 6 | B72: Baginton Fields Academy | C72: 280194 | D72: 9 | E72: McGowan | F72: Lucas | G72: 200 | H72: 2024-04-08 | I72: 2024-07-19 | J72: 10217.051 | K72: 69 | L72: 3524.882595 | M72: 1 | N72: BF2E | O72: Coventry | T72: Band 2E
A73: 6 | B73: Baginton Fields Academy | C73: 283863 | D73: 10 | E73: McKinlay | F73: Maddox | G73: 200 | H73: 2024-04-08 | I73: 2024-07-19 | J73: 17948.869 | K73: 69 | L73: 6192.359805 | M73: 1 | N73: BF1F | O73: Coventry | T73: Band 1F
A74: 6 | B74: Baginton Fields Academy | C74: 328417 | D74: 7 | E74: McKirdle | F74: Matthew | G74: 200 | H74: 2024-04-08 | I74: 2024-07-19 | J74: 11045.455 | K74: 69 | L74: 3810.681975 | M74: 1 | N74: BF1E | O74: Coventry | T74: Band 1E
A75: 6 | B75: Baginton Fields Academy | C75: 312973 | D75: 8 | E75: McSheffrey | F75: Kayden | G75: 200 | H75: 2024-04-08 | I75: 2024-07-19 | J75: 11045.455 | K75: 69 | L75: 3810.681975 | M75: 1 | N75: BF1E | O75: Coventry | T75: Band 1E
A76: 6 | B76: Baginton Fields Academy | C76: 303244 | D76: 7 | E76: Mitchell | F76: Angel | G76: 200 | H76: 2024-04-08 | I76: 2024-07-19 | J76: 11045.455 | K76: 69 | L76: 3810.681975 | M76: 1 | N76: BF1E | O76: Coventry | T76: Band 1E
A77: 6 | B77: Baginton Fields Academy | C77: 404237 | D77: 12 | E77: Mohammed-Said | F77: Dia-Adin | G77: 200 | H77: 2024-04-08 | I77: 2024-07-19 | J77: 16568.177 | K77: 69 | L77: 5716.021065 | M77: 1 | N77: BF2F | O77: Coventry | T77: Band 2F
A78: 6 | B78: Baginton Fields Academy | C78: 273338 | D78: 8 | E78: Molad | F78: Marwan | G78: 200 | H78: 2024-04-08 | I78: 2024-07-19 | J78: 10217.051 | K78: 69 | L78: 3524.882595 | M78: 1 | N78: BF2E | O78: Coventry | T78: Band 2E
A79: 6 | B79: Baginton Fields Academy | C79: 287629 | D79: 10 | E79: Molad | F79: MOHAMAD | G79: 200 | H79: 2024-04-08 | I79: 2024-07-19 | J79: 10217.051 | K79: 69 | L79: 3524.882595 | M79: 1 | N79: BF2E | O79: Coventry | T79: Band 2E
A80: 6 | B80: Baginton Fields Academy | C80: 238330 | D80: 11 | E80: Moseley | F80: Holly | G80: 200 | H80: 2024-04-08 | I80: 2024-07-19 | J80: 16568.177 | K80: 69 | L80: 5716.021065 | M80: 1 | N80: BF2F | O80: Coventry | T80: Band 2F
A81: 6 | B81: Baginton Fields Academy | C81: 243547 | D81: 13 | E81: Moseley | F81: Thomas | G81: 200 | H81: 2024-04-08 | I81: 2024-07-19 | J81: 11045.455 | K81: 69 | L81: 3810.681975 | M81: 1 | N81: BF1E | O81: Coventry | T81: Band 1E
A82: 6 | B82: Baginton Fields Academy | C82: 329917 | D82: 8 | E82: Moubeke | F82: Jayden | G82: 200 | H82: 2024-04-08 | I82: 2024-07-19 | J82: 11045.455 | K82: 69 | L82: 3810.681975 | M82: 1 | N82: BF1E | O82: Coventry | T82: Band 1E
A83: 6 | B83: Baginton Fields Academy | C83: 235792 | D83: 14 | E83: Mubele | F83: Quincey | G83: 200 | H83: 2024-04-08 | I83: 2024-07-19 | J83: 11045.455 | K83: 69 | L83: 3810.681975 | M83: 1 | N83: BF1E | O83: Coventry | T83: Band 1E
A84: 6 | B84: Baginton Fields Academy | C84: 289506 | D84: 7 | E84: Muhammad | F84: Awais | G84: 200 | H84: 2024-04-08 | I84: 2024-07-19 | J84: 10217.051 | K84: 69 | L84: 3524.882595 | M84: 1 | N84: BF2E | O84: Coventry | T84: Band 2E
A85: 6 | B85: Baginton Fields Academy | C85: 284022 | D85: 10 | E85: Mula | F85: Elliot | G85: 200 | H85: 2024-04-08 | I85: 2024-07-19 | J85: 24631.337 | K85: 69 | L85: 8497.811265 | M85: 1 | N85: BF5E | O85: Coventry | T85: Band 5E
A86: 6 | B86: Baginton Fields Academy | C86: 278584 | D86: 11 | E86: Mullin | F86: Harley | G86: 200 | H86: 2024-04-08 | I86: 2024-07-19 | J86: 24631.337 | K86: 69 | L86: 8497.811265 | M86: 1 | N86: BF5E | O86: Coventry | T86: Band 5E
A87: 6 | B87: Baginton Fields Academy | C87: 226432 | D87: 13 | E87: Munir | F87: Aisha | G87: 200 | H87: 2024-04-08 | I87: 2024-07-19 | J87: 16568.177 | K87: 69 | L87: 5716.021065 | M87: 1 | N87: BF2F | O87: Coventry | T87: Band 2F
A88: 6 | B88: Baginton Fields Academy | C88: 456536 | D88: 7 | E88: Muyyappally | F88: Richerd | G88: 200 | H88: 2024-04-09 | I88: 2024-07-19 | J88: 16568.177 | K88: 68 | L88: 5633.18018 | M88: 0.98 | N88: BF2F | O88: Coventry | T88: Band 2F
A89: 6 | B89: Baginton Fields Academy | C89: 305707 | D89: 8 | E89: Mwangi | F89: Asher | G89: 200 | H89: 2024-04-08 | I89: 2024-07-19 | J89: 17948.869 | K89: 69 | L89: 6192.359805 | M89: 1 | N89: BF1F | O89: Coventry | T89: Band 1F
A90: 6 | B90: Baginton Fields Academy | C90: 280586 | D90: 8 | E90: Navsarka | F90: Esa | G90: 200 | H90: 2024-04-08 | I90: 2024-07-19 | J90: 10217.051 | K90: 69 | L90: 3524.882595 | M90: 1 | N90: BF2E | O90: Coventry | T90: Band 2E
A91: 6 | B91: Baginton Fields Academy | C91: 252024 | D91: 14 | E91: Newport | F91: Brandon | G91: 200 | H91: 2024-04-08 | I91: 2024-07-19 | J91: 17948.869 | K91: 69 | L91: 6192.359805 | M91: 1 | N91: BF1F | O91: Coventry | T91: Band 1F
A92: 6 | B92: Baginton Fields Academy | C92: 339545 | D92: 8 | E92: Ngemegwai | F92: Leonardo | G92: 200 | H92: 2024-04-08 | I92: 2024-07-19 | J92: 13806.816 | K92: 69 | L92: 4763.35152 | M92: 1 | N92: BF4E | O92: Coventry | T92: Band 4E
A93: 6 | B93: Baginton Fields Academy | C93: 381096 | D93: 8 | E93: Niculae | F93: Filimon | G93: 200 | H93: 2024-04-08 | I93: 2024-07-19 | J93: 17948.869 | K93: 69 | L93: 6192.359805 | M93: 1 | N93: BF1F | O93: Coventry | T93: Band 1F
A94: 6 | B94: Baginton Fields Academy | C94: 300090 | D94: 8 | E94: Nimpaye | F94: Don | G94: 200 | H94: 2024-04-08 | I94: 2024-07-19 | J94: 17948.869 | K94: 69 | L94: 6192.359805 | M94: 1 | N94: BF1F | O94: Coventry | T94: Band 1F
A95: 6 | B95: Baginton Fields Academy | C95: 303271 | D95: 8 | E95: Njunga | F95: Trevelle | G95: 200 | H95: 2024-04-08 | I95: 2024-07-19 | J95: 17948.869 | K95: 69 | L95: 6192.359805 | M95: 1 | N95: BF1F | O95: Coventry | T95: Band 1F
A96: 6 | B96: Baginton Fields Academy | C96: 368315 | D96: 11 | E96: Norman | F96: William | G96: 200 | H96: 2024-04-08 | I96: 2024-07-19 | J96: 17948.869 | K96: 69 | L96: 6192.359805 | M96: 1 | N96: BF1F | O96: Coventry | T96: Band 1F
A97: 6 | B97: Baginton Fields Academy | C97: 292148 | D97: 8 | E97: Ntare | F97: Christopher | G97: 200 | H97: 2024-05-28 | I97: 2024-07-19 | J97: 11045.455 | K97: 35 | L97: 1932.954625 | M97: 0.5 | N97: BF1E | O97: Coventry | P97: Baginton Fields Academy | T97: Band 1E
A98: 6 | B98: Baginton Fields Academy | C98: 292148 | D98: 8 | E98: Ntare | F98: Christopher | G98: 200 | H98: 2024-04-08 | I98: 2024-05-27 | J98: 10217.051 | K98: 34 | L98: 1736.89867 | M98: 0.49 | N98: BF2E | O98: Coventry | Q98: Baginton Fields Academy | T98: Band 2E
A99: 6 | B99: Baginton Fields Academy | C99: 386445 | D99: 13 | E99: Okorie | F99: Michael | G99: 200 | H99: 2024-04-08 | I99: 2024-07-19 | J99: 10217.051 | K99: 69 | L99: 3524.882595 | M99: 1 | N99: BF2E | O99: Coventry | P99: Baginton Fields Academy | T99: Band 2E
A100: 6 | B100: Baginton Fields Academy | C100: 302911 | D100: 8 | E100: Omar | F100: Shano | G100: 200 | H100: 2024-04-08 | I100: 2024-07-19 | J100: 11045.455 | K100: 69 | L100: 3810.681975 | M100: 1 | N100: BF1E | O100: Coventry | T100: Band 1E
A101: 6 | B101: Baginton Fields Academy | C101: 249608 | D101: 11 | E101: Padan | F101: Rohan | G101: 200 | H101: 2024-04-08 | I101: 2024-07-19 | J101: 10217.051 | K101: 69 | L101: 3524.882595 | M101: 1 | N101: BF2E | O101: Coventry | T101: Band 2E
A102: 6 | B102: Baginton Fields Academy | C102: 289401 | D102: 8 | E102: Powers | F102: Jesse-James | G102: 200 | H102: 2024-04-08 | I102: 2024-07-19 | J102: 16568.177 | K102: 69 | L102: 5716.021065 | M102: 1 | N102: BF4F | O102: Coventry | T102: Band 4F
A103: 6 | B103: Baginton Fields Academy | C103: 356183 | D103: 7 | E103: Rajarajan | F103: Arin | G103: 200 | H103: 2024-04-08 | I103: 2024-07-19 | J103: 10217.051 | K103: 69 | L103: 3524.882595 | M103: 1 | N103: BF2E | O103: Coventry | T103: Band 2E
A104: 6 | B104: Baginton Fields Academy | C104: 258688 | D104: 12 | E104: Rama | F104: Elbion | G104: 200 | H104: 2024-04-08 | I104: 2024-07-19 | J104: 24631.337 | K104: 69 | L104: 8497.811265 | M104: 1 | N104: BF5E | O104: Coventry | T104: Band 5E
A105: 6 | B105: Baginton Fields Academy | C105: 276584 | D105: 11 | E105: Ray | F105: Jasmine | G105: 200 | H105: 2024-04-08 | I105: 2024-07-19 | J105: 10217.051 | K105: 69 | L105: 3524.882595 | M105: 1 | N105: BF2E | O105: Coventry | T105: Band 2E
A106: 6 | B106: Baginton Fields Academy | C106: 334191 | D106: 7 | E106: Ricardo | F106: Emma | G106: 200 | H106: 2024-04-08 | I106: 2024-07-19 | J106: 17948.869 | K106: 69 | L106: 6192.359805 | M106: 1 | N106: BF1F | O106: Coventry | T106: Band 1F
A107: 6 | B107: Baginton Fields Academy | C107: 247723 | D107: 14 | E107: Riley | F107: Kirk | G107: 200 | H107: 2024-04-08 | I107: 2024-07-19 | J107: 10217.051 | K107: 69 | L107: 3524.882595 | M107: 1 | N107: BF2E | O107: Coventry | T107: Band 2E
A108: 6 | B108: Baginton Fields Academy | C108: 277862 | D108: 11 | E108: Sahota | F108: Joydeep | G108: 200 | H108: 2024-04-08 | I108: 2024-07-19 | J108: 11045.455 | K108: 69 | L108: 3810.681975 | M108: 1 | N108: BF1E | O108: Coventry | T108: Band 1E
A109: 6 | B109: Baginton Fields Academy | C109: 285583 | D109: 7 | E109: Sarosh | F109: Usman | G109: 200 | H109: 2024-04-08 | I109: 2024-07-19 | J109: 10217.051 | K109: 69 | L109: 3524.882595 | M109: 1 | N109: BF2E | O109: Coventry | T109: Band 2E
A110: 6 | B110: Baginton Fields Academy | C110: 299264 | D110: 8 | E110: Shahrjerdi | F110: Dara | G110: 200 | H110: 2024-04-08 | I110: 2024-07-19 | J110: 24631.337 | K110: 69 | L110: 8497.811265 | M110: 1 | N110: BF5E | O110: Coventry | T110: Band 5E
A111: 6 | B111: Baginton Fields Academy | C111: 382154 | D111: 12 | E111: singh | F111: navbir | G111: 200 | H111: 2024-04-08 | I111: 2024-07-19 | J111: 17948.869 | K111: 69 | L111: 6192.359805 | M111: 1 | N111: BF1F | O111: Coventry | T111: Band 1F
A112: 6 | B112: Baginton Fields Academy | C112: 268634 | D112: 9 | E112: Skvortsov-Kirsteine | F112: Jessica | G112: 200 | H112: 2024-04-08 | I112: 2024-07-19 | J112: 10217.051 | K112: 69 | L112: 3524.882595 | M112: 1 | N112: BF2E | O112: Coventry | T112: Band 2E
A113: 6 | B113: Baginton Fields Academy | C113: 312250 | D113: 13 | E113: Smith | F113: Katie-Jayne | G113: 200 | H113: 2024-04-08 | I113: 2024-07-19 | J113: 17948.869 | K113: 69 | L113: 6192.359805 | M113: 1 | N113: BF1F | O113: Coventry | T113: Band 1F
A114: 6 | B114: Baginton Fields Academy | C114: 384427 | D114: 12 | E114: Stokes | F114: Bradley | G114: 200 | H114: 2024-04-08 | I114: 2024-07-19 | J114: 10217.051 | K114: 69 | L114: 3524.882595 | M114: 1 | N114: BF2E | O114: Coventry | T114: Band 2E
A115: 6 | B115: Baginton Fields Academy | C115: 343721 | D115: 12 | E115: Suleiman | F115: Mohammad | G115: 200 | H115: 2024-04-08 | I115: 2024-07-19 | J115: 17948.869 | K115: 69 | L115: 6192.359805 | M115: 1 | N115: BF1F | O115: Coventry | T115: Band 1F
A116: 6 | B116: Baginton Fields Academy | C116: 253985 | D116: 10 | E116: Teensa | F116: Raul | G116: 200 | H116: 2024-04-08 | I116: 2024-07-19 | J116: 10217.051 | K116: 69 | L116: 3524.882595 | M116: 1 | N116: BF2E | O116: Coventry | T116: Band 2E
A117: 6 | B117: Baginton Fields Academy | C117: 272537 | D117: 8 | E117: Thompson | F117: Lili-Mai | G117: 200 | H117: 2024-04-08 | I117: 2024-07-19 | J117: 13806.816 | K117: 69 | L117: 4763.35152 | M117: 1 | N117: BF4E | O117: Coventry | T117: Band 4E
A118: 6 | B118: Baginton Fields Academy | C118: 308200 | D118: 7 | E118: Tubman | F118: Wesley | G118: 200 | H118: 2024-04-08 | I118: 2024-07-19 | J118: 11045.455 | K118: 69 | L118: 3810.681975 | M118: 1 | N118: BF1E | O118: Coventry | T118: Band 1E
A119: 6 | B119: Baginton Fields Academy | C119: 291455 | D119: 9 | E119: Urch | F119: Sophia | G119: 200 | H119: 2024-04-08 | I119: 2024-07-19 | J119: 10217.051 | K119: 69 | L119: 3524.882595 | M119: 1 | N119: BF2E | O119: Coventry | T119: Band 2E
A120: 6 | B120: Baginton Fields Academy | C120: 346809 | D120: 13 | E120: Voicu | F120: Alexandru | G120: 200 | H120: 2024-04-08 | I120: 2024-07-19 | J120: 24631.337 | K120: 69 | L120: 8497.811265 | M120: 1 | N120: BF5E | O120: Coventry | T120: Band 5E
A121: 6 | B121: Baginton Fields Academy | C121: 298639 | D121: 8 | E121: Wakahiu | F121: Yvonne | G121: 200 | H121: 2024-04-08 | I121: 2024-07-19 | J121: 17948.869 | K121: 69 | L121: 6192.359805 | M121: 1 | N121: BF1F | O121: Coventry | T121: Band 1F
A122: 6 | B122: Baginton Fields Academy | C122: 269084 | D122: 12 | E122: Walters | F122: Casadie-Rae | G122: 200 | H122: 2024-04-08 | I122: 2024-07-19 | J122: 11045.455 | K122: 69 | L122: 3810.681975 | M122: 1 | N122: BF1E | O122: Coventry | T122: Band 1E
A123: 6 | B123: Baginton Fields Academy | C123: 310829 | D123: 9 | E123: Walters | F123: Leyton | G123: 200 | H123: 2024-04-08 | I123: 2024-07-19 | J123: 11045.455 | K123: 69 | L123: 3810.681975 | M123: 1 | N123: BF1E | O123: Coventry | T123: Band 1E
A124: 6 | B124: Baginton Fields Academy | C124: 447465 | D124: 11 | E124: Welch | F124: Shania | G124: 200 | H124: 2024-04-08 | I124: 2024-07-19 | J124: 10217.051 | K124: 69 | L124: 3524.882595 | M124: 1 | N124: BF2E | O124: Coventry | T124: Band 2E
A125: 6 | B125: Baginton Fields Academy | C125: 304571 | D125: 7 | E125: White | F125: Daniel | G125: 200 | H125: 2024-04-08 | I125: 2024-07-19 | J125: 11045.455 | K125: 69 | L125: 3810.681975 | M125: 1 | N125: BF1E | O125: Coventry | T125: Band 1E
A126: 6 | B126: Baginton Fields Academy | C126: 290022 | D126: 9 | E126: Woodward | F126: Cody | G126: 200 | H126: 2024-04-08 | I126: 2024-07-19 | J126: 10217.051 | K126: 69 | L126: 3524.882595 | M126: 1 | N126: BF2E | O126: Coventry | T126: Band 2E
A127: 6 | B127: Baginton Fields Academy | C127: 237226 | D127: 13 | E127: Younis | F127: Mohammed | G127: 200 | H127: 2024-04-08 | I127: 2024-07-19 | J127: 17948.869 | K127: 69 | L127: 6192.359805 | M127: 1 | N127: BF1F | O127: Coventry | T127: Band 1F
A128: 6 | B128: Baginton Fields Academy | C128: 325036 | D128: 8 | E128: Zanfir | F128: Leonard | G128: 200 | H128: 2024-04-08 | I128: 2024-07-19 | J128: 11045.455 | K128: 69 | L128: 3810.681975 | M128: 1 | N128: BF1E | O128: Coventry | T128: Band 1E
A129: 6 | B129: Baginton Fields Academy | C129: 256189 | D129: 10 | E129: Zeno | F129: Eryk | G129: 200 | H129: 2024-04-08 | I129: 2024-07-19 | J129: 17948.869 | K129: 69 | L129: 6192.359805 | M129: 1 | N129: BF1F | O129: Coventry | T129: Band 1F
A130: =IF(LEFT(N130,2)="BF",6,IF(LEFT(N130,2)="CW",1,IF(LEFT(N130,2)="CO",4,IF(LEFT(N130,2)="TS",2,IF(LEFT(N130,2)="RB",3,IF(LEFT(N130,2)="SF",7,IF(LEFT(N130,2)="TV",5,IF(LEFT(N130,2)="WF",8,"")))))))) -> 6 | B130: Baginton Fields Academy | C130: 285411 | D130: 7 | E130: Zibneva | F130: Victoria | G130: 200 | H130: 2024-04-08 | I130: 2024-07-19 | J130: 16568.177 | K130: 69 | L130: 5716.021065 | M130: 1 | N130: BF2F | O130: Coventry | T130: =IF(ISBLANK(A130),"",CONCATENATE($N$2," ",RIGHT(N130,2))) -> Band 2F
A131: 1 | B131: Castle Wood School | C131: 343228 | D131: 6 | E131: Abass | F131: Adedunni | G131: 200 | H131: 2024-04-08 | I131: 2024-07-19 | J131: 16568.177 | K131: 69 | L131: 5716.021065 | M131: 1 | N131: CW2F | O131: Coventry | T131: Band 2F
A132: 1 | B132: Castle Wood School | C132: 329865 | D132: 5 | E132: Abdalla | F132: Ajmal | G132: 200 | H132: 2024-04-08 | I132: 2024-07-19 | J132: 16568.177 | K132: 69 | L132: 5716.021065 | M132: 1 | N132: CW4F | O132: Coventry | T132: Band 4F
A133: 1 | B133: Castle Wood School | C133: 358149 | D133: 4 | E133: Abdulla | F133: Muadh | G133: 200 | H133: 2024-04-08 | I133: 2024-07-19 | J133: 13806.816 | K133: 69 | L133: 4763.35152 | M133: 1 | N133: CW4E | O133: Coventry | T133: Band 4E
A134: 1 | B134: Castle Wood School | C134: 371046 | D134: 2 | E134: Adam | F134: Amina | G134: 200 | H134: 2024-04-08 | I134: 2024-07-19 | J134: 11045.455 | K134: 69 | L134: 3810.681975 | M134: 1 | N134: CW1E | O134: Coventry | T134: Band 1E
A135: 1 | B135: Castle Wood School | C135: 349687 | D135: 3 | E135: Ahmed | F135: George | G135: 200 | H135: 2024-04-08 | I135: 2024-07-19 | J135: 11045.455 | K135: 69 | L135: 3810.681975 | M135: 1 | N135: CW1E | O135: Coventry | T135: Band 1E
A136: 1 | B136: Castle Wood School | C136: 424087 | D136: 0 | E136: Ahmed | F136: Mahir | G136: 200 | H136: 2024-04-08 | I136: 2024-07-19 | J136: 17948.869 | K136: 69 | L136: 6192.359805 | M136: 1 | N136: CW1F | O136: Coventry | T136: Band 1F
A137: 1 | B137: Castle Wood School | C137: 428689 | D137: 0 | E137: Ajilo | F137: Glorious | G137: 200 | H137: 2024-04-08 | I137: 2024-07-19 | J137: 11045.455 | K137: 69 | L137: 3810.681975 | M137: 1 | N137: CW1E | O137: Coventry | T137: Band 1E
A138: 1 | B138: Castle Wood School | C138: 399752 | D138: 2 | E138: Akinmolusun | F138: Amy | G138: 200 | H138: 2024-04-08 | I138: 2024-07-19 | J138: 11045.455 | K138: 69 | L138: 3810.681975 | M138: 1 | N138: CW1E | O138: Coventry | T138: Band 1E
A139: 1 | B139: Castle Wood School | C139: 344609 | D139: 3 | E139: Akinwale | F139: Abdullah | G139: 200 | H139: 2024-04-08 | I139: 2024-07-19 | J139: 10217.051 | K139: 69 | L139: 3524.882595 | M139: 1 | N139: CW2E | O139: Coventry | T139: Band 2E
A140: 1 | B140: Castle Wood School | C140: 382954 | D140: 3 | E140: Al Yousef | F140: Diyaa | G140: 200 | H140: 2024-04-08 | I140: 2024-07-19 | J140: 24631.337 | K140: 69 | L140: 8497.811265 | M140: 1 | N140: CW5E | O140: Coventry | T140: Band 5E
A141: 1 | B141: Castle Wood School | C141: 344581 | D141: 3 | E141: Ali | F141: Muhammad Abu-Ba | G141: 200 | H141: 2024-04-08 | I141: 2024-07-19 | J141: 17948.869 | K141: 69 | L141: 6192.359805 | M141: 1 | N141: CW1F | O141: Coventry | T141: Band 1F
A142: 1 | B142: Castle Wood School | C142: 346423 | D142: 3 | E142: Amad | F142: Mohammad | G142: 200 | H142: 2024-04-08 | I142: 2024-07-19 | J142: 17948.869 | K142: 69 | L142: 6192.359805 | M142: 1 | N142: CW1F | O142: Coventry | T142: Band 1F
A143: 1 | B143: Castle Wood School | C143: 420021 | D143: 1 | E143: Angus | F143: Jaxon | G143: 200 | H143: 2024-04-08 | I143: 2024-07-19 | J143: 11045.455 | K143: 69 | L143: 3810.681975 | M143: 1 | N143: CW1E | O143: Coventry | T143: Band 1E
A144: 1 | B144: Castle Wood School | C144: 305011 | D144: 6 | E144: Anwar | F144: Kaif | G144: 200 | H144: 2024-04-08 | I144: 2024-07-19 | J144: 11045.455 | K144: 69 | L144: 3810.681975 | M144: 1 | N144: CW1E | O144: Coventry | T144: Band 1E
A145: 1 | B145: Castle Wood School | C145: 440467 | D145: 0 | E145: Augusto | F145: Matilde | G145: 200 | H145: 2024-05-27 | I145: 2024-07-19 | J145: 11045.455 | K145: 35 | L145: 1932.954625 | M145: 0.5 | N145: CW1E | O145: Coventry | P145: Castle Wood School | T145: Band 1E
A146: 1 | B146: Castle Wood School | C146: 440467 | D146: 0 | E146: Augusto | F146: Matilde | G146: 200 | H146: 2024-04-08 | I146: 2024-05-26 | J146: 17948.869 | K146: 34 | L146: 3051.30773 | M146: 0.49 | N146: CW1F | O146: Coventry | Q146: Castle Wood School | T146: Band 1F
A147: 1 | B147: Castle Wood School | C147: 326506 | D147: 5 | E147: Awofolaji | F147: Lincoln-Jubril | G147: 200 | H147: 2024-04-08 | I147: 2024-07-19 | J147: 11045.455 | K147: 69 | L147: 3810.681975 | M147: 1 | N147: CW1E | O147: Coventry | T147: Band 1E
A148: 1 | B148: Castle Wood School | C148: 406625 | D148: 0 | E148: Ba | F148: Hope Ayesha | G148: 200 | H148: 2024-04-08 | I148: 2024-07-19 | J148: 10217.051 | K148: 69 | L148: 3524.882595 | M148: 1 | N148: CW2E | O148: Coventry | T148: Band 2E
A149: 1 | B149: Castle Wood School | C149: 337401 | D149: 6 | E149: Bah | F149: Kadiatou | G149: 200 | H149: 2024-04-08 | I149: 2024-07-19 | J149: 11045.455 | K149: 69 | L149: 3810.681975 | M149: 1 | N149: CW1E | O149: Coventry | T149: Band 1E
A150: 1 | B150: Castle Wood School | C150: 404078 | D150: 1 | E150: Barmooz | F150: Rose | G150: 200 | H150: 2024-04-08 | I150: 2024-07-19 | J150: 11045.455 | K150: 69 | L150: 3810.681975 | M150: 1 | N150: CW1E | O150: Coventry | T150: Band 1E
A151: 1 | B151: Castle Wood School | C151: 364534 | D151: 4 | E151: Bedder | F151: Dominic | G151: 200 | H151: 2024-04-08 | I151: 2024-07-19 | J151: 11045.455 | K151: 69 | L151: 3810.681975 | M151: 1 | N151: CW1E | O151: Coventry | T151: Band 1E
A152: 1 | B152: Castle Wood School | C152: 335690 | D152: 3 | E152: Bedford | F152: Elle-Leigh | G152: 200 | H152: 2024-04-08 | I152: 2024-07-19 | J152: 11045.455 | K152: 69 | L152: 3810.681975 | M152: 1 | N152: CW1E | O152: Coventry | T152: Band 1E
A153: 1 | B153: Castle Wood School | C153: 389345 | D153: 3 | E153: Bhardwaj | F153: Reyansh | G153: 200 | H153: 2024-04-08 | I153: 2024-07-19 | J153: 11045.455 | K153: 69 | L153: 3810.681975 | M153: 1 | N153: CW1E | O153: Coventry | T153: Band 1E
A154: 1 | B154: Castle Wood School | C154: 401657 | D154: 1 | E154: Binga | F154: Jayden | G154: 200 | H154: 2024-04-08 | I154: 2024-07-19 | J154: 11045.455 | K154: 69 | L154: 3810.681975 | M154: 1 | N154: CW1E | O154: Coventry | T154: Band 1E
A155: 1 | B155: Castle Wood School | C155: 364613 | D155: 2 | E155: Binning | F155: Blake | G155: 200 | H155: 2024-04-08 | I155: 2024-07-19 | J155: 11045.455 | K155: 69 | L155: 3810.681975 | M155: 1 | N155: CW1E | O155: Coventry | T155: Band 1E
A156: 1 | B156: Castle Wood School | C156: 373489 | D156: 1 | E156: Bodinnar | F156: Ava | G156: 200 | H156: 2024-04-08 | I156: 2024-07-19 | J156: 17948.869 | K156: 69 | L156: 6192.359805 | M156: 1 | N156: CW1F | O156: Coventry | T156: Band 1F
A157: 1 | B157: Castle Wood School | C157: 385623 | D157: 0 | E157: Bodinnar | F157: Lexeigh | G157: 200 | H157: 2024-04-08 | I157: 2024-07-19 | J157: 11045.455 | K157: 69 | L157: 3810.681975 | M157: 1 | N157: CW1E | O157: Coventry | T157: Band 1E
A158: 1 | B158: Castle Wood School | C158: 362350 | D158: 6 | E158: Chilamkurthi | F158: Suvas | G158: 200 | H158: 2024-04-08 | I158: 2024-07-19 | J158: 17948.869 | K158: 69 | L158: 6192.359805 | M158: 1 | N158: CW1F | O158: Coventry | T158: Band 1F
A159: 1 | B159: Castle Wood School | C159: 440669 | D159: 4 | E159: Chinn | F159: Theodore | G159: 200 | H159: 2024-04-08 | I159: 2024-07-19 | J159: 11045.455 | K159: 69 | L159: 3810.681975 | M159: 1 | N159: CW1E | O159: Coventry | T159: Band 1E
A160: 1 | B160: Castle Wood School | C160: 320808 | D160: 5 | E160: Choudhary | F160: Sufyaan | G160: 200 | H160: 2024-04-08 | I160: 2024-07-19 | J160: 24631.337 | K160: 69 | L160: 8497.811265 | M160: 1 | N160: CW5E | O160: Coventry | T160: Band 5E
A161: 1 | B161: Castle Wood School | C161: 428938 | D161: 0 | E161: Christopher | F161: Joshua | G161: 200 | H161: 2024-04-08 | I161: 2024-07-19 | J161: 11045.455 | K161: 69 | L161: 3810.681975 | M161: 1 | N161: CW1E | O161: Coventry | T161: Band 1E
A162: 1 | B162: Castle Wood School | C162: 387941 | D162: 1 | E162: Ciobanu | F162: Fabian | G162: 200 | H162: 2024-04-08 | I162: 2024-07-19 | J162: 13806.816 | K162: 69 | L162: 4763.35152 | M162: 1 | N162: CW4E | O162: Coventry | T162: Band 4E
A163: 1 | B163: Castle Wood School | C163: 392860 | D163: 0 | E163: Cleaver | F163: Harley | G163: 200 | H163: 2024-04-08 | I163: 2024-07-19 | J163: 11045.455 | K163: 69 | L163: 3810.681975 | M163: 1 | N163: CW1E | O163: Coventry | T163: Band 1E
A164: 1 | B164: Castle Wood School | C164: 403790 | D164: 1 | E164: Coleman | F164: Alfie | G164: 200 | H164: 2024-04-08 | I164: 2024-07-19 | J164: 11045.455 | K164: 69 | L164: 3810.681975 | M164: 1 | N164: CW1E | O164: Coventry | T164: Band 1E
A165: 1 | B165: Castle Wood School | C165: 402001 | D165: 0 | E165: Cresswell | F165: Mason | G165: 200 | H165: 2024-04-08 | I165: 2024-07-19 | J165: 11045.455 | K165: 69 | L165: 3810.681975 | M165: 1 | N165: CW1E | O165: Coventry | T165: Band 1E
A166: 1 | B166: Castle Wood School | C166: 348437 | D166: 5 | E166: Crosdale | F166: Eli | G166: 200 | H166: 2024-04-08 | I166: 2024-07-19 | J166: 11045.455 | K166: 69 | L166: 3810.681975 | M166: 1 | N166: CW1E | O166: Coventry | T166: Band 1E
A167: 1 | B167: Castle Wood School | C167: 353911 | D167: 5 | E167: Cummings | F167: Benjamin | G167: 200 | H167: 2024-04-08 | I167: 2024-07-19 | J167: 11045.455 | K167: 69 | L167: 3810.681975 | M167: 1 | N167: CW1E | O167: Coventry | T167: Band 1E
A168: 1 | B168: Castle Wood School | C168: 334768 | D168: 3 | E168: Damon | F168: Eva | G168: 200 | H168: 2024-04-08 | I168: 2024-07-19 | J168: 11045.455 | K168: 69 | L168: 3810.681975 | M168: 1 | N168: CW1E | O168: Coventry | T168: Band 1E
A169: 1 | B169: Castle Wood School | C169: 388993 | D169: 1 | E169: Dima | F169: Gabriel | G169: 200 | H169: 2024-04-08 | I169: 2024-07-19 | J169: 11045.455 | K169: 69 | L169: 3810.681975 | M169: 1 | N169: CW1E | O169: Coventry | T169: Band 1E
A170: 1 | B170: Castle Wood School | C170: 390516 | D170: 0 | E170: Doughty | F170: Reggie | G170: 200 | H170: 2024-04-08 | I170: 2024-07-19 | J170: 17948.869 | K170: 69 | L170: 6192.359805 | M170: 1 | N170: CW1F | O170: Coventry | T170: Band 1F
A171: 1 | B171: Castle Wood School | C171: 320292 | D171: 6 | E171: Drury | F171: Rhys | G171: 200 | H171: 2024-04-08 | I171: 2024-07-19 | J171: 11045.455 | K171: 69 | L171: 3810.681975 | M171: 1 | N171: CW1E | O171: Coventry | T171: Band 1E
A172: 1 | B172: Castle Wood School | C172: 387626 | D172: 0 | E172: Enueze | F172: Ryan | G172: 200 | H172: 2024-04-08 | I172: 2024-07-19 | J172: 13806.816 | K172: 69 | L172: 4763.35152 | M172: 1 | N172: CW3E | O172: Coventry | T172: Band 3E
A173: 1 | B173: Castle Wood School | C173: 396089 | D173: 0 | E173: Evans | F173: Cameron | G173: 200 | H173: 2024-04-08 | I173: 2024-07-19 | J173: 13806.816 | K173: 69 | L173: 4763.35152 | M173: 1 | N173: CW4E | O173: Coventry | T173: Band 4E
A174: 1 | B174: Castle Wood School | C174: 348749 | D174: 3 | E174: Fakir | F174: Mohamed | G174: 200 | H174: 2024-04-08 | I174: 2024-07-19 | J174: 17948.869 | K174: 69 | L174: 6192.359805 | M174: 1 | N174: CW1F | O174: Coventry | T174: Band 1F
A175: 1 | B175: Castle Wood School | C175: 362201 | D175: 2 | E175: Festus | F175: Joctan | G175: 200 | H175: 2024-04-08 | I175: 2024-07-19 | J175: 11045.455 | K175: 69 | L175: 3810.681975 | M175: 1 | N175: CW1E | O175: Coventry | T175: Band 1E
A176: 1 | B176: Castle Wood School | C176: 359138 | D176: 2 | E176: Feum | F176: Prosper | G176: 200 | H176: 2024-04-08 | I176: 2024-07-19 | J176: 17948.869 | K176: 69 | L176: 6192.359805 | M176: 1 | N176: CW1F | O176: Coventry | T176: Band 1F
A177: 1 | B177: Castle Wood School | C177: 392909 | D177: 1 | E177: Forkuoh | F177: George | G177: 200 | H177: 2024-04-08 | I177: 2024-07-19 | J177: 17948.869 | K177: 69 | L177: 6192.359805 | M177: 1 | N177: CW1F | O177: Coventry | T177: Band 1F
A178: 1 | B178: Castle Wood School | C178: 347166 | D178: 4 | E178: Friswell | F178: Matilda | G178: 200 | H178: 2024-04-08 | I178: 2024-07-19 | J178: 17948.869 | K178: 69 | L178: 6192.359805 | M178: 1 | N178: CW1F | O178: Coventry | T178: Band 1F
A179: 1 | B179: Castle Wood School | C179: 324247 | D179: 4 | E179: Gallagher | F179: Charlie | G179: 200 | H179: 2024-04-08 | I179: 2024-07-19 | J179: 24631.337 | K179: 69 | L179: 8497.811265 | M179: 1 | N179: CW5E | O179: Coventry | T179: Band 5E
A180: 1 | B180: Castle Wood School | C180: 361083 | D180: 2 | E180: Gallagher | F180: Harry | G180: 200 | H180: 2024-04-08 | I180: 2024-07-19 | J180: 17948.869 | K180: 69 | L180: 6192.359805 | M180: 1 | N180: CW1F | O180: Coventry | T180: Band 1F
A181: 1 | B181: Castle Wood School | C181: 377896 | D181: 3 | E181: George | F181: Mason | G181: 200 | H181: 2024-04-08 | I181: 2024-07-19 | J181: 17948.869 | K181: 69 | L181: 6192.359805 | M181: 1 | N181: CW1F | O181: Coventry | T181: Band 1F
A182: 1 | B182: Castle Wood School | C182: 342871 | D182: 3 | E182: Grantham-Healy | F182: Caleb | G182: 200 | H182: 2024-04-08 | I182: 2024-07-19 | J182: 11045.455 | K182: 69 | L182: 3810.681975 | M182: 1 | N182: CW1E | O182: Coventry | T182: Band 1E
A183: 1 | B183: Castle Wood School | C183: 361257 | D183: 2 | E183: Gray | F183: Leonardo | G183: 200 | H183: 2024-04-08 | I183: 2024-07-19 | J183: 11045.455 | K183: 69 | L183: 3810.681975 | M183: 1 | N183: CW1E | O183: Coventry | T183: Band 1E
A184: 1 | B184: Castle Wood School | C184: 354146 | D184: 5 | E184: Gray | F184: Maddison | G184: 200 | H184: 2024-04-08 | I184: 2024-07-19 | J184: 11045.455 | K184: 69 | L184: 3810.681975 | M184: 1 | N184: CW1E | O184: Coventry | T184: Band 1E
A185: 1 | B185: Castle Wood School | C185: 364413 | D185: 3 | E185: Hadid | F185: Mohammed | G185: 200 | H185: 2024-04-08 | I185: 2024-07-19 | J185: 10217.051 | K185: 69 | L185: 3524.882595 | M185: 1 | N185: CW2E | O185: Coventry | T185: Band 2E
A186: 1 | B186: Castle Wood School | C186: 329642 | D186: 4 | E186: Hill | F186: Dylan-Joe | G186: 200 | H186: 2024-04-08 | I186: 2024-07-19 | J186: 17948.869 | K186: 69 | L186: 6192.359805 | M186: 1 | N186: CW1F | O186: Coventry | T186: Band 1F
A187: 1 | B187: Castle Wood School | C187: 319551 | D187: 4 | E187: Hingley | F187: Sofia | G187: 200 | H187: 2024-04-08 | I187: 2024-07-19 | J187: 16568.177 | K187: 69 | L187: 5716.021065 | M187: 1 | N187: CW2F | O187: Coventry | T187: Band 2F
A188: 1 | B188: Castle Wood School | C188: 406060 | D188: 0 | E188: Ighavogbe | F188: Dominic | G188: 200 | H188: 2024-04-08 | I188: 2024-07-19 | J188: 17948.869 | K188: 69 | L188: 6192.359805 | M188: 1 | N188: CW1F | O188: Coventry | T188: Band 1F
A189: 1 | B189: Castle Wood School | C189: 422801 | D189: 3 | E189: Imran | F189: Zainab | G189: 200 | H189: 2024-04-08 | I189: 2024-07-19 | J189: 11045.455 | K189: 69 | L189: 3810.681975 | M189: 1 | N189: CW1E | O189: Coventry | T189: Band 1E
A190: 1 | B190: Castle Wood School | C190: 387520 | D190: 3 | E190: Ionita | F190: David | G190: 200 | H190: 2024-04-08 | I190: 2024-07-19 | J190: 49262.675 | K190: 69 | L190: 16995.62288 | M190: 1 | N190: CW5F | O190: Coventry | T190: Band 5F
A191: 1 | B191: Castle Wood School | C191: 349152 | D191: 6 | E191: Jinu | F191: Aiden | G191: 200 | H191: 2024-04-08 | I191: 2024-07-19 | J191: 24631.337 | K191: 69 | L191: 8497.811265 | M191: 1 | N191: CW5E | O191: Coventry | T191: Band 5E
A192: 1 | B192: Castle Wood School | C192: 398247 | D192: 1 | E192: Johnson | F192: Esmae | G192: 200 | H192: 2024-04-08 | I192: 2024-07-19 | J192: 16568.177 | K192: 69 | L192: 5716.021065 | M192: 1 | N192: CW4F | O192: Coventry | T192: Band 4F
A193: 1 | B193: Castle Wood School | C193: 386397 | D193: 2 | E193: Johnson | F193: Tariq | G193: 200 | H193: 2024-04-08 | I193: 2024-07-19 | J193: 11045.455 | K193: 69 | L193: 3810.681975 | M193: 1 | N193: CW1E | O193: Coventry | T193: Band 1E
A194: =IF(LEFT(N194,2)="BF",6,IF(LEFT(N194,2)="CW",1,IF(LEFT(N194,2)="CO",4,IF(LEFT(N194,2)="TS",2,IF(LEFT(N194,2)="RB",3,IF(LEFT(N194,2)="SF",7,IF(LEFT(N194,2)="TV",5,IF(LEFT(N194,2)="WF",8,"")))))))) -> 1 | B194: Castle Wood School | C194: 345429 | D194: 5 | E194: Jones | F194: Hope | G194: 200 | H194: 2024-04-08 | I194: 2024-07-19 | J194: 10217.051 | K194: 69 | L194: 3524.882595 | M194: 1 | N194: CW2E | O194: Coventry | T194: =IF(ISBLANK(A194),"",CONCATENATE($N$2," ",RIGHT(N194,2))) -> Band 2E
A195: 1 | B195: Castle Wood School | C195: 375816 | D195: 3 | E195: Kageta | F195: Tamarah | G195: 200 | H195: 2024-04-08 | I195: 2024-07-19 | J195: 11045.455 | K195: 69 | L195: 3810.681975 | M195: 1 | N195: CW1E | O195: Coventry | T195: Band 1E
A196: 1 | B196: Castle Wood School | C196: 349045 | D196: 5 | E196: Kamil | F196: Armeen | G196: 200 | H196: 2024-04-08 | I196: 2024-07-19 | J196: 11045.455 | K196: 69 | L196: 3810.681975 | M196: 1 | N196: CW1E | O196: Coventry | T196: Band 1E
A197: 1 | B197: Castle Wood School | C197: 369334 | D197: 2 | E197: Kankam | F197: Kingsley | G197: 200 | H197: 2024-04-08 | I197: 2024-07-19 | J197: 11045.455 | K197: 69 | L197: 3810.681975 | M197: 1 | N197: CW1E | O197: Coventry | T197: Band 1E
A198: 1 | B198: Castle Wood School | C198: 371425 | D198: 1 | E198: Kelly-Symons | F198: Donovan | G198: 200 | H198: 2024-04-08 | I198: 2024-07-19 | J198: 11045.455 | K198: 69 | L198: 3810.681975 | M198: 1 | N198: CW1E | O198: Coventry | T198: Band 1E
A199: 1 | B199: Castle Wood School | C199: 339389 | D199: 5 | E199: Khan | F199: Mohammed Haris | G199: 200 | H199: 2024-04-08 | I199: 2024-07-19 | J199: 11045.455 | K199: 69 | L199: 3810.681975 | M199: 1 | N199: CW1E | O199: Coventry | T199: Band 1E
A200: 1 | B200: Castle Wood School | C200: 318788 | D200: 5 | E200: Khan | F200: Muhammad Haasin | G200: 200 | H200: 2024-04-08 | I200: 2024-07-19 | J200: 11045.455 | K200: 69 | L200: 3810.681975 | M200: 1 | N200: CW1E | O200: Coventry | T200: Band 1E
... 1477 more rows

Sheet AutumnProvRep (hidden)
B1: From Special School Master 23-24 v6
B2: School | C2: Capita ID | D2: NCY | E2: Surname | F2: Forename | G2: # Days in year | H2: Provision start | I2: Provision end | J2: Unit cost | K2: # Term Days | L2: Funding | M2: Funded FTE | N2: Band | O2: Funding LA | P2: Previous School | Q2: Next School
A3: =IF(LEFT(N3,2)="BF",6,IF(LEFT(N3,2)="CW",1,IF(LEFT(N3,2)="CO",4,IF(LEFT(N3,2)="TS",2,IF(LEFT(N3,2)="RB",3,IF(LEFT(N3,2)="SF",7,IF(LEFT(N3,2)="TV",5,IF(LEFT(N3,2)="WF",8,"")))))))) -> 6 | B3: Baginton Fields School | C3: T331212515089 | D3: 7 | E3: Caraian, Sara | H3: 2023-09-01 | K3: 76 | L3: 3765.726675 | M3: 1 | N3: BF2E | O3: Coventry | T3: =IF(ISBLANK(A3),"",CONCATENATE($N$2," ",RIGHT(N3,2))) -> Band 2E
A4: 6 | B4: Baginton Fields School | C4: K855100313013 | D4: 7 | E4: Zibneva, Victoria | H4: 2023-09-01 | K4: 76 | L4: 6106.578263 | M4: 1 | N4: BF2F | O4: Coventry | T4: Band 2F
A5: 6 | B5: Baginton Fields School | C5: Q331212416038 | D5: 7 | E5: Sarosh, Usman M. | H5: 2023-09-01 | K5: 76 | L5: 3765.726675 | M5: 1 | N5: BF2E | O5: Coventry | T5: Band 2E
A6: 6 | B6: Baginton Fields School | C6: E331702416005 | D6: 7 | E6: Muhammad, Awais | H6: 2023-09-01 | K6: 76 | L6: 3765.726675 | M6: 1 | N6: BF2E | O6: Coventry | T6: Band 2E
A7: 6 | B7: Baginton Fields School | C7: B331100711243 | D7: 7 | E7: Janjua, Muhammed K. | H7: 2023-09-01 | K7: 76 | L7: 6106.578263 | M7: 1 | N7: BF2F | O7: Coventry | T7: Band 2F
A8: 6 | B8: Baginton Fields School | C8: F331341415026 | D8: 7 | E8: Mitchell, Angel J. | H8: 2023-09-01 | K8: 76 | L8: 4071.053627 | M8: 1 | N8: BF1E | O8: Coventry | T8: Band 1E
A9: 6 | B9: Baginton Fields School | C9: R331202115025 | D9: 7 | E9: White, Daniel M. | H9: 2023-09-01 | K9: 76 | L9: 4071.053627 | M9: 1 | N9: BF1E | O9: Coventry | T9: Band 1E
A10: 6 | B10: Baginton Fields School | C10: K331200516006 | D10: 7 | E10: Tubman, Wesley R. | H10: 2023-09-01 | K10: 76 | L10: 4071.053627 | M10: 1 | N10: BF1E | O10: Coventry | T10: Band 1E
A11: 6 | B11: Baginton Fields School | C11: A331201515031 | D11: 7 | E11: Hussain, Sufyaan | H11: 2023-09-01 | K11: 76 | L11: 3765.726675 | M11: 1 | N11: BF2E | O11: Coventry | T11: Band 2E
A12: 6 | B12: Baginton Fields School | C12: T331201516006 | D12: 7 | E12: Hussain, Faizaan | H12: 2023-09-01 | K12: 76 | L12: 3765.726675 | M12: 1 | N12: BF2E | O12: Coventry | T12: Band 2E
A13: 6 | B13: Baginton Fields School | C13: C331215715018 | D13: 7 | E13: Forshew, Sophie T. | H13: 2023-09-01 | K13: 76 | L13: 3765.726675 | M13: 1 | N13: BF2E | O13: Coventry | T13: Band 2E
A14: 6 | B14: Baginton Fields School | C14: D331214215029 | D14: 7 | E14: Cooper, Liam D. | H14: 2023-09-01 | K14: 76 | L14: 4071.053627 | M14: 1 | N14: BF1E | O14: Coventry | T14: Band 1E
A15: 6 | B15: Baginton Fields School | C15: J331340515037 | D15: 7 | E15: Choudhury, Rishi P. | H15: 2023-09-01 | K15: 76 | L15: 4071.053627 | M15: 1 | N15: BF1E | O15: Coventry | T15: Band 1E
A16: 6 | B16: Baginton Fields School | C16: A331214615050 | D16: 7 | E16: Bailey, Joshua N. | H16: 2023-09-01 | K16: 76 | L16: 4071.053627 | M16: 1 | N16: BF1E | O16: Coventry | T16: Band 1E
A17: 6 | B17: Baginton Fields School | C17: V331215115005 | D17: 7 | E17: Dyari, Muhammad | H17: 2023-09-01 | K17: 76 | L17: 6615.463778 | M17: 1 | N17: BF1F | O17: Coventry | T17: Band 1F
A18: 6 | B18: Baginton Fields School | C18: Q331213016080 | D18: 7 | E18: McKirdle, Matthew W. | H18: 2023-09-01 | K18: 76 | L18: 4071.053627 | M18: 1 | N18: BF1E | O18: Coventry | T18: Band 1E
A19: 6 | B19: Baginton Fields School | C19: L331214215026 | D19: 7 | E19: Cain, Ryan K. | H19: 2023-09-01 | K19: 76 | L19: 3765.726675 | M19: 1 | N19: BF2E | O19: Coventry | T19: Band 2E
A20: 6 | B20: Baginton Fields School | C20: J331202315054 | D20: 7 | E20: Ricardo, Emma | H20: 2023-09-01 | K20: 76 | L20: 6615.463778 | M20: 1 | N20: BF1F | O20: Coventry | T20: Band 1F
A21: 6 | B21: Baginton Fields School | C21: M815233315018 | D21: 7 | E21: Rajarajan, Arin | H21: 2023-09-01 | K21: 76 | L21: 3765.726675 | M21: 1 | N21: BF2E | O21: Coventry | T21: Band 2E
A22: 6 | B22: Baginton Fields School | C22: Z331701720009 | D22: 7 | E22: McDuke, Jaedon N. | H22: 2023-09-01 | K22: 76 | L22: 4071.053627 | M22: 1 | N22: BF1E | O22: Coventry | T22: Band 1E
A23: 6 | B23: Baginton Fields School | C23: R301207215116 | D23: 7 | E23: Kyeremeh, Philip G. | H23: 2023-09-01 | I23: 2023-10-16 | K23: 32 | L23: 1714.127843 | M23: 0.4210526316 | N23: BF1E | O23: Coventry | T23: Band 1E
A24: 6 | B24: Baginton Fields School | C24: R301207215116 | D24: 7 | E24: Kyeremeh, Philip G. | H24: 2023-10-17 | K24: 44 | L24: 5386.791667 | M24: 0.5789473684 | N24: BF5E | O24: Coventry | T24: Band 5E
A25: 6 | B25: Baginton Fields School | C25: H331214021073 | D25: 7 | E25: ADBULAHI, Abdirahman M. | H25: 2023-09-01 | K25: 76 | L25: 4071.053627 | M25: 1 | N25: BF1E | O25: Coventry | T25: Band 1E
A26: 6 | B26: Baginton Fields School | C26: Q331201513019 | D26: 8 | E26: Molad, Marwan A. | H26: 2023-09-01 | K26: 76 | L26: 3765.726675 | M26: 1 | N26: BF2E | O26: Coventry | T26: Band 2E
A27: 6 | B27: Baginton Fields School | C27: J331205614044 | D27: 8 | E27: Navsarka, Esa | H27: 2023-09-01 | K27: 76 | L27: 3765.726675 | M27: 1 | N27: BF2E | O27: Coventry | T27: Band 2E
A28: 6 | B28: Baginton Fields School | C28: E331702415004 | D28: 8 | E28: Powers, Jesse-James | H28: 2023-09-01 | K28: 76 | L28: 6106.578263 | M28: 1 | N28: BF4F | O28: Coventry | T28: Band 4F
A29: 6 | B29: Baginton Fields School | C29: Z331214915010 | D29: 8 | E29: Ntare, Christopher M. | H29: 2023-09-01 | K29: 76 | L29: 3765.726675 | M29: 1 | N29: BF2E | O29: Coventry | T29: Band 2E
A30: 6 | B30: Baginton Fields School | C30: V331701714001 | D30: 8 | E30: Imran, Isa M. | H30: 2023-09-01 | K30: 76 | L30: 3765.726675 | M30: 1 | N30: BF2E | O30: Coventry | T30: Band 2E
A31: 6 | B31: Baginton Fields School | C31: D331702415013 | D31: 8 | E31: Wakahiu, Yvonne N. | H31: 2023-09-01 | K31: 76 | L31: 6615.463778 | M31: 1 | N31: BF1F | O31: Coventry | T31: Band 1F
A32: 6 | B32: Baginton Fields School | C32: J331701714002 | D32: 8 | E32: Shahrjerdi, Dara | H32: 2023-09-01 | K32: 76 | L32: 9304.458333 | M32: 1 | N32: BF5E | O32: Coventry | T32: Band 5E
A33: 6 | B33: Baginton Fields School | C33: H331215714032 | D33: 8 | E33: Nimpaye, Don C. | H33: 2023-09-01 | K33: 76 | L33: 6615.463778 | M33: 1 | N33: BF1F | O33: Coventry | T33: Band 1F
A34: 6 | B34: Baginton Fields School | C34: E331701714007 | D34: 8 | E34: Mburichen, Onyekachukwu Ki | H34: 2023-09-01 | K34: 76 | L34: 6615.463778 | M34: 1 | N34: BF1F | O34: Coventry | T34: Band 1F
A35: 6 | B35: Baginton Fields School | C35: R331214514076 | D35: 8 | E35: Omar, Shano | H35: 2023-09-01 | K35: 76 | L35: 4071.053627 | M35: 1 | N35: BF1E | O35: Coventry | T35: Band 1E
A36: 6 | B36: Baginton Fields School | C36: G331702415015 | D36: 8 | E36: Njunga, Trevelle C. | H36: 2023-09-01 | K36: 76 | L36: 6615.463778 | M36: 1 | N36: BF1F | O36: Coventry | T36: Band 1F
A37: 6 | B37: Baginton Fields School | C37: V331215615067 | D37: 8 | E37: Mwangi, Asher M. | H37: 2023-09-01 | K37: 76 | L37: 6615.463778 | M37: 1 | N37: BF1F | O37: Coventry | T37: Band 1F
A38: 6 | B38: Baginton Fields School | C38: H331205614024 | D38: 8 | E38: Barrowman, Lee S. | H38: 2023-09-01 | K38: 76 | L38: 4071.053627 | M38: 1 | N38: BF1E | O38: Coventry | T38: Band 1E
A39: 6 | B39: Baginton Fields School | C39: R331212514039 | D39: 8 | E39: McSheffrey, Kayden B. | H39: 2023-09-01 | K39: 76 | L39: 4071.053627 | M39: 1 | N39: BF1E | O39: Coventry | T39: Band 1E
A40: 6 | B40: Baginton Fields School | C40: A334205014028 | D40: 8 | E40: Crowley, Macey B. | H40: 2023-09-01 | K40: 76 | L40: 3765.726675 | M40: 1 | N40: BF2E | O40: Coventry | T40: Band 2E
A41: 6 | B41: Baginton Fields School | C41: J331205615045 | D41: 8 | E41: Zanfir, Leonard | H41: 2023-09-01 | K41: 76 | L41: 4071.053627 | M41: 1 | N41: BF1E | O41: Coventry | T41: Band 1E
A42: 6 | B42: Baginton Fields School | C42: P331215515042 | D42: 8 | E42: Moubeke, Jayden D. | H42: 2023-09-01 | K42: 76 | L42: 4071.053627 | M42: 1 | N42: BF1E | O42: Coventry | T42: Band 1E
A43: 6 | B43: Baginton Fields School | C43: G331214015117 | D43: 8 | E43: Ngemegwai, Leonardo S. | H43: 2023-09-01 | K43: 76 | L43: 5088.815945 | M43: 1 | N43: BF4E | O43: Coventry | T43: Band 4E
A44: 6 | B44: Baginton Fields School | C44: E331214516003 | D44: 8 | E44: Ahmed, Mohammed A. | H44: 2023-09-01 | K44: 76 | L44: 3765.726675 | M44: 1 | N44: BF2E | O44: Coventry | T44: Band 2E
A45: 6 | B45: Baginton Fields School | C45: H331700018011 | D45: 8 | E45: Niculae, Filimon | H45: 2023-09-01 | K45: 76 | L45: 6615.463778 | M45: 1 | N45: BF1F | O45: Coventry | T45: Band 1F
A46: 6 | B46: Baginton Fields School | C46: G886691918118 | D46: 8 | E46: Al Sabban, Bissan Y. | H46: 2023-09-01 | K46: 76 | L46: 3765.726675 | M46: 1 | N46: BF2E | O46: Coventry | T46: Band 2E
A47: 6 | B47: Baginton Fields School | C47: J331214114002 | D47: 9 | E47: Collinson, Catherine j. | H47: 2023-09-01 | K47: 76 | L47: 3765.726675 | M47: 1 | N47: BF2E | O47: Warwickshire | T47: Band 2E
A48: 6 | B48: Baginton Fields School | C48: B331340813020 | D48: 9 | E48: Skvortsov-Kirsteine, Jessica | H48: 2023-09-01 | K48: 76 | L48: 3765.726675 | M48: 1 | N48: BF2E | O48: Coventry | T48: Band 2E
A49: 6 | B49: Baginton Fields School | C49: B331702414001 | D49: 9 | E49: Islam, Mohammed Sami S. | H49: 2023-09-01 | K49: 76 | L49: 6615.463778 | M49: 1 | N49: BF1F | O49: Coventry | T49: Band 1F
A50: 6 | B50: Baginton Fields School | C50: M331701713003 | D50: 9 | E50: Gul, Annum | H50: 2023-09-01 | K50: 76 | L50: 6106.578263 | M50: 1 | N50: BF2F | O50: Coventry | T50: Band 2F
A51: 6 | B51: Baginton Fields School | C51: K331100712259 | D51: 9 | E51: Gibson, Libby G. | H51: 2023-09-01 | K51: 76 | L51: 6615.463778 | M51: 1 | N51: BF1F | O51: Coventry | T51: Band 1F
A52: =IF(LEFT(N52,2)="BF",6,IF(LEFT(N52,2)="CW",1,IF(LEFT(N52,2)="CO",4,IF(LEFT(N52,2)="TS",2,IF(LEFT(N52,2)="RB",3,IF(LEFT(N52,2)="SF",7,IF(LEFT(N52,2)="TV",5,IF(LEFT(N52,2)="WF",8,"")))))))) -> 6 | B52: Baginton Fields School | C52: W331342314010 | D52: 9 | E52: McGowan, Lucas C. | H52: 2023-09-01 | K52: 76 | L52: 3765.726675 | M52: 1 | N52: BF2E | O52: Coventry | T52: Band 2E
A53: =IF(LEFT(N53,2)="BF",6,IF(LEFT(N53,2)="CW",1,IF(LEFT(N53,2)="CO",4,IF(LEFT(N53,2)="TS",2,IF(LEFT(N53,2)="RB",3,IF(LEFT(N53,2)="SF",7,IF(LEFT(N53,2)="TV",5,IF(LEFT(N53,2)="WF",8,"")))))))) -> 6 | B53: Baginton Fields School | C53: V331330214003 | D53: 9 | E53: Braithwaite, Lacey P. | H53: 2023-09-01 | K53: 76 | L53: 9304.458333 | M53: 1 | N53: BF5E | O53: Coventry | T53: Band 5E
A54: 6 | B54: Baginton Fields School | C54: M331211814023 | D54: 9 | E54: Woodward, Cody R. | H54: 2023-09-01 | K54: 76 | L54: 3765.726675 | M54: 1 | N54: BF2E | O54: Coventry | T54: Band 2E
A55: 6 | B55: Baginton Fields School | C55: B331212214038 | D55: 9 | E55: Urch, Sophia G. | H55: 2023-09-01 | K55: 76 | L55: 3765.726675 | M55: 1 | N55: BF2E | O55: Coventry | T55: Band 2E
A56: 6 | B56: Baginton Fields School | C56: U331213113033 | D56: 9 | E56: Gleeson, Reece R. | H56: 2023-09-01 | K56: 76 | L56: 4071.053627 | M56: 1 | N56: BF1E | O56: Coventry | T56: Band 1E
A57: 6 | B57: Baginton Fields School | C57: L331702414007 | D57: 9 | E57: Ahmed, Hana H. | H57: 2023-09-01 | K57: 76 | L57: 4071.053627 | M57: 1 | N57: BF1E | O57: Coventry | T57: Band 1E
A58: 6 | B58: Baginton Fields School | C58: B331214114005 | D58: 9 | E58: Ali, Azhar | H58: 2023-09-01 | K58: 76 | L58: 6615.463778 | M58: 1 | N58: BF1F | O58: Coventry | T58: Band 1F
A59: 6 | B59: Baginton Fields School | C59: M331214113061 | D59: 9 | E59: Hyde, Brody J. | H59: 2023-09-01 | K59: 76 | L59: 4071.053627 | M59: 1 | N59: BF1E | O59: Coventry | T59: Band 1E
A60: 6 | B60: Baginton Fields School | C60: M331701719011 | D60: 9 | E60: Madu, Great I. | H60: 2023-09-01 | K60: 76 | L60: 6106.578263 | M60: 1 | N60: BF4F | O60: Coventry | T60: Band 4F
A61: 6 | B61: Baginton Fields School | C61: A331701922001 | D61: 9 | E61: Igbokwe, Francis | H61: 2023-09-01 | K61: 76 | L61: 6106.578263 | M61: 1 | N61: BF2F | O61: Coventry | T61: Band 2F
A62: 6 | B62: Baginton Fields School | C62: A331702412006 | D62: 10 | E62: Cooney, Charlotte B. | H62: 2023-09-01 | K62: 76 | L62: 6106.578263 | M62: 1 | N62: BF2F | O62: Coventry | T62: Band 2F
A63: 6 | B63: Baginton Fields School | C63: J331214913014 | D63: 10 | E63: Chidube, Maurice I. | H63: 2023-09-01 | K63: 76 | L63: 3765.726675 | M63: 1 | N63: BF2E | O63: Coventry | T63: Band 2E
A64: 6 | B64: Baginton Fields School | C64: N331212412052 | D64: 10 | E64: Teensa, Raul S. | H64: 2023-09-01 | K64: 76 | L64: 3765.726675 | M64: 1 | N64: BF2E | O64: Coventry | T64: Band 2E
A65: 6 | B65: Baginton Fields School | C65: J331343513046 | D65: 10 | E65: Zeno, Eryk | H65: 2023-09-01 | K65: 76 | L65: 6615.463778 | M65: 1 | N65: BF1F | O65: Coventry | T65: Band 1F
A66: 6 | B66: Baginton Fields School | C66: L331343813008 | D66: 10 | E66: Carty, Loveonhe D. | H66: 2023-09-01 | K66: 76 | L66: 3765.726675 | M66: 1 | N66: BF2E | O66: Coventry | T66: Band 2E
A67: 6 | B67: Baginton Fields School | C67: V331201512013 | D67: 10 | E67: Karamat, Safiullah | H67: 2023-09-01 | K67: 76 | L67: 9304.458333 | M67: 1 | N67: BF5E | O67: Coventry | T67: =IF(ISBLANK(A67),"",CONCATENATE($N$2," ",RIGHT(N67,2))) -> Band 5E
A68: 6 | B68: Baginton Fields School | C68: L331212112059 | D68: 10 | E68: GRYSZKIENAS, Santiago A. | H68: 2023-09-01 | K68: 76 | L68: 4071.053627 | M68: 1 | N68: BF1E | O68: Coventry | T68: Band 1E
A69: 6 | B69: Baginton Fields School | C69: A331341813003 | D69: 10 | E69: Bush, Matthew P. | H69: 2023-09-01 | K69: 76 | L69: 3765.726675 | M69: 1 | N69: BF2E | O69: Coventry | T69: Band 2E
A70: 6 | B70: Baginton Fields School | C70: L331214312064 | D70: 10 | E70: Mack, Paige D. | H70: 2023-09-01 | K70: 76 | L70: 3765.726675 | M70: 1 | N70: BF2E | O70: Coventry | T70: Band 2E
A71: 6 | B71: Baginton Fields School | C71: Y331100711270 | D71: 10 | E71: McKinlay, Maddox E. | H71: 2023-09-01 | K71: 76 | L71: 6615.463778 | M71: 1 | N71: BF1F | O71: Coventry | T71: Band 1F
A72: 6 | B72: Baginton Fields School | C72: H331330213012 | D72: 10 | E72: Mula, Elliot J. | H72: 2023-09-01 | K72: 76 | L72: 6615.463778 | M72: 1 | N72: BF1F | O72: Coventry | T72: Band 1F
A73: 6 | B73: Baginton Fields School | C73: M331201512016 | D73: 10 | E73: Molad, MOHAMAD | H73: 2023-09-01 | K73: 76 | L73: 3765.726675 | M73: 1 | N73: BF2E | O73: Coventry | T73: Band 2E
A74: 6 | B74: Baginton Fields School | C74: F331214112083 | D74: 10 | E74: Akhtar, Shumena | H74: 2023-09-01 | K74: 76 | L74: 4071.053627 | M74: 1 | N74: BF1E | O74: Coventry | T74: Band 1E
A75: 6 | B75: Baginton Fields School | C75: N331300611029 | D75: 11 | E75: Hudson, Elise A. | H75: 2023-09-01 | K75: 76 | L75: 3765.726675 | M75: 1 | N75: BF2E | O75: Warwickshire | T75: Band 2E
A76: 6 | B76: Baginton Fields School | C76: U331702411001 | D76: 11 | E76: Moseley, Holly | H76: 2023-09-01 | K76: 76 | L76: 6106.578263 | M76: 1 | N76: BF2F | O76: Coventry | T76: Band 2F
A77: 6 | B77: Baginton Fields School | C77: P331700911004 | D77: 11 | E77: Abu Baker, Daniel | H77: 2023-09-01 | K77: 76 | L77: 9304.458333 | M77: 1 | N77: BF5E | O77: Coventry | T77: Band 5E
A78: 6 | B78: Baginton Fields School | C78: W331341411043 | D78: 11 | E78: Padan, Rohan S. | H78: 2023-09-01 | K78: 76 | L78: 3765.726675 | M78: 1 | N78: BF2E | O78: Coventry | T78: Band 2E
A79: 6 | B79: Baginton Fields School | C79: L937262612011 | D79: 11 | E79: Jones, Ellis D. | H79: 2023-09-01 | K79: 76 | L79: 4071.053627 | M79: 1 | N79: BF1E | O79: Coventry | T79: Band 1E
A80: 6 | B80: Baginton Fields School | C80: R331214111023 | D80: 11 | E80: Ray, Jasmine | H80: 2023-09-01 | K80: 76 | L80: 3765.726675 | M80: 1 | N80: BF2E | O80: Coventry | T80: Band 2E
A81: 6 | B81: Baginton Fields School | C81: Y331214612092 | D81: 11 | E81: Sahota, Joydeep | H81: 2023-09-01 | K81: 76 | L81: 4071.053627 | M81: 1 | N81: BF1E | O81: Coventry | T81: Band 1E
A82: 6 | B82: Baginton Fields School | C82: B331214112061 | D82: 11 | E82: Mullin, Harley J. | H82: 2023-09-01 | K82: 76 | L82: 9304.458333 | M82: 1 | N82: BF5E | O82: Coventry | T82: Band 5E
A83: 6 | B83: Baginton Fields School | C83: H331300712002 | D83: 11 | E83: Beauchamp, Morgan T. | H83: 2023-09-01 | K83: 76 | L83: 3765.726675 | M83: 1 | N83: BF2E | O83: Coventry | T83: Band 2E
A84: 6 | B84: Baginton Fields School | C84: N331700612005 | D84: 11 | E84: Khapane, Yugandhar | H84: 2023-09-01 | K84: 76 | L84: 6615.463778 | M84: 1 | N84: BF1F | O84: Coventry | T84: Band 1F
A85: 6 | B85: Baginton Fields School | C85: G331702418018 | D85: 11 | E85: Norman, William K. | H85: 2023-09-01 | K85: 76 | L85: 6615.463778 | M85: 1 | N85: BF1F | O85: Coventry | T85: Band 1F
A86: 6 | B86: Baginton Fields School | C86: J331701717005 | D86: 11 | E86: Jose, Aannet | H86: 2023-09-01 | K86: 76 | L86: 4071.053627 | M86: 1 | N86: BF1E | O86: Coventry | T86: Band 1E
A87: 6 | B87: Baginton Fields School | C87: J332330611027 | D87: 11 | E87: Welch, Shania | H87: 2023-10-16 | K87: 45 | L87: 2229.706584 | M87: 0.5921052632 | N87: BF2E | O87: Coventry | T87: Band 2E
A88: 6 | B88: Baginton Fields School | C88: Z331700611003 | D88: 12 | E88: Ali, Ifza | H88: 2023-09-01 | K88: 76 | L88: 3765.726675 | M88: 1 | N88: BF2E | O88: Coventry | T88: Band 2E
A89: 6 | B89: Baginton Fields School | C89: A331702411005 | D89: 12 | E89: ADEMAKINWA, Kikiola O. | H89: 2023-09-01 | K89: 76 | L89: 6615.463778 | M89: 1 | N89: BF1F | O89: Coventry | T89: Band 1F
A90: 6 | B90: Baginton Fields School | C90: R331215610002 | D90: 12 | E90: KASONGO, Tony S. | H90: 2023-09-01 | K90: 76 | L90: 6615.463778 | M90: 1 | N90: BF1F | O90: Coventry | T90: Band 1F
A91: 6 | B91: Baginton Fields School | C91: C331343811047 | D91: 12 | E91: MALANGU, Sharon B. | H91: 2023-09-01 | K91: 76 | L91: 6615.463778 | M91: 1 | N91: BF1F | O91: Coventry | T91: Band 1F
A92: 6 | B92: Baginton Fields School | C92: L331100709018 | D92: 12 | E92: Kunasingam, Harryshan | H92: 2023-09-01 | K92: 76 | L92: 6615.463778 | M92: 1 | N92: BF1F | O92: Coventry | T92: Band 1F
A93: 6 | B93: Baginton Fields School | C93: L331702411004 | D93: 12 | E93: Rama, Elbion | H93: 2023-09-01 | I93: 2023-11-05 | K93: 41 | L93: 3568.868617 | M93: 0.5394736842 | N93: BF1F | O93: Coventry | T93: Band 1F
A94: 6 | B94: Baginton Fields School | C94: L331702411004 | D94: 12 | E94: Rama, Elbion | H94: 2023-11-06 | K94: 35 | L94: 4284.947917 | M94: 0.4605263158 | N94: BF5E | O94: Coventry | T94: Band 5E
A95: 6 | B95: Baginton Fields School | C95: E331701710003 | D95: 12 | E95: EKALAKALA, Eliezer E. | H95: 2023-09-01 | K95: 76 | L95: 3765.726675 | M95: 1 | N95: BF2E | O95: Coventry | T95: Band 2E
A96: 6 | B96: Baginton Fields School | C96: Q331341811022 | D96: 12 | E96: Walters, Casadie-Rae J. | H96: 2023-09-01 | K96: 76 | L96: 4071.053627 | M96: 1 | N96: BF1E | O96: Coventry | T96: Band 1E
A97: 6 | B97: Baginton Fields School | C97: Y331214210011 | D97: 12 | E97: Cain, Chanel | H97: 2023-09-01 | K97: 76 | L97: 3765.726675 | M97: 1 | N97: BF2E | O97: Coventry | T97: Band 2E
A98: 6 | B98: Baginton Fields School | C98: T331110715006 | D98: 12 | E98: Suleiman, Mohammad | H98: 2023-09-01 | K98: 76 | L98: 6615.463778 | M98: 1 | N98: BF1F | O98: Coventry | T98: Band 1F
A99: 6 | B99: Baginton Fields School | C99: K331400418026 | D99: 12 | E99: Singh, Navbir | H99: 2023-09-01 | K99: 76 | L99: 6615.463778 | M99: 1 | N99: BF1F | O99: Coventry | T99: Band 1F
A100: 6 | B100: Baginton Fields School | C100: R312201611091 | D100: 12 | E100: Stokes, Bradley P. | H100: 2023-09-01 | K100: 76 | L100: 3765.726675 | M100: 1 | N100: BF2E | O100: Coventry | T100: Band 2E
A101: 6 | B101: Baginton Fields School | C101: A856721714003 | D101: 12 | E101: Hatem, Ahmed B. | H101: 2023-09-01 | K101: 76 | L101: 9304.458333 | M101: 1 | N101: BF5E | O101: Coventry | T101: Band 5E
A102: 6 | B102: Baginton Fields School | C102: D331701920001 | D102: 12 | E102: Biyasi, Hala | H102: 2023-09-01 | K102: 76 | L102: 3765.726675 | M102: 1 | N102: BF2E | O102: Coventry | T102: Band 2E
A103: 6 | B103: Baginton Fields School | C103: P331701921001 | D103: 12 | E103: Mohammed-Said, Dia-Adin A. | H103: 2023-09-01 | K103: 76 | L103: 6106.578263 | M103: 1 | N103: BF2F | O103: Coventry | T103: Band 2F
A104: 6 | B104: Baginton Fields School | C104: B331213610031 | D104: 13 | E104: Ginova-Pearson, Denisa A. | H104: 2023-09-01 | K104: 76 | L104: 3765.726675 | M104: 1 | N104: BF2E | O104: Coventry | T104: Band 2E
A105: 6 | B105: Baginton Fields School | C105: W331701708004 | D105: 13 | E105: Kazmi, Aleeza | H105: 2023-09-01 | K105: 76 | L105: 6106.578263 | M105: 1 | N105: BF2F | O105: Coventry | T105: Band 2F
A106: 6 | B106: Baginton Fields School | C106: R331702409006 | D106: 13 | E106: Munir, Aisha | H106: 2023-09-01 | K106: 76 | L106: 6106.578263 | M106: 1 | N106: BF2F | O106: Coventry | T106: Band 2F
A107: 6 | B107: Baginton Fields School | C107: J331702409009 | D107: 13 | E107: Bhatti, Aman | H107: 2023-09-01 | K107: 76 | L107: 6106.578263 | M107: 1 | N107: BF2F | O107: Coventry | T107: Band 2F
A108: 6 | B108: Baginton Fields School | C108: Y331343709002 | D108: 13 | E108: Leese, Noah | H108: 2023-09-01 | K108: 76 | L108: 6615.463778 | M108: 1 | N108: BF1F | O108: Coventry | T108: Band 1F
A109: 6 | B109: Baginton Fields School | C109: F331343810048 | D109: 13 | E109: Hughes, Dylan J. | H109: 2023-09-01 | K109: 76 | L109: 3765.726675 | M109: 1 | N109: BF2E | O109: Coventry | T109: Band 2E
A110: 6 | B110: Baginton Fields School | C110: D331701709002 | D110: 13 | E110: Younis, Mohammed E. | H110: 2023-09-01 | K110: 76 | L110: 6615.463778 | M110: 1 | N110: BF1F | O110: Coventry | T110: Band 1F
A111: 6 | B111: Baginton Fields School | C111: E331202109018 | D111: 13 | E111: Moseley, Thomas | H111: 2023-09-01 | K111: 76 | L111: 4071.053627 | M111: 1 | N111: BF1E | O111: Coventry | T111: Band 1E
A112: 6 | B112: Baginton Fields School | C112: D331214509052 | D112: 13 | E112: Abdullah, Nasif | H112: 2023-09-01 | K112: 76 | L112: 6106.578263 | M112: 1 | N112: BF2F | O112: Coventry | T112: Band 2F
A113: 6 | B113: Baginton Fields School | C113: K331300810023 | D113: 13 | E113: Christian, Riquelme N. | H113: 2023-09-01 | K113: 76 | L113: 4071.053627 | M113: 1 | N113: BF1E | O113: Coventry | T113: Band 1E
A114: 6 | B114: Baginton Fields School | C114: R331341109030 | D114: 13 | E114: Cockerill, William | H114: 2023-09-01 | K114: 76 | L114: 3765.726675 | M114: 1 | N114: BF2E | O114: Coventry | T114: Band 2E
A115: 6 | B115: Baginton Fields School | C115: M331300810034 | D115: 13 | E115: Efrem Tekle, Feelmona E. | H115: 2023-09-01 | K115: 76 | L115: 3765.726675 | M115: 1 | N115: BF2E | O115: Coventry | T115: Band 2E
A116: 6 | B116: Baginton Fields School | C116: K936296309021 | D116: 13 | E116: Smith, Katie-Jayne | H116: 2023-09-01 | K116: 76 | L116: 6615.463778 | M116: 1 | N116: BF1F | O116: Coventry | T116: Band 1F
A117: =IF(LEFT(N117,2)="BF",6,IF(LEFT(N117,2)="CW",1,IF(LEFT(N117,2)="CO",4,IF(LEFT(N117,2)="TS",2,IF(LEFT(N117,2)="RB",3,IF(LEFT(N117,2)="SF",7,IF(LEFT(N117,2)="TV",5,IF(LEFT(N117,2)="WF",8,"")))))))) -> 6 | B117: Baginton Fields School | C117: N937702017001 | D117: 13 | E117: Voicu, Alexandru V. | H117: 2023-09-01 | K117: 76 | L117: 6106.578263 | M117: 1 | N117: BF2F | O117: Coventry | T117: Band 2F
A118: 6 | B118: Baginton Fields School | C118: F331701918001 | D118: 13 | E118: Didiu, Cosmin | H118: 2023-09-01 | K118: 76 | L118: 3765.726675 | M118: 1 | N118: BF2E | O118: Coventry | T118: Band 2E
A119: 6 | B119: Baginton Fields School | C119: V331701918002 | D119: 13 | E119: Jadeszko, Gabriel | H119: 2023-09-01 | K119: 76 | L119: 3765.726675 | M119: 1 | N119: BF2E | O119: Coventry | T119: Band 2E
A120: 6 | B120: Baginton Fields School | C120: Q856700314010 | D120: 13 | E120: Hatem, Ibraheem B. | H120: 2023-09-01 | K120: 76 | L120: 9304.458333 | M120: 1 | N120: BF5E | O120: Coventry | T120: Band 5E
A121: 6 | B121: Baginton Fields School | C121: F331701919002 | D121: 13 | E121: Okorie, Michael | H121: 2023-09-01 | K121: 76 | L121: 9304.458333 | M121: 1 | N121: BF5E | O121: Coventry | T121: Band 5E
A122: 6 | B122: Baginton Fields School | C122: R307700710005 | D122: 13 | E122: ESSEKU-OTOO, Nadia A. | H122: 2023-09-01 | K122: 76 | L122: 4071.053627 | M122: 1 | N122: BF1E | O122: Coventry | T122: Band 1E
A123: 6 | B123: Baginton Fields School | C123: D331343708043 | D123: 14 | E123: Ekalakala, Beni L. | H123: 2023-09-01 | K123: 76 | L123: 4071.053627 | M123: 1 | N123: BF1E | O123: Coventry | T123: Band 1E
A124: 6 | B124: Baginton Fields School | C124: C331215608046 | D124: 14 | E124: Clifton, Amy E. | H124: 2023-09-01 | K124: 76 | L124: 3765.726675 | M124: 1 | N124: BF2E | O124: Coventry | T124: Band 2E
A125: 6 | B125: Baginton Fields School | C125: W331212908067 | D125: 14 | E125: Mubele, Quincey | H125: 2023-09-01 | K125: 76 | L125: 4071.053627 | M125: 1 | N125: BF1E | O125: Coventry | T125: Band 1E
A126: 6 | B126: Baginton Fields School | C126: T331343708044 | D126: 14 | E126: Kirkby, Olivia | H126: 2023-09-01 | K126: 76 | L126: 4071.053627 | M126: 1 | N126: BF1E | O126: Coventry | T126: Band 1E
A127: 6 | B127: Baginton Fields School | C127: Q336204110010 | D127: 14 | E127: Riley, Kirk S. | H127: 2023-09-01 | K127: 76 | L127: 3765.726675 | M127: 1 | N127: BF2E | O127: Coventry | T127: Band 2E
A128: 6 | B128: Baginton Fields School | C128: K331702408001 | D128: 14 | E128: Newport, Brandon A. | H128: 2023-09-01 | K128: 76 | L128: 6615.463778 | M128: 1 | N128: BF1F | O128: Coventry | T128: Band 1F
A129: 1 | B129: Castle Wood School | C129: L331702423000 | D129: 0 | E129: Bodinnar, Lexeigh A. | H129: 2023-09-01 | K129: 76 | L129: 4071.053627 | M129: 1 | N129: CW1E | O129: Coventry | T129: Band 1E
A130: 1 | B130: Castle Wood School | C130: G331702423005 | D130: 0 | E130: Enueze, Ryan | H130: 2023-09-01 | K130: 76 | L130: 5088.815945 | M130: 1 | N130: CW3E | O130: Coventry | T130: Band 3E
A131: 1 | B131: Castle Wood School | C131: C331215622053 | D131: 0 | E131: Moalim, Aliyah M. | H131: 2023-09-01 | K131: 76 | L131: 4071.053627 | M131: 1 | N131: CW1E | O131: Coventry | T131: =IF(ISBLANK(A131),"",CONCATENATE($N$2," ",RIGHT(N131,2))) -> Band 1E
A132: 1 | B132: Castle Wood School | C132: T331702423004 | D132: 0 | E132: Doughty, Reggie H. | H132: 2023-09-01 | K132: 76 | L132: 6615.463778 | M132: 1 | N132: CW1F | O132: Coventry | T132: Band 1F
A133: 1 | B133: Castle Wood School | C133: P331702423002 | D133: 0 | E133: Cleaver, Harley P. | H133: 2023-09-01 | K133: 76 | L133: 4071.053627 | M133: 1 | N133: CW1E | O133: Coventry | T133: Band 1E
A134: 1 | B134: Castle Wood School | C134: Z331702423008 | D134: 0 | E134: Pankowski, Natan | H134: 2023-09-01 | K134: 76 | L134: 6106.578263 | M134: 1 | N134: CW4F | O134: Coventry | T134: Band 4F
A135: 1 | B135: Castle Wood School | C135: W331702423006 | D135: 0 | E135: Evans, Cameron | H135: 2023-09-01 | K135: 76 | L135: 5088.815945 | M135: 1 | N135: CW4E | O135: Coventry | T135: Band 4E
A136: 1 | B136: Castle Wood School | C136: N331702423009 | D136: 0 | E136: Shahid, Arfa | H136: 2023-09-01 | K136: 76 | L136: 6106.578263 | M136: 1 | N136: CW2F | O136: Coventry | T136: Band 2F
A137: 1 | B137: Castle Wood School | C137: F331100720065 | D137: 0 | E137: Ighavogbe, Dominic E. | H137: 2023-09-01 | K137: 76 | L137: 6615.463778 | M137: 1 | N137: CW1F | O137: Coventry | T137: Band 1F
A138: 1 | B138: Castle Wood School | C138: A331702423001 | D138: 0 | E138: Ba, Hope Ayesha A. | H138: 2023-09-01 | K138: 76 | L138: 3765.726675 | M138: 1 | N138: CW2E | O138: Coventry | T138: Band 2E
A139: 1 | B139: Castle Wood School | C139: F331340422041 | D139: 0 | E139: Ofosu, Jayden S. | H139: 2023-09-01 | K139: 76 | L139: 6615.463778 | M139: 1 | N139: CW1F | O139: Coventry | T139: Band 1F
A140: 1 | B140: Castle Wood School | C140: W331100721031 | D140: 0 | E140: Muzammil, Mustafa A. | H140: 2023-09-01 | K140: 76 | L140: 4071.053627 | M140: 1 | N140: CW1E | O140: Coventry | T140: Band 1E
A141: 1 | B141: Castle Wood School | C141: X331100721103 | D141: 0 | E141: Ahmed, Mahir | H141: 2023-09-01 | K141: 76 | L141: 6615.463778 | M141: 1 | N141: CW1F | O141: Coventry | T141: Band 1F
A142: 1 | B142: Castle Wood School | C142: J331213222030 | D142: 0 | E142: Ajilo, Glorious O. | H142: 2023-09-01 | K142: 76 | L142: 4071.053627 | M142: 1 | N142: CW1E | O142: Coventry | T142: Band 1E
A143: 1 | B143: Castle Wood School | C143: A331215222019 | D143: 0 | E143: Christopher, Joshua O. | H143: 2023-09-01 | K143: 76 | L143: 4071.053627 | M143: 1 | N143: CW1E | O143: Coventry | T143: Band 1E
A144: 1 | B144: Castle Wood School | C144: K331702423007 | D144: 0 | E144: Morrison, Taiyo | H144: 2023-09-01 | K144: 76 | L144: 4071.053627 | M144: 1 | N144: CW1E | O144: Coventry | T144: Band 1E
A145: 1 | B145: Castle Wood School | C145: W331201722022 | D145: 0 | E145: Sangha, Tegbir S. | H145: 2023-09-01 | K145: 76 | L145: 6615.463778 | M145: 1 | N145: CW1F | O145: Coventry | T145: Band 1F
A146: 1 | B146: Castle Wood School | C146: G331702422004 | D146: 1 | E146: Kelly-Symons, Donovan J. | H146: 2023-09-01 | K146: 76 | L146: 4071.053627 | M146: 1 | N146: CW1E | O146: Coventry | T146: Band 1E
A147: 1 | B147: Castle Wood School | C147: R331702422012 | D147: 1 | E147: Bodinnar, Ava K. | H147: 2023-09-01 | I147: 2023-12-18 | K147: 72 | L147: 3856.787647 | M147: 0.9473684211 | N147: CW1E | O147: Coventry | T147: Band 1E
A148: 1 | B148: Castle Wood School | C148: R331702422012 | D148: 1 | E148: Bodinnar, Ava K. | H148: 2023-12-19 | K148: 4 | L148: 348.1823041 | M148: 0.05263157895 | N148: CW1F | O148: Coventry | T148: Band 1F
A149: 1 | B149: Castle Wood School | C149: D331702422002 | D149: 1 | E149: Osuagwu, Jeremiah O. | H149: 2023-09-01 | K149: 76 | L149: 6615.463778 | M149: 1 | N149: CW1F | O149: Coventry | T149: Band 1F
A150: 1 | B150: Castle Wood School | C150: F331702422013 | D150: 1 | E150: Martin, Alexander J. | H150: 2023-09-01 | K150: 76 | L150: 4071.053627 | M150: 1 | N150: CW1E | O150: Coventry | T150: Band 1E
